Workbook

Sheet Recap Sheet
A1: South Carolina School Food Service Purchasing Alliance, Inc
A2: School Food Authority: | B2: Colleton County School District Office of Student Nutrition
A3: Offeror Name:
A4: Firm Fixed Fee | B4: $0.00
A5: Bid Recap
A6: Categories | B6: Subtotals
A7: Beef | B7: =Beef!L95 -> $30,847.01
A8: Chicken | B8: =Chicken!L244 -> $292,543.28
A9: Turkey | B9: =Turkey!L73 -> $17,488.35
A10: Pork | B10: =Pork!L52 -> $95,107.75
A11: Fish | B11: =Fish!L44 -> $6,304.00
A12: Pizza | B12: ='Pizza '!L174 -> $34,250.00
A13: Frozen Entrees | B13: ='Frozen Entrees'!L103 -> $53,611.25
A14: Franks & Corn Dogs | B14: ='Franks & Corn Dogs'!L73 -> $2,791.00
A15: Dairy | B15: ='Dairy&Yogurt'!L92 -> $30,782.90
A16: Eggs | B16: =Eggs!L56 -> 0
A17: Frozen Potato | B17: ='Frozen Potato '!L98 -> $28,615.00
A18: Frozen Fruit & Juice | B18: ='Frozen Fruit & Juice'!L106 -> $9,302.00
A19: Shelf-stable Fruit& Juice | B19: ='Shelf-stable Fruit& Juice'!L107 -> $7,628.68
A20: Frozen Vegetables | B20: ='Frozen Vegetables'!L67 -> 0
A21: Shelf-stable Vegetables | B21: ='Shelf-stable Vegetables'!L120 -> $18,148.50
A22: Breakfast Products | B22: ='Breakfast Products'!L303 -> $123,222.00
A23: Groceries | B23: =Groceries!L225 -> 0
A24: Beverages | B24: =Beverages!L64 -> $15,831.00
A25: Spices- Flavorings | B25: ='Spices- Flavorings'!L148 -> 0
A26: Condiments Portion Control | B26: ='Condiments Portion Control'!L129 -> $13,366.19
A27: Smart Snacks | B27: ='Smart Snacks'!L133 -> $48,402.00
A28: Special Diet Foods | B28: ='Special Diet Foods'!L61 -> 0
A29: Bread Products, Frozen | B29: ='Bread Products, Frozen'!L30 -> 0
A30: Chemicals | B30: =Chemicals!L15 -> 0
A31: Disposables | B31: =Disposables!L231 -> 0
A32: Lot A Total | B32: =SUM(B7:B31) -> $828,240.91

Sheet Beef
B1: ='Recap Sheet'!A2 -> School Food Authority: | E1: ='Recap Sheet'!A3 -> Offeror Name:
B2: ='Recap Sheet'!B2 -> Colleton County School District Office of Student Nutrition | C2: Return to Recap Sheet | E2: ='Recap Sheet'!B3 -> 0 | P2: Commodity
A3: Item | B3: Description | C3: Approved Brand Name / Manuf ID # | F3: Firm Fixed Fee | K3: ='Recap Sheet'!B4 -> $0.00 | N3: Processing | O3: Commodity | P3: Pounds of | R3: NOI | S3: Net NOI | T3: Total Cost
A4: # | D4: Distributor | E4: Vendor | F4: Svgs | G4: Est. | H4: Bid | I4: Bid | J4: Unit | K4: Unit Price | L4: Total | M4: Cost per | N4: Fee for | O4: Value Per | P4: DF Needed | Q4: Commodity | R4: Net | S4: Cost Per | T4: Processing Fee
D5: Code | E5: Pack | F5: per unit | G5: Bid Qty | H5: Qty | I5: Unit | J5: Price | K5: plus Fee | L5: Price | M5: Serving | N5: Service | O5: Pound | P5: Per Case | Q5: Value | R5: Price | S5: Serving | T5: for Service
B6: Category: Beef | O6: Beef Course Ground Frozen CTN 60 Lb 100154
A7: 1 | B7: Beef Chili, (For Hot Dogs) | C7: Chandler 65-464 | E7: 4/5 lbs | F7: 160 | G7: 10 | H7: =ROUND(G7*F7/F7,2) -> 10 | I7: Cs | J7: $31.60 | K7: =IF(OR(ISBLANK(J7),G7=0,ISBLANK(G7)),,ROUND(J7+$K$3,2)) -> $31.60 | L7: =ROUND(H7*K7,2) -> $316.00 | M7: =ROUND(K7/F7,2) -> $0.20 | N7: 0 | O7: $2.2248 | P7: 25.44 | T7: =N7/F7 -> 0
B8: Frozen, Fully cooked, No beans, 40-80 calories with no more than 1 g | C8: JTM 5320CE | E8: 6/5# | F8: 104 | H8: =ROUND(G7*F7/F8,2) -> 15.38 | I8: Cs | N8: $26.22 | O8: $2.2248 | P8: 9.12 | Q8: =ROUND(O8*P8,2) -> $20.29 | R8: 0 | S8: =R8/F8 -> 0 | T8: =N8/F8 -> $0.25
B9: saturated fat and 250 mg sodium per 2 oz. serving.
B11: Possible Allergens: Soy, Wheat
A12: 2 | B12: Beef Crumbles, Unseasoned | C12: Don Lee Farms CN1540L Com: CNQ15401 | E12: 4/10 lbs | F12: 320 | G12: 25 | H12: =ROUND(G12*F12/F12,2) -> 25 | I12: Cs | J12: $111.60 | K12: =IF(OR(ISBLANK(J12),G12=0,ISBLANK(G12)),,ROUND(J12+$K$3,2)) -> $111.60 | L12: =ROUND(H12*K12,2) -> $2,790.00 | M12: =ROUND(K12/F12,2) -> $0.35 | N12: $28.00 | O12: $2.2248 | P12: 66.67 | Q12: =ROUND(O12*P12,2) -> $148.33 | R12: 0 | S12: =R12/F12 -> 0 | T12: =N12/F12 -> $0.09
B13: Frozen, fully cooked ground beef, (no more than 20% fat), 100-150 | C13: Adv. Pierre 320410-9 Com# 1-3201410-9 | E13: 236/2.03z | F13: 236 | H13: =ROUND(G12*F12/F13,2) -> 33.9 | I13: Cs | N13: 0 | O13: $2.2248 | P13: 47.72 | R13: 0 | S13: 0 | T13: 0
B14: calories with no more than 4 g saturated fat and 250 mg sodium per | C14: Integrated N32000B Com# C32000B | E14: 316/2.02z | F14: 316 | H14: =ROUND(G12*F12/F14,2) -> 25.32 | I14: Cs | N14: 0 | O14: $2.2248 | P14: 53.19 | Q14: $118.34 | R14: 0 | S14: 0 | T14: 0
B15: 2 M/MA serving. CN Labeled with serving size to provide min. 2 M/MA
B16: Possible Allergens: None
A17: 3 | B17: Beef, Meatball | C17: Adv. Pierre 3-17-505-0 Com #: 1-17-305-0 | E17: 960/.5z | F17: 192 | G17: 10 | H17: =ROUND(G17*F17/F17,2) -> 10 | I17: Cs | N17: 0 | O17: $2.2248 | P17: 23.40 | R17: 0 | S17: =R17/F17 -> 0 | T17: =N17/F17 -> 0
B18: Frozen, IQF, Fully cooked ground beef (no more than 30% fat) | C18: Maid Rite 75156-04105 Com #: 75156-94105 | E18: 960/.5z | F18: 192 | H18: =ROUND(G17*F17/F18,2) -> 10 | I18: Cs | N18: 0 | O18: $2.2248 | P18: 24.94 | Q18: =ROUND(O18*P18,2) -> $55.48 | R18: 0 | S18: 0 | T18: 0
B19: 100-200 calories with no more than 6 g saturated fat and 300 mg | C19: Integrated N22050B Com #: C22050B | E19: 1280/.5z | F19: 256 | H19: =ROUND(G17*F17/F19,2) -> 7.5 | I19: Cs | N19: 0 | O19: $2.2248 | P19: 34.34 | Q19: $76.40 | R19: 0 | S19: =R19/F19 -> 0 | T19: 0
B20: sodium per serving. CN Labeled for 5 meatballs to provide min 2 M/MA | C20: JTM 5030CE Com #: CP505030 | E20: 171.2.80z | F20: 171 | H20: =ROUND(G17*F17/F20,2) -> 11.23 | I20: Cs | N20: 0 | O20: $2.2248 | P20: 23.78 | Q20: $52.91 | R20: 0 | S20: 0 | T20: 0
B21: VPP allowed | C21: Rich Products 55668 | E21: 2/5 lb | F21: 64 | H21: =ROUND(G17*F17/F21,2) -> 30 | I21: Cs
C22: Don Lee Farms CN28053VS Com #: CNQ28053VS | E22: 240/2.0z | F22: 240 | H22: =ROUND(G17*F17/F22,2) -> 8 | I22: Cs | J22: $71.10 | K22: =IF(OR(ISBLANK(J22),G17=0,ISBLANK(G17)),,ROUND(J22+$K$3,2)) -> $71.10 | L22: =ROUND(H22*K22,2) -> $568.80 | M22: =ROUND(K22/F22,2) -> $0.30 | N22: $23.70 | O22: $2.2248 | P22: 28.63 | Q22: =ROUND(O22*P22,2) -> $63.70 | R22: 0 | S22: =R22/F22 -> 0 | T22: =N22/F22 -> $0.10
B23: Possible Allergens: Wheat, Soy and Milk
A24: 4 | B24: Beef Nugget, Teriyaki | C24: Don Lee Farms CNTDO753 Com #: CNQTDO753 | E24: 160/3.0z | F24: 160 | G24: 0 | H24: =ROUND(G24*F24/F24,2) -> 0 | I24: Cs | J24: $64.80 | K24: =IF(OR(ISBLANK(J24),G24=0,ISBLANK(G24)),,ROUND(J24+$K$3,2)) -> 0 | L24: =ROUND(H24*K24,2) -> 0 | M24: =ROUND(K24/F24,2) -> 0 | N24: $23.70 | O24: $2.2248 | P24: 26.70 | Q24: =ROUND(O24*P24,2) -> $59.40 | R24: 0 | S24: 0 | T24: =N24/F24 -> $0.15
B25: Frozen, Fully cooked ground beef (no more than 30% fat) | C25: AFG 90927 | E25: 200/2.40z | F25: 200 | H25: =ROUND(G24*F24/F25,2) -> 0 | I25: Cs
B26: 100-200 calories with no more than 4g saturated fat and 450 mg | C26: Advanced Pierre 3840 Com#: 3740 | E26: 143/2.80z 143 | F26: 143 | H26: =ROUND(G24*F24/F26,2) -> 0 | I26: Cs | N26: 0 | O26: $2.2248 | P26: 22.85 | R26: 0 | S26: 0 | T26: =N26/F26 -> 0
B27: sodium per serving. CN Labeled for 4 nuggets to provide 2 M/MA VPP
B28: Possible Allergens: Wheat, Soy
A29: 5 | B29: Beef Steak Patties, Breaded | C29: Advanced Pierre, 68035 | E29: 85/3.80z | F29: 85 | G29: 125 | H29: =ROUND(G29*F29/F29,2) -> 125 | I29: Cs | J29: $58.65 | K29: =IF(OR(ISBLANK(J29),G29=0,ISBLANK(G29)),,ROUND(J29+$K$3,2)) -> $58.65 | L29: =ROUND(H29*K29,2) -> $7,331.25 | M29: =ROUND(K29/F29,2) -> $0.69 | N29: 0 | P29: 15.71 | R29: 0 | S29: 0 | T29: =N29/F29 -> 0
B30: Frozen, Fully cooked, ground beef (no more than 20% fat) 100-200 | C30: COM #: 69035
B31: calories with no more than 5 g saturated fat and 300 mg sodium per
B32: serving. CN Labeled for one portion to provide 2 M/MA. Pack in oven sle
B33: Possible Allergens: Soy
A34: 6 | B34: Beef Patte, Flame or Charbroiled | C34: Advance 3-155-525-0 (COM 1-155-525-20) | E34: 200/2.5z | F34: 200 | G34: 125 | H34: =ROUND(G34*F34/F34,2) -> 125 | I34: Cs | N34: 0 | O34: $2.2248 | P34: 25.44 | Q34: =ROUND(O34*P34,2) -> $56.60 | T34: =N34/F34 -> 0
B35: Frozen, IQF, Fully cooked ground beef no more than 20% fat) | C35: Don Lee Farms 202503CN | E35: 198/2.5z | F35: 198 | H35: =ROUND(G34*F34/F35,2) -> 126.26 | I35: Cs | J35: $54.15 | K35: =IF(OR(ISBLANK(J35),G34=0,ISBLANK(G34)),,ROUND(J35+$K$3,2)) -> $54.15 | L35: =ROUND(H35*K35,2) -> $6,836.98 | M35: =ROUND(K35/F35,2) -> $0.27
B36: Alternate protein products must meet the requirements in Apendix A | C36: Don Lee Farms Commodity CNQ212503 | E36: 200/2.5z | F36: 200 | H36: 0 | I36: Cs | N36: $21.88 | O36: $2.2248 | P36: 23.17 | Q36: =ROUND(O36*P36,2) -> $51.55 | T36: =N36/F36 -> $0.11
B37: of 7 CFR 210. Sodium content is not more than 250 mg per serving | C37: Maid Rite 75156-03427 | E37: 213/2.25z | F37: 213 | H37: =ROUND($G$34*$F$34/F37,2) -> 117.37 | I37: Cs | N37: 0 | O37: $2.2248 | P37: 35.06 | Q37: =ROUND(O37*P37,2) -> $78.00 | T37: =N37/F37 -> 0
B38: Product provides 2 oz. M/MA per serving.
B39: Possible Allergens: Soy
A40: 7 | B40: Beef Patties, Raw, 100% Beef IQF, USDA inspected beef. | C40: Distributor Choice | E40: 50/3.2z | F40: 50 | G40: 0 | H40: =ROUND($G$40*$F$40/F40,2) -> 0 | I40: Cs
B41: One patty to meet 2 oz meat/meat alternate. | C41: Fillable txt box | F41: 0 | H41: =ROUND(G40*F40/F41,2) ->  | I41: Cs | J41: 0 | K41: =IF(OR(ISBLANK(G40),G40=0,ISBLANK(F41)),,ROUND(J41+$K$3,2)) -> 0 | L41: =ROUND(H41*K41,2) ->  | M41: =ROUND(K41/F41,2) -> 
B42: Possible Allergens: None Listed
A43: 8 | B43: Beef Patties, No TVP | C43: Integrated N32300B-NF | E43: 90/3.0z | F43: 90 | G43: 0 | H43: =ROUND(G43*F43/F43,2) -> 0 | I43: Cs | J43: $61.90 | K43: =IF(OR(ISBLANK(J43),G43=0,ISBLANK(G43)),,ROUND(J43+$K$3,2)) -> 0 | L43: =ROUND(H43*K43,2) -> 0 | M43: =ROUND(K43/F43,2) -> 0 | N43: $24.45 | O43: $2.2248 | P43: 22.58 | Q43: =ROUND(O43*P43,2) -> $50.24 | R43: 0 | S43: 0 | T43: =N43/F43 -> $0.27
B44: Frozen, IQF, Fully cooked ground beef, Not more than 20% fat Sodium | C44: COM #: C32300B-NF
B45: not to exceed 275 mg sodium per serving Must provide 2.0 oz. M/MA
B46: Possible Allergens: None Listed
A47: 9 | B47: Beef Patties, Flame Grilled Grass Fed | C47: Merrywood Farms 302010 | E47: 175/2.75 z | F47: 175 | G47: 0 | H47: =ROUND(G47*F47/F47,2) -> 0 | I47: Cs | J47: $175.00 | K47: =IF(OR(ISBLANK(J47),G47=0,ISBLANK(G47)),,ROUND(J47+$K$3,2)) -> 0 | L47: =ROUND(H47*K47,2) -> 0 | M47: =ROUND(K47/F47,2) -> 0
B48: Frozen, Fully cooked, flame grilled grass fed. One patty provides
B49: 2.75 oz. M/MA per serving 150-250 calories and no more than 7 g
B50: saturated fat and 300 mg of sodium per serving
B51: Possible Allergens: None Listed
A52: 10 | B52: Beef, Frozen Ground | C52: Distributor Choice | E52: 10Lb | F52: 10 | G52: 0 | H52: =ROUND($G$52*$F$52/F52,2) -> 0 | I52: Cs
B53: USDA inspected bulk, raw fine ground, (no more than 20% fat) | C53: Fillable txt box | H53: =ROUND(G52*F52/F53,2) ->  | I53: Cs | K53: =IF(OR(ISBLANK(G52),G52=0,ISBLANK(F53)),,ROUND(J53+$K$3,2)) -> 0 | L53: =ROUND(H53*K53,2) ->  | M53: =ROUND(K53/F53,2) -> 
B54: MPS #136 Label statement required, "Domestic Beef Only"
B55: Possible Allergens: None Listed
A56: 11 | B56: Beef Pattie, Salisbury Steak | C56: Advanced Pierre 3-16-530-0 Com #: 1-16-530-0 | E56: 170/3.0z | F56: 170 | G56: 50 | H56: =ROUND(G56*F56/F56,2) -> 50 | I56: Cs | N56: 0
B57: Frozen, fully cooked ground beef (no more than 30% fat) 100-200 calories | C57: JTM 5632CE Com #: CP5632 | E57: 172/2.78z | F57: 172 | H57: =ROUND(G56*F56/F57,2) -> 49.42 | I57: Cs | N57: 0 | O57: $2.2248 | P57: 25.38 | Q57: =ROUND(O57*P57,2) -> $56.47 | R57: 0 | S57: =R57/F57 -> 0 | T57: =N57/F57 -> 0
B58: with no more than 6 g sat fat and 450 mg sodium per serving. CN labeled | C58: Don Lee Farms Comm # CNQ752503 | E58: 200/2.25z | F58: 200 | H58: =ROUND(G56*F56/F58,2) -> 42.5 | I58: Cs | N58: $21.88 | O58: $2.2248 | P58: 33.20 | Q58: $73.86 | R58: 0 | S58: 0 | T58: $0.11
B59: for one portion to provide min. 2.0 oz. M/MA. VPP Allowed | C59: Don Lee Farms CN752253 | E59: 240/2.25z | F59: 240 | H59: =ROUND(G56*F56/F59,2) -> 35.42 | I59: Cs | J59: $70.54 | K59: =IF(OR(ISBLANK(J59),G56=0,ISBLANK(G56)),,ROUND(J59+$K$3,2)) -> $70.54 | L59: =ROUND(H59*K59,2) -> $2,498.53 | M59: =ROUND(K59/F59,2) -> $0.29
C60: AFG 290852 | E60: 208/2.30z | F60: 208 | H60: =ROUND(G56*F56/F60,2) -> 40.87 | I60: Cs | N60: 0
B61: Possible Allergens: Wheat, Soy, Milk
A62: 12 | B62: Beef Steak Burger (Mini Slider). Charbroiled | C62: Don Lee Farms CN161203 Comm #CNQ161203 | E62: 400/1.2z | F62: 400 | G62: 25 | H62: =ROUND(G62*F62/F62,2) -> 25 | I62: Cs | J62: $77.70 | K62: =IF(OR(ISBLANK(J62),G62=0,ISBLANK(G62)),,ROUND(J62+$K$3,2)) -> $77.70 | L62: =ROUND(H62*K62,2) -> $1,942.50 | M62: =ROUND(K62/F62,2) -> $0.19 | N62: $21.90 | O62: $2.2248 | P62: 50.30 | Q62: =ROUND(O62*P62,2) -> $111.91 | R62: 0 | S62: 0 | T62: =N62/F62 -> $0.05
B63: Frozen, Fully cooked, made from ground beef (no more than 30% fat)
B64: 0-150 calories with not more than 4 g saturated fat and 200 mg of
B65: sodium per serving. CN labeled for one portion to provide 1 M/MA
B67: Possible Allergens: None Listed Gluten Free
A68: 13 | B68: Meatloaf with Ketchup | C68: Advanced Pierre 9300 CN | E68: 100/3.0z | F68: 100 | G68: 0 | H68: =ROUND(G68*F68/F68,2) -> 0 | I68: Cs | J68: $43.30 | K68: =IF(OR(ISBLANK(J68),G68=0,ISBLANK(G68)),,ROUND(J68+$K$3,2)) -> 0 | L68: =ROUND(H68*K68,2) -> 0 | M68: =ROUND(K68/F68,2) -> 0
B69: Made from ground beef (no more than 30% fat) Fully cooked, may
B70: contain VPP One portion to provide 2 oz. M/MA
B72: Possible Allergens: Soy
A73: 14 | B73: Beef, Taco Filling Meat, Reduced Fat and Sodium | C73: JTM 5250CE Comm #: CP5250 | E73: 6/5 lb | F73: 151 | G73: 300 | H73: =ROUND(G73*F73/F73,2) -> 300 | I73: Cs | J73: $65.23 | K73: =IF(OR(ISBLANK(J73),G73=0,ISBLANK(G73)),,ROUND(J73+$K$3,2)) -> $65.23 | L73: =ROUND(H73*K73,2) -> $19,569.00 | M73: =ROUND(K73/F73,2) -> $0.43 | N73: $26.60 | O73: $2.2248 | P73: 16.79 | Q73: =ROUND(O73*P73,2) -> $37.35 | R73: 0 | S73: 0 | T73: =N73/F73 -> $0.18
B74: Frozen, fully cooked ground beef, no more than 20% fat, Boilable bags, 100-200
B75: calories with no more than 2 g sat fat and 300 mg sodium per svg.
B76: CN labeled with serving size to provide min. 2.0 oz. M/MA
B77: and 1/8 cup Red/Orange Vegetable
B78: Possible Allergens: Soy
A79: 15 | B79: Steak Nugget | C79: Advanced Pierre 68036 CN | E79: 100/3.85z | F79: 100 | G79: 0 | H79: =ROUND(G79*F79/F79,2) -> 0 | I79: Cs | J79: $72.79 | K79: =IF(OR(ISBLANK(J79),G79=0,ISBLANK(G79)),,ROUND(J79+$K$3,2)) -> 0 | L79: =ROUND(H79*K79,2) -> 0 | M79: =ROUND(K79/F79,2) -> 0 | N79: 0 | O79: $2.2248 | P79: 19.25 | R79: 0 | S79: 0 | T79: 0
B80: WGR, Fully cooked, chopped and form, frozen, One serving provides
B81: 2 0 M/MA and 1 oz. OEG
B82: Possible Allergens: Soy
A83: 16 | B83: Beef and Bean Burger | C83: Advance Pierre 68103 | E83: 110/3.5z | F83: 110 | G83: 0 | H83: =ROUND(G83*F83/F83,2) -> 0 | I83: Cs | J83: $65.25 | K83: =IF(OR(ISBLANK(J83),G83=0,ISBLANK(G83)),,ROUND(J83+$K$3,2)) -> 0 | L83: =ROUND(H83*K83,2) -> 0 | M83: =ROUND(K83/F83,2) -> 0 | N83: 0
B84: Beef patty with beans, Frozen, fully cooked, 3.5 oz. patty provides 2.0 oz. M/MA and not to
B85: exceed 200 calories and 190 mg of sodium per serving
B86: Possible Allergens:
A87: 17 | B87: Cheeseburger Meatloaf | C87: Advanced Pierre 68190 | E87: 100/2.90z | F87: 100 | G87: 0 | H87: =ROUND(G87*F87/F87,2) -> 0 | I87: Cs | J87: $62.42 | K87: =IF(OR(ISBLANK(J87),G87=0,ISBLANK(G87)),,ROUND(J87+$K$3,2)) -> 0 | L87: =ROUND(H87*K87,2) -> 0 | M87: =ROUND(K87/F87,2) -> 0 | N87: 0 | O87: $2.2248 | P87: 15.62 | R87: 0 | S87: =R87/F87 -> 0 | T87: 0
B88: Fully cooked, All beef with cheese One serving to meet 2.0 oz. M/MA
B90: Possible Allergens:
A91: 18 | B91: Beef Brisket with BBQ Sauce | C91: (18-19) Brookwood Farms 11125 | E91: 2/5 lbs | F91: 44 | G91: 0 | H91: =ROUND(G91*F91/F91,2) -> 0 | I91: Cs | J91: $49.20 | K91: =IF(OR(ISBLANK(J91),G91=0,ISBLANK(G91)),,ROUND(J91+$K$3,2)) -> 0 | L91: =ROUND(H91*K91,2) -> 0 | M91: =ROUND(K91/F91,2) -> 0 | N91: 0
B92: Frozen, fully cooked, sodium must not exceed 300 mg and 350 calories per 2.0 oz.
B93: serving. Must provide 2 oz. M/MA
B94: Possible Allergens: Soy
G95: 0 | I95: Page Total | L95: =SUMIF(L34:L94,">0") -> $30,847.01

Sheet Chicken
B1: ='Recap Sheet'!A2 -> School Food Authority: | E1: ='Recap Sheet'!A3 -> Offeror Name:
B2: ='Recap Sheet'!B2 -> Colleton County School District Office of Student Nutrition | C2: Return to Recap Sheet | E2: ='Recap Sheet'!B3 -> 0 | P2: Commodity
A3: Item | B3: Description | C3: Approved Brand Name / Manuf ID # | F3: Firm Fixed Fee | K3: ='Recap Sheet'!B4 -> $0.00 | L3: o provide | N3: Processing | O3: Commodity | P3: Pounds of | R3: NOI | S3: Net NOI | T3: Total Cost
A4: # | D4: Distributor | E4: Vendor | F4: Svgs | G4: Est. | H4: Bid | I4: Bid | J4: Unit | K4: Unit Price | L4: Total | M4: Cost per | N4: Fee for | O4: Value Per | P4: DF Needed | Q4: Commodity | R4: Net | S4: Cost Per | T4: Price Fee
D5: Code | E5: Pack | F5: per unit | G5: Bid Qty | H5: Qty | I5: Unit | J5: Price | K5: plus Fee | L5: Price | M5: Unit | N5: Service | O5: Pound | P5: Per Case | Q5: Value | R5: Price | S5: Serving | T5: For Service
B6: Chicken, Whole Muscle (Muscle Intact) | O6: Chicken, Large 100103
A7: 1 | B7: Chicken Fillet, Breaded, chicken breast meat only. | C7: Gold Kist 7516 | E7: 120/4.0z | F7: 120 | G7: 350 | H7: =ROUND(G7*F7/F7,2) -> 350 | I7: Cs | J7: $90.00 | K7: =IF(OR(ISBLANK(J7),G7=0,ISBLANK(G7)),,ROUND(J7+$K$3,2)) -> $90.00 | L7: =ROUND(H7*K7,2) -> $31,500.00 | M7: =ROUND(K7/F7,2) -> $0.75 | N7: $66.86 | O7: $0.9345 | P7: 24.76 | Q7: =ROUND(O7*P7,2) -> $23.14 | R7: =J7-Q7 -> $66.86 | S7: =R7/F7 -> $0.56 | T7: =N7/F7 -> $0.56
B8: Solid Whole muscle meat; fully cooked, IQF. Each portion must provide
B9: a min to meet 2 M/MA and 1 OEG. Breading must meet Whole Grain
B10: Rich requirements. Batter/breading not to exceed 30% of the weight of
B11: the finished product. Sodium must not exceed 580mg per serving.
B12: No Egg, No Alternate Protein Product Domestic birds only
B13: No bags included
B14: Possible Allergens: None Listed
A15: 2 | B15: Chicken Fillet, Breaded, Spicy, chicken breast meat only, | C15: Gold Kist 7517 | E15: 120/4.0z | F15: 120 | G15: 50 | H15: =ROUND(G15*F15/F15,2) -> 50 | I15: Cs | J15: $90.00 | K15: =IF(OR(ISBLANK(J15),G15=0,ISBLANK(G15)),,ROUND(J15+$K$3,2)) -> $90.00 | L15: =ROUND(H15*K15,2) -> $4,500.00 | M15: =ROUND(K15/F15,2) -> $0.75 | N15: $66.86 | O15: $0.9345 | P15: 24.76 | Q15: =ROUND(O15*P15,2) -> $23.14 | R15: =J15-Q15 -> $66.86 | S15: =R15/F15 -> $0.56 | T15: =N15/F15 -> $0.56
B16: Solid Whole muscle meat, fully cooked, IQF. Each portion must provide
B17: a min to meet 2 M/MA and 1 OEG. Breading must meet Whole Grain
B18: Rich requirements. Batter / breading not to exceed 30% of the weight of
B19: the finished product. Sodium must not exceed 580mg per serving.
B20: No Egg, No Alternate Protein Product Domestic birds only
B21: Possible Allergens: None Listed
A22: 3 | B22: Chicken Chunks, breaded, chicken breast with rib meat only; | C22: Gold Kist 7518 | E22: 30 lbs | F22: 128 | G22: 125 | H22: =ROUND(G22*F22/F22,2) -> 125 | I22: Cs | J22: $89.60 | K22: =IF(OR(ISBLANK(J22),G22=0,ISBLANK(G22)),,ROUND(J22+$K$3,2)) -> $89.60 | L22: =ROUND(H22*K22,2) -> $11,200.00 | M22: =ROUND(K22/F22,2) -> $0.70 | N22: $66.46 | O22: $0.9345 | P22: 24.76 | Q22: =ROUND(O22*P22,2) -> $23.14 | R22: =J22-Q22 -> $66.46 | S22: =R22/F22 -> $0.52 | T22: $0.52
B23: Solid Whole muscle meat, fully cooked, IQF. Each portion must provide
B24: a min to meet 2 M/MA and 1 OEG. Breading must meet Whole Grain
B25: Rich requirements. Batter / breading not to exceed 30% of the weight of
B26: the finished product. Sodium must not exceed 580mg per serving.
B27: No Egg, No Alternate Protein Product Domestic birds only
B28: Possible Allergens: None Listed
A29: 4 | B29: Chicken Tenders, Breaded, Chicken Breast Meat Only | C29: (18-19) Gold Kist/Pilgrims 7572 | E29: 106/4.35z | F29: 110 | G29: 150 | H29: =ROUND(G29*F29/F29,2) -> 150 | I29: Cs | J29: $73.39 | K29: =IF(OR(ISBLANK(J29),G29=0,ISBLANK(G29)),,ROUND(J29+$K$3,2)) -> $73.39 | L29: =ROUND(H29*K29,2) -> $11,008.50 | M29: =ROUND(K29/F29,2) -> $0.67 | N29: $49.05 | O29: $0.9345 | P29: 26.05 | Q29: =ROUND(O29*P29,2) -> $24.34 | R29: =J29-Q29 -> $49.05 | S29: =R29/F29 -> $0.45 | T29: =N29/F29 -> $0.45
B30: Solid Whole muscle meat, fully cooked, IQF. Each portion must provide | C30: (18-19) Proview 63830 | E30: 61/4.90z | F30: 61 | H30: =ROUND(G29*F29/F30,2) -> 270.49 | I30: Cs | N30: 0 | O30: $0.0000 | P30: 0 | Q30: =ROUND(O30*P30,2) -> $0.00 | R30: =K30-Q30 ->  | S30: =R30/F30 ->  | T30: =N30/F30 -> 0
B31: a min to meet 2 M/MA and 1 OEG. Breading must meet Whole Grain
B32: Rich requirements. Batter / breading not to exceed 30% of the weight of
B33: the finished product. Sodium must not exceed 580mg per serving.
B34: No Egg, No Alternate Protein Product Domestic birds only
B35: Possible Allergens: None Listed
A36: 5 | B36: Chicken Chunks, Breaded Buffalo Style | C36: (18-19) Proview 64230WG | E36: 20 lbs | F36: 75 | G36: 75 | H36: =ROUND(G36*F36/F36,2) -> 75 | I36: Cs | J36: $52.00 | K36: =IF(OR(ISBLANK(J36),G36=0,ISBLANK(G36)),,ROUND(J36+$K$3,2)) -> $52.00 | L36: =ROUND(H36*K36,2) -> $3,900.00 | M36: =ROUND(K36/F36,2) -> $0.69 | N36: $0.8722 | O36: $0.8722 | P36: 33.74 | Q36: =ROUND(O36*P36,2) -> $29.43 | R36: =K36-Q36 -> $22.57 | S36: =R36/F36 -> $0.30 | T36: =S36/G36 -> $0.00
B37: Fully Cooked, chicken breast with rib meat, APP and egg allowed,
B38: Iin compliance with Apendix A of 7 CFR Part 210 CN label to provide 2 oz.
B39: M/MA and 1.25 OEG, Breading must meet WGR requirements. Batter or
B40: or breading not to exceed 30% of the weight of product, sodium not to
B41: exceed 760 mg. The label must specify number of portions per case
A43: 6 | B43: Chicken Fillet, Breakfast, Breaded (Savory Flavor with Bags) | C43: (18-19) Proview 60415WG | E43: 20 lbs | F43: 144 | G43: 25 | H43: =ROUND(G43*F43/F43,2) -> 25 | I43: Cs | J43: $59.80 | K43: =IF(OR(ISBLANK(J43),G43=0,ISBLANK(G43)),,ROUND(J43+$K$3,2)) -> $59.80 | L43: =ROUND(H43*K43,2) -> $1,495.00 | M43: =ROUND(K43/F43,2) -> $0.42 | N43: 0 | O43: $0.0000 | P43: 0 | Q43: =ROUND(O43*P43,2) -> $0.00 | R43: =K43-Q43 -> $59.80 | S43: =R43/F43 -> $0.42 | T43: 0
B44: Fully cooked, chicken breast with rib meat only, APP and egg allowed, in
B45: compliance with Apendix A of 7 CFR Part 210 CN label to provide 1 oz.
B46: M/MA and .5 OEG. Breading must meet WGR requirements. Breading not
B47: to exceed 30% of the weight of product, Sodium not to exceed 300 mg
B48: The label must specify number of portions per case
B49: Possible Allergens: Wheat, Milk and Soy
B50: Chicken, Made with whole muscle white meat pieces,
A51: 7 | B51: Chicken Patty | C51: Tyson 70302-928 | E51: 132/3.75z | F51: 132 | G51: 0 | H51: =ROUND(G51*F51/F51,2) -> 0 | I51: Cs | N51: 0 | O51: $0.9345 | P51: 33.74 | Q51: =ROUND(O51*P51,2) -> $31.53 | R51: =J51-Q51 ->  | S51: =R51/F51 ->  | T51: 0
B52: Fully Cooked, portioned, CN Labeled. Product is made with whole muscle | C52: Gold Kist 7522 | E52: 113/4.25z | F52: 113 | J52: $73.44 | K52: =IF(OR(ISBLANK(J52),G51=0,ISBLANK(G51)),,ROUND(J52+$K$3,2)) -> 0 | L52: =ROUND(H51*K52,2) -> 0 | M52: =ROUND(K52/F52,2) -> 0 | N52: $48.22 | O52: $0.9345 | P52: 26.99 | Q52: =ROUND(O52*P52,2) -> $25.22 | R52: =J52-Q52 -> $48.22 | S52: =R52/F52 -> $0.43 | T52: =N52/F52 -> $0.43
B53: white meat chicken pieces. No ground Chicken. Each portion must
B54: meet 2 M/MA and 1 OEG. No ground Chicken. Breading must meet WGR
B55: requirements. Batter / breading not to exceed 30% of weight of the
B56: finished product Sodium not to exceed 400 mg per serving
B57: Domestic birds only
A58: 8 | B58: Chicken Tender | C58: Proview 63230WG | E58: 4/5 lbs | F58: 61 | G58: 0 | H58: =ROUND(G58*F58/F58,2) -> 0 | I58: Cs | J58: $53.00 | K58: =IF(OR(ISBLANK(J58),G58=0,ISBLANK(G58)),,ROUND(J58+$K$3,2)) -> 0 | L58: =ROUND(H58*K58,2) -> 0 | M58: =ROUND(K58/F58,2) -> 0 | N58: $0.8722 | O58: $0.8722 | P58: 33.74 | Q58: =ROUND(O58*P58,2) -> $29.43 | R58: =K58-Q58 -> $(29.43) | S58: =R58/F58 -> $(0.48) | T58: =S58/G58 -> 
B59: Fully Cooked, portioned, CN Labeled. Product is made with whole muscle
B60: white meat chicken pieces. No ground chicken. Each portion must provide
B61: a min. 2 M/MA and 1 OEG. Breading must meet WGR requirements
B62: Batter / breading not to exceed 30% of weight of the finished product.
B63: Sodium must not exceed 400mg per serving. Domestic Birds only
A64: 9 | B64: Chicken Bite | C64: Tyson 70362-928 | E64: 121/3.95z | F64: 121 | G64: 0 | H64: =ROUND(G64*F64/F64,2) -> 0 | I64: Cs | J64: $87.60 | K64: =IF(OR(ISBLANK(J64),G64=0,ISBLANK(G64)),,ROUND(J64+$K$3,2)) -> 0 | L64: =ROUND(H64*K64,2) -> 0 | M64: =ROUND(K64/F64,2) -> 0 | N64: $57.00 | O64: $0.9345 | P64: 32.74 | Q64: =ROUND(O64*P64,2) -> $30.60 | R64: =J64-Q64 -> $57.00 | S64: =R64/F64 -> $0.47 | T64: =N64/F64 -> $0.47
B65: Fully Cooked, portioned, CN Labeled. Product is made with whole muscle
B66: white meat chicken pieces. No ground Chicken. Each portion must provide
B67: min. to meet 2 M/MA and 1 OEG. Breading must meet WGR requirements.
B68: Batter / breading not to exceed 30% of weightof the finished product.
B69: Sodium must not exceed 400mg per serving. Domestic Birds only
A70: 10 | B70: Chicken Breast Bites (Dill Flavor) | C70: Proview 64015WG | E70: 4/5# | F70: 103 | G70: 75 | H70: =ROUND(G70*F70/F70,2) -> 75 | I70: Cs | J70: $54.00 | K70: =IF(OR(ISBLANK(J70),G70=0,ISBLANK(G70)),,ROUND(J70+$K$3,2)) -> $54.00 | L70: =ROUND(H70*K70,2) -> $4,050.00 | M70: =ROUND(K70/F70,2) -> $0.52
B71: Fully cooked, chicken breast with rib meat only. App and egg allowed, in
B72: compliance with Apendix A of 7 CFR Part 210 3.2 oz. serving to provide
B73: 1.75 oz. M/MA and .5 OEG Batter and breading not to exceed 30% of the
B74: weight of product, 100-200 calories and not more than 1 g of sat fat and
B75: 350 mg of sodium per serving. Domestic birds only
B76: Chicken, chopped and formed
A77: 11 | B77: Chicken Patty, Breakfast, Breaded. | C77: Gold Kist 633100 | E77: 20Lb | F77: 192 | G77: 0 | H77: =ROUND(G77*F77/F77,2) -> 0 | I77: Cs | N77: 0 | O77: $0.0000 | P77: 0 | Q77: =ROUND(O77*P77,2) -> $0.00 | R77: =K77-Q77 ->  | S77: =R77/F77 ->  | T77: 0
B78: Fully cooked. Chicken breast with rib meat only; chopped and formed; | C78: King's Delight 66206 | E78: 20Lb | F78: 216 | H78: =ROUND(G77*F77/F78,2) -> 0 | I78: Cs | J78: $32.00 | K78: =IF(OR(ISBLANK(J78),G77=0,ISBLANK(G77)),,ROUND(J78+$K$3,2)) -> 0 | L78: =ROUND(H78*K78,2) -> 0 | M78: =ROUND(K78/F78,2) -> 0 | N78: $0.8722 | O78: $0.8722 | P78: 32.74 | Q78: =ROUND(O78*P78,2) -> $28.56 | R78: =K78-Q78 -> $(28.56) | S78: =R78/F78 -> $(0.13)
B79: APP and egg allowed, in compliance with Appendix A of 7 CFR Part 210 | C79: Rich Chicks 54411 | E79: 20Lb | F79: 214 | H79: =ROUND(G77*F77/F79,2) -> 0 | I79: Cs | N79: $36.14 | O79: $0.9345 | P79: 14.59 | Q79: $13.63 | R79: =N79 -> $36.14 | S79: =R79/F79 -> $0.17 | T79: $0.17
B80: CN label to provide 1 oz M/MA, and no more than 1 OEG. Breading | C80: Rich Chicks Commodity#54411
B81: must meet WGR requirements. Batter or breading not to exceed 30%
B82: of the weight of the product. Sodium not to exceed 200mg.
B83: The label must specify the minimum number of pieces or portions per case.
A84: 12 | B84: Chicken Patty, Breaded, Spicy | C84: Tyson 70312-928 | E84: 132/3.75z | F84: 132 | G84: 0 | H84: =ROUND(G84*F84/F84,2) -> 0 | I84: Cs | N84: $61.80 | O84: $0.9345 | P84: 33.74 | Q84: =ROUND(O84*P84,2) -> $31.53 | R84: $61.80 | S84: =R84/F84 -> $0.47 | T84: $0.47
B85: Fully cooked, Chicken breast with rib meat only; chopped and formed; | C85: King's Delight 66214 | E85: 20Lb | F85: 116 | H85: =ROUND(G84*F84/F85,2) -> 0 | I85: Cs | J85: $37.60 | K85: =IF(OR(ISBLANK(J85),G84=0,ISBLANK(G84)),,ROUND(J85+$K$3,2)) -> 0 | L85: =ROUND(H85*K85,2) -> 0 | M85: =ROUND(K85/F85,2) -> 0
B86: APP and egg allowed, in compliance with Appendix A of 7 CFR Part 210.
B87: CN label to provide 2 oz M/MA and a not more than 1 OEG. Breading must
B88: meet WGR requirements. Batter or breading not to exceed 30% of the
B89: weight of the product, sodium not to exceed 480 mg. The label must
B90: specify the number of portions per case
A92: 13 | B92: Chicken Patty, Grilled, | C92: Advance Pierre 9989 | E92: 100/2.8z | F92: 100 | H92: =ROUND(G92*F92/F92,2) -> 0 | I92: Cs
B93: Fully cooked. Unbreaded, breast with rib meat,chopped and formed; | C93: Proview 55000 | E93: 64/2.5z | F93: 64 | H93: =ROUND(G92*F92/F93,2) -> 0 | I93: Cs | J93: $22.00 | K93: =IF(OR(ISBLANK(J93),G92=0,ISBLANK(G92)),,ROUND(J93+$K$3,2)) -> 0 | L93: =ROUND(H93*K93,2) -> 0 | M93: =ROUND(K93/F93,2) -> 0
B94: APP and egg allowed, in compliance with Appendix A of 7 CFR Part 210
B95: CN label to provide 1 oz. M/MA and 1 OEG, Breading must meet WGR
B96: requirements. Batter / breading not to exceed 30% of weight of the
B97: product, sodium not to exceed 480 mg The label must specify number of
B98: portions per case | G98: 0
A99: 14 | B99: Chicken Nugget, Breaded | C99: Gold Kist 613100 | E99: 20lb | F99: 104 | G99: 0 | H99: =ROUND(G99*F99/F99,2) -> 0 | I99: Cs | O99: $0.0000 | P99: 0 | Q99: =ROUND(O99*P99,2) -> $0.00 | R99: =K99-Q99 ->  | S99: =R99/F99 ->  | T99: =N99/F99 -> 0
B100: Fully Cooked. Chopped and formed; chicken breast with rib meat only; | C100: Proview 40015-WG | E100: 20Lb | F100: 106 | H100: =ROUND(G99*F99/F100,2) -> 0 | I100: Cs | J100: $28.20 | K100: =IF(OR(ISBLANK(J100),G99=0,ISBLANK(G99)),,ROUND(J100+$K$3,2)) -> 0 | L100: =ROUND(H100*K100,2) -> 0 | M100: =ROUND(K100/F100,2) -> 0 | N100: 0 | O100: $0.8722 | P100: 29.43 | Q100: =ROUND(O100*P100,2) -> $25.67 | R100: =K100-Q100 -> $(25.67) | S100: =R100/F100 -> $(0.24) | T100: 0
B101: APP and egg allowed, in compliance with Appendix A of 7 CFR Part 210. | C101: Rich Chicks 54410 | E101: 20Lb | F101: 107 | H101: =ROUND(G99*F99/F101,2) -> 0 | I101: Cs | N101: $36.14 | O101: $0.9345 | P101: 14.59 | Q101: =ROUND(O101*P101,2) -> $13.63 | R101: =N101 -> $36.14 | S101: =R101/F101 -> $0.34 | T101: $0.34
B102: One serving to contain no more than 54% of total calories from fat; | C102: Commodity #54410
B103: sat fat not to exceed 15% of calories per serving. Sodium not to exceed
B104: 480 mg per serving. Batter or breading not to exceed 30% of the weight
B105: of the finished product. The label must specify the number of portions
B106: per case.
A107: 15 | B107: Chicken Rings, Breaded | C107: Gold Kist 499180 | E107: 30Lb | F107: 136 | G107: 0 | H107: =ROUND(G107*F107/F107,2) -> 0 | I107: Cs | N107: $39.15 | O107: $0.9345 | P107: 29.47 | Q107: =ROUND(O107*P107,2) -> $27.54 | R107: =N107 -> $39.15 | S107: =R107/F107 -> $0.29 | T107: $0.29
B108: Fully Cooked. Chicken breast with rib meat only, chopped and formed; | C108: King's Delight 66205 | E108: 20Lb | F108: 80 | H108: =ROUND(G107*F107/F108,2) -> 0 | I108: Cs | J108: $36.40 | K108: =IF(OR(ISBLANK(J108),G107=0,ISBLANK(G107)),,ROUND(J108+$K$3,2)) -> 0 | L108: =ROUND(H108*K108,2) -> 0 | M108: =ROUND(K108/F108,2) -> 0 | N108: $0.8722 | O108: $0.8722 | P108: 29.43 | R108: =K108-Q108 ->  | S108: =R108/F108 ->  | T108: =S108/G108 -> 
B109: APP and egg allowed,in compliance with Appendix A of 7 CFR Part 210.
B110: CN label to provide 2 oz M/MA and not more than 1.0 OEG. Breading must
B111: meet WGR requirements. Batter or breading not to exceed 30% of the
B112: weight of the product. Sodium not to exceed 480 mg. The label must
B113: specify the number of portions per case
A114: 16 | B114: Chicken Tenders, Breaded | C114: King's Delight 66203 | E114: 20Lb | F114: 106 | G114: 0 | H114: =ROUND(G114*F114/F114,2) -> 0 | I114: Cs | N114: $0.8722 | O114: $0.8722 | P114: 29.46 | R114: =K114-Q114 ->  | S114: =R114/F114 ->  | T114: =S114/G114 -> 
B115: Fully cooked, chicken breast with rib meat only, chopped and formed, APP | C115: Proview 46015WG | E115: 20Lb | F115: 106 | H115: =ROUND(G114*F114/F115,2) -> 0 | I115: Cs | J115: $30.40 | K115: =IF(OR(ISBLANK(J115),G114=0,ISBLANK(G114)),,ROUND(J115+$K$3,2)) -> 0 | L115: =ROUND(H115*K115,2) -> 0 | M115: =ROUND(K115/F115,2) -> 0 | N115: $0.8722 | O115: $0.8722 | P115: 29.46 | R115: =K115-Q115 ->  | S115: =R115/F115 ->  | T115: =S115/G115 -> 
B116: and egg allowed, in compliance with Apendix A of 7 CFR Part 210
B117: CN label to provide 1 oz. M/MA and 1 OEG, Breading must meet WGR
B118: requirements. Batter / breading not to exceed 30% of weight of the
B119: the product. Sodium not ot exceed 480 mg.
A120: 17 | B120: Chicken, Popcorn Chicken, Breaded | C120: Proview 43015-WG | E120: 20Lb | F120: 106 | G120: 0 | H120: =ROUND(G120*F120/F120,2) -> 0 | I120: Cs | J120: $30.40 | K120: =IF(OR(ISBLANK(J120),G120=0,ISBLANK(G120)),,ROUND(J120+$K$3,2)) -> 0 | L120: =ROUND(H120*K120,2) -> 0 | M120: =ROUND(K120/F120,2) -> 0 | N120: $0.8722 | O120: $0.8722 | P120: 29.46 | Q120: =ROUND(O120*P120,2) -> $25.70 | R120: =K120-Q120 -> $(25.70) | S120: =R120/F120 -> $(0.24) | T120: =S120/G120 -> 
B121: Frozen, Fully Cooked; chicken breast with rib meat only chopped & formedl | C121: Gold Kist 698100 | E121: 20Lb | F121: 103 | H121: =ROUND(G120*F120/F121,2) -> 0 | I121: Cs | T121: 0
B122: APP and egg allowed, in complaince with Appendix A of 7 CFR Part 210 | C122: Kings Delight 66209 | E122: 20Lb | F122: 114 | H122: =ROUND(G120*F120/F122,2) -> 0 | I122: Cs | N122: $0.8722 | T122: =S122/G122 -> 
B123: CN label to provide 1 oz. M/MA and 1 OEG, Breading must meet WGR
B124: requirements. Batter / breading not to exceed 30% of weight of the
B125: product, sodium not to exceed 480 mg The label must specify number of
B126: portions per case
B127: Chicken Leg, 100113 Chicken, Dark Meat, Asian Entrée
A128: 18 | B128: Teriyaki Chicken, | C128: Minh's 69018 | E128: 240/2.80z | F128: 240 | G128: 0 | H128: =ROUND(G128*F128/F128,2) -> 0 | I128: Cs | J128: $118.00 | K128: =IF(OR(ISBLANK(J128),G128=0,ISBLANK(G128)),,ROUND(J128+$K$3,2)) -> 0 | L128: =ROUND(H128*K128,2) -> 0 | M128: =ROUND(K128/F128,2) -> 0 | N128: 0 | O128: $0.4592 | P128: 43.11 | Q128: =ROUND(O128*P128,2) -> $19.80 | R128: =J128-Q128 -> $98.20 | S128: =R128/F128 -> $0.41 | T128: 0
B129: Frozen. Unbreaded, Cooked chicken leg meat, boneless, with Teriyaki
B130: sauce No MSG. No Trans Fat. 100-200 calories with no more than 2g
B131: saturated fat and 450 mg sodium per serving. One portion to provide min.
B132: 2 M.MA
B133: Possible Allergens: Egg, Wheat, and Soy
A134: 19 | B134: Spicy Chicken, WG | C134: Yang's 15556-2 | E134: 240/2.40z | F134: 240 | G134: 0 | H134: =ROUND(G134*F134/F134,2) -> 0 | I134: Cs | J134: $102.05 | K134: =IF(OR(ISBLANK(J134),G134=0,ISBLANK(G134)),,ROUND(J134+$K$3,2)) -> 0 | L134: =ROUND(H134*K134,2) -> 0 | M134: =ROUND(K134/F134,2) -> 0 | N134: $80.96 | O134: $0.4592 | P134: 45.92 | Q134: =ROUND(O134*P134,2) -> $21.09 | R134: =J134-Q134 -> $80.96 | S134: =R134/F134 -> $0.34 | T134: $0.34
B135: Frozen. Unbreaded dark meat chicken strips in spicy sauce.
B136: No MSG. No Trans Fat. 100-200 calories with no more than 2 g sat fat
B137: and 450 mg sodium per serving. One portion to provide min. 2 M/MA.
B138: Possible Allergens: Egg, Soy, Wheat, and Citrus
A139: 20 | B139: Citrus Chicken, WG | C139: Yang's 15552-4 | E139: 192/3.60z | F139: 192 | G139: 150 | H139: =ROUND(G139*F139/F139,2) -> 150 | I139: Cs | J139: $110.81 | K139: =IF(OR(ISBLANK(J139),G139=0,ISBLANK(G139)),,ROUND(J139+$K$3,2)) -> $110.81 | L139: =ROUND(H139*K139,2) -> $16,621.50 | M139: =ROUND(K139/F139,2) -> $0.58 | N139: $93.34 | O139: $0.4592 | P139: 38.05 | Q139: =ROUND(O139*P139,2) -> $17.47 | R139: =J139-Q139 -> $93.34 | S139: =R139/F139 -> $0.49 | T139: =N139/F139 -> $0.49
B140: Frozen. Lightly battered or breaded boneless dark meat chicken chunks
B141: tossed with citrus flavored sauce. No MSG. No Trans Fat. 150-250
B142: calories with no more than 2 g saturated fat and 450 mg sodium
B143: per serving. One portion to provide min. 2 M/MA.
B144: Possible Allergens: Egg, Soy, Wheat, and Citrus
A145: 21 | B145: Cherry Blossom/Sweet and Sour Chicken, WG | C145: Asian Solutions 72005 | E145: 42.9 lbs | F145: 176 | G145: 150 | H145: =ROUND(G145*F145/F145,2) -> 150 | I145: Cs | N145: 0 | O145: $0.4592 | P145: 34.65 | Q145: =ROUND(O145*P145,2) -> $15.91 | R145: 0 | S145: 0 | T145: =N145/F145 -> 0
B146: Frozen. Lightly battered or breaded boneless dark meat chicken chunks | C146: Chef's Corner COMWG-114 | E146: 42 lbs | F146: 171 | H146: =ROUND(G145*F145/F146,2) -> 154.39 | I146: Cs | N146: 0 | O146: $0.4592 | P146: 39.08 | Q146: =ROUND(O146*P146,2) -> $17.95 | R146: 0 | S146: =R146/F146 -> 0 | T146: =N146/F146 -> 0
B147: tossed with sweet and sour sauce. No MSG. No Trans Fat. 140-250 | C147: Yang's 155551-7 | E147: 192/3.60z | F147: 192 | H147: =ROUND(G145*F145/F147,2) -> 137.5 | I147: Cs | J147: $107.23 | K147: =IF(OR(ISBLANK(J147),G145=0,ISBLANK(G145)),,ROUND(J147+$K$3,2)) -> $107.23 | L147: =ROUND(H147*K147,2) -> $14,744.13 | M147: =ROUND(K147/F147,2) -> $0.56 | N147: $89.76 | O147: $0.4592 | P147: 38.05 | Q147: $17.47 | R147: =J147-Q147 -> $89.76 | S147: =R147/F147 -> $0.47 | T147: $0.47
B148: saturated fat and 400 mg sodium per serving. One serving to provide min. | C148: Schwann's 69016 | E148: 240/2.80z | F148: 240 | H148: =ROUND(G145*F145/F148,2) -> 110 | I148: Cs | N148: 0 | O148: $0.4592 | P148: 42.81 | Q148: $19.66 | T148: 0
B149: 2 M/MA
B150: Possible Allergens: Egg, Soy, Wheat, & Citrus
A151: 22 | B151: General Tso's Chicken, Breaded, WG | C151: Yang's 15563-0 | E151: 43.5 lbs | F151: 192 | G151: 150 | H151: =ROUND(G151*F151/F151,2) -> 150 | I151: Cs | J151: $110.81 | K151: =IF(OR(ISBLANK(J151),G151=0,ISBLANK(G151)),,ROUND(J151+$K$3,2)) -> $110.81 | L151: =ROUND(H151*K151,2) -> $16,621.50 | M151: =ROUND(K151/F151,2) -> $0.58 | N151: $93.34 | O151: $0.4592 | P151: 38.05 | Q151: =ROUND(O151*P151,2) -> $17.47 | R151: =J151-Q151 -> $93.34 | S151: =R151/F151 -> $0.49 | T151: =N151/F151 -> $0.49
B152: Frozen, Breaded chicken chunks in spicy sauce, NO MSG, 100-200 cals
B153: no more than 2 g saturated fat and 450 mg of sodium per serving.
B154: One portion to provide 2 M/MA
B156: Possible Allergens: Egg, Soy, Wheat, and Citrus
A157: 23 | B157: Thai Sweet Chili Chicken, Unbreaded | C157: Asian Solutions 73004 | E157: 42.9 lbs | F157: 240 | G157: 0 | H157: =ROUND(G157*F157/F157,2) -> 0 | I157: Cs | J157: $119.59 | K157: =IF(OR(ISBLANK(J157),G157=0,ISBLANK(G157)),,ROUND(J157+$K$3,2)) -> 0 | L157: =ROUND(H157*K157,2) -> 0 | M157: =ROUND(K157/F157,2) -> 0 | N157: $98.48 | O157: $0.4592 | P157: 45.98 | Q157: =ROUND(O157*P157,2) -> $21.11 | R157: =J157-Q157 -> $98.48 | S157: =R157/F157 -> $0.41 | T157: =N157/F157 -> $0.41
B158: Frozen, breaded chicken chunks in sweet and spicy chili sauce, NO MSG,
B159: No Trans Fats 100-200 calories with no more than 2 g saturated fat
B160: and 350 mg of sodium per serving One 2.85 oz. portion to provide
B161: 2 oz. M/MA
B162: Possible Allergens: Soy, Wheat
A163: 24 | B163: Chicken, BBQ Teriyaki | C163: Yang's 15554-8 | E163: 42 lbs | F163: 240 | G163: 75 | H163: =ROUND(G163*F163/F163,2) -> 75 | I163: Cs | J163: $102.05 | K163: =IF(OR(ISBLANK(J163),G163=0,ISBLANK(G163)),,ROUND(J163+$K$3,2)) -> $102.05 | L163: =ROUND(H163*K163,2) -> $7,653.75 | M163: =ROUND(K163/F163,2) -> $0.43 | N163: $80.96 | O163: $0.4592 | P163: 45.92 | Q163: =ROUND(O163*P163,2) -> $21.09 | R163: =J163-Q163 -> $80.96 | S163: =R163/F163 -> $0.34 | T163: $0.34
B164: Frozen, chicken in sweet teriyaki sauce. No MSG No Trans fat
B165: 100-200 calories with nnot more than 2 g saturated fat and 500 mg of
B166: sodium per serving. One portion to provide 2 M/MA
B168: Possible Allergens: Soy, Wheat, and Citrus
B169: Other Poultry Products
A170: 25 | B170: Chicken Drumsticks, Sous Vois | C170: (18-19) Perdue 52273 | E170: 96/2.0z | F170: 96 | G170: 100 | H170: =ROUND(G170*F170/F170,2) -> 100 | I170: Cs | J170: $67.84 | K170: =IF(OR(ISBLANK(J170),G170=0,ISBLANK(G170)),,ROUND(J170+$K$3,2)) -> $67.84 | L170: =ROUND(H170*K170,2) -> $6,784.00 | M170: =ROUND(K170/F170,2) -> $0.71
B171: Frozen, 100-200 calories with no more than 3 g saturated fat and 400
B172: mg sodium per serving. One portion to provide 2 M/MA
B173: Possible Allergens: None Listed
A174: 26 | B174: Chicken, Drumsticks, Raw | C174: Tyson 000990-0928 | E174: 50/2.96z | F174: 50 | G174: 0 | H174: =ROUND(G174*F174/F174,2) -> 0 | I174: Cs | J174: $28.20 | K174: =IF(OR(ISBLANK(J174),G174=0,ISBLANK(G174)),,ROUND(J174+$K$3,2)) -> 0 | L174: =ROUND(H174*K174,2) -> 0 | M174: =ROUND(K174/F174,2) -> 0
B175: Must yield 1.5 oz. cooked meat, USDA inspected, Grade A, IQF
B176: Possible Allergens: None Listed
A177: 27 | B177: Chicken Thighs, Raw | C177: Tyson 003783-0928 | E177: 98/5.11z | F177: 98 | G177: 0 | H177: =ROUND(G177*F177/F177,2) -> 0 | I177: Cs | J177: $30.00 | K177: =IF(OR(ISBLANK(J177),G177=0,ISBLANK(G177)),,ROUND(J177+$K$3,2)) -> 0 | L177: =ROUND(H177*K177,2) -> 0 | M177: =ROUND(K177/F177,2) -> 0
B178: Minimum 4.9 oz must provide a minimum or 2 oz cooked
B179: meat. USDA inspected. Grade A, fryer parts, IQF
B180: Possible Allergens: None Listed
A181: 28 | B181: Chicken, Eight Cut, Raw | C181: Tyson 3882 | E181: 96/4.50z | F181: 96 | G181: 0 | H181: =ROUND(G181*F181/F181,2) -> 0 | I181: Cs | J181: $52.80 | K181: =IF(OR(ISBLANK(J181),G181=0,ISBLANK(G181)),,ROUND(J181+$K$3,2)) -> 0 | L181: =ROUND(H181*K181,2) -> 0 | M181: =ROUND(K181/F181,2) -> 0
B182: USDA inspected, Grade A fryer parts
B183: Equal parts of breast, leg, thigh and wings,
B184: Minimum 4 oz breast and thigh to meet 2 oz cooked
B185: meat, IQF
B186: Possible Allergens: None Listed
A187: 29 | B187: Chicken Fajita Strips, Breast Meat w/ Grill marks | C187: King's Delight 66196 | E187: 20Lb | F187: 107 | G187: 0 | H187: =ROUND(G187*F187/F187,2) -> 0 | I187: Cs | J187: $58.20 | K187: =IF(OR(ISBLANK(J187),G187=0,ISBLANK(G187)),,ROUND(J187+$K$3,2)) -> 0 | L187: =ROUND(H187*K187,2) -> 0 | M187: =ROUND(K187/F187,2) -> 0
B188: Frozen, Fully cooked, Marinated strips of breast w/rib meat with grill
B189: markings. Free of bone and skin, 100-200 calories with no more than 2 g
B190: saturated fat and 600 mg of sodium per 2 M/MA
B191: Possible Allergens: Soy
A192: 30 | B192: Chicken Fajita Strips, Unbreaded Dark Meat | C192: Tyson 4621-929 | E192: 160/3.0z | F192: 160 | G192: 0 | H192: =ROUND(G192*F192/F192,2) -> 0 | I192: Cs | J192: $92.04 | K192: =IF(OR(ISBLANK(J192),G192=0,ISBLANK(G192)),,ROUND(J192+$K$3,2)) -> 0 | L192: =ROUND(H192*K192,2) -> 0 | M192: =ROUND(K192/F192,2) -> 0 | N192: $49.20 | O192: $0.9345 | P192: 45.84 | Q192: =ROUND(O192*P192,2) -> $42.84 | R192: =K192-Q192 -> $(42.84) | S192: =R192/F192 -> $(0.27) | T192: $0.31
B193: Fully cooked, One serving must provide 2.0 oz M/MA
B194: Possible Allergens: Soy
A195: 31 | B195: Chicken Fajita Strips, Unbreaded Dark Meat | C195: Gold Kist/Pilgrims 1260 | E195: 195/2.46z | F195: 195 | G195: 85 | H195: =ROUND(G195*F195/F195,2) -> 85 | I195: Cs | J195: $96.54 | K195: =IF(OR(ISBLANK(J195),G195=0,ISBLANK(G195)),,ROUND(J195+$K$3,2)) -> $96.54 | L195: =ROUND(H195*K195,2) -> $8,205.90 | M195: =ROUND(K195/F195,2) -> $0.50 | N195: $48.75 | O195: $0.9345 | P195: 51.14 | Q195: =ROUND(O195*P195,2) -> $47.79 | R195: $41.19 | S195: $0.25 | T195: =N195/F195 -> $0.25
B196: Fully cooked, One serving must provide 2.0 oz M/MA
B197: Possible Allergens: Soy
A198: 32 | B198: Chicken Popcorn, Dark and White Meat, no container, WG | C198: Gold Kist/Pilgrims 110452 | E198: 108/4.30z | F198: 108 | G198: 0 | H198: =ROUND(G198*F198/F198,2) -> 0 | I198: Cs | J198: $69.25 | K198: =IF(OR(ISBLANK(J198),G198=0,ISBLANK(G198)),,ROUND(J198+$K$3,2)) -> 0 | L198: =ROUND(H198*K198,2) -> 0 | M198: =ROUND(K198/F198,2) -> 0 | N198: $41.25 | O198: $0.9345 | P198: 29.98 | Q198: =ROUND(O198*P198,2) -> $28.02 | R198: =J198-Q198 -> $41.23 | S198: =R198/F198 -> $0.38 | T198: =N198/F198 -> $0.38
B199: Frozen, Fully cooked, Chopped and formed w/d chicken meat 200-300
B200: calories with no more than 5 g saturated fat and 600 mg of sodium per
B201: serving. CN Labeled for 10 pieces to provide min. 2 M/MA and 1 OEG
B203: Possible Allergens: Wheat, Soy, and Milk
A204: 33 | B204: Chicken, Breaded, Popcorn (Dark Meat) | C204: Gold Kist/Pilgrims 110458 | E204: 108/4.30z | F204: 108 | G204: 250 | H204: =ROUND(G204*F204/F204,2) -> 250 | I204: Cs | J204: $77.76 | K204: =IF(OR(ISBLANK(J204),G204=0,ISBLANK(G204)),,ROUND(J204+$K$3,2)) -> $77.76 | L204: =ROUND(H204*K204,2) -> $19,440.00 | M204: =ROUND(K204/F204,2) -> $0.72 | N204: $39.87 | O204: $0.9345 | P204: 40.54 | Q204: =ROUND(O204*P204,2) -> $37.88 | R204: =J204-Q204 -> $39.88 | S204: =R204/F204 -> $0.37 | T204: =N204/F204 -> $0.37
B205: Whole Grain, fully cooked, frozen, must provide 2.0 oz. M/MA Consists of
... 38 more rows

Sheet Turkey
B1: ='Recap Sheet'!A2 -> School Food Authority: | E1: ='Recap Sheet'!A3 -> Offeror Name:
B2: ='Recap Sheet'!B2 -> Colleton County School District Office of Student Nutrition | C2: Return to Recap Sheet | E2: ='Recap Sheet'!B3 -> 0 | P2: Commodity
A3: Item | B3: Description | C3: Approved Brand Name / Manuf ID # | F3: Firm Fixed Fee | K3: ='Recap Sheet'!B4 -> $0.00 | N3: Processing | O3: Commodity | P3: Pounds of | Q3: Commodity | R3: NOI | S3: Net NOI | T3: Total Cost
A4: # | D4: Distributor | E4: Vendor | F4: Svgs | G4: Est. | H4: Bid | I4: Bid | J4: Unit | K4: Unit Price | L4: Total | M4: Cost per | N4: Fee for | O4: Value Per | P4: DF Needed | Q4: Value Per | R4: Net | S4: Cost Per | T4: Processing Fee
D5: Code | E5: Pack | F5: per unit | G5: Bid Qty | H5: Qty | I5: Unit | J5: Price | K5: plus Fee | L5: Price | M5: Unit | N5: Service | O5: Pound | P5: Per Case | Q5: Case | R5: Price | S5: Serving | T5: For Service
B6: Category: Turkey | N6: Turkey 100124
A7: 1 | B7: Turkey Breast, Deli Sliced, Frozen (1/2 oz. slices) | C7: Jennie O 2099 | E7: 64/3.0z | F7: 64 | G7: 100 | H7: =ROUND(G7*F7/F7,2) -> 100 | I7: Cs | J7: $41.40 | K7: =IF(OR(ISBLANK(J7),G7=0,ISBLANK(G7)),,ROUND(J7+$K$3,2)) -> $41.40 | L7: =ROUND(H7*K7,2) -> $4,140.00 | M7: =ROUND(K7/F7,2) -> $0.65 | N7: $23.04 | O7: $1.0954 | P7: 10.71 | Q7: =ROUND(O7*P7,2) -> $11.73 | R7: =N7 -> $23.04 | S7: =R7/F7 -> $0.36 | T7: =N7/F7 -> $0.36
B8: Frozen, fully cooked, Oven roasted, Round Shape 50-150 calories with
B9: not more than 2 g saturated fat and 400 mg sodium per serving,
B10: CN label portion to provide 2 oz. M/MA
B11: Possible Allegens: None Listed Gluten Free
A12: 2 | B12: Turkey Barbecue with Texas Sauce, Low Sodium | C12: Brookwood 16250 | E12: 4/5# | F12: 84 | G12: 0 | H12: =ROUND(G12*F12/F12,2) -> 0 | I12: Cs | J12: $74.80 | K12: =IF(OR(ISBLANK(J12),G12=0,ISBLANK(G12)),,ROUND(J12+$K$3,2)) -> 0 | L12: =ROUND(H12*K12,2) -> 0 | M12: =ROUND(K12/F12,2) -> 0 | N12: $32.00 | O12: $1.3552 | P12: 22 | Q12: =ROUND(O12*P12,2) -> $29.81 | T12: =N12/F12 -> $0.38
B13: Frozen, fully cooked, chopped, One 3.75 oz. portion to provide
B14: 2 oz. M/MA, 100-200 calories and not more than 2 g saturated fat and
B15: 300 mg of sodium per serving
B17: Possible Allergens: Soy
A18: 3 | B18: Turkey Ham, Sliced, (1/2 oz. slices) | C18: Jennie O 2565 | E18: 12/1 lb | F18: 62 | G18: 100 | H18: =ROUND(G18*F18/F18,2) -> 100 | I18: Cs | J18: $40.56 | K18: =IF(OR(ISBLANK(J18),G18=0,ISBLANK(G18)),,ROUND(J18+$K$3,2)) -> $40.56 | L18: =ROUND(H18*K18,2) -> $4,056.00 | M18: =ROUND(K18/F18,2) -> $0.65 | N18: $23.64 | O18: $1.0954 | P18: 13.26 | Q18: =ROUND(O18*P18,2) -> $14.53 | R18: =N18 -> $23.64 | S18: =R18/F18 -> $0.38 | T18: =N18/F18 -> $0.38
B19: Frozen, fully cooked, No more than 10% water added 94% fat-free
B20: by weight, 50-150 calories with no more than 2 g saturated fat and
B21: 550 mg sodium per 2 M/MA serving May contain nitrites
B22: Possible Allergens: None Listed Gluten Free
A23: 4 | B23: Turkey, Combo Frozen | C23: Jennie O 2095 | E23: 4/3/1 lbs | F23: 71 | G23: 0 | H23: =ROUND(G23*F23/F23,2) -> 0 | I23: Cs | J23: $35.76 | K23: =IF(OR(ISBLANK(J23),G23=0,ISBLANK(G23)),,ROUND(J23+$K$3,2)) -> 0 | L23: =ROUND(H23*K23,2) -> 0 | M23: =ROUND(K23/F23,2) -> 0 | N23: $23.64 | O23: $1.0954 | P23: 10.53 | Q23: =ROUND(O23*P23,2) -> $11.53 | R23: =N23 -> $23.64 | S23: =R23/F23 -> $0.33 | T23: =N23/F23 -> $0.33
B24: Frozen, fully cooked, All turkey equal parts bologna, ham, and salami.
B25: Each flavor packed separately, 1/2 oz. slices. May contain nitrites
B26: Possible Allergens: None Listed Gluten Free
A27: 5 | B27: Turkey, Roast Light and Dark Meat Frozen | C27: Jennie O 3170-04 | E27: 4/9 lbs | F27: 209 | G27: 40 | H27: =ROUND(G27*F27/F27,2) -> 40 | I27: Cs | J27: $134.59 | K27: =IF(OR(ISBLANK(J27),G27=0,ISBLANK(G27)),,ROUND(J27+$K$3,2)) -> $134.59 | L27: =ROUND(H27*K27,2) -> $5,383.60 | M27: =ROUND(K27/F27,2) -> $0.64 | N27: $81.70 | O27: $1.0954 | P27: 41.31 | Q27: =ROUND(O27*P27,2) -> $45.25 | R27: =N27 -> $81.70 | S27: =R27/F27 -> $0.39 | T27: =N27/F27 -> $0.39
B28: Frozen, fully cooked, Whole muscle breast and thigh roast, Packed in
B29: ovenable Mylar bags, natural skin on, 50-150 calories with no more
B30: 2 g sat fat and 480 mg sodium per 2 M/MA serving
B31: Possible Allergens: None Listed Gluten Free | C31: Catch Weight per Pound | D31: $3.13 | O31: Catch Weight Per Pound | Q31: $1.90
A32: 6 | B32: Turkey, Roast Light and Dark Meat Frozen | C32: Shady Brook Farms 7000274 | E32: 4/9# | F32: 180 | G32: 0 | H32: =ROUND(G32*F32/F32,2) -> 0 | I32: Cs | J32: $124.56 | K32: =IF(OR(ISBLANK(J32),G32=0,ISBLANK(G32)),,ROUND(J32+$K$3,2)) -> 0 | L32: =ROUND(H32*K32,2) -> 0 | M32: =ROUND(K32/F32,2) -> 0 | N32: $80.65 | O32: $1.0954 | P32: 20.18 | Q32: =ROUND(O32*P32,2) -> $22.11 | R32: =N32 -> $80.65 | S32: =R32/F32 -> $0.45 | T32: =N32/F32 -> $0.45
B33: Frozen, fully cooked, Whole muscle breast and thigh roast, Packed in
B34: ovenable Mylar bags, natural skin on, 50-150 calories with no more
B35: 2 g sat fat and 480 mg sodium per 2 M/MA serving
B36: Possible Allergens: None Listed Gluten Free | C36: Catch Weight per Pound | D36: $3.29 | O36: Catch Weight Per Pound | Q36: $2.13
A37: 7 | B37: Turkey Sausage Patty | C37: Jimmy Dean 14106 CN | E37: 106/1.50z | F37: 106 | G37: 100 | H37: =ROUND(G37*F37/F37,2) -> 100 | I37: Cs | J37: $18.50 | K37: =IF(OR(ISBLANK(J37),G37=0,ISBLANK(G37)),,ROUND(J37+$K$3,2)) -> $18.50 | L37: =ROUND(H37*K37,2) -> $1,850.00 | M37: =ROUND(K37/F37,2) -> $0.17 | N37: 13.23 | O37: 13.23 | P37: 13.23 | Q37: =ROUND(O37*P37,2) -> $175.03 | R37: =K37-Q37 -> $(156.53) | S37: =R37/F37 -> $(1.48) | T37: =S37/G37 -> $(0.01)
B38: Frozen, Fully cooked, No VPP, 50-100 cals per svg no more than
B39: 3 g sat fat and 320 mg sodium . CN Label to provide 1 M/MA
B41: Possible Allergens: None Listed
A42: 8 | B42: Turkey Sausage Patty Lower Sodium | C42: Jennie O 6132 | E42: 160/1.03z | F42: 160 | G42: 0 | H42: =ROUND(G42*F42/F42,2) -> 0 | I42: Cs | J42: $36.49 | K42: =IF(OR(ISBLANK(J42),G42=0,ISBLANK(G42)),,ROUND(J42+$K$3,2)) -> 0 | L42: =ROUND(H42*K42,2) -> 0 | M42: =ROUND(K42/F42,2) -> 0 | N42: $23.58 | O42: $1.0954 | P42: 9.97 | Q42: =ROUND(O42*P42,2) -> $10.92 | R42: =N42 -> $23.58 | S42: =R42/F42 -> $0.15 | T42: =N42/F42 -> $0.15
B43: Frozen, Fully cooked, No VPP, 50-100 cals per svg no more than 2 g
B44: sat fat and 150 mg sodium per 1 M/MA serving Must provide 1 M/MA
B46: Possible Allergens: None Listed Gluten Free
A47: 9 | B47: Turkey Taco Filling | C47: Jennie O 2856-28 | E47: 4/7 lbs | F47: 147 | G47: 0 | H47: =ROUND(G47*F47/F47,2) -> 0 | I47: Cs | J47: $72.24 | K47: =IF(OR(ISBLANK(J47),G47=0,ISBLANK(G47)),,ROUND(J47+$K$3,2)) -> 0 | L47: =ROUND(H47*K47,2) -> 0 | M47: =ROUND(K47/F47,2) -> 0 | N47: $39.76 | O47: $1.0954 | P47: 29.26 | Q47: =ROUND(O47*P47,2) -> $32.05 | R47: =N47 -> $39.76 | S47: =R47/F47 -> $0.27 | T47: =N47/F47 -> $0.27
B48: Frozen, fully cooked, dark/white meat, pre-seasoned, 100-200 calories with no more than
B49: with no more than 2 g sat fat and 400 mg sodium per 2 M/MA serving
B50: Boil or steam in bag, CN labeled to provide 2 M/MA
B51: Possible Allergens: None Listed
A52: 10 | B52: Turkey Bacon | C52: (18-19) Jennie O 2711-06 | E52: 120/1.0z | F52: 120 | G52: 25 | H52: =ROUND(G52*F52/F52,2) -> 25 | I52: Cs | J52: $82.35 | K52: =IF(OR(ISBLANK(J52),G52=0,ISBLANK(G52)),,ROUND(J52+$K$3,2)) -> $82.35 | L52: =ROUND(H52*K52,2) -> $2,058.75 | M52: =ROUND(K52/F52,2) -> $0.69 | N52: $73.65 | O52: $1.0954 | P52: 6.64 | Q52: =ROUND(O52*P52,2) -> $7.27 | R52: =N52 -> $73.65 | S52: =R52/F52 -> $0.61 | T52: =N52/F52 -> $0.61
B53: Frozen, pre-cooked and pre-crisped, One slice contains .179 of cooked
B54: M/MA, Contains both white and dark meat
B55: Possible Allergens: None Listed
A56: 11 | B56: Turkey Sliced All Natural Turkey Breast | C56: Jennie O 2318-18 | E56: 96/3.0z | F56: 96 | G56: 0 | H56: =ROUND(G56*F56/F56,2) -> 0 | I56: Cs | J56: $78.30 | K56: =IF(OR(ISBLANK(J56),G56=0,ISBLANK(G56)),,ROUND(J56+$K$3,2)) -> 0 | L56: =ROUND(H56*K56,2) -> 0 | M56: =ROUND(K56/F56,2) -> 0 | N56: $48.24 | O56: $1.0954 | P56: 18.21 | Q56: =ROUND(O56*P56,2) -> $19.95 | R56: =N56 -> $48.24 | S56: =R56/F56 -> $0.50 | T56: =N56/F56 -> $0.50
B57: Frozen, fully cooked, oven roasted, round shaped, 50-150 calories
B58: with no more than 1 g sat fat and 4500 mg of sodium per serving. CN
B59: labeled with portion to provide 2 M/MA
B60: Possible Allergens: None Listed, Gluten Free
A61: 12 | B61: Turkey, All Nat Smoke House Turkey Breast Snack Stick | C61: Jennie O 207130 | E61: 400/1.2z | F61: 400 | G61: 0 | H61: =ROUND(G61*F61/F61,2) -> 0 | I61: Cs | J61: $221.10 | K61: =IF(OR(ISBLANK(J61),G61=0,ISBLANK(G61)),,ROUND(J61+$K$3,2)) -> 0 | L61: =ROUND(H61*K61,2) -> 0 | M61: =ROUND(K61/F61,2) -> 0 | N61: $183.60 | O61: $1.0954 | P61: 31.76 | Q61: =ROUND(O61*P61,2) -> $34.79 | R61: =N61 -> $183.60 | S61: =R61/F61 -> $0.46 | T61: =N61/F61 -> $0.46
B62: Frozen, Fully cooked, wach 1.2 oz. sticks provides 1 oz. M/MA 10-100
B63: calories with no more than 1 g sat fat and 8 g of protein
B64: Possible Allergens: None Listed, Gluten Free
A65: 13 | B65: Turkey Meatballs | C65: Jennie O 639930 | E65: 184/.85z | F65: 184 | G65: 0 | H65: =ROUND(G65*F65/F65,2) -> 0 | I65: Cs | J65: $105.90 | K65: =IF(OR(ISBLANK(J65),G65=0,ISBLANK(G65)),,ROUND(J65+$K$3,2)) -> 0 | L65: =ROUND(H65*K65,2) -> 0 | M65: =ROUND(K65/F65,2) -> 0 | N65: $72.90 | O65: $1.0954 | P65: 29.28 | Q65: =ROUND(O65*P65,2) -> $32.07 | R65: =N65 -> $72.90 | S65: =R65/F65 -> $0.40 | T65: =N65/F65 -> $0.40
B66: Fully cooked, IQF, Four meatballs provides 2 M/MA Utlizes both white &
B67: dark meat, 100-150 cals with no more than 1 g sat fat & 400 mg sodium
B68: Possible Allergens: Wheat, Soy and Milk
A69: 14 | B69: Turkey Burger | C69: Jennie O 616630 | E69: 175/2.75z | F69: 175 | G69: 0 | H69: =ROUND(G69*F69/F69,2) -> 0 | I69: Cs | J69: $115.50 | K69: =IF(OR(ISBLANK(J69),G69=0,ISBLANK(G69)),,ROUND(J69+$K$3,2)) -> 0 | L69: =ROUND(H69*K69,2) -> 0 | M69: =ROUND(K69/F69,2) -> 0 | N69: $83.40 | O69: $1.0954 | P69: 29.07 | Q69: =ROUND(O69*P69,2) -> $31.84 | R69: =N69 -> $83.40 | S69: =R69/F69 -> $0.48 | T69: =N69/F69 -> $0.48
B70: Frozen, Fully cooked, on patty provides 2.0 oz. M/MA 150-200 calories
B71: with no more than 2.5 g sat fat and 450 mg of sodium per serving
B72: Possible Allergens: None Listed
I73: Page Total | L73: =SUMIF(L7:L72,">0") -> $17,488.35

Sheet Pork
B1: ='Recap Sheet'!A2 -> School Food Authority:
B2: ='Recap Sheet'!B2 -> Colleton County School District Office of Student Nutrition | C2: Return to Recap Sheet | E2: ='Recap Sheet'!B3 -> 0 | P2: Commodity
A3: Item | B3: Description | C3: Approved Brand Name / Manuf ID # | F3: Firm Fixed Fee | K3: ='Recap Sheet'!B4 -> $0.00 | N3: Processing | O3: Commodity | P3: Pounds of | S3: NOI | T3: Net
A4: # | D4: Distributor | E4: Vendor | F4: Svgs | G4: Est. | H4: Bid | I4: Bid | J4: Unit | K4: Unit Price | L4: Total | M4: Cost per | N4: Fee for | O4: Value Per | P4: DF Needed | Q4: Commodity | R4: NOI | S4: Price/ | T4: Cost Per
D5: Code | E5: Pack | F5: per unit | G5: Bid Qty | H5: Qty | I5: Unit | J5: Price | K5: plus Fee | L5: Price | M5: Unit | N5: Service | O5: Pound | P5: Per Case | Q5: Value | R5: Price | S5: Serving | T5: Serving
B6: Pork Products | O6: Pork 1000193
A7: 1 | B7: Pork Barbecue, Tomato Sauce | C7: Chandler 16-550 CN | E7: 4/5 lbs | F7: 92 | G7: 0 | H7: =ROUND(G7*F7/F7,2) -> 0 | I7: Cs | J7: $51.80 | K7: =IF(OR(ISBLANK(J7),G7=0,ISBLANK(G7)),,ROUND(J7+$K$3,2)) -> 0 | L7: =ROUND(H7*K7,2) -> 0 | M7: =ROUND(K7/F7,2) -> 0 | O7: $1.3372 | P7: 10.71 | R7: =K7-Q7 ->  | S7: =R7/F7 ->  | T7: =N7/F7 -> 
B8: Frozen, fully cooked. Chopped. Products shall contain no more than | C8: Brookwood 13017 | E8: 4/5 lbs | F8: 98 | H8: =ROUND(G7*F7/F8,2) -> 0 | I8: Cs | O8: $1.3372 | P8: 10.71 | R8: =K8-Q8 ->  | S8: =R8/F8 ->  | T8: =N8/F8 -> 
B9: 5% textured vegetable protein. USDA inspected pork. | C9: Castleberry 7046CN | E9: 4/5 lbs | F9: 103 | H9: =ROUND(G7*F7/F9,2) -> 0 | I9: Cs | O9: $1.3372 | P9: 10.71 | R9: =K9-Q9 ->  | S9: =R9/F9 -> 
B10: Possible Allergens: Soy, Wheat
A11: 2 | B11: Pork Barbecue, Lower Sodium Texas Western Sauce | C11: Brookwood 12013 | E11: 2/5 lbs | F11: 40 | G11: 75 | H11: =ROUND($G$11*$F$11/F11,2) -> 75 | I11: Cs | J11: $35.40 | K11: =IF(OR(ISBLANK(J11),G11=0,ISBLANK(G11)),,ROUND(J11+$K$3,2)) -> $35.40 | L11: $2,655.00 | M11: $0.89 | N11: 0 | O11: $1.0813 | P11: 22.8 | Q11: =ROUND(O11*P11,2) -> $24.65 | T11: 0
B12: Frozen, fully cooked, 150-300 calories with no more than 7g sat fat and | C12: Brookwood Comm # 12307 | E12: 4/5 lbs | F12: 80 | N12: $31.00 | O12: $1.0813 | P12: 22.8 | Q12: =ROUND(O12*P12,2) -> $24.65 | T12: =N12/F12 -> $0.39
B13: 275 mg sodium per serving. Must provide 2 oz. M/MA 0 trans fat
B14: Possible Allergens: Soy
A15: 3 | B15: Pork, Barbecue, Vinegar Marinate/Semi Dry | C15: Brookwood 12105 | E15: 2/5 lbs | F15: 64 | G15: 0 | H15: =ROUND($G$15*$F$15/F15,2) -> 0 | I15: Cs | J15: $39.10 | K15: =IF(OR(ISBLANK(J15),G15=0,ISBLANK(G15)),,ROUND(J15+$K$3,2)) -> 0 | L15: =ROUND(H15*K15,2) -> 0 | M15: =ROUND(K15/F15,2) -> 0 | N15: 0 | O15: $1.0813 | P15: 64 | Q15: =ROUND(O15*P15,2) -> $69.20 | R15: 0 | S15: =R15/F15 -> 0 | T15: 0
B16: Frozen, fully cooked 200-300 calories with no more than 7g sat fat and | C16: Brookwood Comm # 12302 | E16: 8/5 lbs | F16: 256 | N16: $76.40 | O16: $1.0813 | P16: 64 | Q16: =ROUND(O16*P16,2) -> $69.20 | T16: $0.30
B17: 275 mg of sodium per serving. Must provide 2 oz. M/MA 0 trans fat
B18: Possible Allergens: Soy
A19: 4 | B19: Pork Chop Pattie, Breaded, WG | C19: Advanced Pierre 68019 | E19: 100/3.10 z | F19: 100 | G19: 50 | H19: 2500 | I19: Cs | J19: $35.37 | K19: =IF(OR(ISBLANK(J19),G19=0,ISBLANK(G19)),,ROUND(J19+$K$3,2)) -> $35.37 | L19: =ROUND(H19*K19,2) -> $88,425.00 | M19: =ROUND(K19/F19,2) -> $0.35 | N19: 0 | O19: $1.0813 | P19: 9.51 | Q19: =ROUND(O19*P19,2) -> $10.28 | T19: =N19/F19 -> 0
B20: Frozen, fully cooked, 250-350 calories with no more than 6 g sat fat | C20: JTM 5694CE Com #: CP5694 | E20: 138/3.35z | F20: 138 | H20: 2500 | I20: Cs | N20: $32.48 | O20: $1.0813 | P20: 20.59 | Q20: $22.26 | T20: $0.24
B21: and 500 mg of sodium per serving. CN labeled for one portion to
B22: provide min. 2 M/MA and .5 OEG
B23: Possible Allergens: Egg, Milk, Soy and Wheat
A24: 5 | B24: Pork Rib Pattie, Barbecue Flavored | C24: Advanced Pierre 44-531-0 Com #: 3787 | E24: 100/2.50z | F24: 100 | G24: 25 | H24: =ROUND(G24*F24/F24,2) -> 25 | I24: Cs | J24: $27.31 | K24: =IF(OR(ISBLANK(J24),G24=0,ISBLANK(G24)),,ROUND(J24+$K$3,2)) -> $27.31 | L24: =ROUND(K24*H24,2) -> $682.75 | M24: =ROUND(K24/F24,2) -> $0.27 | N24: 0 | O24: $1.0813 | P24: 14.89 | Q24: =ROUND(O24*P24,2) -> $16.10 | T24: =N24/F24 -> 0
B25: Frozen, fully cooked, 100-200 calories with no more than 4 g sat fat | C25: Maid Rite 75156-05324 Com #: 75156-95324 | E25: 208/2.40z | F25: 208 | H25: =ROUND(G24*F24/F25,2) -> 12.02 | I25: Cs | N25: 0 | O25: $1.0813 | P25: 26.963 | Q25: $29.16 | T25: 0
B26: and 400 mg sodium per serving CN Labeled for one portion to provide | C26: Don Lee Farms CN582253 Com #: CNQ582253P | E26: 216/2.25z | F26: 216 | H26: =ROUND(G24*F24/F26,2) -> 11.57 | I26: Cs | N26: $23.39 | O26: $1.0813 | P26: 38.06 | Q26: $41.15 | T26: $0.11
B27: 2 M/MA
B28: Possible Allergens: Milk, Soy and Wheat
A29: 6 | B29: Ham, Buffet | C29: Farmland 70247190454 | E29: 2/9-10 lb | F29: 20 | G29: 0 | H29: =ROUND(G29*F29/F29,2) -> 0 | I29: Cs | O29: $0.0000 | P29: 0 | Q29: =ROUND(O29*P29,2) -> $0.00 | R29: =K29-Q29 -> 0 | S29: =R29/F29 -> 0 | T29: 0
B30: Fully cooked, water added, boneless, smoked | C30: Farmland 190450 | E30: 2/13 lb | F30: 20 | H30: =ROUND(G29*F29/F30,2) -> 0 | I30: Cs | J30: $35.80 | K30: =IF(OR(ISBLANK(J30),G29=0,ISBLANK(G29)),,ROUND(J30+$K$3,2)) -> 0 | L30: =ROUND(H30*K30,2) -> 0 | M30: =ROUND(K30/F30,2) -> 0 | T30: 0
C31: John Morrell 70100-04799 | E31: 2/10 lb | F31: 20 | H31: =ROUND(G29*F29/F31,2) -> 0 | I31: Cs | T31: 0
C32: Carolina Pride 2328 | E32: 2/10 lb | F32: 18 | H32: =ROUND(G29*F29/F32,2) -> 0 | I32: Cs | T32: 0
B33: Possible Allergens: None Listed
A34: 7 | B34: Ham, Pre-Sliced | C34: Distributor Choice | E34: 6/2# | F34: 12 | G34: 0 | H34: =ROUND($G$34*$F$34/F34,2) -> 0 | I34: Cs
B35: Water added, .5 oz. slices, 2.0 oz. serving provides .75 oz. M/MA f | C35: Fillable txt box | H35: =ROUND(G34*F34/F35,2) ->  | I35: Cs | J35: 0 | K35: =IF(OR(ISBLANK(G34),G34=0,ISBLANK(F35)),,ROUND(J35+$K$3,2)) -> 0 | L35: =ROUND(H35*K35,2) ->  | M35: =ROUND(K35/F35,2) -> 
B36: Possible Allergens: None
A37: 8 | B37: Sausage Link with APP | C37: Briar Street Market 19331 | E37: 137/1.16z | F37: 137 | G37: 100 | H37: =ROUND(G37*F37/F37,2) -> 100 | I37: Cs | J37: $20.95 | K37: =IF(OR(ISBLANK(J37),G37=0,ISBLANK(G37)),,ROUND(J37+$K$3,2)) -> $20.95 | L37: =ROUND(H37*K37,2) -> $2,095.00 | M37: =ROUND(K37/F37,2) -> $0.15
B38: Fully cooked, 1.16 ounce to yield 1 M/MA
B39: Possible Allergens: Soy | G39: 0
A40: 9 | B40: Sausage Patty, No APP | C40: Swaggerty 60020 | E40: 160/1.0z | F40: 80 | G40: 0 | H40: =ROUND($G$40*$F$40/F40,2) -> 0 | I40: Cs
B41: Frozen, fully cooked, No alternate protein product must provide 1 oz. M/MA | C41: Ember Farms 25468111007 | E41: 10 lb | F41: 79 | H41: =ROUND($G$40*$F$40/F41,2) -> 0 | I41: Cs
B42: Possible Allergens: None Listed | C42: JTM 5649CE Com#: CP5649 | E42: 361/1.33z | F42: 361 | H42: =ROUND($G$40*$F$40/F42,2) -> 0 | I42: Cs | J42: $62.26 | K42: =IF(OR(ISBLANK(J42),G40=0,ISBLANK(G40)),,ROUND(J42+$K$3,2)) -> 0 | L42: =ROUND(H42*K42,2) -> 0 | M42: =ROUND(K42/F42,2) -> 0 | N42: $29.88 | O42: $1.0813 | P42: 26.41 | Q42: =ROUND(O42*P42,2) -> $28.56 | T42: $0.08
A43: 10 | B43: Sausage Patty with APP | C43: Advanced Pierre 3850 Com #: 3750 | E43: 250/1.20z | F43: 250 | G43: 0 | H43: =ROUND(G43*F43/F43,2) -> 0 | I43: Cs | N43: 0 | O43: $1.0813 | P43: 22.45 | Q43: =ROUND(O43*P43,2) -> $24.28 | T43: =N43/F43 -> 0
B44: Frozen, fully cooked, 50-150 calories with no more than 4 g saturated | C44: Briar Street Market 29667CN | E44: 153/1.25z | F44: 153 | H44: =ROUND($G$43*$F$43/F44,2) -> 0 | I44: Cs
B45: fat and 275 mg sodium per serving. CN labeled to provide 1 M/MA | C45: Maid Rite 75156-07112 Com #: 75156-97112 | E45: 400/1.20z | F45: 400 | H45: =ROUND($G$43*$F$43/F45,2) -> 0 | I45: Cs | N45: 0 | O45: $1.0813 | P45: 34.841 | Q45: =ROUND(O45*P45,2) -> $37.67 | T45: =N45/F45 -> 0
B46: per serving. | C46: Don Lee Farms CN791203L Com #: CNQ791203P | E46: 400/1.20z | F46: 400 | H46: =ROUND($G$43*$F$43/F46,2) -> 0 | I46: Cs | N46: $21.30 | O46: $1.0813 | P46: 40 | Q46: =ROUND(O46*P46,2) -> $43.25 | T46: $0.05
C47: Tennesee Pride 342CN | E47: 128/1.50z | F47: 128 | H47: =ROUND($G$43*$F$43/F47,2) -> 0 | I47: Cs | T47: =N47/F47 -> 
B48: Possible Allergens: Soy | C48: Swaggerty 60125 | E48: 256/1.25z | F48: 256 | H48: =ROUND($G$43*$F$43/F48,2) -> 0 | I48: Cs | J48: $31.00 | K48: =IF(OR(ISBLANK(J48),G43=0,ISBLANK(G43)),,ROUND(J48+$K$3,2)) -> 0 | L48: =ROUND(K48*H48,2) -> 0 | M48: =ROUND(K48/F48,2) -> 0
A49: 11 | B49: Sausage, Smoked | C49: Bryan 23258 | E49: 10Lb | F49: 80 | G49: 75 | H49: =ROUND(G49*F49/F49,2) -> 75 | I49: Cs
B50: Made with pork and beef | C50: Swaggerty 21057 | E50: 15Lb | F50: 120 | H50: =ROUND($G$49*$F$49/F50,2) -> 50 | I50: Cs | J50: $25.00 | K50: =IF(OR(ISBLANK(J50),G49=0,ISBLANK(G49)),,ROUND(J50+$K$3,2)) -> $25.00 | L50: $1,250.00 | M50: $0.21
I52: Page Total | L52: =SUMIF(L7:L50,">0") -> $95,107.75

Sheet Fish
B1: ='Recap Sheet'!A2 -> School Food Authority: | E1: ='Recap Sheet'!A3 -> Offeror Name:
B2: ='Recap Sheet'!B2 -> Colleton County School District Office of Student Nutrition | C2: Return to Recap Sheet | E2: ='Recap Sheet'!B3 -> 0 | P2: Commodity
A3: Item | B3: Description | C3: Approved Brand Name / Manuf ID # | F3: Firm Fixed Fee | K3: ='Recap Sheet'!B4 -> $0.00 | N3: Processing | O3: Commodity | P3: Pounds of | R3: Net | S3: Net NOI | T3: Total Cost
A4: # | D4: Distributor | E4: Vendor | F4: Svgs | G4: Est. | H4: Bid | I4: Bid | J4: Unit | K4: Unit Price | L4: Total | M4: Cost per | N4: Fee for | O4: Value Per | P4: DF Needed | Q4: Commodity | R4: NOI | S4: Cost Per | T4: Processing Fee
D5: Code | E5: Pack | F5: per unit | G5: Bid Qty | H5: Qty | I5: Unit | J5: Price | K5: plus Fee | L5: Price | M5: Unit | N5: Service | O5: Pound | P5: Per Case | Q5: Value | R5: Price | S5: Serving | T5: Per Serving
B6: Fish Products | O6: Fish 110601
A7: 1 | B7: Fish Portion, Pollock, WG | C7: Trident Seafood 418302 | E7: 44/3.64z | F7: 44 | G7: 0 | H7: =ROUND($G$7*$F$7/F7,2) -> 0 | I7: Cs | N7: 0 | O7: $1.4888 | P7: 6.99 | Q7: =ROUND(O7*P7,2) -> $10.41 | R7: 0 | S7: =R7/F7 -> 0 | T7: =N7/F7 -> 0
B8: Frozen, min 71% Alaskan Pollock, WGR breading, precooked, Grade A or | C8: High Liner Foods 1089300CN | E8: 80/3.60z | F8: 80 | H8: =ROUND($G$7*$F$7/F8,2) -> 0 | I8: Cs | J8: $39.16 | K8: =IF(OR(ISBLANK(J8),G7=0,ISBLANK(G7)),,ROUND(J8+$K$3,2)) -> 0 | L8: =ROUND(H8*K8,2) -> 0 | M8: =ROUND(K8/F8,2) -> 0 | N8: $19.98 | O8: $1.4888 | P8: 12.84 | Q8: $19.12 | R8: =J8-Q8 -> $20.04 | S8: $0.25 | T8: $0.25
B9: PUFI approved, 150-250 calories with no more than 2 g saturated fat and
B10: 400 mg per serving, CN labeled to provide min. 2 M/MA and 1 OEG
B11: Possible Allergens: Fish, Wheat, Soy
A12: 2 | B12: Fish Portion, Pollock, Wedge, Potato Breading WG | C12: High Liner - Viking 06533C | E12: 46/3.60z | F12: 46 | G12: 150 | H12: =ROUND(G12*F12/F12,2) -> 150 | I12: Cs | J12: $25.01 | K12: =IF(OR(ISBLANK(J12),G12=0,ISBLANK(G12)),,ROUND(J12+$K$3,2)) -> $25.01 | L12: =ROUND(H12*K12,2) -> $3,751.50 | M12: =ROUND(K12/F12,2) -> $0.54 | N12: $13.99 | O12: $1.4888 | P12: 7.4 | Q12: =ROUND(O12*P12,2) -> $11.02 | R12: =J12-Q12 -> $13.99 | S12: =R12/F12 -> $0.30 | T12: =N12/F12 -> $0.30
B13: Frozen, min 71% Alaskan Pollock, WGR breading, precooked, Grade A or | C13: Trident Seafood 422072 | E13: 44/3.60z | F13: 44 | H13: =ROUND(G12*F12/F13,2) -> 156.82 | I13: Cs | N13: 0 | O13: $1.4888 | P13: 6.99 | Q13: $10.41 | R13: 0 | S13: 0 | T13: 0
B14: PUFI approved, 150-250 calories with no more than 2 g saturated fat and
B15: 300 mg per serving, CN labeled to provide min. 2 M/MA and .5 OEG
B16: Possible Allergens: Fish, Wheat, Egg, Soy and Milk
A17: 3 | B17: Fish Nuggets, Natural Cod | C17: High Liner/Viking 51067CN | E17: 160/1.0z | F17: 160 | G17: 0 | H17: =ROUND(G17*F17/F17,2) -> 0 | I17: Cs | J17: $22.60 | K17: =IF(OR(ISBLANK(J17),G17=0,ISBLANK(G17)),,ROUND(J17+$K$3,2)) -> 0 | L17: 0 | M17: 0 | T17: =N17/F17 -> 0
B18: Natural Cod, chunks pre-breaded, oven ready. PUFI approved.
B19: One serving will provide 2 oz meat/meat alternate and 1z OEG
B20: Possible Allergens: Fish, Wheat, Egg
A21: 4 | B21: Fish Sticks, Pollock | C21: High Liner/APS 26240CN | E21: 160/1.0z | F21: 40 | G21: 0 | H21: =ROUND(G21*F21/F21,2) -> 0 | I21: Cs | J21: $21.10 | K21: =IF(OR(ISBLANK(J21),G21=0,ISBLANK(G21)),,ROUND(J21+$K$3,2)) -> 0 | L21: =ROUND(H21*K21,2) -> 0 | M21: =ROUND(K21/F21,2) -> 0 | T21: =N21/F21 -> 0
B22: Frozen, min. 64% Alaskan Pollock, breaded, oven ready, Grade A or PUFI | C22: Trident Seafood 427203 | E22: 160/1.0z | F22: 40 | H22: =ROUND(G21*F21/F22,2) -> 0 | I22: Cs | N22: $14.54 | O22: $1.4888 | P22: 6.42 | Q22: =ROUND(O22*P22,2) -> $9.56 | R22: =N22 -> $14.54 | S22: =R22/F22 -> $0.36 | T22: $0.36
B23: approved, 200-300 claories calories with no more than 2 g sat fat and | C23: Slade Gorton 25152 | E23: 160/1.0z | F23: 40 | H23: =ROUND($G$21*$F$21/F23,2) -> 0 | I23: Cs | T23: =N23/F23 -> 0
B24: 350 mg sodium per serving.
B25: Possible Allergens: Fish, Wheat, Soy
A26: 5 | B26: Fish Stick, Nacho Breaded, WG | C26: High Liner Foods 38118 | E26: 320/1.0z | F26: 80 | G26: 50 | H26: =ROUND(G26*F26/F26,2) -> 50 | I26: Cs | J26: $41.05 | K26: =IF(OR(ISBLANK(J26),G26=0,ISBLANK(G26)),,ROUND(J26+$K$3,2)) -> $41.05 | L26: =ROUND(H26*K26,2) -> $2,052.50 | M26: =ROUND(K26/F26,2) -> $0.51 | N26: $21.70 | O26: $1.4888 | P26: 13 | Q26: =ROUND(O26*P26,2) -> $19.35 | R26: =J26-Q26 -> $21.70 | S26: =R26/F26 -> $0.27 | T26: =N26/F26 -> $0.27
B27: Frozen, min. 64% Alaskan Pollock, breaded, oven ready, PUFI approved,
B28: 200-300 calories with no more than 2 g sat fat and 350 mg sodium per
B29: serving. CN Labeled for 4 sticks to provide min. 2 M/MA and .75 OEG
B30: Possible Allergens: Fish, Wheat, Soy
A31: 6 | B31: Fish Sticks, Pollock, Potato Coated, WG | C31: Trident Seafood 422071 | E31: 160/1.0z | F31: 40 | G31: 0 | H31: =ROUND(G31*F31/F31,2) -> 0 | I31: Cs | J31: $25.90 | K31: =IF(OR(ISBLANK(J31),G31=0,ISBLANK(G31)),,ROUND(J31+$K$3,2)) -> 0 | L31: =ROUND(H31*K31,2) -> 0 | M31: =ROUND(K31/F31,2) -> 0 | N31: $16.42 | O31: $1.4888 | P31: 6.37 | Q31: =ROUND(O31*P31,2) -> $9.48 | R31: =J31-Q31 -> $16.42 | S31: =R31/F31 -> $0.41 | T31: =N31/F31 -> $0.41
B32: Frozen, min. 64% Alaskan Pollock, breaded, oven ready, PUFI approved,
B33: 200-300 calories with no more than 2 g sat fat and 350 mg sodium per
B34: serving. CN Labeled for 4 sticks to provide min. 2 M/MA and .75 OEG
B35: Possible Allergens: Fish, Wheat, Soy, and Egg
A36: 7 | B36: Shrimp, Popcorn Style, WG | C36: Sea Pak 47039 | E36: 5/2 lbs | F36: 53 | G36: 0 | H36: 53 | I36: Cs | T36: 0
B37: Frozen, made from minced shrimp, whole grain rich breading, 150-250 | C37: Tampa Maid 100220 | E37: 12/2 lbs | F37: 128 | H37: 128 | I37: Cs | J37: $50.16 | K37: =IF(OR(ISBLANK(J37),G36=0,ISBLANK(G36)),,ROUND(J37+$K$3,2)) -> 0 | L37: =ROUND(H37*K37,2) -> 0 | M37: =ROUND(K37/F37,2) -> 0 | T37: =N37/F37 -> 0
B38: calories with no more than 2 g saturated fat and 500 mg sodium per serving, CN labeled to provide min.
B39: 1 M/MA and 1.25 OEG per 3 ounce serving
B40: Possible Allergens: Shrimp, Wheat, Milk, Soy
A41: 8 | B41: Tuna, Chunk Light, Low Sodium | C41: Star-Kist 514540 | E41: 6/43 z | F41: 129 | G41: 10 | H41: =ROUND(G41*F41/F41,2) -> 10 | I41: Cs | J41: $50.00 | K41: =IF(OR(ISBLANK(J41),G41=0,ISBLANK(G41)),,ROUND(J41+$K$3,2)) -> $50.00 | L41: =ROUND(H41*K41,2) -> $500.00 | M41: =ROUND(K41/F41,2) -> $0.39
B42: Pouch, water packed, No soy, Complies with "Buy American" provision
B43: Possible Allergens: Fish, Wheat
G44: 0 | I44: Page Total | L44: =SUMIF(L7:L41,">0") -> $6,304.00

Sheet Pizza (hidden)
B1: ='Recap Sheet'!A2 -> School Food Authority: | E1: ='Recap Sheet'!A3 -> Offeror Name:
B2: ='Recap Sheet'!B2 -> Colleton County School District Office of Student Nutrition | C2: Return to Recap Sheet | E2: ='Recap Sheet'!B3 -> 0
A3: Item | B3: Description | C3: Approved Brand Name / Manuf ID # | F3: Firm Fixed Fee | K3: ='Recap Sheet'!B4 -> $0.00
A4: # | D4: Distributor | E4: Vendor | F4: Svgs | G4: Est. | H4: Bid | I4: Bid | J4: Unit | K4: Unit Price | L4: Total | M4: Cost per
D5: Code | E5: Pack | F5: per unit | G5: Bid Qty | H5: Qty | I5: Unit | J5: Price | K5: plus Fee | L5: Price | M5: Unit
B6: Pizza Products
A7: 1 | B7: Pizza Sticks, Pizza Style Crust, 50/50 Blend WGR | C7: The Max Stix 77387-12439 CN | E7: 192/1.93z | F7: 192 | G7: 4500 | H7: =ROUND($G$7*$F$7/F7,2) -> 4500 | I7: Cs | K7: =IF(OR(ISBLANK(J7),G7=0,ISBLANK(G7)),,ROUND(J7+$K$3,2)) -> 0 | L7: =ROUND(H7*K7,2) -> 0 | M7: =ROUND(K7/F7,2) -> 0
B8: Stuffed with Mozzarella cheese, frozen, fully cooked pre-baked pizza sticks | C8: Bosco Sticks 702011-1120 | E8: 144/2.06z | F8: 144 | H8: =ROUND($G$7*$F$7/F8,2) -> 6000 | I8: Cs | K8: =IF(OR(ISBLANK(J8),G7=0,ISBLANK(G7)),,ROUND(J8+$K$3,2)) -> 0 | L8: =ROUND(H8*K8,2) -> 0 | M8: =ROUND(K8/F8,2) -> 0
B9: stuffed with low moisture, part skim mozzarella cheese. One pizza breadstick
B10: must provide 1 oz meat/meat alternate and at least 1 oz equivalent grain.
A11: 2 | B11: Pizza Strips, 100% Mozzarella Cheese, Individually Wrapped, WGR | C11: Tony's 78379 CN, WG | E11: 48/3.1z | F11: 48 | G11: 6000 | H11: =ROUND(G11*F11/F11,2) -> 6000 | I11: Cs | K11: =IF(OR(ISBLANK(J11),G11=0,ISBLANK(G11)),,ROUND(J11+$K$3,2)) -> 0 | L11: =ROUND(H11*K11,2) -> 0 | M11: =ROUND(K11/F11,2) -> 0
B12: 30% or less of calories from fat, 0 trans fat. One serving to
B13: equal at least 2 oz grain equivalent servings and 1oz meat/meat alternate.
A14: 3 | B14: Pizza, Breakfast, 50/50 Blend, WGR No SOY added. | C14: Nardone Brothers 80WSA100 | E14: 80/3.2z | F14: 80 | G14: 3500 | H14: =ROUND(G14*F14/F14,2) -> 3500 | I14: Cs | K14: =IF(OR(ISBLANK(J14),G14=0,ISBLANK(G14)),,ROUND(J14+$K$3,2)) -> 0 | L14: =ROUND(H14*K14,2) -> 0 | M14: =ROUND(K14/F14,2) -> 0
B15: Made of crust, sausage, pork patty crumble and cheese. One serving provides
B16: 1 oz meat/meat alternate , 1.5 oz equivalent grain, may also provide 1/8 cup
B17: vegetable.
A18: 4 | B18: Pizza, Breakfast, 50/50 Blend, WGR | C18: The Max 77387-12708 CN | E18: 192/2.66z | F18: 192 | G18: 14000 | H18: =ROUND($G$18*$F$18/F18,2) -> 14000 | I18: Cs | K18: =IF(OR(ISBLANK(J18),G18=0,ISBLANK(G18)),,ROUND(J18+$K$3,2)) -> 0 | L18: =ROUND(H18*K18,2) -> 0 | M18: =ROUND(K18/F18,2) -> 0
B19: Made of crust, turkey sausage, and cheese. | C19: Tony's 63912 CN WG | E19: 128/3.31z | F19: 128 | H19: =ROUND($G$18*$F$18/F19,2) -> 21000 | I19: Cs | K19: =IF(OR(ISBLANK(J19),G18=0,ISBLANK(G18)),,ROUND(J19+$K$3,2)) -> 0 | L19: 0 | M19: 0
B20: One serving provides 1 oz meat/meat alternate and 1.5oz equivalent grain. | C20: (15-16) Nardone Brothers 80WBTSA100 | E20: 80/3.63z | F20: 80 | H20: =ROUND($G$18*$F$18/F20,2) -> 33600 | I20: Cs | K20: =IF(OR(ISBLANK(J20),G18=0,ISBLANK(G18)),,ROUND(J20+$K$3,2)) -> 0 | L20: 0 | M20: 0
A22: 5 | B22: Pizza, Breakfast, Sausage Bagel, IW WGR | C22: (15-16) Nardone Brothers M96WBTS1 | E22: 96/3.10z | F22: 96 | G22: 6000 | H22: =ROUND(G22*F22/F22,2) -> 6000 | I22: Cs | K22: =IF(OR(ISBLANK(J22),G22=0,ISBLANK(G22)),,ROUND(J22+$K$3,2)) -> 0 | L22: =ROUND(H22*K22,2) -> 0 | M22: =ROUND(K22/F22,2) -> 0
B23: 50/50 blend cheese with alternate protein product, pizza sauce
B24: One serving = 1 oz meat/meat alternate and 1 oz equivalent grain.
A25: 6 | B25: Pizza, Cheese, 4x6, 50/50 Blend. WGR | C25: Tony's Smart Pizza 78673 CN WG | E25: 96/4.6z | F25: 96 | G25: 15000 | H25: =ROUND(G25*F25/F25,2) -> 15000 | I25: Cs | K25: =IF(OR(ISBLANK(J25),G25=0,ISBLANK(G25)),,ROUND(J25+$K$3,2)) -> 0 | L25: =ROUND(H25*K25,2) -> 0 | M25: =ROUND(K25/F25,2) -> 0
B26: Made of crust, sauce, cheese-Mozzarella and blend other cheese. | C26: (15-16) Nardone 961SWCMA2 | E26: 96/4.9z | F26: 96 | H26: =ROUND(G25*F25/F26,2) -> 15000 | I26: Cs | K26: =IF(OR(ISBLANK(J26),G25=0,ISBLANK(G25)),,ROUND(J26+$K$3,2)) -> 0 | L26: 0 | M26: 0
B27: CN Label = 2 oz meat/meat alternate and 2 oz equivalent grains, 1/8c Veg optional.
A28: 7 | B28: Pizza, Cheese, 4x6, 50/50 Blend. WGR No SOY added. | C28: Nardone Brothers 96WWA2 4 X 6 | E28: 96/5.0z | F28: 96 | G28: 2500 | H28: =ROUND(G28*F28/F28,2) -> 2500 | I28: Cs | K28: =IF(OR(ISBLANK(J28),G28=0,ISBLANK(G28)),,ROUND(J28+$K$3,2)) -> 0 | L28: =ROUND(H28*K28,2) -> 0 | M28: =ROUND(K28/F28,2) -> 0
B29: Made of crust, sauce, cheese-Mozzarella and blend other cheese.
B30: CN Label = 2 oz meat/meat alternate and 2 oz equivalent grains, 1/8c Veg optional.
A32: 8 | B32: Pizza, Cheese, Wedge-shaped, 50/50 Blend No SOY added WGR | C32: Nardone Brothers 72RWWEDA2 | E32: 72/5.0z | F32: 72 | G32: 1000 | H32: =ROUND(G32*F32/F32,2) -> 1000 | I32: Cs | K32: =IF(OR(ISBLANK(J32),G32=0,ISBLANK(G32)),,ROUND(J32+$K$3,2)) -> 0 | L32: =ROUND(H32*K32,2) -> 0 | M32: =ROUND(K32/F32,2) -> 0
B33: Product must provide 2 oz meat/meat
B34: alternate, 2 oz equivalent grain, and 1/8 cup vegetable .
A35: 9 | B35: Pizza, Cheese, wedge-shaped, 50/50 Blend WGR | C35: (06-07) The Max Real Slice 77387-12680 CN WG | E35: 96/4.67z | F35: 96 | G35: 7000 | H35: =ROUND($G$35*$F$35/F35,2) -> 7000 | I35: Cs | K35: =IF(OR(ISBLANK(J35),G35=0,ISBLANK(G35)),,ROUND(J35+$K$3,2)) -> 0 | L35: =ROUND(H35*K35,2) -> 0 | M35: =ROUND(K35/F35,2) -> 0
B36: One serving not to exceed 35% of its calories from fat. 0 transfat. | C36: (14-15) Nardone 96SWWEDA2 | E36: 96/4.90z | F36: 96 | H36: =ROUND($G$35*$F$35/F36,2) -> 7000 | I36: Cs | K36: =IF(OR(ISBLANK(J36),G35=0,ISBLANK(G35)),,ROUND(J36+$K$3,2)) -> 0 | L36: 0 | M36: 0
B37: One serving to provide 2 oz meat/meat alternate, 2 oz equivalent grain,
B38: and at least 1/8 cup vegetable.
A39: 10 | B39: Pizza, Pepperoni, 50/50 Blend WGR | C39: Tony's 72560 CN WG | E39: 96/4.68z | F39: 96 | G39: 11000 | H39: =ROUND($G$39*$F$39/F39,2) -> 11000 | I39: Cs | K39: =IF(OR(ISBLANK(J39),G39=0,ISBLANK(G39)),,ROUND(J39+$K$3,2)) -> 0 | L39: =ROUND(H39*K39,2) -> 0 | M39: =ROUND(K39/F39,2) -> 0
B40: Triangular shaped, made of crust, sauce, cheese, pepperoni. | C40: (15-16) Nardone Brothers 96SWWEDPA2 | E40: 96/4.95z | F40: 96 | H40: =ROUND($G$39*$F$39/F40,2) -> 11000 | I40: Cs | K40: =IF(OR(ISBLANK(J40),G39=0,ISBLANK(G39)),,ROUND(J40+$K$3,2)) -> 0 | L40: 0 | M40: 0
B41: CN Label = 2 oz meat/meat alternate, 2oz equivalent grain, 1/8 c veg. | C41: (15-16) The Max 77387-12656 | E41: 96/4.56z | F41: 96 | H41: =ROUND($G$39*$F$39/F41,2) -> 11000 | I41: Cs | K41: =IF(OR(ISBLANK(J41),G39=0,ISBLANK(G39)),,ROUND(J41+$K$3,2)) -> 0 | L41: 0 | M41: 0
A42: 11 | B42: Pizza, Pepperoni, 50/50 Blend No SOY added WGR | C42: Nardone Brothers 96WWEDPA2 | E42: 96/5.0z | F42: 96 | G42: 4500 | H42: =ROUND(G42*F42/F42,2) -> 4500 | I42: Cs | K42: =IF(OR(ISBLANK(J42),G42=0,ISBLANK(G42)),,ROUND(J42+$K$3,2)) -> 0 | L42: 0 | M42: 0
B43: Triangular shaped, made of crust, sauce, cheese, pepperoni.
B44: CN Label = 2 oz meat/meat alternate, 2oz equivalent grain, 1/8 c veg.
A45: 12 | B45: Pizza, Low Fat Pepperoni, Wedge Shaped, 50/50 Blend WGR | C45: (06-07) The Max Real Slice 77387-12681 CN WG | E45: 96/4.67z | F45: 96 | G45: 14000 | H45: =ROUND(G45*F45/F45,2) -> 14000 | I45: Cs | K45: =IF(OR(ISBLANK(J45),G45=0,ISBLANK(G45)),,ROUND(J45+$K$3,2)) -> 0 | L45: =ROUND(H45*K45,2) -> 0 | M45: =ROUND(K45/F45,2) -> 0
B46: One serving not to exceed 35% of its calories from fat . 0 transfat. | C46: (15-16) Nardone Brothers C96SWWEDPA | E46: 96/4.95z | F46: 96 | H46: =ROUND(G45*F45/F46,2) -> 14000 | I46: Cs | K46: =IF(OR(ISBLANK(J46),G45=0,ISBLANK(G45)),,ROUND(J46+$K$3,2)) -> 0 | L46: =ROUND(H46*K46,2) -> 0 | M46: =ROUND(K46/F46,2) -> 0
B47: One serving to provide 2 oz meat/meat alternate, 2 oz equivalent grain
B48: and at least 1/8 cup vegetable.
A49: 13 | B49: Pizza, self-rising, stuffed crust pizza slice, 100% Mozzarella cheese. WGR | C49: (14-15) Gilardi
B50: One portion provides 2oz equivalent grains and 2oz Meat/ meat alternate. | C50: 16272-20113 Cheese | E50: 96/4.5z | F50: 96 | G50: 2500 | H50: =ROUND($G$50*$F$50/F50,2) -> 2500 | I50: Cs | K50: =IF(OR(ISBLANK(J50),G50=0,ISBLANK(G50)),,ROUND(J50+$K$3,2)) -> 0 | L50: =ROUND(H50*K50,2) -> 0 | M50: =ROUND(K50/F50,2) -> 0
B51: CN labeled. Includes branded serving trays in case. | C51: 16272-20114 Turkey Pepperoni | E51: 96/4.5z | F51: 96 | G51: 2500 | H51: =ROUND($G$51*$F$51/F51,2) -> 2500 | I51: Cs | K51: =IF(OR(ISBLANK(J51),G51=0,ISBLANK(G51)),,ROUND(J51+$K$3,2)) -> 0 | L51: 0 | M51: 0
A53: 14 | B53: Pizza, Sausage, 50/50 Blend, Turkey WGR | C53: Tony's Smart Pizza 78771 CN, WG | E53: 96/4.69z | F53: 96 | G53: 5000 | H53: =ROUND(G53*F53/F53,2) -> 5000 | I53: Cs | K53: =IF(OR(ISBLANK(J53),G53=0,ISBLANK(G53)),,ROUND(J53+$K$3,2)) -> 0 | L53: =ROUND(H53*K53,2) -> 0 | M53: =ROUND(K53/F53,2) -> 0
B54: Made of crust, sauce, turkey sausage 35% or less calories from fat
B55: 1 serving = 2 oz meat/meat alternate and 2 oz equivalent grain,and 1/8 cup
B56: Vegetable serving
A57: 15 | B57: Pizza, Stuff Crust, Cheese 50/50 Blend, Wedge No SOY added WGR | C57: Nardone Brothers 72WWSCMA2 | E57: 70/5.65z | F57: 70 | G57: 1500 | H57: =ROUND(G57*F57/F57,2) -> 1500 | I57: Cs | K57: =IF(OR(ISBLANK(J57),G57=0,ISBLANK(G57)),,ROUND(J57+$K$3,2)) -> 0 | L57: =ROUND(H57*K57,2) -> 0 | M57: =ROUND(K57/F57,2) -> 0
B58: Provides 2 oz meat/meat alternate and 2 oz equivalent grain,
B59: and 1/8 cup vegetable.
A60: 16 | B60: Pizza, WW Stuff Crust Pepperoni No SOY added WGR | C60: Nardones 72WWSCMP2 4x6 | E60: 70/4.95z | F60: 70 | G60: 2500 | H60: =ROUND($G$60*$F$60/F60,2) -> 2500 | I60: Cs | K60: =IF(OR(ISBLANK(J60),G60=0,ISBLANK(G60)),,ROUND(J60+$K$3,2)) -> 0 | L60: =ROUND(H60*K60,2) -> 0 | M60: =ROUND(K60/F60,2) -> 0
B61: w/ Part Skim Mozz Cheese, Rectangular shaped. One serving provides
B62: 2 oz meat/meat alternate, 2 oz equivalent grain, and 1/8 c vegetable serving.
A63: 17 | B63: Pizza, Stuffed Crust, Wedge WGR | C63: (14-15) Tony's 78650 | E63: 96/5.42z | F63: 96 | G63: 1000 | H63: =ROUND($G$63*$F$63/F63,2) -> 1000 | I63: Cs | K63: =IF(OR(ISBLANK(J63),G63=0,ISBLANK(G63)),,ROUND(J63+$K$3,2)) -> 0 | L63: =ROUND(H63*K63,2) -> 0 | M63: =ROUND(K63/F63,2) -> 0
B64: Made with Turkey and Beef Pepperoni. One serving provides 2 oz meat | C64: (15-16) The Max 77387-12717 | E64: 72/4.8z | F64: 72 | H64: =ROUND($G$63*$F$63/F64,2) -> 1333.33 | I64: Cs | K64: =IF(OR(ISBLANK(J64),G63=0,ISBLANK(G63)),,ROUND(J64+$K$3,2)) -> 0 | L64: 0 | M64: 0
B65: /meat alternate, 2 oz equivalent grain, and 1/8 c Red-orange Veg. | C65: (15-16) Nardone Brothers 72WWSCMTP2 | E65: 70/4.95z | F65: 70 | H65: =ROUND($G$63*$F$63/F65,2) -> 1371.43 | I65: Cs | K65: =IF(OR(ISBLANK(J65),G63=0,ISBLANK(G63)),,ROUND(J65+$K$3,2)) -> 0 | L65: 0 | M65: 0
A66: 18 | B66: Pizza, WW 16" Pre-Sliced Pizzeria Style Pepperoni Pizza, IQF WGR | C66: Nardones 64WPSP2 | E66: 64/5.08z | F66: 64 | G66: 1000 | H66: =ROUND(G66*F66/F66,2) -> 1000 | I66: Cs | K66: =IF(OR(ISBLANK(J66),G66=0,ISBLANK(G66)),,ROUND(J66+$K$3,2)) -> 0 | L66: 0 | M66: 0
B67: No SOY added. CN Provides 2 oz meat/meat alt. and 2 oz equivalent grain,
B68: and 1/8 c Veg
A69: 19 | B69: Pizza, WG, Cheese/Cheese Substitute | C69: (15-16) Con Agra The Max | E69: 60/5.0z | F69: 60 | G69: 500 | H69: =ROUND($G$69*$F$69/F69,2) -> 500 | I69: Cs | K69: =IF(OR(ISBLANK(J69),G69=0,ISBLANK(G69)),,ROUND(J69+$K$3,2)) -> 0 | L69: =ROUND(H69*K69,2) -> 0 | M69: =ROUND(K69/F69,2) -> 0
B70: Frozen, 5" round, reduced-fat Mozzarella cheese | C70: 77387-12724 Lunch a Round Cheese
B71: One portion meets 2M/MA 2 OEG 1/8c Veg | C71: (15-16) Tony's | E71: 60/5.03 | F71: 60 | H71: =ROUND($G$69*$F$71/F71,2) -> 500 | I71: Cs | K71: =IF(OR(ISBLANK(J71),G69=0,ISBLANK(G69)),,ROUND(J71+$K$3,2)) -> 0 | L71: =ROUND(H71*K71,2) -> 0 | M71: =ROUND(K71/F71,2) -> 0
B72: Possible Allergens: Wheat, Soy, Milk | C72: 72580 WG Pizza LS Cheese
B73: Smart Snack Compliant
A74: 20 | B74: Pizza, Cheese/Cheese Substitute | C74: (15-16) Nardone Bros. | E74: 60/5.4z | F74: 60 | G74: 500 | H74: =ROUND(G74*F74/F74,2) -> 500 | I74: Cs | K74: =IF(OR(ISBLANK(J74),G74=0,ISBLANK(G74)),,ROUND(J74+$K$3,2)) -> 0 | L74: =ROUND(H74*K74,2) -> 0 | M74: =ROUND(K74/F74,2) -> 0
B75: Frozen, 6" round, Low-moisture/part-skim Mozzarella, Mozzarella Cheese substitute. | C75: 625SWMA
B76: One portion meets 2M/MA 2.0 OEG, 1/8c Veg
B77: Possible Allergens: Wheat, Soy, Milk
B78: Smart Snack Compliant
A79: 21 | B79: Pizza, Cheese slice, | C79: (15-16) Nardone Bros | E79: 72/4.90z | F79: 72 | G79: 500 | H79: =ROUND(G79*F79/F79,2) -> 500 | I79: Cs | K79: =IF(OR(ISBLANK(J79),G79=0,ISBLANK(G79)),,ROUND(J79+$K$3,2)) -> 0 | L79: =ROUND(H79*K79,2) -> 0 | M79: =ROUND(K79/F79,2) -> 0
B80: Low moisture Part-skim Mozzarella Cheese, Cheese Substitute | C80: 72SRWWEDA2 Rolled edge wedge cheese
B81: Frozen, wedge slice,. Meets 2.0 M/MA 2.0 OEG, 1/8 c Veg
B82: Possible Allergens: Wheat, Milk, Soy
B83: Smart Snack Compliant
A84: 22 | B84: Pizza, Sausage/Cheese/Cheese Substitute | C84: (15-16) Nardone Bros | E84: 96/4.95Z | F84: 96 | G84: 500 | H84: =ROUND(G84*F84/F84,2) -> 500 | I84: Cs | K84: =IF(OR(ISBLANK(J84),G84=0,ISBLANK(G84)),,ROUND(J84+$K$3,2)) -> 0 | L84: =ROUND(H84*K84,2) -> 0 | M84: =ROUND(K84/F84,2) -> 0
B85: Frozen, Wedge slice, made from Pork sausage, low-moisture part skim Mozzarella | C85: 96SWWEDSA2 Sausage/ Cheese
B86: cheese, Mozzarella Cheese substitute.
B87: One portion provides 2M/MA 2.0 OEG, 1/8 c Veg
B88: Possible Allergens: Wheat, Milk, Soy
B89: Smart Snack Compliant
A90: 23 | B90: Pizza, Veggie with Red and Green Peppers, Onion, Cheese | C90: (15-16) Con Agra The Max | E90: 60/5.34z | F90: 60 | H90: =ROUND(G90*F90/F90,2) -> 0 | I90: Cs | K90: =IF(OR(ISBLANK(J90),G90=0,ISBLANK(G90)),,ROUND(J90+$K$3,2)) -> 0 | L90: =ROUND(H90*K90,2) -> 0 | M90: =ROUND(K90/F90,2) -> 0
B91: Frozen, 5" round, reduced -fat Mozzarella cheese and | C91: 77387-12726 Lunch Around Veggie
B92: substitute cheese. One portion meets 2M/MA 2 OEG 1/8c Veg | C92: Item Discontinued by Conagra 07/01/16
B93: Possible Allergens: Wheat, Soy, Milk
B94: Smart Snack Compliant
A95: 24 | B95: Pizza, 4 x 6, Cheese/ Cheese Substitute | C95: (15-16) Nardone Bros | E95: 96/4.90z | F95: 96 | G95: 500 | H95: =ROUND(G95*F95/F95,2) -> 500 | I95: Cs | K95: =IF(OR(ISBLANK(J95),G95=0,ISBLANK(G95)),,ROUND(J95+$K$3,2)) -> 0 | L95: =ROUND(H95*K95,2) -> 0 | M95: =ROUND(K95/F95,2) -> 0
B96: Frozen, made from low-moisture/part skim Mozzarella Cheese and Mozzarella Cheese | C96: 961SWCMA2
B97: Substitute. One portion meets 2 M/MA 2.0 OEG, 1/8 c Veg
B98: Possible Allergens: Wheat, Soy, Milk
B99: Smart Snack Compliant
A100: 25 | B100: Pizza, 4 x 6, Turkey Pepperoni | C100: (15-16) Nardone Bros. | E100: 96/4.90z | F100: 96 | G100: 500 | H100: =ROUND(G100*F100/F100,2) -> 500 | I100: Cs | K100: =IF(OR(ISBLANK(J100),G100=0,ISBLANK(G100)),,ROUND(J100+$K$3,2)) -> 0 | L100: =ROUND(H100*K100,2) -> 0 | M100: =ROUND(K100/F100,2) -> 0
B101: Frozen, made from low-moisture/part skim Mozzarella Cheese and Mozzarella Cheese | C101: 961SWTPA2
B102: Substitute; Turkey. One portion meets 2 M/MA 2.0 OEG, 1/8 c Veg
B103: Possible Allergens: Wheat, Soy, Milk
B104: Smart Snack Compliant
A105: 26 | B105: Pizza, WG, Turkey and Beef Pepperoni, 5" Round | C105: (15-16) Tony's | E105: 60/4.88z | F105: 60 | G105: 500 | H105: =ROUND(G105*F105/F105,2) -> 500 | I105: Cs | K105: =IF(OR(ISBLANK(J105),G105=0,ISBLANK(G105)),,ROUND(J105+$K$3,2)) -> 0 | L105: =ROUND(H105*K105,2) -> 0 | M105: =ROUND(K105/F105,2) -> 0
B106: One portion meets 2 M/MA 2.0 OEG, 1/8 c Veg | C106: 72581 Turkey Pepperoni LS
B107: Smart Snack Compliant
I109: Page Total | L109: =SUMIF(L6:L107,">0") -> 0

Sheet Pizza
B1: ='Recap Sheet'!A2 -> School Food Authority: | E1: ='Recap Sheet'!A3 -> Offeror Name: | O1: Commodity
B2: ='Recap Sheet'!B2 -> Colleton County School District Office of Student Nutrition | C2: Return to Recap Sheet | E2: ='Recap Sheet'!B3 -> 0
A3: Item | B3: Description | C3: Approved Brand Name / Manuf ID # | F3: Firm Fixed Fee | K3: ='Recap Sheet'!B4 -> $0.00 | N3: Processing | O3: Commodity | P3: Pounds of | R3: NOI | S3: Net NOI | T3: Total Cost
A4: # | D4: Distributor | E4: Vendor | F4: Svgs | G4: Est. | H4: Bid | I4: Bid | J4: Unit | K4: Unit Price | L4: Total | M4: Cost per | N4: Fee For | O4: Value Per | P4: DF Needed | Q4: Commodity | R4: Net | S4: Cost Per | T4: Processing Fee
D5: Code | E5: Pack | F5: per unit | G5: Bid Qty | H5: Qty | I5: Unit | J5: Price | K5: plus Fee | L5: Price | M5: Unit | N5: Service | O5: Pound | P5: Per Case | Q5: Value | R5: Price | S5: Serving | T5: For Serving
B6: Pizza | O6: Commodity LM PT Skim UNIFZ 110244
A8: 1 | B8: Bread Stick | C8: Tyson 702011 | E8: 144/2.14z | F8: 144 | G8: 0 | H8: =ROUND($G$8*$F$8/F8,2) -> 0 | I8: Cs | J8: $46.67 | K8: =IF(OR(ISBLANK(J8),G8=0,ISBLANK(G8)),,ROUND(J8+$K$3,2)) -> 0 | L8: =ROUND(H8*K8,2) -> 0 | M8: =ROUND(K8/F8,2) -> 0 | N8: $32.08 | O8: $1.6208 | P8: 9 | Q8: =ROUND(O8*P8,2) -> $14.59 | R8: =J8-Q8 -> $32.08 | S8: =R8/F8 -> $0.22 | T8: =N8/F8 -> $0.22
B9: Dough filled with 100% mozzarella, WG
B10: Frozen, WGR One stick must provide 1 M/MA and 1 EOG
B11: Possible Allergens: Wheat, Milk, Soy
A12: 2 | B12: Pizza, Cheese Crunchers | C12: Rich Products 65225 | E12: 8/3.125 lbs | F12: 72 | G12: 0 | H12: =ROUND($G$12*$F$12/F12,2) -> 0 | I12: Cs | J12: $57.04 | K12: =IF(OR(ISBLANK(J12),G12=0,ISBLANK(G12)),,ROUND(J12+$K$3,2)) -> 0 | L12: =ROUND(H12*K12,2) -> 0 | M12: =ROUND(K12/F12,2) -> 0 | N12: $42.73 | O12: $1.6208 | P12: 8.83 | Q12: =ROUND(O12*P12,2) -> $14.31 | R12: =J12-Q12 -> $42.73 | S12: =R12/F12 -> $0.59 | T12: =N12/F12 -> $0.59
B13: Frozen, WGR, Low moisture part skim mozzarella with pizza sauce on the inside. Four
B14: pieces to provide 2 M/MA and 2.5 OEG 400-500 calories and not more than 9 g sat fat and
B15: 800 mg sodium per serving
B16: Possible Allergens: Wheat
A17: 3 | B17: Bread Stick, Blueberry Cinnamon with Mozzarella | C17: Conagra Max 77387-12611 | E17: 96/2.3z | F17: 96 | G17: 0 | H17: =ROUND(G17*F17/F17,2) -> 0 | I17: Cs | J17: $38.00 | K17: =IF(OR(ISBLANK(J17),G17=0,ISBLANK(G17)),,ROUND(J17+$K$3,2)) -> 0 | L17: =ROUND(H17*K17,2) -> 0 | M17: =ROUND(K17/F17,2) -> 0 | N17: $33.70 | O17: $1.6208 | P17: 2.65 | Q17: =ROUND(O17*P17,2) -> $4.30 | R17: =J17-Q17 -> $33.70 | S17: =R17/F17 -> $0.35 | T17: =N17/F17 -> $0.35
B18: Frozen, WGR, Part skim mozzarella cheese, 100-200 calories with not more than 3 g sat
B19: fat and 350 mg sodium per serving. One breadstick provides 1 M/MA and 1 OEG
B21: Possible Allergens: Wheat, Milk, Soy
A22: 4 | B22: Pizza, Cheese Bites | C22: SA Piazza (Wild Mike's) 11003 | E22: 240/1.0z | F22: 240 | G22: 0 | H22: =ROUND(G22*F22/F22,2) -> 0 | I22: Cs | J22: $55.78 | K22: =IF(OR(ISBLANK(J22),G22=0,ISBLANK(G22)),,ROUND(J22+$K$3,2)) -> 0 | L22: =ROUND(H22*K22,2) -> 0 | M22: =ROUND(K22/F22,2) -> 0 | N22: $43.62 | O22: $1.6208 | P22: 7.5 | Q22: =ROUND(O22*P22,2) -> $12.16 | R22: =J22-Q22 -> $43.62 | S22: =R22/F22 -> $0.18 | T22: =N22/F22 -> $0.18
B23: Frozen, Part skim mozzarella cheese, four bites provides 2 M/MA and 2 OEG 200-300
B24: calories with not more than 4 g saturated fat and 600 mg sodium per serving
B26: Possible Allergens: Wheat, Milk
A27: 5 | B27: Pizzasticks, Filled with 100% Mozzarella and Pizza Sauce Wg | C27: Schwann's 78378 | E27: 48/3.10z | F27: 48 | G27: 0 | H27: =ROUND(G27*F27/F27,2) -> 0 | I27: Cs | J27: $22.20 | K27: =IF(OR(ISBLANK(J27),G27=0,ISBLANK(G27)),,ROUND(J27+$K$3,2)) -> 0 | L27: =ROUND(H27*K27,2) -> 0 | M27: =ROUND(K27/F27,2) -> 0 | O27: $1.6208 | P27: 1.32 | Q27: =ROUND(O27*P27,2) -> $2.14 | R27: =J27-Q27 -> $20.06 | S27: =R27/F27 -> $0.42 | T27: =N27/F27 -> 0
B28: Frozen, Low moisture part skim mozzarella cheese stick with WGR breading, pepperoni
B29: inside 200-400 calories with no more than 6 g sat fat and 400 mg of sodium per serving
B30: 1 stick serving to provide min. 1 M/MA and 2 OEG
B31: Possible Allergens: Wheat, Milk, Soy, and Eggs
A32: 6 | B32: Pizza, 100% Mozzarella, 4x6, WG | C32: Schwann's 78697 | E32: 96/4.50z | F32: 96 | G32: 0 | H32: =ROUND(G32*$F$47/F32,2) -> 0 | I32: Cs | O32: $1.6208 | P32: 8.4 | Q32: =ROUND(O32*P32,2) -> $13.61 | R32: =J32-Q32 ->  | S32: =R32/F32 ->  | T32: =N32/F32 -> 0
B33: Frozen, Whole grain rich 250-350 calories with no more than 7 g saturated fat and | C33: Conagra 12584 | E33: 96/4.65z | F33: 96 | H33: =ROUND(G32*F32/F33,2) -> 0 | I33: Cs | O33: $1.6208 | P33: 7.5 | Q33: =ROUND(O33*P33,2) -> $12.16 | R33: =J33-Q33 -> -$12.16 | S33: =R33/F33 -> $(0.13) | T33: 0
B34: 750 mg sodium per serving. CN Labeled for one portion to provide 2 M/MA, 2 OEG, and | C34: Nardones 961SWCM2 | E34: 96/4.90z | F34: 96 | H34: =ROUND(G32*F32/F34,2) -> 0 | I34: Cs | J34: $31.89 | K34: =IF(OR(ISBLANK(J32),G32=0,ISBLANK(G32)),,ROUND(J34+$K$3,2)) -> 0 | L34: =ROUND(H34*K34,2) -> 0 | M34: =ROUND(K34/F34,2) -> 0 | N34: $19.73 | O34: $1.6208 | P34: 7.5 | Q34: =ROUND(O34*P34,2) -> $12.16 | R34: =J34-Q34 -> $19.73 | S34: =R34/F34 -> $0.21 | T34: =N34/F34 -> $0.21
B35: 1/8 c Red/Orange Vegetable.
B36: Possible Allergens: Wheat, Milk, Soy
A37: 7 | B37: Pizza, 100% Mozzarella, Pork Pepperoni , 4 x 6, WG | C37: Conagra Max 12585 | E37: 96/4.65z | F37: 96 | G37: 0 | H37: =ROUND(G37*$F$37/F37,2) -> 0 | I37: Cs | O37: $1.6208 | P37: 6 | Q37: =ROUND(O37*P37,2) -> $9.72 | R37: $0.00
B38: Frozen, Whole grain rich 250-350 calories with no more than 8 g saturated fat and | C38: Schwanns 78698 | E38: 96/4.48z | F38: 96 | H38: =ROUND(G37*$F$37/F38,2) -> 0 | I38: Cs | O38: $1.6208 | P38: 6.66 | Q38: $10.79 | R38: $0.00
B39: 810 mg sodium per serving. CN Labeled for one portion to provide min. 2 M/MA, 2 OEG & | C39: Nardones 961SWCMP2 | E39: 96/4.95z | F39: 96 | H39: =ROUND(G37*$F$37/F39,2) -> 0 | I39: Cs | J39: $31.04 | K39: =IF(OR(ISBLANK(J39),G37=0,ISBLANK(G37)),,ROUND(J39+$K$3,2)) -> 0 | L39: =ROUND(H39*K39,2) -> 0 | M39: =ROUND(K39/F39,2) -> 0 | N39: $21.32 | O39: $1.6208 | P39: 6 | Q39: =ROUND(O39*P39,2) -> $9.72 | R39: =J39-Q39 -> $21.32 | S39: =R39/F39 -> $0.22 | T39: =N39/F39 -> $0.22
B40: 1/8 c Red/Orange Vegetable.
B41: Possible Allergens: Wheat, Milk, Soy
A42: 8 | B42: Pizza, 100% Mozzarella, Pork Pepperoni, Rtg. Ang. Wedge, WG | C42: Nardones 96SWWEDP2 | E42: 96/4.95z | F42: 96 | G42: 0 | H42: =ROUND(G42*$F$47/F42,2) -> 0 | I42: Cs | J42: $34.00 | K42: =IF(OR(ISBLANK(J42),G42=0,ISBLANK(G42)),,ROUND(J42+$K$3,2)) -> 0 | L42: =ROUND(H42*K42,2) -> 0 | M42: =ROUND(K42/F42,2) -> 0 | N42: $24.28 | O42: $1.6208 | P42: 6 | Q42: =ROUND(O42*P42,2) -> $9.72 | R42: =J42-Q42 -> $24.28 | S42: =R42/F42 -> $0.25 | T42: =N42/F42 -> $0.25
B43: Frozen, Whole grain rich 250-350 calories with no more than 6 g saturated fat and 810 mg | C43: Conagra Max 12686 | E43: 96/4.67z | F43: 96 | H43: =ROUND(G42*$F$42/F43,2) -> 0 | I43: Cs | O43: $1.6208 | P43: 6.96 | Q43: =ROUND(O43*P43,2) -> $11.28 | R43: =K43-Q43 -> -$11.28 | S43: =R43/F43 -> $(0.12) | T43: =N43/F43 -> 0
B44: sodium per serving. CN Labeled for one portion to provide 2 M/MA, 2 OEG, and 1/8 c
B45: Red/Orange Vegetable.
B46: Possible Allergens: Wheat, Milk, Soy
A47: 9 | B47: Pizza, 100% Mozz. Pork Pepperoni Stuffed Crust, Wedge WG | C47: Nardone 72WWSCMP2 | E47: 70/4.95z | F47: 70 | G47: 0 | H47: =ROUND(G47*$F$47/F47,2) -> 0 | I47: Cs | J47: $35.00 | K47: =IF(OR(ISBLANK(J47),G47=0,ISBLANK(G47)),,ROUND(J47+$K$3,2)) -> 0 | L47: =ROUND(H47*K47,2) -> 0 | M47: =ROUND(K47/F47,2) -> 0 | N47: $24.37 | O47: $1.6208 | P47: 6.56 | Q47: =ROUND(O47*P47,2) -> $10.63 | R47: =J47-Q47 -> $24.37 | S47: =R47/F47 -> $0.35 | T47: =N47/F47 -> $0.35
B48: Frozen, Whole grain rich 300-400 calories with no more than 9 g saturated fat and 820 mg | C48: Conagra Max 12615 | E48: 72/5.00z | F48: 72 | H48: =ROUND(G47*$F$47/F48,2) -> 0 | I48: Cs | N48: 0 | O48: $1.6208 | P48: 8.14 | Q48: $13.19 | R48: $0.00 | S48: =R48/F48 -> 0 | T48: =N48/F48 -> 0
B49: sodium per svg, CN Labeled for one portion to provide 2 M/MA, 2 OEG, and 1/8 c | C49: Schwanns 78650 | E49: 96/5.32z | F49: 96 | H49: =ROUND(G47*$F$47/F49,2) -> 0 | I49: Cs | O49: $1.6208 | P49: 10.74 | Q49: =ROUND(O49*P49,2) -> $17.41 | T49: =N49/F49 -> 0
B50: Red/Orange Vegetable.
B51: Possible Allergens: Wheat, Milk, Soy
A52: 10 | B52: Pizza, Beef Fiestada, WG | C52: UNO HTWGCN16 | E52: 96/4.88z | F52: 96 | G52: 0 | H52: =ROUND(G52*$F$52/F52,2) -> 0 | I52: Cs | O52: $1.6208 | P52: 7.3 | Q52: =ROUND(O52*P52,2) -> $11.83 | T52: =N52/F52 -> 0
B53: Frozen Whole grain rich Blend of cheddar, mozz/mozz sub 300-400 calories with no more | C53: Alpha Foods SP167RW | E53: 72/7.23z | F53: 72 | H53: =ROUND(G52*$F$52/F53,2) -> 0 | I53: Cs | O53: $1.6208 | P53: 8.44 | Q53: $13.68 | T53: 0
B54: than 900 mg sodium per serving. CN Labeled for one portion to provide min. 2 M/MA, | C54: Nardones 96WWMEX2 | E54: 96/5.20z | F54: 96 | H54: =ROUND(G52*$F$52/F54,2) -> 0 | I54: Cs | J54: $47.75 | K54: =IF(OR(ISBLANK(J54),G52=0,ISBLANK(G52)),,ROUND(J54+$K$3,2)) -> 0 | L54: =ROUND(H54*K54,2) -> 0 | M54: =ROUND(K54/F54,2) -> 0 | N54: $44.83 | O54: $1.6208 | P54: 1.8 | Q54: $2.92 | R54: =J54-Q54 -> $44.83 | S54: =R54/F54 -> $0.47 | T54: $0.47
B55: 2 OEG , and 1/8 cup red/orange vegetable | C55: Schwan's 68523 | E55: 72/5.44z | F55: 72 | H55: =ROUND(G52*$F$52/F55,2) -> 0 | I55: Cs | O55: $1.6208 | P55: 3.42 | Q55: $5.54 | R55: $32.75 | T55: =N55/F55 -> 0
B56: Possible Allergens: Wheat, Milk, Soy
A57: 11 | B57: Pizza, French Bread Multi Cheese Garlic | C57: Nardone's 60WGUMA2 | E57: 60/4.50z | F57: 60 | G57: 0 | H57: =ROUND($G$57*$F$57/F57,2) -> 0 | I57: Cs | J57: $40.00 | K57: =IF(OR(ISBLANK(J56),G56=0,ISBLANK(G56)),,ROUND(J57+$K$3,2)) -> $40.00 | L57: =ROUND(H57*K57,2) -> 0 | M57: =ROUND(K57/F57,2) -> $0.67 | N57: $33.92 | O57: $1.6208 | P57: 3.75 | Q57: =ROUND(O57*P57,2) -> $6.08 | R57: =J57-Q57 -> $33.92 | S57: =R57/F57 -> $0.57 | T57: =N57/F57 -> $0.57
B58: Frozen, 6" whole grain rich french bread, blend of provolone, mozz/sub mozz | C58: Schwann's 78359 | E58: 60/4.29z | F58: 60 | H58: =ROUND($G$57*$F$57/F58,2) -> 0 | I58: Cs | J58: 0 | K58: =IF(OR(ISBLANK(J57),G57=0,ISBLANK(G57)),,ROUND(J58+$K$3,2)) -> 0 | L58: =ROUND(H58*K58,2) -> 0 | M58: =ROUND(K58/F58,2) -> 0 | N58: 0 | O58: $1.6208 | P58: 1.75 | Q58: =ROUND(O58*P58,2) -> $2.84 | T58: =N58/F58 -> 0
B59: 250-400 calories with no more than 7 g saturated fat and 710 mg sodium per serving.
B60: CN Labeled for one portion to provide min 2 M/MA and 2 OEG.
B61: Possible Allergens: Wheat, Milk, Soy
A62: 12 | B62: Pizza, 100% Mozz. Turkey Meateaters 6" Round, WG | C62: Nardones 625WTME2 | E62: 60/5.57z | F62: 60 | G62: 200 | H62: =ROUND($G$62*$F$62/F62,2) -> 200 | I62: Cs | J62: $45.00 | K62: =IF(OR(ISBLANK(J62),G62=0,ISBLANK(G62)),,ROUND(J62+$K$3,2)) -> $45.00 | L62: =ROUND(H62*K62,2) -> $9,000.00 | M62: =ROUND(K62/F62,2) -> $0.75 | N62: $36.39 | O62: $1.6208 | P62: 5.31 | Q62: =ROUND(O62*P62,2) -> $8.61 | R62: =J62-Q62 -> $36.39 | S62: =R62/F62 -> $0.61 | T62: =N62/F62 -> $0.61
B63: Frozen, 6" whole grain rich, 100% mozzarella, 250-400 calories with no more than 7 g sat
B64: fat and 600 mg sodium per serving. CN Labeled for one portion to proivde min. 2 M/MA,
B65: 2 OEG , and 1/8 cup red/orange vegetable
B66: Possible Allergens: Wheat, Milk, Soy
A67: 13 | B67: Pizza, Cheese, 5-6" Round, WG | C67: Schwan's 78368 | E67: 60/4.98z | F67: 60 | G67: 0 | H67: =ROUND(G67*F67/F67,2) -> 0 | I67: Cs | O67: $1.6208 | P67: 5.92 | Q67: =ROUND(O67*P67,2) -> $9.60 | R67: =K67-Q67 -> -$9.60 | S67: =R67/F67 -> $(0.16) | T67: =N67/F67 -> 0
B68: Frozen, 6" whole grain rich, 100% mozzarella, 250-400 calories with no more than 7 g sat | C68: S.A Piazza (Wild Mike's) 80550 | E68: 80/5.49z | F68: 80 | H68: =ROUND(G67*F67/F68,2) -> 0 | I68: Cs | O68: $1.6208 | P68: 10.08 | Q68: $16.34 | R68: -$16.34 | S68: $(0.20) | T68: 0
B69: fat and 700 mg sodium per serving. CN Labeled for one portion to provide min. 2 M/MA, | C69: Nardones 625WRM2 | E69: 60/5.40z | F69: 60 | H69: =ROUND(G67*F67/F69,2) -> 0 | I69: Cs | J69: $36.00 | K69: =IF(OR(ISBLANK(J69),G67=0,ISBLANK(G67)),,ROUND(J69+$K$3,2)) -> 0 | L69: =ROUND(H69*K69,2) -> 0 | M69: =ROUND(K69/F69,2) -> 0 | N69: $23.84 | O69: $1.6208 | P69: 7.5 | Q69: =ROUND(O69*P69,2) -> $12.16 | R69: =J69-Q69 -> $23.84 | S69: =R69/F69 -> $0.40 | T69: =N69/F69 -> $0.40
B70: 2 OEG, and 1/8 c Red//Orange Vegetable
B71: Possible Allergens: Wheat, Milk, Soy
A72: 14 | B72: Pizza, Cheese, Turkey Pepperoni, 5-6" Round | C72: Schwan's 78369 | E72: 60/4.98z | F72: 60 | G72: 500 | H72: =ROUND(G72*F72/F72,2) -> 500 | I72: Cs | O72: $1.6208 | P72: 4.8 | Q72: =ROUND(O72*P72,2) -> $7.78 | R72: =K72-Q72 -> -$7.78 | S72: =R72/F72 -> $(0.13) | T72: =N72/F72 -> 0
B73: Frozen, Whole Grain 100% mozzarella 250-400 calories with no more than 7 g sat fat | C73: Nardone's 625WRMTP3 | E73: 60/5.40z | F73: 60 | H73: =ROUND(G72*F72/F73,2) -> 500 | I73: Cs | J73: $37.00 | K73: =IF(OR(ISBLANK(J73),G72=0,ISBLANK(G72)),,ROUND(J73+$K$3,2)) -> $37.00 | L73: =ROUND(H73*K73,2) -> $18,500.00 | M73: =ROUND(K73/F73,2) -> $0.62 | N73: $27.28 | O73: $1.6208 | P73: 6 | Q73: $9.72 | R73: =J73-Q73 -> $27.28 | S73: $0.45 | T73: =N73/F73 -> $0.45
B74: and 700 mg sodium per serving. CN Labeled for one portion to provide min. 2 M/MA,
B75: 2 OEG, and 1/8 c Red//Orange Vegetable
B76: Possible Allergens: Wheat, Milk, Soy
A77: 15 | B77: Pizza, Cheese, Pepperoni, 5-6" Round | C77: Alpha Foods AS64W | E77: 60/5.36z | F77: 60 | G77: 0 | H77: =ROUND(G77*F77/F77,2) -> 0 | I77: Cs | J77: $51.80 | K77: =IF(OR(ISBLANK(J77),G77=0,ISBLANK(G77)),,ROUND(J77+$K$3,2)) -> 0 | L77: =ROUND(H77*K77,2) -> 0 | M77: =ROUND(K77/F77,2) -> 0 | N77: $40.49 | O77: $1.6208 | P77: 6.98 | Q77: =ROUND(O77*P77,2) -> $11.31 | R77: =J77-Q77 -> $40.49 | S77: =R77/F77 -> $0.67 | T77: =N77/F77 -> $0.67
B78: Frozen, Whole Grain 100% mozzarella
B79: One portion must provide 2 M/MA. 2 EOG, and 1/8 cup Red/Orange Vegetable
B80: Possible Allergens: Wheat, Milk, Soy
A81: 16 | B81: Pizza, Cheese, Supreme, 5-6" Round | C81: Nardone's 625WSUP2 | E81: 60/6.35z | F81: 60 | G81: 150 | H81: =ROUND(G81*F81/F81,2) -> 150 | I81: Cs | J81: $45.00 | K81: =IF(OR(ISBLANK(J81),G81=0,ISBLANK(G81)),,ROUND(J81+$K$3,2)) -> $45.00 | L81: =ROUND(H81*K81,2) -> $6,750.00 | M81: =ROUND(K81/F81,2) -> $0.75 | N81: $37.40 | O81: $1.6208 | P81: 4.69 | Q81: =ROUND(O81*P81,2) -> $7.60 | R81: =J81-Q81 -> $37.40 | S81: =R81/F81 -> $0.62 | T81: =N81/F81 -> $0.62
B82: Frozen, 5-6" WGR, 100% mozzarella, 250-400 calories with no more than 7 g sat fat and
B83: 700 mg sodium per serving. CN Labeled for one portion to provide min. 2 M/MA, 2 OEG
B84: and 1/8 cup red/orange vegetable
B86: Possible Allergens: Wheat, Milk, Soy
A87: 17 | B87: Pizza, Whole, 15-16", Self Rising, Pepperoni | C87: UNO MVPPCN16 | E87: 96/5.50z | F87: 96 | G87: 0 | H87: =ROUND(G87*F87/F87,2) -> 0 | I87: Cs | O87: $1.6208 | P87: 10.5 | Q87: =ROUND(O87*P87,2) -> $17.02
B88: Frozen, "Pizza Pie Shape" cut into slices or cutter provided, 100% mozzarella, Whole grain | C88: Alpha Foods SP164RW | E88: 72/6.38z | F88: 72 | H88: =ROUND(G87*F87/F88,2) -> 0 | I88: Cs | J88: $51.94 | K88: =IF(OR(ISBLANK(J88),G87=0,ISBLANK(G87)),,ROUND(J88+$K$3,2)) -> 0 | L88: =ROUND(H88*K88,2) -> 0 | M88: =ROUND(K88/F88,2) -> 0 | N88: $39.17 | O88: $1.6208 | P88: 7.88 | Q88: =ROUND(O88*P88,2) -> $12.77 | R88: =J88-Q88 -> $39.17 | S88: =R88/F88 -> $0.54 | T88: =N88/F88 -> $0.54
B89: One portion must provide 2 M/MA. 2 EOG, and 1/8 cup Red/Orange Vegetable | C89: Nardone's 16WRSRMP1 | E89: 64/6.9z | F89: 64 | H89: =ROUND(G87*F87/F89,2) -> 0 | I89: Cs | O89: $1.6208 | P89: 5.92 | Q89: =ROUND(O89*P89,2) -> $9.60
B90: Possible Allergens: Wheat, Milk, Soy
A91: 18 | B91: Pizza, Whole, 15-16", Self Rising, Turkey/Beef Pepperoni | C91: UNO SLMVPPCN16 | E91: 96/5.50z | F91: 96 | G91: 0 | H91: =ROUND($G$91*$F$91/F91,2) -> 0 | I91: Cs | O91: $1.6208 | P91: 10.5 | Q91: =ROUND(O91*P91,2) -> $17.02 | R91: $0.00 | S91: =R91/F91 -> 0 | T91: =N91/F91 -> 0
B92: Frozen, "Pizza Pie Shape" cut into slices or cutter provided, 100% mozzarella, Whole grain | C92: Nardone's 16WRSRMTP2 | E92: 64/6.90z | F92: 64 | H92: =ROUND($G$91*$F$91/F92,2) -> 0 | I92: Cs | J92: $53.00 | K92: =IF(OR(ISBLANK(J92),G91=0,ISBLANK(G91)),,ROUND(J92+$K$3,2)) -> 0 | L92: =ROUND(H92*K92,2) -> 0 | M92: =ROUND(K92/F92,2) -> 0 | N92: $43.15 | O92: $1.6208 | P92: 6.08 | Q92: =ROUND(O92*P92,2) -> $9.85 | R92: =J92-Q92 -> $43.15 | S92: $0.67 | T92: $0.67
B93: One portion must provide 2 M/MA. 2 EOG, and 1/8 cup Red/Orange Vegetable
B94: Possible Allergens: Wheat, Milk, Soy
A95: 19 | B95: Pizza, Whole, 15-16", Self Rising, Buffalo Chicken | C95: Schwann's 78639 | E95: 72/5.21z | F95: 72 | G95: 0 | H95: =ROUND($G$95*$F$95/F95,2) -> 0 | I95: Cs | J95: $62.13 | K95: =IF(OR(ISBLANK(J95),G95=0,ISBLANK(G95)),,ROUND(J95+$K$3,2)) -> 0 | L95: =ROUND(H95*K95,2) -> 0 | M95: =ROUND(K95/F95,2) -> 0 | O95: $1.6208 | P95: 7.59 | Q95: =ROUND(O95*P95,2) -> $12.30 | R95: =J95-Q95 -> $49.83 | S95: =R95/F95 -> $0.69 | T95: =N95/F95 -> 0
B96: Frozen, "Pizza Pie Shape" Chicken Buffalo cut into slices or cutter provided, 100% mozz.,
B97: WG, One portion must provide 2 M/MA. 2 EOG, and 1/8 cup Red/Orange Vegetable
B98: Possible Allergens: Wheat, Milk, Soy
A99: 20 | B99: Pizza, Whole, 15-16", Self Rising, Supreme | C99: Alpha Foods SP1668RW | E99: 72/7.19z | F99: 72 | G99: 0 | H99: =ROUND($G$99*$F$99/F99,2) -> 0 | I99: Cs | J99: $59.32 | K99: =IF(OR(ISBLANK(J99),G99=0,ISBLANK(G99)),,ROUND(J99+$K$3,2)) -> 0 | L99: =ROUND(H99*K99,2) -> 0 | M99: =ROUND(K99/F99,2) -> 0 | N99: $44.73 | O99: $1.6208 | P99: 9 | Q99: =ROUND(O99*P99,2) -> $14.59 | R99: =J99-Q99 -> $44.73 | S99: =R99/F99 -> $0.62 | T99: =N99/F99 -> $0.62
B100: Frozen, "Pizza Pie Shape" cut into slices or cutter provided, 100% mozzarella, Whole grain | C100: Nardone's 16WSRSUP | E100: 64/7.43z | F100: 64 | H100: =ROUND($G$99*$F$99/F100,2) -> 0 | I100: Cs | O100: $1.6208 | P100: 5.75 | Q100: =ROUND(O100*P100,2) -> $9.32 | R100: $0.00 | S100: 0 | T100: 0
B101: One portion must provide 2 M/MA. 2 EOG, and 1/8 cup Red/Orange Vegetable
B102: Possible Allergens: Wheat, Milk, Soy
A103: 21 | B103: Pizza, Whole, 15-16" Self Rising, Four Cheese | C103: Alpha Foods SP1622RW | E103: 72/6.56z | F103: 72 | G103: 0 | H103: =ROUND($G$103*$F$103/F103,2) -> 0 | I103: Cs | J103: $52.64 | K103: =IF(OR(ISBLANK(J103),G103=0,ISBLANK(G103)),,ROUND(J103+$K$3,2)) -> 0 | L103: =ROUND(H103*K103,2) -> 0 | M103: =ROUND(K103/F103,2) -> 0 | N103: $38.96 | O103: $1.6208 | P103: 8.44 | Q103: =ROUND(O103*P103,2) -> $13.68 | R103: =J103-Q103 -> $38.96 | S103: =R103/F103 -> $0.54 | T103: =N103/F103 -> $0.54
B104: Frozen, "Pizza Pie Shaped" cut into slices or cutter provided 100% mozzarella, whole grain | C104: Nardone's 16WSRFC2 | E104: 64/5.13z | F104: 64 | H104: =ROUND($G$103*$F$103/F104,2) -> 0 | I104: Cs | O104: $1.6208 | P104: 8 | Q104: =ROUND(O104*P104,2) -> $12.97 | R104: =IF(ISBLANK(J104),0,J104-Q104) -> $0.00 | S104: =R104/F104 -> 0 | T104: 0
B105: One portion must provide 2 M/MA. 2 EOG, and 1/8 cup Red/Orange Vegetable | C105: Schwann's 78637 | E105: 72/5.18z | F105: 72 | H105: =ROUND($G$103*$F$103/F105,2) -> 0 | I105: Cs | O105: $1.6208 | P105: 9 | Q105: =ROUND(O105*P105,2) -> $14.59 | R105: =IF(ISBLANK(J105),0,J105-Q105) -> $0.00 | S105: =R105/F105 -> 0 | T105: 0
B106: Possible Allergens: Wheat, Milk, Soy
A107: 22 | B107: Pizza, Presliced, 15-16", Parbaked, Turkey or Beef Pepperoni | C107: Nardone's 64WPSTP3 | E107: 64/5.0z | F107: 64 | G107: 0 | H107: =ROUND($G$107*$F$107/F107,2) -> 0 | I107: Cs | J107: $51.00 | K107: =IF(OR(ISBLANK(J107),G107=0,ISBLANK(G107)),,ROUND(J107+$K$3,2)) -> 0 | L107: =ROUND(H107*K107,2) -> 0 | M107: =ROUND(K107/F107,2) -> 0 | N107: $39.98 | O107: $1.6208 | P107: 6.8 | Q107: =ROUND(O107*P107,2) -> $11.02 | R107: =IF(ISBLANK(J107),0,J107-Q107) -> $39.98 | S107: =R107/F107 -> $0.62 | T107: =N107/F107 -> $0.62
B108: Frozen, "Pizza Pie Shaped cut into slices, 100% mozzarella
B109: One portion must provide 2 M/MA. 2 EOG, and 1/8 cup Red/Orange Vegetable
B110: Possible Allergens: Wheat, Milk, Soy
A111: 23 | B111: Pizza, Presliced, 15-16", Parbaked, Buffalo Chicken | C111: Nardone's 64WPSBC | E111: 64/4.60z | F111: 64 | G111: 0 | H111: =ROUND($G$111*$F$111/F111,2) -> 0 | I111: Cs | J111: $54.00 | K111: =IF(OR(ISBLANK(J111),G111=0,ISBLANK(G111)),,ROUND(J111+$K$3,2)) -> 0 | L111: =ROUND(H111*K111,2) -> 0 | M111: =ROUND(K111/F111,2) -> 0 | N111: $44.28 | O111: $1.6208 | P111: 6 | Q111: =ROUND(O111*P111,2) -> $9.72 | R111: =J111-Q111 -> $44.28 | S111: =R111/F111 -> $0.69 | T111: =N111/F111 -> $0.69
B112: Frozen, "Pizza Pie Shaped cut into slices, 100% mozzarella
B113: One portion must provide 2 M/MA. 2 EOG, and 1/8 cup Red/Orange Vegetable
B114: Possible Allergens: Wheat, Milk, Soy
A115: 24 | B115: Pizza, Whole, 15-16", 100% Mozz. Turkey Pepperoni, Four Cheese, WG | C115: (18-19) Schwann's 78638 | E115: 72/5.18z | F115: 72 | G115: 0 | H115: =ROUND($G$115*$F$115/F115,2) -> 0 | I115: Cs | J115: $61.55 | K115: =IF(OR(ISBLANK(J115),G115=0,ISBLANK(G115)),,ROUND(J115+$K$3,2)) -> 0 | L115: =ROUND(H115*K115,2) -> 0 | M115: =ROUND(K115/F115,2) -> 0 | O115: $1.6208 | P115: 7.2 | Q115: =ROUND(O115*P115,2) -> $11.67 | R115: =J115-Q115 -> $49.88 | S115: =R115/F115 -> $0.69 | T115: =N115/F115 -> 0
B116: Frozen, WGR, Made with mozzarella, provolone, cheddar and parmesan, Self Rising,
B117: 300-400 calories with no more than 8 g sat fat and 500 mg sodium per serving. CN
B118: Labeled for one 1/8 pizza to provide min. 2 M/MA, 2 OEG, and 1/8 c Red/Orange Vegetable
B120: Possible Allergens: Wheat, Milk, Soy
A121: 25 | B121: Pizza, Whole, 15-16", 100% Mozz, Four Meat, WG Self Rising | C121: Schwann's 78640 | E121: 72/5.30z | F121: 72 | G121: 0 | H121: =ROUND($G$121*$F$121/F121,2) -> 0 | I121: Cs | J121: $63.13 | K121: =IF(OR(ISBLANK(J121),G121=0,ISBLANK(G121)),,ROUND(J121+$K$3,2)) -> 0 | L121: =ROUND(H121*K121,2) -> 0 | M121: =ROUND(K121/F121,2) -> 0 | N121: 0 | O121: $1.6208 | P121: 6.46 | Q121: =ROUND(O121*P121,2) -> $10.47 | R121: =J121-Q121 -> $52.66 | S121: =R121/F121 -> $0.73 | T121: =N121/F121 -> 0
B122: Frozen, whole grain rich. 100% mozz, Topped with ham, sausage and pepperoni 300-400
B123: calories with no more than 8 g sat fat and 660 mg sodium per serving. CN labeled for one
B124: 1/8 pizza to provide min. 2 M/MA, 2 OEG, and 1/8 c Red/Orange Vegetable
B125: Possible Allergens: Wheat, Milk, Soy
A126: 26 | B126: Pizza, Whole, 15-16", 100% Mozz, Four Cheese, Pork Pepperoni, 10 Cut Par Baked | C126: SA Piazza (Wild Mike's) 20210 | E126: 90/5.50z | F126: 90 | G126: 0 | H126: =ROUND($G$126*$F$126/F126,2) -> 0 | I126: Cs | J126: $69.40 | K126: =IF(OR(ISBLANK(J126),G126=0,ISBLANK(G126)),,ROUND(J126+$K$3,2)) -> 0 | L126: =ROUND(H126*K126,2) -> 0 | M126: =ROUND(K126/F126,2) -> 0 | N126: $53.34 | O126: $1.6208 | P126: 9.95 | Q126: =ROUND(O126*P126,2) -> $16.13 | R126: =J126-Q126 -> $53.27 | S126: =R126/F126 -> $0.59 | T126: =N126/F126 -> $0.59
B127: Frozen, whole grain rich. 100% mozz, 300-400 calories with not nore than 10g sat fat
B128: and 600 mg sodium per serving. CN Labeled for one 1/8 pizza to provide min. 2 M/MA and
B129: 2 OEG
B130: Possible Allergens: Wheat, Milk
A131: 27 | B131: Pizza, Whole, 15-16", 100% Mozz, Four Cheese, Parbaked WG | C131: Schwann's 68591 | E131: 72/5.13z | F131: 72 | G131: 0 | H131: =ROUND($G$137*$F$137/F131,2) -> 0 | I131: Cs | O131: $1.6208 | P131: 9 | Q131: =ROUND(O131*P131,2) -> $14.59 | R131: =K131-Q131 -> -$14.59 | S131: =R131/F131 -> $(0.20) | T131: =N131/F131 -> 0
B132: Frozen, whole grain rich. Made with mozzarella, provolone, cheddar and parmesian | C132: Nardone's 16WFC | E132: 64/5.13z | F132: 64 | H132: =ROUND($G$137*$F$137/F132,2) -> 0 | I132: Cs | J132: $45.00 | K132: =IF(OR(ISBLANK(J132),G131=0,ISBLANK(G131)),,ROUND(J132+$K$3,2)) -> 0 | L132: =ROUND(H132*K132,2) -> 0 | M132: =ROUND(K132/F132,2) -> 0 | N132: $32.03 | O132: $1.6208 | P132: 8 | Q132: =ROUND(O132*P132,2) -> $12.97 | R132: =J132-Q132 -> $32.03 | S132: =R132/F132 -> $0.50 | T132: =N132/F132 -> $0.50
B133: 300-400 calories with no more than 8 g sat fat and 500 mg sodium per serving. CN
B134: Labeled for one 1/8 pizza to provide min. 2 M/MA, 2 OEG, and 1/8 c Red/Orange Vegetable
B136: Possible Allergens: Wheat, Milk, Soy
A137: 28 | B137: Pizza, Turkey Sausage and Textured Vegetable Protein Pizza | C137: Schwann's 68534 | E137: 96/5.21z | F137: 96 | G137: 0 | H137: =ROUND($G$137*$F$137/F137,2) -> 0 | I137: Cs | J137: $47.46 | K137: =IF(OR(ISBLANK(J137),G137=0,ISBLANK(G137)),,ROUND(J137+$K$3,2)) -> 0 | L137: =ROUND(H137*K137,2) -> 0 | M137: =ROUND(K137/F137,2) -> 0 | O137: $1.6208 | P137: 8.77 | Q137: $14.22 | R137: =J137-Q137 -> $33.24 | S137: =R137/F137 -> $0.35 | T137: =N137/F137 -> 0
B138: Frozen, 300-400 calories with no more than 7 g sat fat and 550 mg sodium per serving.
B139: CN Labeled for one 1/8 pizza to provide min. 2 M/MA, 2 OEG, and 1/8 c Red/Orange
B140: Vegetable
B142: Possible Allergens: Wheat, Milk, Soy
B143: Breakfast
A144: 29 | B144: Breakfast Bagel, Turkey Sausage | C144: Tasty Brands 55202 | E144: 120/2.72z | F144: 120 | G144: 0 | H144: =ROUND($G$144*$F$144/F144,2) -> 0 | I144: Cs | J144: $49.33 | K144: =IF(OR(ISBLANK(J144),G144=0,ISBLANK(G144)),,ROUND(J144+$K$3,2)) -> 0 | L144: =ROUND(H144*K144,2) -> 0 | M144: =ROUND(K144/F144,2) -> 0 | N144: $46.28 | O144: $1.6046 | P144: 1.9 | Q144: =ROUND(O144*P144,2) -> $3.05 | R144: =K144-Q144 -> -$3.05 | S144: =R144/F144 -> $(0.03) | T144: =N144/F144 -> $0.39
B145: Frozen, Cream style gravy topping | C145: Nardone's M96WBTSG | E145: 96/2.65z | F145: 96 | H145: =ROUND($G$144*$F$144/F145,2) -> 0 | I145: Cs | O145: $1.6208 | P145: 4.2 | Q145: =ROUND(O145*P145,2) -> $6.81
B146: One serving must provide 1 M/MA and 1 EOG Whole grain
B147: Possible Allergens: Wheat, Milk, Soy
A148: 30 | B148: Breakfast Bagel, 100% Mozz. Turkey Sausage, WG, IW | C148: Nardone's M96WBTS1 | E148: 96/3.10z | F148: 96 | G148: 0 | H148: =ROUND($G$148*$F$148/F148,2) -> 0 | I148: Cs | J148: $50.00 | K148: =IF(OR(ISBLANK(J148),G148=0,ISBLANK(G148)),,ROUND(J148+$K$3,2)) -> 0 | L148: =ROUND(H148*K148,2) -> 0 | M148: =ROUND(K148/F148,2) -> 0 | N148: $43.19 | O148: $1.6208 | P148: 4.2 | Q148: =ROUND(O148*P148,2) -> $6.81 | R148: =J148-Q148 -> $43.19 | S148: =R148/F148 -> $0.45 | T148: =N148/F148 -> $0.45
B149: Frozen, whole grain rich, pizza sauce topping, 150-250 calories with no more than 3 g sat
B150: fat per serving. CN labeled for one serving to provide min. 1 M/MA, 1 OEG, and 1/8 c
B151: Red/Orange Vegetable. Individual Ovenable Wrap
B152: Possible Allergens: Wheat, Milk, Soy
A153: 31 | B153: Breakfast Pizza, 100% Mozz. Pork Sausage, WG | C153: Nardone 80WS100 | E153: 80/3.30z | F153: 80 | G153: 0 | H153: =ROUND($G$153*$F$153/F153,2) -> 0 | I153: Cs | J153: $27.00 | K153: =IF(OR(ISBLANK(J153),G153=0,ISBLANK(G153)),,ROUND(J153+$K$3,2)) -> 0 | L153: =ROUND(H153*K153,2) -> 0 | M153: =ROUND(K153/F153,2) -> 0 | N153: $20.92 | O153: $1.6208 | P153: 3.75 | Q153: =ROUND(O153*P153,2) -> $6.08 | R153: =J153-Q153 -> $20.92 | S153: =R153/F153 -> $0.26 | T153: =N153/F153 -> $0.26
B154: Frozen, WGR, 3" x 5" biscuit style crust with pizza sauce. 150-250 calories with no more
B155: than 4 g sat fat and 350 mg sodium per serving. CN Labeled for one portion to provide
B156: min. 1 M/MA, 1.5 OEG, and 1/8 c Red/Orange Vegetable
B158: Possible Allergens: Wheat, Milk
A159: 32 | B159: Breakfast Pizza, Egg and Turkey Sausage, WG, IW | C159: Conagra Max 12468 | E159: 96/3.21z | F159: 96 | G159: 0 | H159: =ROUND($G$159*$F$159/F159,2) -> 0 | I159: Cs | J159: $47.50 | K159: =IF(OR(ISBLANK(J159),G159=0,ISBLANK(G159)),,ROUND(J159+$K$3,2)) -> 0 | L159: =ROUND(H159*K159,2) -> 0 | M159: =ROUND(K159/F159,2) -> 0 | N159: $46.03 | O159: $1.6208 | P159: 0.91 | Q159: =ROUND(O159*P159,2) -> $1.47 | R159: =J159-Q159 -> $46.03 | S159: =R159/F159 -> $0.48 | T159: =N159/F159 -> $0.48
B160: Frozen, whole grain rich, turkey sausage, 150-250 calories with no more than 2 g sat fat
B161: and 350 mg sodium per serving. CN Labeled for one serving to provide 1 M/MA and 1.5 OEG
B163: Possible Allergens: Wheat, Soy, Milk and Eggs
A164: 33 | B164: Breakfast Pizza, 100% Mozz. Beef, Red Sauce, WG IW | C164: SA Piazza (Wild Mike's) 90502 | E164: 160/2.80z | F164: 160 | G164: 0 | H164: =ROUND($G$164*$F$164/F164,2) -> 0 | I164: Cs | J164: $75.06 | K164: =IF(OR(ISBLANK(J164),G164=0,ISBLANK(G164)),,ROUND(J164+$K$3,2)) -> 0 | L164: =ROUND(H164*K164,2) -> 0 | M164: =ROUND(K164/F164,2) -> 0 | N164: $63.55 | O164: $1.6208 | P164: 7.19 | Q164: =ROUND(O164*P164,2) -> $11.65 | R164: =K164-Q164 -> -$11.65 | S164: =R164/F164 -> $(0.07) | T164: =N164/F164 -> $0.40
B165: Frozen, whole grain rich, beef topping, 150-250 calories with no more than 4 g sat fat
B166: and 300 mg sodium per serving. One serving to provide 1 M/MA, 1 OEG and 1/8 c
B167: Red/Orange Vegetable.
B168: Possible Allergens: Milk and Wheat
A169: 34 | B169: Breakfast Pizza, Flatbread, Eggs, Sausage, Bacon, and Cheese Sauce | C169: Nardone's 80WBF | E169: 80/2.40z | F169: 80 | G169: 0 | H169: =ROUND($G$169*$F$169/F169,2) -> 0 | I169: Cs | J169: $43.00 | K169: =IF(OR(ISBLANK(J169),G169=0,ISBLANK(G169)),,ROUND(J169+$K$3,2)) -> 0 | L169: =ROUND(H169*K169,2) -> 0 | M169: =ROUND(K169/F169,2) -> 0 | N169: $38.95 | O169: $1.6208 | P169: 2.5 | Q169: $4.06 | R169: =J169-Q169 -> $38.94 | S169: =R169/F169 -> $0.49 | T169: =N169/F169 -> $0.49
B170: Frozen, WGR, 100-200 calories with no more than 4 g sat fat and 500 mg sodium per
B171: serving. One serving to provide 1 M/MA and 1 OEG, 3 x 5
B172: Possible Allergens: Wheat, Milk, Wheat
G174: 0 | I174: Page Total | L174: =SUMIF(L8:L172,">0") -> $34,250.00

Sheet Frozen Entrees
B1: ='Recap Sheet'!A2 -> School Food Authority: | E1: ='Recap Sheet'!A3 -> Offeror Name: | O1: Commodity
B2: ='Recap Sheet'!B2 -> Colleton County School District Office of Student Nutrition | C2: Return to Recap Sheet | E2: ='Recap Sheet'!B3 -> 0
A3: Item | B3: Description | C3: Approved Brand Name / Manuf ID # | F3: Firm Fixed Fee | K3: ='Recap Sheet'!B4 -> $0.00 | N3: Processing | O3: Commodity | P3: Pounds of | R3: NOI | S3: Net NOI | T3: Total Cost
A4: # | D4: Distributor | E4: Vendor | F4: Svgs | G4: Est. | H4: Bid | I4: Bid | J4: Unit | K4: Unit Price | L4: Total | M4: Cost per | N4: Fee For | O4: Value Per | P4: DF Needed | Q4: Commodity | R4: Net | S4: Cost Per | T4: Processing Fee
D5: Code | E5: Pack | F5: per unit | G5: Bid Qty | H5: Qty | I5: Unit | J5: Price | K5: plus Fee | L5: Price | M5: Unit | N5: Service | O5: Pound | P5: Per Case | Q5: Value | R5: Price | S5: Serving | T5: Per Serving
B6: Frozen Entrees | O6: Commodity #'s 110244 and 110242
A8: 1 | B8: Calzone, 100% Mozz. w/Pizza Sauce and Pepperoni, WG | C8: Albie's 813 | E8: 48/4.50z | F8: 48 | G8: 0 | H8: =ROUND(G8*F8/F8,2) -> 0 | I8: Cs | J8: $33.60 | K8: =IF(OR(ISBLANK(J8),G8=0,ISBLANK(G8)),,ROUND(J8+$K$3,2)) -> 0 | L8: =ROUND(H8*K8,2) -> 0 | M8: =ROUND(K8/F8,2) -> 0 | N8: $31.14 | O8: $1.6208 | P8: 3 | Q8: =ROUND(O8*P8,2) -> $4.86 | R8: =J8-Q8 -> $28.74 | S8: =R8/F8 -> $0.60 | T8: =N8/F8 -> $0.65
B9: Frozen, 250-350 calories with no more than 6 g sat fat and 500 mg sodium per serving.
B10: One portion to provide a min. 2 M/MA and 2 OEG
B11: Possible Allergens: Wheat, Soy, Milk
A12: 2 | B12: Calzone, 3 Cheese w/Pizza Sauce, WG | C12: Gilardi 20120 | E12: 60/4.69z | F12: 60 | G12: 0 | H12: =ROUND($G$12*$F$12/F12,2) -> 0 | I12: Cs | J12: $41.00 | K12: =IF(OR(ISBLANK(J12),G12=0,ISBLANK(G12)),,ROUND(J12+$K$3,2)) -> 0 | L12: =ROUND(H12*K12,2) -> 0 | M12: =ROUND(K12/F12,2) -> 0 | N12: $31.36 | O12: $1.6208 | P12: 6.07 | Q12: =ROUND(O12*P12,2) -> $9.84 | R12: =J12-Q12 -> $31.16 | S12: =R12/F12 -> $0.52 | T12: =N12/F12 -> $0.52
B13: Frozen, 200-300 calories with no more than 3 g sat fat and 500 mg sodium per serving.
B14: One portion to provide a min. 2 M/MA and 2 OEG 1/8 cup red/orange vegetable
B15: Possible Allergens: Wheat, Soy, Milk
A16: 3 | B16: Cheese Sticks, Mozzarella Filled Twisted Topped | C16: Tasty Brands 62002 | E16: 90/3.10z | F16: 90 | G16: 75 | H16: =ROUND(G16*F16/F16,2) -> 75 | I16: Cs | J16: $40.03 | K16: =IF(OR(ISBLANK(J16),G16=0,ISBLANK(G16)),,ROUND(J16+$K$3,2)) -> $40.03 | L16: =ROUND(H16*K16,2) -> $3,002.25 | M16: =ROUND(K16/F16,2) -> $0.44 | N16: $31.00 | O16: $1.6046 | P16: 5.625 | Q16: =ROUND(O16*P16,2) -> $9.03 | R16: =J16-Q16 -> $31.00 | S16: =R16/F16 -> $0.34 | T16: =N16/F16 -> $0.34
B17: Frozen, low moisture, 200-300 calories with no more than 8 g sat fat and 400 mg of sodium
B18: per serving, 0 trans fats, One serving to provide 1 M/MA and 2 OEG
B20: Possible Allergens: Wheat, Milk, Soy
A21: 4 | B21: Cheese Sticks, Breaded Mozzarella, Italian Style WG | C21: High Liner Foods G1042DF | E21: 83/4.20z | F21: 83 | G21: 0 | H21: =ROUND(G21*F21/F21,2) -> 0 | I21: Cs | J21: $40.02 | K21: =IF(OR(ISBLANK(J21),G21=0,ISBLANK(G21)),,ROUND(J21+$K$3,2)) -> 0 | L21: =ROUND(H21*K21,2) -> 0 | M21: =ROUND(K21/F21,2) -> 0 | N21: $23.08 | O21: $1.6208 | P21: 10.45 | Q21: =ROUND(O21*P21,2) -> $16.94 | R21: =J21-Q21 -> $23.08 | S21: =R21/F21 -> $0.28 | T21: =N21/F21 -> $0.28
B22: Frozen, low moisture part skim mozzarella cheese stick with WGR breading, may be
B23: prepared in oven or fryer, 200-300 cal with no more than 8 g sat fat and 400 mg sodium
B24: per serving. 0 Trans Fats, CN Labeled for 5 stick portion to provide 2 M/MA and 1.5 OEG
B25: Possible Allergens: Wheat, Milk
A26: 5 | B26: Egg Roll, Chicken, WG | C26: Minh 69461 | E26: 60/3.oz | F26: 60 | G26: 200 | H26: =ROUND(G26*F26/F26,2) -> 200 | I26: Cs | J26: $30.80 | K26: =IF(OR(ISBLANK(J26),G26=0,ISBLANK(G26)),,ROUND(J26+$K$3,2)) -> $30.80 | L26: =ROUND(H26*K26,2) -> $6,160.00 | M26: =ROUND(K26/F26,2) -> $0.51 | N26: $21.45 | O26: $0.1049 | P26: 18.75 | Q26: =ROUND(O26*P26,2) -> $1.97 | R26: =K26-Q26 -> $28.83 | S26: =R26/F26 -> $0.48 | T26: =N26/F26 -> $0.36
B27: Frozen, chicken with vegetables in WG egg roll wrapper, 150-250 calories with no more
B28: than 2 g sat fat and 450 mg sodium per serving. CN Labeled for one portion to provide
B29: min 1 M/MA, 1 OEG and 1/4 c vegetable
B30: Possible Allergens: Milk, Wheat, Soy and Egg
A31: 6 | B31: Enchilada, Beef, WG | C31: Fernandos/Foster Farm 5279 | E31: 112/2.5z | F31: 112 | G31: 0 | H31: =ROUND(G31*F31/F31,2) -> 0 | I31: Cs | J31: $34.39 | K31: =IF(OR(ISBLANK(J31),G31=0,ISBLANK(G31)),,ROUND(J31+$K$3,2)) -> 0 | L31: =ROUND(H31*K31,2) -> 0 | M31: =ROUND(K31/F31,2) -> 0 | N31: $21.45 | O31: $0.1049 | P31: 18.75 | S31: =R31/F31 ->  | T31: =N31/F31 -> $0.19
B32: Frozen, 100-200 calories with no more than 3 g sat fat and 300 mg sodium per serving
B33: CN Labeled for one portion to provide min 1 M/MA and 1 OEG
B35: Possible Allergens: Soy
A36: 7 | B36: Turkey Frank Wrapped in WW Flour, IW | C36: Superbakery 3397 | E36: 64/4z | F36: 64 | G36: 0 | H36: =ROUND(G36*F36/F36,2) -> 0 | I36: Cs | J36: $43.20 | K36: =IF(OR(ISBLANK(J36),G36=0,ISBLANK(G36)),,ROUND(J36+$K$3,2)) -> 0 | L36: =ROUND(H36*K36,2) -> 0 | M36: =ROUND(K36/F36,2) -> 0 | N36: 0 | S36: =R36/F36 ->  | T36: =N36/F36 -> 0
B37: Frozen, Fully cooked, heat and serve, No nitrites or nitrates added, 200-300 calories and
B38: not more than 4 g sat fat and 400 mg of sodium per serving. Must meet 2 M/MA and 2 OEG
B40: Possible Allergens: Wheat, Milk
A41: 8 | B41: Macaroni and Cheese, Reduced Fat, WG | C41: Land O Lakes 43277 | E41: 6/5 lbs | F41: 80 | G41: 200 | H41: =ROUND(G41*F41/F41,2) -> 200 | I41: Cs | J41: $53.38 | K41: =IF(OR(ISBLANK(J41),G41=0,ISBLANK(G41)),,ROUND(J41+$K$3,2)) -> $53.38 | L41: =ROUND(H41*K41,2) -> $10,676.00 | M41: =ROUND(K41/F41,2) -> $0.67 | N41: $43.35 | O41: $1.6551 | P41: 6.25 | Q41: =ROUND(O41*P41,2) -> $10.34 | R41: =J41-Q41 -> $43.04 | S41: =R41/F41 -> $0.54 | T41: =N41/F41 -> $0.54
B42: Frozen, processed American cheese in boil or steam pouch, 250-350 calories with no
B43: more than 6 g sat fat and 1000 mg sodium per svg. One portion to provide 2 M/MA & 1 OEG
B44: Possible Allergens: Milk, Wheat, Egg
A45: 9 | B45: Ravioli, Mini Cheese, WG | C45: Tasty Brands 00834WG | E45: 221/2.17z | F45: 221 | G45: 0 | H45: =ROUND(G45*F45/F45,2) -> 0 | I45: Cs | J45: $68.76 | K45: =IF(OR(ISBLANK(J45),G45=0,ISBLANK(G45)),,ROUND(J45+$K$3,2)) -> 0 | L45: =ROUND(H45*K45,2) -> 0 | M45: =ROUND(K45/F45,2) -> 0 | N45: $60.38 | O45: $1.6551 | P45: 5.22 | Q45: =ROUND(O45*P45,2) -> $8.64 | R45: =J45-Q45 -> $60.12 | S45: =R45/F45 -> $0.27 | T45: =N45/F45 -> $0.27
B46: Frozen, whole grain pasta, filled with mozzarella and ricotta cheese, 100-200 calories with
B47: no more than 2 g sat fat and 300 mg sodium per svg. One portion provides 1 M/MA &.5 OEG
B48: Possible Allergens: Wheat, Milk, Egg
A49: 10 | B49: Sandwich, Turkey, Ham and Cheese on Hawaiian Bun, WG | C49: (18-19) Integrated 130018 | E49: 100/3.10z | F49: 100 | G49: 100 | H49: =ROUND(G49*F49/F49,2) -> 100 | I49: Cs | J49: $57.11 | K49: =IF(OR(ISBLANK(J49),G49=0,ISBLANK(G49)),,ROUND(J49+$K$3,2)) -> $57.11 | L49: =ROUND(H49*K49,2) -> $5,711.00 | M49: =ROUND(K49/F49,2) -> $0.57 | N49: $53.09 | O49: $1.6046 | P49: 2.5 | Q49: =ROUND(O49*P49,2) -> $4.01 | R49: =J49-Q49 -> $53.10 | S49: =R49/F49 -> $0.53 | T49: =N49/F49 -> $0.53
B50: Frozen, 150-250 calories with no more than 2 g sat fat and 650 mg sodium per serving.
B51: One portion to provide min. 1 M/MA and 2 OEG
B52: Possible Allergens: Wheat, Soy
A53: 11 | B53: Sandwich, Fiesta Egg and Cheese | C53: Advanced Pierre 68096 | E53: 100/2.35z | F53: 100 | G53: 100 | H53: =ROUND(G53*F53/F53,2) -> 100 | I53: Cs | J53: $42.42 | K53: =IF(OR(ISBLANK(J53),G53=0,ISBLANK(G53)),,ROUND(J53+$K$3,2)) -> $42.42 | L53: =ROUND(H53*K53,2) -> $4,242.00 | M53: =ROUND(K53/F53,2) -> $0.42 | O53: $1.6046 | P53: 2.5 | Q53: =ROUND(O53*P53,2) -> $4.01 | R53: =K53-Q53 -> $38.41 | S53: =R53/F53 -> $0.38 | T53: =N53/F53 -> 0
B54: Frozen,. WGR, 100-200 calories with not more than 3 g sat fat and 300 mg sodium per
B55: serving. Provides .75 M/MA and 1.25 OEG
B56: Possible Allergens: Wheat, Soy, Milk, and Egg
A57: 12 | B57: Sandwich, Turkey Bacon, Egg, and Cheese Croissant, WG | C57: Bakecrafters 4708 | E57: 48/3.42z | F57: 48 | G57: 50 | H57: =ROUND(G57*F57/F57,2) -> 50 | I57: Cs | J57: $44.47 | K57: =IF(OR(ISBLANK(J57),G57=0,ISBLANK(G57)),,ROUND(J57+$K$3,2)) -> $44.47 | L57: =ROUND(H57*K57,2) -> $2,223.50 | M57: =ROUND(K57/F57,2) -> $0.93 | N57: $42.74 | O57: $1.6046 | P57: 1.08 | Q57: =ROUND(O57*P57,2) -> $1.73 | R57: =J57-Q57 -> $42.74 | S57: =R57/F57 -> $0.89 | T57: =N57/F57 -> $0.89
B58: Frozen, thaw and serve, 200-350 calories, no more than 4 g sat fat and 750 mg sodium per
B59: serving. One portion povides 1 M/MA and 2 OEG
B60: Possible Allergens: Wheat, Soy, Milk and Egg
A61: 13 | B61: Tornados, Steak and Cheese, WG | C61: Ruiz Foods 86585 | E61: 144/2.79z | F61: 144 | G61: 100 | H61: =ROUND(G61*F61/F61,2) -> 100 | I61: Cs | J61: $78.90 | K61: =IF(OR(ISBLANK(J61),G61=0,ISBLANK(G61)),,ROUND(J61+$K$3,2)) -> $78.90 | L61: =ROUND(H61*K61,2) -> $7,890.00 | M61: =ROUND(K61/F61,2) -> $0.55 | N61: $19.40 | O61: $0.1049 | P61: 43.64 | Q61: =ROUND(O61*P61,2) -> $4.58 | R61: =K61-Q61 -> $74.32 | S61: =R61/F61 -> $0.52 | T61: =N61/F61 -> $0.13
B62: Frozen, thaw and serve, 100-200 calories with no more than 2 g sat fat and 400 mg sodium
B63: per serving. One portion to provide min. .5 M/MA and 1.25 OEG
B64: Possible Allergens: Wheat, Soy, Milk
O65: Commodity Peanuts, Raw Shelled 110700
A66: 1 | B66: Peanut Butter & Grape Jelly, No HFCS, Crustless, WG, IW | C66: Smuckers 5150006960 | E66: 72/2.6z | F66: 72 | G66: 0 | H66: =ROUND(G66*F66/F66,2) -> 0 | I66: Cs | J66: $35.33 | K66: =IF(OR(ISBLANK(J66),G66=0,ISBLANK(G66)),,ROUND(J66+$K$3,2)) -> 0 | L66: =ROUND(H66*K66,2) -> 0 | M66: =ROUND(K66/F66,2) -> 0 | N66: $31.94 | O66: $0.4530 | P66: 4.46 | Q66: =ROUND(O66*P66,2) -> $2.02 | R66: =N66 -> $31.94 | S66: =R66/F66 -> $0.44 | T66: =N66/F66 -> $0.44
B67: Frozen, smooth peanut butter and grape jelly, crustless, whole grain bread, crimped edges,
B68: 250-350 calories with no more than 4 g sat fat and 350 mg sodium per serving.
B69: One portion to provide min. 1 M/MA and 1 OEG, Individually wrapped
B70: Possible Allergens: Wheat, Peanuts
A71: 2 | B71: Peanut Butter & Grape Jelly, No HFCS, Crustless, WG, IW | C71: Smuckers 5150021027 | E71: 72/5.30z | F71: 72 | G71: 0 | H71: =ROUND(G71*F71/F71,2) -> 0 | I71: Cs | J71: $64.10 | K71: =IF(OR(ISBLANK(J71),G71=0,ISBLANK(G71)),,ROUND(J71+$K$3,2)) -> 0 | L71: =ROUND(H71*K71,2) -> 0 | M71: =ROUND(K71/F71,2) -> 0 | N71: $58.29 | O71: $0.4530 | P71: 8.91 | Q71: =ROUND(O71*P71,2) -> $4.04 | R71: =N71 -> $58.29 | S71: =R71/F71 -> $0.81 | T71: =N71/F71 -> $0.81
B72: Frozen, smooth peanut butter and grape jelly, crustless, whole grain bread, crimped edges,
B73: 550-650 calories with no more than 7 g sat fat and 650 mg sodium per serving.
B74: One portion to provide min. 2 M/MA and 2 OEG, Individually wrapped
B75: Possible Allergens: Wheat, Peanuts
A76: 3 | B76: Peanut Butter & Strawberry Jelly, No HFCS, Crustless, WG, IW | C76: Smuckers 5150006961 | E76: 72/2.60z | F76: 72 | G76: 0 | H76: =ROUND(G76*F76/F76,2) -> 0 | I76: Cs | J76: $36.89 | K76: =IF(OR(ISBLANK(J76),G76=0,ISBLANK(G76)),,ROUND(J76+$K$3,2)) -> 0 | L76: =ROUND(H76*K76,2) -> 0 | M76: =ROUND(K76/F76,2) -> 0 | N76: $33.50 | O76: $0.4530 | P76: 4.46 | Q76: =ROUND(O76*P76,2) -> $2.02 | R76: =N76 -> $33.50 | S76: =R76/F76 -> $0.47 | T76: =N76/F76 -> $0.47
B77: Frozen, smooth peanut butter and strawberry jelly, crustless, whole grain bread, crimped
B78: edges, with no more than 3 g sat fat and 350 mg sodium per serving. One portion to provide
B79: min. 1 M/MA and 1 OEG, Individually wrapped
B80: Possible Allergens: Wheat, Peanuts
A81: 4 | B81: Peanut Butter Cups, Creamy, IW | C81: Smucker-JIF 5150092100 | E81: 120/1.0z | F81: 120 | G81: 100 | H81: =ROUND(G81*F81/F81,2) -> 100 | I81: Cs | J81: $31.20 | K81: =IF(OR(ISBLANK(J81),G81=0,ISBLANK(G81)),,ROUND(J81+$K$3,2)) -> $31.20 | L81: =ROUND(H81*K81,2) -> $3,120.00 | M81: =ROUND(K81/F81,2) -> $0.26 | N81: $22.24 | O81: $0.4530 | P81: 7.4 | Q81: =ROUND(O81*P81,2) -> $3.35 | R81: =N81 -> $22.24 | S81: =R81/F81 -> $0.19 | T81: =N81/F81 -> $0.19
B82: Shelf stable, smooth peanut butter, 100-200 calories with no more than 3 g sat fat and
B83: 150 mg sodium per serving, One portion to provide min 1 M/MA Individually wrapped
B85: Possible Allergens: Peanuts
J86: Category: Peanut Butter Drum 100397
A87: 1 | B87: Peanut Butter & Grape Jelly, No HFCS, Crustless, WG, IW | C87: Advanced Pierre 92123 | E87: 72/2.80z | F87: 72 | G87: 200 | H87: =ROUND(G87*F87/F87,2) -> 200 | I87: Cs | J87: $29.99 | K87: =IF(OR(ISBLANK(J87),G87=0,ISBLANK(G87)),,ROUND(J87+$K$3,2)) -> $29.99 | L87: =ROUND(H87*K87,2) -> $5,998.00 | M87: =ROUND(K87/F87,2) -> $0.42 | N87: $25.81 | O87: $0.8426 | P87: 4.71 | Q87: =ROUND(O87*P87,2) -> $3.97 | R87: =J87-Q87 -> $26.02 | S87: =R87/F87 -> $0.36 | T87: =N87/F87 -> $0.36
B88: Frozen, smooth peanut butter and grape jelly, crustless, whole grain bread, crimped edges,
B89: 250-350 calories with no more than 3 g sat fat and 300 mg sodium per serving.
B90: Individually wrapped
B91: Possible Allergens: Wheat, Peanuts, Soy
A92: 2 | B92: Peanut Butter & Banana, No HFCS, Crustless, WG, IW | C92: Advanced Pierre A1312 | E92: 72/2.80z | F92: 72 | G92: 0 | H92: =ROUND(G92*F92/F92,2) -> 0 | I92: Cs | J92: $36.47 | K92: =IF(OR(ISBLANK(J92),G92=0,ISBLANK(G92)),,ROUND(J92+$K$3,2)) -> 0 | L92: =ROUND(H92*K92,2) -> 0 | M92: =ROUND(K92/F92,2) -> 0 | N92: $32.29 | O92: $0.8426 | P92: 4.95 | Q92: =ROUND(O92*P92,2) -> $4.17 | R92: =J92-Q92 -> $32.30 | S92: =R92/F92 -> $0.45 | T92: =N92/F92 -> $0.45
B93: Frozen, smooth peanut butter with banana spread, crustless, whole wheat bread, crimped
B94: edges, 250-350 calories with no more than 3 g sat fat and 300 mg sodium per serving.
B95: One portion to provide a min. 1 M/MA and 1 OEG, Individually wrapped
B96: Possible Allergens: Wheat, Peanuts, Soy
A97: 3 | B97: Peanut Butter & Strawberry Jelly, No HFCS, Crustless, WG, Twin Pack | C97: Advanced Pierre A1004 | E97: 36/5.60z | F97: 36 | G97: 150 | H97: =ROUND(G97*F97/F97,2) -> 150 | I97: Cs | J97: $30.59 | K97: =IF(OR(ISBLANK(J97),G97=0,ISBLANK(G97)),,ROUND(J97+$K$3,2)) -> $30.59 | L97: =ROUND(H97*K97,2) -> $4,588.50 | M97: =ROUND(K97/F97,2) -> $0.85 | N97: $26.41 | O97: $0.8426 | P97: 4.95 | Q97: =ROUND(O97*P97,2) -> $4.17 | R97: =J97-Q97 -> $26.42 | S97: =R97/F97 -> $0.73 | T97: =N97/F97 -> $0.73
B98: Frozen, smooth peanut butter and grape jelly, crustless, whole grain bread, crimped edges, | G98: 0
B99: 550-650 calories with no more than 5 g sat fat and 650 mg sodium per serving. One portion
B100: to provide min. 2 M/MA and 2 OEG, Individually wrapped
B101: Possible Allergens: Wheat, Peanuts, Soy
I103: Page Total | L103: =SUMIF(L6:L101,">0") -> $53,611.25

Sheet Franks & Corn Dogs
B1: ='Recap Sheet'!A2 -> School Food Authority: | E1: ='Recap Sheet'!A3 -> Offeror Name:
B2: ='Recap Sheet'!B2 -> Colleton County School District Office of Student Nutrition | C2: Return to Recap Sheet | E2: ='Recap Sheet'!B3 -> 0
A3: Item | B3: Description | C3: Approved Brand Name / Manuf ID # | F3: Firm Fixed Fee | K3: ='Recap Sheet'!B4 -> $0.00
A4: # | D4: Distributor | E4: Vendor | F4: Svgs | G4: Est. | H4: Bid | I4: Bid | J4: Unit | K4: Unit Price | L4: Total | M4: Cost per
D5: Code | E5: Pack | F5: per unit | G5: Bid Qty | H5: Qty | I5: Unit | J5: Price | K5: plus Fee | L5: Price | M5: Unit
B6: Franks & Corn Dogs
A7: 1 | B7: Hot Dog, Beef | C7: Bryan 16787CN | E7: 2/5 lbs | F7: 80 | G7: 0 | H7: =ROUND($G$7*$F$7/F7,2) -> 0 | I7: Cs
B8: Frozen, fully cooked, all beef, Formula B, natural color, made from skeletal | C8: Carolina Pride 3143 | E8: 2/5 lbs | F8: 80 | H8: =ROUND($G$7*$F$7/F8,2) -> 0 | I8: Cs
B9: cuts. IMPS #800 8 per lbs 150-250 calories with no more than 8 g sat fat | C9: Harvestland/Perdue 56655 | E9: 2/5 lbs | F9: 80 | H9: =ROUND($G$7*$F$7/F9,2) -> 0 | I9: Cs
B10: and 800 mg sodium per serving. One portion provides 2 M/MA. May | C10: Farmland/Smithfield 810967 | E10: 10 lbs | F10: 80 | H10: =ROUND($G$7*$F$7/F10,2) -> 0 | I10: Cs
B11: contain Sodium Nitrite | C11: Kent Quality Foods 437 | E11: 4/5# | F11: 160 | H11: =ROUND($G$7*$F$7/F11,2) -> 0 | I11: Cs | J11: $40.00 | K11: =IF(OR(ISBLANK(J11),G7=0,ISBLANK(G7)),,ROUND(J11+$K$3,2)) -> 0 | L11: =ROUND(H11*K11,2) -> 0 | M11: =ROUND(K11/F11,2) -> 0
B12: Possible Allergens: None Listed
A13: 2 | B13: Hot Dog, Beef/Pork | C13: Kent Quality Foods 429CN | E13: 160/2.0z | F13: 160 | G13: 0 | H13: =ROUND($G$13*$F$13/F13,2) -> 0 | I13: Cs | J13: $32.80 | K13: =IF(OR(ISBLANK(J13),G13=0,ISBLANK(G13)),,ROUND(J13+$K$3,2)) -> 0 | L13: =ROUND(H13*K13,2) -> 0 | M13: =ROUND(K13/F13,2) -> 0
B14: All beef and pork, Formula B, natural color, no offals. IMPS #800.
B15: Made from all skeletal cuts. 8 ct. Skinless No artificial color. Must provide
B16: 2 0 oz cooked meat/meat alternate for CN Meal Pattern Requirements
B17: One 2 oz serving contains no more than 85% of calories from fat.
B18: Possible Allergens: None Listed
A19: 3 | B19: Hot Dog, All Meat | C19: Ball Park 16720CN | E19: 80/2.0z | F19: 80 | G19: 0 | H19: =ROUND($G$19*$F$19/F19,2) -> 0 | I19: Cs
B20: Frozen, fully cooked, made from skeletal cuts, IMPS #800, No artificial color,, | C20: Kent Quality Foods 304320 | E20: 160/2.0z | F20: 160 | H20: =ROUND($G$19*$F$19/F20,2) -> 0 | I20: Cs | J20: $26.00 | K20: =IF(OR(ISBLANK(J20),G19=0,ISBLANK(G19)),,ROUND(J20+$K$3,2)) -> 0 | L20: =ROUND(H20*K20,2) -> 0 | M20: =ROUND(K20/F20,2) -> 0
B21: 8 per lb, 150-250 calories with no more than 7 g sat fat and 700 mg | C21: Bryan 16668CN | E21: 80/2.0z | F21: 80 | H21: 0 | I21: Cs
B22: sodium per svg. One portion provides 2 M/MA. May contain Sodium Nitrite | C22: Carolina Pride 3140CN | E22: 80/2.0z | F22: 80 | H22: 0 | I22: Cs
B23: Possible Allergens: None Listed | C23: Farmland/Smithfield 811527CN | E23: 80/2.0z | F23: 80 | H23: 0 | I23: Cs
A24: 4 | B24: Hot Dog, Turkey | C24: Briar Street SL16751 | E24: 10Lb | F24: 80 | G24: 150 | H24: =ROUND($G$24*$F$24/F24,2) -> 150 | I24: Cs
B25: Frozen, made form mechanically separated turkey meat blended with | C25: Butterball 22655-61886 | E25: 2/5Lb | F25: 80 | H25: =ROUND($G$24*$F$24/F25,2) -> 150 | I25: Cs | J25: $9.99 | K25: =IF(OR(ISBLANK(J25),G24=0,ISBLANK(G24)),,ROUND(J25+$K$3,2)) -> $9.99 | L25: =ROUND(H25*K25,2) -> $1,498.50 | M25: =ROUND(K25/F25,2) -> $0.12
B26: natural flavoring/color and spices, 8 per lbs, 100-150 calories with no more | C26: Perdue 65669 | E26: 2/5Lb | F26: 80 | H26: 150 | I26: Cs
B27: than 5 g sat fat and 750 mg sodium per serving. One portion to provide
B28: 2 M/MA. May contain Sodium Nitrite.
B30: Possible Allergens: None Listed
A31: 5 | B31: Hot Dog, Turkey/Beef Low Sodium and Reduced Fat | C31: Kent Quality Foods 676421 | E31: 4/5 lbs | F31: 160 | G31: 0 | H31: =ROUND(G31*F31/F31,2) -> 0 | I31: Cs | J31: $23.00 | K31: =IF(OR(ISBLANK(J31),G31=0,ISBLANK(G31)),,ROUND(J31+$K$3,2)) -> 0 | L31: =ROUND(H31*K31,2) -> 0 | M31: =ROUND(K31/F31,2) -> 0
B32: Frozen made of mechanically separated turkey meat blended with natural
B33: flavoring/color and spices and beef 100-150 calories with no more than
B34: 4 g sat fat and 350 mg sodium per serving. One portion to provide 2 M/MA
B35: May contain sodium nitrite
B36: Possible Allergens: None Listed
A37: 6 | B37: Hot Dog, Turkey Low Sodium and Reduced Fat | C37: Kent Quality Foods 142676 | E37: 4/5 lbs | F37: 160 | G37: 0 | H37: =ROUND(G37*F37/F37,2) -> 0 | I37: Cs | J37: $20.00 | K37: =IF(OR(ISBLANK(J37),G37=0,ISBLANK(G37)),,ROUND(J37+$K$3,2)) -> 0 | L37: =ROUND(H37*K37,2) -> 0 | M37: =ROUND(K37/F37,2) -> 0
B38: Frozen made of mechanically separated turkey meat blended with natural
B39: flavoring/color and spices 100-150 calories with no more than 4 g sat fat
B40: and 350 mg sodium per serving. One portion to provide 2 M/MA
B41: May contain sodium nitrite
B42: Possible Allergens: None Listed
A43: 7 | B43: Corn Dog, Chicken, WG | C43: Foster Farms 95150 | E43: 72/4.0z | F43: 72 | G43: 0 | H43: =ROUND(G43*F43/F43,2) -> 0 | I43: Cs | J43: $24.84 | K43: =IF(OR(ISBLANK(J43),G43=0,ISBLANK(G43)),,ROUND(J43+$K$3,2)) -> 0 | L43: =ROUND(H43*K43,2) -> 0 | M43: =ROUND(K43/F43,2) -> 0
B44: Frozen, fully cooked, sweet batter dipped frankfurter, whole wheat flour
B45: and cornmeal 200-300 calories with no more than 3 g sat fat and 400 mg
B46: sodium per serving. One portion to provide 2 M/MA and 2 OEG May contain
B47: Sodium Nitrite, SMART SNACK COMPLIANT
B48: Possible Allergens: Wheat, Soy ,Eggs, Gluten
A49: 8 | B49: Corn Dog, Turkey, WG | C49: State Fair 28322 | E49: 48/4.0z | F49: 48 | G49: 0 | H49: =ROUND($G$49*$F$49/F49,2) -> 0 | I49: Cs | J49: $15.05 | K49: =IF(OR(ISBLANK(J49),G49=0,ISBLANK(G49)),,ROUND(J49+$K$3,2)) -> 0 | L49: =ROUND(H49*K49,2) -> 0 | M49: =ROUND(K49/F49,2) -> 0
B50: Frozen, oven ready, sweet batter dipped frankfurter, whole wheat flour | C50: Don Lee Farms CN84072WG | E50: 72/4.0z | F50: 48 | H50: =ROUND($G$49*$F$49/F50,2) -> 0 | I50: Cs
B51: and cornmeal with stick. 200-300 calories with no more than 4 g sat fat
B52: and 850 mg sodium per serving. One portion to provide 2 M/MA and 2 OEG
B53: May contain sodium nitrite
B54: Possible Allergens: Wheat, Soy, Eggs, Milk
A55: 9 | B55: Corn Dog, Turkey, WG Reduced Fat | C55: State Fair 9988 | E55: 72/4z | F55: 72 | G55: 50 | H55: =ROUND(G55*F55/F55,2) -> 50 | I55: Cs | J55: $25.85 | K55: =IF(OR(ISBLANK(J55),G55=0,ISBLANK(G55)),,ROUND(J55+$K$3,2)) -> $25.85 | L55: $1,292.50 | M55: $0.36
B56: Frozen, oven ready, sweet batter dipped frankfurter, whole wheat flour
B57: and cornmeal with stick 200-300 calories with no more than 1.5 g sat fat
B58: with ≤ 30% calories from fat and 1.5 g sat fat per serving. One portion
B59: to provide 2 M/MA and 2 OEG May contain Sodium Nitrite
B60: Possible Allergens: Wheat, Soy, Eggs, Milk
A61: 10 | B61: Corndog Nuggets, Chicken | C61: House of Raeford 20452 | E61: 2/5 lbs | F61: 40 | G61: 0 | H61: =ROUND($G$61*$F$61/F61,2) -> 0 | I61: Cs | J61: $15.90 | K61: =IF(OR(ISBLANK(J61),G61=0,ISBLANK(G61)),,ROUND(J61+$K$3,2)) -> 0 | L61: =ROUND(H61*K61,2) -> 0 | M61: =ROUND(K61/F61,2) -> 0
B62: Frozen, Oven Ready, sweet batter dipped frankfurter of mechanically | C62: Foster Farms 96086 | E62: 2/5 lbs | F62: 40 | H62: =ROUND($G$61*$F$61/F62,2) -> 0 | I62: Cs
B63: separated chicken meat, WG flour and cornmeal, 200-300 calories with no
B64: no more than 4 g sat fat and 450 mg sodium per serving. CN Labeled for 6
B65: to provide 2 M/MA and 2 OEG. May contain Sodium Nitrite
B66: Possible Allergens: Wheat, Soy, Eggs, and Milk
A67: 11 | B67: Corndog Nuggets, Turkey | C67: House of Raeford 20420 | E67: 240/.667z | F67: 40 | G67: 0 | H67: =ROUND($G$67*$F$67/F67,2) -> 0 | I67: Cs | J67: $16.40 | K67: =IF(OR(ISBLANK(J67),G67=0,ISBLANK(G67)),,ROUND(J67+$K$3,2)) -> 0 | L67: =ROUND(H67*K67,2) -> 0 | M67: =ROUND(K67/F67,2) -> 0
B68: Frozen, Oven Ready, sweet batter dipped frankfurter of mechanically
B69: separated turkey meat, WG flour and cornmeal, 200-300 calories with no
B70: more than 2 g sat fat and 450 mg sodium per serving. CN Labeled for 6 to
B71: to provide 2 M/MA and 2 OEG. May contain Sodium Nitrite
B72: Possible Allergens: Wheat, Soy, Eggs, and Milk
I73: Page Total | L73: =SUMIF(L13:L67,">0") -> $2,791.00

Sheet Dairy&Yogurt
B1: ='Recap Sheet'!A2 -> School Food Authority: | E1: ='Recap Sheet'!A3 -> Offeror Name:
B2: ='Recap Sheet'!B2 -> Colleton County School District Office of Student Nutrition | C2: Return to Recap Sheet | E2: ='Recap Sheet'!B3 -> 0 | P2: Commodity
A3: Item | B3: Description | C3: Approved Brand Name / Manuf ID # | F3: Firm Fixed Fee | K3: ='Recap Sheet'!B4 -> $0.00 | N3: Processing | O3: Commodity | P3: Pounds of | R3: NOI | S3: Net NOI | T3: Total Cost
A4: # | D4: Distributor | E4: Vendor | F4: Svgs | G4: Est. | H4: Bid | I4: Bid | J4: Unit | K4: Unit Price | L4: Total | M4: Cost per | N4: Fee For | O4: Value Per | P4: DF Needed | Q4: Commodity | R4: Net | S4: Cost Per | T4: Processing Fee
D5: Code | E5: Pack | F5: per unit | G5: Bid Qty | H5: Qty | I5: Unit | J5: Price | K5: plus Fee | L5: Price | M5: Unit | N5: Service | O5: Pound | P5: Per Case | Q5: Value | R5: Price | S5: Serving | T5: Per Serving
B6: Dairy and Yogurt | O6: Cheese, 110242 NAT AMER FBD BARREL
A7: 1 | B7: Cheese, American, Reduced Fat, Shredded | C7: Land O Lakes 41728 | E7: 4/5 lbs | F7: 640 | G7: 25 | H7: =ROUND($G$10*$F$10/F7,2) -> 0 | I7: Cs | J7: $47.91 | K7: =IF(OR(ISBLANK(J7),G7=0,ISBLANK(G7)),,ROUND(J7+$K$3,2)) -> $47.91 | L7: =ROUND(H7*K7,2) -> 0 | M7: =ROUND(K7/F7,2) -> $0.07 | N7: $23.30 | O7: $1.6046 | P7: 15.34 | Q7: =ROUND(O7*P7,2) -> $24.61 | R7: =J7-Q7 -> $23.30 | S7: =R7/F7 -> $0.04 | T7: =N7/F7 -> $0.04
B8: Refregerated, 1/2 oz. serving
B9: Possible Allergens: Milk
A10: 2 | B10: Cheese, Cheddar Mild, Shredded | C10: Land O Lakes 41749 | E10: 4/5 lbs | F10: 640 | G10: 0 | H10: =ROUND($G$13*$F$13/F10,2) -> 10 | I10: Cs | J10: $42.49 | K10: =IF(OR(ISBLANK(J10),G10=0,ISBLANK(G10)),,ROUND(J10+$K$3,2)) -> 0 | L10: =ROUND(H10*K10,2) -> 0 | M10: =ROUND(K10/F10,2) -> 0 | N10: $10.40 | O10: $1.6046 | P10: 20 | Q10: =ROUND(O10*P10,2) -> $32.09 | R10: =J10-Q10 -> $10.40 | S10: =R10/F10 -> $0.02 | T10: =N10/F10 -> $0.02
B11: Refrigerated, 1/2 oz. serving
B12: Possible Allergens: Milk
A13: 3 | B13: Cheese, Mozzarella, Shredded, 100% Mozzarella | C13: Land O Lakes 41698 | E13: 4/5 lbs | F13: 640 | G13: 10 | H13: =ROUND($G$13*$F$13/F13,2) -> 10 | I13: Cs | N13: 0 | O13: $1.6046 | P13: 20 | Q13: =ROUND(O13*P13,2) -> $32.09 | R13: =J13-Q13 ->  | S13: =R13/F13 ->  | T13: =N13/F14 -> 0
B14: Refrigerated, Low moisture part skim 45-50% moisture 1/2 oz. serving | C14: Bongard's 75507 | E14: 4/5 lbs | F14: 640 | H14: 10 | I14: Cs | J14: $42.19 | K14: =IF(OR(ISBLANK(J14),G14=0,ISBLANK(G14)),,ROUND(J14+$K$3,2)) -> $42.19 | L14: =ROUND(H14*K14,2) -> $421.90 | M14: =ROUND(K14/F14,2) -> $0.07 | N14: $10.10 | O14: $1.6046 | P14: 20 | Q14: =ROUND(O14*P14,2) -> $32.09 | R14: =J14-Q14 -> $10.10 | S14: =R14/F14 -> $0.02 | T14: =N14/F14 -> $0.02
B15: Possible Allergens: Milk
A16: 4 | B16: Cheese, Mild Cheddar, Indv. Portions, Reduced Fat | C16: Land O Lakes 44881 | E16: 168/1 oz. | F16: 168 | G16: 25 | H16: =ROUND($G$16*$F$16/F16,2) -> 25 | I16: Cs | J16: $36.13 | K16: =IF(OR(ISBLANK(J16),G16=0,ISBLANK(G16)),,ROUND(J16+$K$3,2)) -> $36.13 | L16: =ROUND(H16*K16,2) -> $903.25 | M16: =ROUND(K16/F16,2) -> $0.22 | N16: $19.28 | O16: $1.6046 | P16: 10.5 | Q16: =ROUND(O16*P16,2) -> $16.85 | R16: =J16-Q16 -> $19.28 | S16: =R16/F16 -> $0.11 | T16: =N16/F16 -> $0.11
B17: Refrigerated, Natural mild cheddar, 1 0z. Portions
B18: Possible Allergens: Milk
A19: 5 | B19: Cheese, Mild Cheddar, Red, Fat Cube Portions | C19: Land O Lakes 44113 | E19: 200/1.0z | F19: 200 | G19: 50 | H19: =ROUND($G$19*$F$19/F19,2) -> 50 | I19: Cs | J19: $52.31 | K19: =IF(OR(ISBLANK(J19),G19=0,ISBLANK(G19)),,ROUND(J19+$K$3,2)) -> $52.31 | L19: =ROUND(H19*K19,2) -> $2,615.50 | M19: =ROUND(K19/F19,2) -> $0.26 | N19: $32.25 | O19: $1.6046 | P19: 12.5 | Q19: =ROUND(O19*P19,2) -> $20.06 | R19: =J19-Q19 -> $32.25 | S19: =R19/F19 -> $0.16 | T19: =N19/F19 -> $0.16
B20: Refrigerated Natural mild cheddar 1 0z. Portions
B21: Possible Allergens: Milk
A22: 6 | B22: Cheese, Mozzarella, String Cheese, IW | C22: Land O Lakes 59701 | E22: 168/1.0z | F22: 168 | G22: 0 | H22: =ROUND($G$22*$F$22/F22,2) -> 0 | I22: Cs | J22: $28.53 | K22: =IF(OR(ISBLANK(J22),G22=0,ISBLANK(G22)),,ROUND(J22+$K$3,2)) -> 0 | L22: =ROUND(H22*K22,2) -> 0 | M22: =ROUND(K22/F22,2) -> 0 | N22: $11.68 | O22: $1.6046 | P22: 10.5 | Q22: =ROUND(O22*P22,2) -> $16.85 | R22: =J22-Q22 -> $11.68 | S22: =R22/F22 -> $0.07 | T22: =N22/F22 -> $0.07
B23: Refrigerated, Part skim mozzarella, 1 oz. portions | C23: Bongard's 40295 | E23: 168/1.0z | F23: 168 | H23: =ROUND($G$22*$F$22/F23,2) -> 0 | I23: Cs | O23: $1.6046 | P23: 10.5 | Q23: =ROUND(O23*P23,2) -> $16.85
C24: Pauley 232901376 | E24: 160/1.0z | F24: 160 | H24: =ROUND($G$22*$F$22/F24,2) -> 0 | I24: Cs | N24: $1.6929 | O24: 78 | Q24: =J24-P24 ->  | S24: =Q24/E24 ->  | T24: =R24/F24 -> 0
B25: Possible Allergens: Milk | C25: Schrieber 25616 | E25: 168/1.0z | F25: 168 | H25: =ROUND($G$22*$F$22/F25,2) -> 0 | I25: Cs | N25: $1.6929 | O25: 20 | Q25: =J25-P25 ->  | S25: =Q25/E25 ->  | T25: =R25/F25 -> 0
A26: 7 | B26: Cheese, Mozzarella, String Cheese, Light, IW | C26: Land O Lakes 59703 | E26: 168/1.0z | F26: 168 | G26: 25 | H26: =ROUND($G$26*$F$26/F26,2) -> 25 | I26: Cs | J26: $29.11 | K26: =IF(OR(ISBLANK(J26),G25=0,ISBLANK(G25)),,ROUND(J26+$K$3,2)) -> $29.11 | L26: =ROUND(H26*K26,2) -> $727.75 | M26: =ROUND(K26/F26,2) -> $0.17 | N26: $12.26 | O26: $1.6046 | P26: 10.5 | Q26: =ROUND(O26*P26,2) -> $16.85 | R26: =J26-Q26 -> $12.26 | S26: =R26/F26 -> $0.07 | T26: =N26/F26 -> $0.07
B27: Refrig., Part skim mozz., 50% red sodium, No more than 2g sat fat and 220 sodium | C27: Bongard's 40299-1 | E27: 168/1.0z | F27: 168 | H27: =ROUND($G$26*$F$26/F27,2) -> 25 | I27: Cs | N27: 0 | O27: $1.6046 | P27: 10.5 | Q27: =ROUND(O27*P27,2) -> $16.85 | R27: =J27-Q27 ->  | S27: =R27/F27 ->  | T27: =N27/F27 -> 0
B28: Possible Allergens: Milk
A29: 8 | B29: Cheese, American 50% Red Fat, 50% Red Sodium, Sliced | C29: Land O Lakes 46288 | E29: 6/5 lbs. | F29: 960 | G29: 0 | H29: =ROUND($G$29*$F$29/F29,2) -> 0 | I29: Cs | O29: $1.6046 | P29: 23.04 | Q29: =ROUND(O29*P29,2) -> $36.97
B30: Refrigerated, No more than 2 g sar fat and 125 mg sodium per 1/2 oz. serving | C30: Bongard's 10054 | E30: 4/5 lbs. | F30: 640 | H30: =ROUND($G$29*$F$29/F30,2) -> 0 | I30: Cs | J30: $35.42 | K30: =IF(OR(ISBLANK(J30),G29=0,ISBLANK(G29)),,ROUND(J30+$K$3,2)) -> 0 | L30: =ROUND(H30*K30,2) -> 0 | M30: =ROUND(K30/F30,2) -> 0 | N30: $12.19 | O30: $1.6046 | P30: 14.48 | Q30: =ROUND(O30*P30,2) -> $23.23 | R30: =J30-Q30 -> $12.19 | S30: =R30/F30 -> $0.02 | T30: =N30/F30 -> $0.02
B31: Possible Allergens: Milk, Soy
A32: 9 | B32: Sauce, Cheese, Prepared, Pouch, Reduced Sodium | C32: Land O Lakes 39940 | E32: 6/106z | F32: 212 | G32: 100 | H32: =ROUND($G$32*$F$32/F32,2) -> 100 | I32: Cs | J32: $59.22 | K32: =IF(OR(ISBLANK(J32),G32=0,ISBLANK(G32)),,ROUND(J32+$K$3,2)) -> $59.22 | L32: =ROUND(H32*K32,2) -> $5,922.00 | M32: =ROUND(K32/F32,2) -> $0.28 | N32: $37.56 | O32: $1.6046 | P32: 13.5 | Q32: =ROUND(O32*P32,2) -> $21.66 | R32: =J32-Q32 -> $37.56 | S32: =R32/F32 -> $0.18 | T32: =N32/F32 -> $0.18
B33: Shelf Stable, Aseptically produced, perservative-free, packaged 3oz.=1 M/MA
B34: Possible Allergens: Milk, Soy
A35: 10 | B35: Sauce, Cheese, Queso Blanco | C35: JTM 5718 | E35: 240/2.0z | F35: 240 | G35: 0 | H35: =ROUND($G$35*$F$35/F35,2) -> 0 | I35: Cs | J35: $54.07 | K35: =IF(OR(ISBLANK(J35),G35=0,ISBLANK(G35)),,ROUND(J35+$K$3,2)) -> 0 | L35: =ROUND(H35*K35,2) -> 0 | M35: =ROUND(K35/F35,2) -> 0 | N35: $30.00 | O35: $1.6046 | P35: 15 | Q35: =ROUND(O35*P35,2) -> $24.07 | R35: =J35-Q35 -> $30.00 | S35: =R35/F35 -> $0.13 | T35: =N35/F35 -> $0.13
B36: Frozen, 100-200 calories and no more than 6g saturated fat and
B37: 500 mg of sodium per svg. Each 2.0 oz. serving provides 1 oz. M/MA
B38: Possible Allergens: Milk
A39: 11 | B39: Cheese, Sauce, Ultimate White Blend | C39: (18-19) Land O Lakes 39944 | E39: 6/106 oz | F39: 212 | G39: 150 | H39: =ROUND($G$39*$F$39/F39,2) -> 150 | I39: Cs | J39: $66.05 | K39: =IF(OR(ISBLANK(J39),G39=0,ISBLANK(G39)),,ROUND(J39+$K$3,2)) -> $66.05 | L39: $9,907.50 | M39: $0.31 | N39: $42.65 | O39: $1.6046 | P39: 14.58 | Q39: =ROUND(O39*P39,2) -> $23.40 | R39: =J39-Q39 -> $42.65 | S39: =R39/F39 -> $0.20 | T39: =N39/F39 -> $0.20
B40: Shefl Stable, Aseptically produced, preservative-free, packaged in
B41: pouch 3 oz = 1 M/MA
B42: Possible Allergens: Milk
A43: 12 | B43: Cheese, Cheddar Cups | C43: Land O Lakes 39911 | E43: 140/3.0z | F43: 140 | G43: 0 | H43: =ROUND($G$43*$F$43/F43,2) -> 0 | I43: Cs | J43: $64.98 | K43: =IF(OR(ISBLANK(J43),G43=0,ISBLANK(G43)),,ROUND(J43+$K$3,2)) -> 0 | L43: 0 | M43: 0 | N43: $50.67 | O43: $1.6046 | P43: 8.92 | Q43: =ROUND(O43*P43,2) -> $14.31 | R43: =J43-Q43 -> $50.67 | S43: =R43/F43 -> $0.36 | T43: =N43/F43 -> $0.36
B44: Shelf Stable, Portion Pack, 3 oz. cup = 1 M/MA
B45: Possbile Allergens: Milk
A46: 13 | B46: Margarine Reddies | C46: Distributor Choice | E46: 720/.5 gm | F46: 720 | G46: 0 | N46: $1.6929 | O46: 78 | Q46: =J46-P46 -> 0 | S46: =Q46/E46 ->  | T46: 0
B47: Pure Vegetable. Contains 0 Trans fat. | C47: Fillable txt box | H47: =ROUND(G46*F46/F47,2) ->  | I47: Cs | K47: =IF(OR(ISBLANK(G46),G46=0,ISBLANK(F47)),,ROUND(J47+$K$3,2)) -> 0 | L47: =ROUND(H47*K47,2) ->  | M47: =ROUND(K47/F47,2) ->  | N47: $1.6929 | O47: 20 | Q47: =J47-P47 -> 0
A48: 14 | B48: Margarine Solids | C48: Distributor Choice | E48: 30Lb | F48: 30 | G48: 50 | N48: $1.6929 | O48: 78 | Q48: =J48-P48 -> 0 | T48: 0
B49: Pure Vegetable. Contains 0 Trans fat. | C49: Fillable txt box | H49: =ROUND(G48*F48/F49,2) ->  | I49: Cs | K49: =IF(OR(ISBLANK(G48),G48=0,ISBLANK(F49)),,ROUND(J49+$K$3,2)) -> 0 | L49: =ROUND(H49*K49,2) ->  | M49: =ROUND(K49/F49,2) ->  | N49: $1.6929 | O49: 20 | Q49: =J49-P49 -> 0
A50: 15 | B50: Yogurt, Low Fat, 4 oz, Gluten Free | C50: Yoplait/Trix (General Mills) | E50: 48/4.0z | F50: 48 | G50: 25 | H50: =ROUND(G50*F50/F50,2) -> 25 | I50: Cs
B51: Refrigerated, Lowfat, flavored, pasteurized, Grade A contains live and | C51: 17725 Raspberry Rainbow
B52: active yogurt cultures, No aspartame, Expiration date on container, | C52: 17726 Strawberry Banana
B53: coded and labeled in accordance with State and Federal Regulations | C53: 31077 Triple Cherry
B54: No more than 2 g of fat per serving. 0 trans fat | C54: Dannon (Danimals) | E54: 48/4.0z | F54: 48 | H54: =ROUND(G50*F50/F54,2) -> 25 | I54: Cs | J54: $9.48 | K54: =IF(OR(ISBLANK(J54),G50=0,ISBLANK(G50)),,ROUND(J54+$K$3,2)) -> $9.48 | L54: =ROUND(H54*K54,2) -> $237.00 | M54: =ROUND(K54/F54,2) -> $0.20
C55: 2731 Strawberry Dianimals
C56: 2732 Strawberry Banana Dianimals
B57: Possible Allergens: Milk | C57: 1014 Raspberry Dianimals | E57: 48/4.0z | F57: 48 | J57: $9.60 | K57: =IF(OR(ISBLANK(J57),G50=0,ISBLANK(G50)),,ROUND(J57+$K$3,2)) -> $9.60 | L57: =ROUND(H57*K57,2) -> 0 | M57: =ROUND(K57/F57,2) -> $0.20
C58: 2733 Vanilla Dianimals | E58: 48/4.0z. | F58: 48 | J58: $9.60 | K58: =IF(OR(ISBLANK(J58),G50=0,ISBLANK(G50)),,ROUND(J58+$K$3,2)) -> $9.60 | L58: =ROUND(H58*K58,2) -> 0 | M58: =ROUND(K58/F58,2) -> $0.20
A59: 16 | B59: Yogurt, Fat Free, 4 oz. Extended Shelf Life | C59: Upstate | E59: 48/4.0z | F59: 48 | G59: 50 | H59: =ROUND(G59*F59/F59,2) -> 50 | I59: Cs | J59: $12.36 | K59: =IF(OR(ISBLANK(J59),G59=0,ISBLANK(G59)),,ROUND(J59+$K$3,2)) -> $12.36 | L59: =ROUND(H59*K59,2) -> $618.00 | M59: =ROUND(K59/F59,2) -> $0.26
B60: Refrigerated, Lowfat, flavored, pasteurized, Grade A contains live and active yogurt | C60: Strawberry 9815
B61: active yogurt cultures, No aspartame, Expiration date on container, | C61: Peach 9818
B62: coded, and labeled in accordance with State and Federal Regulations | C62: Cherry Vanilla 9819
B63: No more than 0 g of fat per serving. 0 trans fat | C63: Strawberry Banana 9820
B65: Possible Allergens: Milk
A66: 17 | B66: Yogurt, Fat Free, 8 oz. Extended Shelf Life | C66: Upstate | E66: 12/8.0z | F66: 12 | G66: 0 | H66: =ROUND(G66*F66/F66,2) -> 0 | I66: Cs | J66: $6.43 | K66: =IF(OR(ISBLANK(J66),G66=0,ISBLANK(G66)),,ROUND(J66+$K$3,2)) -> 0 | L66: =ROUND(H66*K66,2) -> 0 | M66: =ROUND(K66/F66,2) -> 0
B67: Refrigerated, Lowfat, flavored, pasteurized, Grade A contains live and | C67: Strawberry 9834
B68: active yogurt cultures, No aspartame, Expiration date on container, | C68: Peach 9835
B69: coded, and labeled in accordance with State and Federal Regulations | C69: Cherry Vanilla 9819
B70: No more than 0 g of fat per serving. 0 trans fat | C70: Strawberry Banana 9836
B72: Possible Allergens: Milk
A74: 18 | B74: Yogurt, Parfait Pro, Vanilla Pouch, Low fat | C74: Yoplait/General Mills 16632 | E74: 96/4 oz. | F74: 96 | G74: 300 | H74: =ROUND(G74*F74/F74,2) -> 300 | I74: Cs | J74: $21.71 | K74: =IF(OR(ISBLANK(J74),G74=0,ISBLANK(G74)),,ROUND(J74+$K$3,2)) -> $21.71 | L74: =ROUND(H74*K74,2) -> $6,513.00 | M74: =ROUND(K74/F74,2) -> $0.23
B75: Refrigerated, Lowfat, flavored, pasteurized, Grade A contains live and | C75: Dannon Pro 1932 | E75: 4/6 lbs | F75: 96 | H75: =ROUND(G74*F74/F75,2) -> 300 | I75: Cs
B76: active live cultures, No aspartame, Expiration date on container, coded,
B77: and labeled in accordance with State and Federal Regulations
B78: 4 oz. serving equals 1 oz. protein
B79: Possible Allergens: Milk, Gluten Free
A80: 19 | B80: Yogurt, Parfait Pro, Strawberry Pouch, Low fat | C80: Yoplait/General Mills 16631 | E80: 96/4.0z | F80: 96 | G80: 100 | H80: =ROUND(G80*F80/F80,2) -> 100 | I80: Cs | J80: $21.71 | K80: =IF(OR(ISBLANK(J80),G80=0,ISBLANK(G80)),,ROUND(J80+$K$3,2)) -> $21.71 | L80: =ROUND(H80*K80,2) -> $2,171.00 | M80: =ROUND(K80/F80,2) -> $0.23
B81: Refrigerated, Lowfat, flavored, pasteurized, Grade A contains live and | C81: Dannon Pro 1932 | E81: 4/6 lbs | F81: 96 | H81: =ROUND(G80*F80/F81,2) -> 100 | I81: Cs
B82: active yogurt cultures, No aspartame, Expiration date on container,
B83: coded, and labeled in accordance with State and Federal Regulations
B84: 4 oz. serving equals 1 oz. protein
B85: Possible Allergens: Milk, Gluten Free
A86: 20 | B86: Yogurt, Tube, All Flavors | C86: Yoplait/General Mills | E86: 48/4.0z | F86: 48 | G86: 50 | H86: =ROUND(G86*F86/F86,2) -> 50 | I86: Cs | J86: $14.92 | K86: =IF(OR(ISBLANK(J86),G86=0,ISBLANK(G86)),,ROUND(J86+$K$3,2)) -> $14.92 | L86: =ROUND(H86*K86,2) -> $746.00 | M86: =ROUND(K86/F86,2) -> $0.31
B87: Refrigerated, pasteurized, Grade A, contains live and active yogurt
B88: cultures, No aspartame, 50-100 calories with 0 sat fat and no more
B89: than 100 mg sodium. Provides 1 M/MA for CN programs
B91: Possbile Allergens: Milk, Gluten Free
G92: 0 | I92: Page Total | L92: =SUMIF(L6:L91,">0") -> $30,782.90

Sheet Eggs
B1: ='Recap Sheet'!A2 -> School Food Authority: | E1: ='Recap Sheet'!A3 -> Offeror Name:
B2: ='Recap Sheet'!B2 -> Colleton County School District Office of Student Nutrition | C2: Return to Recap Sheet | E2: ='Recap Sheet'!B3 -> 0 | P2: Commodity
A3: Item | B3: Description | C3: Approved Brand Name / Manuf ID # | F3: Firm Fixed Fee | K3: ='Recap Sheet'!B4 -> $0.00 | N3: Processing | O3: Commodity | P3: Pounds of | R3: NOI | S3: Net NOI | T3: Total Cost
A4: # | D4: Distributor | E4: Vendor | F4: Svgs | G4: Est. | H4: Bid | I4: Bid | J4: Unit | K4: Unit Price | L4: Total | M4: Cost per | N4: Fee For | O4: Value Per | P4: DF Needed | Q4: Commodity | R4: Net | S4: Cost Per | T4: Processing Fee
D5: Code | E5: Pack | F5: per unit | G5: Bid Qty | H5: Qty | I5: Unit | J5: Price | K5: plus Fee | L5: Price | M5: Unit | N5: Service | O5: Pound | P5: Per Case | Q5: Value | R5: Price | S5: Serving | T5: Per Serving
B6: Eggs | O6: Eggs, Whole Liquid Bulk Tank 100047
A7: 1 | B7: Eggs, Liquid Whole with Citric Acid, Pasteurized | C7: Michael Foods 46025-65123 | E7: 296/1.62z | F7: 296 | G7: 0 | H7: =ROUND($G$7*$F$7/F7,2) -> 0 | I7: Cs | N7: 0 | O7: $0.7227 | P7: 29.88 | Q7: =ROUND(O7*P7,2) -> $21.59 | T7: =N7/F7 -> 0
B8: Frozen, homogenized, USDA Inspected | C8: Sunny Fresh/Cargill 10080 | E8: 480/1.0z | F8: 480 | H8: =ROUND($G$7*$F$7/F8,2) -> 0 | I8: Cs | J8: $46.00 | K8: =IF(OR(ISBLANK(J8),G7=0,ISBLANK(G7)),,ROUND(J8+$K$3,2)) -> 0 | L8: =ROUND(H8*K8,2) -> 0 | M8: =ROUND(K8/F8,2) -> 0 | N8: $24.35 | O8: $0.7227 | P8: 29.95 | Q8: =ROUND(O8*P8,2) -> $21.64 | R8: =J8-Q8 -> $24.36 | S8: =R8/F8 -> $0.05 | T8: =N8/F8 -> $0.05
B10: Possible Allergens: Eggs
A11: 2 | B11: Egg Patty, Round | C11: Michael Foods 85017 | E11: 300/1.25z | F11: 300 | G11: 0 | H11: =ROUND($G$11*$F$11/F11,2) -> 0 | I11: Cs | J11: $36.64 | K11: =IF(OR(ISBLANK(J11),G11=0,ISBLANK(G11)),,ROUND(J11+$K$3,2)) -> 0 | L11: =ROUND(H11*K11,2) -> 0 | M11: =ROUND(K11/F11,2) -> 0 | N11: $25.23 | O11: $0.7227 | P11: 15.79 | Q11: =ROUND(O11*P11,2) -> $11.41 | R11: =J11-Q11 -> $25.23 | S11: =R11/F11 -> $0.08 | T11: =N11/F11 -> $0.08
B12: Frozen, IQF, Fully cooked, USDA inspected pasteurized whole eggs, | C12: Sunny Fresh/Cargill 40710 | E12: 369/1.25z | F12: 369 | H12: =ROUND($G$11*$F$11/F12,2) -> 0 | I12: Cs | O12: $0.7227 | P12: 21.49 | Q12: =ROUND(O12*P12,2) -> $15.53
B13: Approx. 3" pattie 40-100 calories with no more than 2g sat fat and
B14: 125 mg sodium per serving. One portion to provide min 1 M/MA
B15: Possible Allergens: Egg, Milk, Soy
A17: 3 | B17: Eggs, Scrambled, Pre-Cooked Refrigerated | C17: (18-19) Michael Foods 85877 | E17: 12/1.65z | F17: 165 | G17: 0 | H17: =ROUND($G$17*$F$17/F17,2) -> 0 | I17: Cs | J17: $41.31 | K17: =IF(OR(ISBLANK(J17),G17=0,ISBLANK(G17)),,ROUND(J17+$K$3,2)) -> 0 | L17: =ROUND(H17*K17,2) -> 0 | M17: =ROUND(K17/F17,2) -> 0 | N17: $30.35 | O17: $0.7227 | P17: 15.17 | Q17: =ROUND(O17*P17,2) -> $10.96 | R17: =J17-Q17 -> $30.35 | S17: =R17/F17 -> $0.18 | T17: =N17/F17 -> $0.18
B18: Frozen, IQF, Fully cooked, USDA inspected pasteurized whole eggs,
B19: 45-50 calories with no more than 2g sat fat and 150 mg sodium per
B20: per 1 oz. portions. A 1 oz. portion provides min. 1 M/MA
B21: Possible Allergens: Egg, Milk, Soy
A22: 4 | B22: Eggs, Scrambled, Pre-Cooked, Frozen | C22: Michael Foods 85019 | E22: 4/5 lbs | F22: 320 | G22: 0 | H22: =ROUND($G$22*$F$22/F22,2) -> 0 | I22: Cs | N22: 0 | O22: $0.7227 | P22: 16.8 | Q22: =ROUND(O22*P22,2) -> $12.14 | R22: =J22-Q22 -> $(12.14) | S22: =R22/F22 -> -$0.04 | T22: =N22/F22 -> 0
B23: Frozen, IQF, Fully cooked, USDA Inspected pasteurized whole eggs, | C23: Sunny Fresh/Cargill 40927 | E23: 4/5 lbs | F23: 320 | H23: =ROUND($G$22*$F$22/F23,2) -> 0 | I23: Cs | J23: $39.17 | K23: =IF(OR(ISBLANK(J23),G22=0,ISBLANK(G22)),,ROUND(J23+$K$3,2)) -> 0 | L23: =ROUND(H23*K23,2) -> 0 | M23: =ROUND(K23/F23,2) -> 0 | N23: $25.88 | O23: $0.7227 | P23: 18.93 | Q23: =ROUND(O23*P23,2) -> $13.68 | R23: =J23-Q23 -> $25.49 | S23: =R23/F23 -> $0.08 | T23: =N23/F23 -> $0.08
B24: 45-50 calories with no more than 2g saturated fat and 150 mg sodium
B25: per 1 oz. portions. A 1 oz. portion provides min. 1 M/MA
B27: Possible Allergens: Egg, Milk, Soy
A28: 5 | B28: Egg Omelet Cheddar Cheese | C28: Michael Foods 85037 | E28: 144/2.0z. | F28: 144 | G28: 0 | H28: =ROUND($G$28*$F$28/F28,2) -> 0 | I28: Cs | J28: $45.02 | K28: =IF(OR(ISBLANK(J28),G28=0,ISBLANK(G28)),,ROUND(J28+$K$3,2)) -> 0 | L28: =ROUND(H28*K28,2) -> 0 | M28: =ROUND(K28/F28,2) -> 0 | N28: $35.91 | O28: $0.7227 | P28: 12.61 | Q28: =ROUND(O28*P28,2) -> $9.11 | R28: =J28-Q28 -> $35.91 | S28: =R28/F28 -> $0.25 | T28: =N28/F28 -> $0.25
B29: Frozen, IQF, Fully cooked, USDA inspected pasteurized whole eggs
B30: with cheddar cheese filling. Oven baked, 100-200 calories with no
B31: more than 4 g saturated fat and 300 mg sodium per serving.
B32: CN Labled for one portion to provide min. 2 M/MA
B33: Possible Allergens: Egg, Milk, Soy
A34: 6 | B34: Skillet Frittata w/Egg, Cheese, Veg and Ham, IW | C34: Sunny Fresh/Cargill 40263 | E34: 96/3.35z | F34: 96 | G34: 0 | H34: =ROUND($G$34*$F$34/F34,2) -> 0 | I34: Cs | J34: $55.91 | K34: =IF(OR(ISBLANK(J34),G34=0,ISBLANK(G34)),,ROUND(J34+$K$3,2)) -> 0 | L34: =ROUND(H34*K34,2) -> 0 | M34: =ROUND(K34/F34,2) -> 0 | N34: $48.84 | O34: $0.7227 | P34: 9.77 | Q34: =ROUND(O34*P34,2) -> $7.06 | R34: =J34-Q34 -> $48.85 | S34: =R34/F34 -> $0.51 | T34: =N34/F34 -> $0.51
B35: Frozen, IQF, Fully cooked, 50-200 calories with no more than 5g
B36: sat fat and 550 mg sodium per serving. One portion provides min.
B37: 2 M/MA and 1 OEG
B38: Possible Allergens: Egg, Milk, Soy
A39: 7 | B39: Skillet Frittata w/Egg, Cheese, and Turkey Sausage Bulk | C39: Sunny Fresh/Cargill 40184 | E39: 225/2.20z | F39: 225 | G39: 0 | H39: =ROUND($G$39*$F$39/F39,2) -> 0 | I39: Cs | J39: $80.48 | K39: =IF(OR(ISBLANK(J39),G39=0,ISBLANK(G39)),,ROUND(J39+$K$3,2)) -> 0 | L39: =ROUND(H39*K39,2) -> 0 | M39: =ROUND(K39/F39,2) -> 0 | N39: $64.32 | O39: $0.7227 | P39: 22.36 | Q39: =ROUND(O39*P39,2) -> $16.16 | R39: =J39-Q39 -> $64.32 | S39: =R39/F39 -> $0.29 | T39: =N39/F39 -> $0.29
B40: Frozen, IQF, Fully cooked, 50-150 calories with no more than 4g
B41: saturated fat and 350 mg sodium per serving. One portion provides
B42: min 2 M/MA
B43: Possible Allergens: Egg, Milk, Soy
A45: 8 | B45: Eggs, Hard Cooked, Peeled, Pillow -Pak/Dry Packed | C45: Michael Foods 85018 | E45: 12/12 | F45: 144 | G45: 0 | H45: =ROUND($G$45*$F$45/F45,2) -> 0 | I45: Cs | N45: $14.55 | O45: $0.7227 | P45: 15 | Q45: =ROUND(O45*P45,2) -> $10.84 | R45: =J45-Q45 -> $(10.84) | S45: $0.10 | T45: =N45/F45 -> $0.10
B46: Frozen, IQF, Fully cooked, 50-150 calories with no more than 4 g | C46: Sunny Fresh/Cargill 50038 | E46: 8/18 | F46: 144 | H46: =ROUND($G$45*$F$45/F46,2) -> 0 | I46: Cs | N46: 0 | O46: $0.7227 | P46: 14.04 | Q46: =ROUND(O46*P46,2) -> $10.15 | R46: =J46-Q46 -> $(10.15) | S46: =R46/F46 -> -$0.07 | T46: =N46/F46 -> 0
B47: saturated fat and 350 mg sodium per serving. One portion provides | C47: Allmark 71212 | E47: 12/12 | F47: 144 | H47: 0 | I47: Cs | J47: $19.44 | K47: =IF(OR(ISBLANK(J47),G45=0,ISBLANK(G45)),,ROUND(J47+$K$3,2)) -> 0 | L47: =ROUND(H47*K47,2) -> 0 | M47: =ROUND(K47/F47,2) -> 0
B48: 2 M/MA
B49: Possible Allergens: Egg, Milk, Soy
A50: 9 | B50: French Toast Sticks, WG Cinnamon IW | C50: (18-19) Sunny Fresh/Cargill 40094 | E50: 110/2.90z | F50: 110 | G50: 0 | H50: =ROUND(G50*F50/F50,2) -> 0 | I50: Cs | J50: $51.74 | K50: =IF(OR(ISBLANK(J50),G50=0,ISBLANK(G50)),,ROUND(J50+$K3,2)) -> 0 | L50: =ROUND(H50*K50,2) -> 0 | M50: =ROUND(K50/F50,2) -> 0 | N50: $47.23 | O50: $0.7227 | P50: 6.24 | Q50: =ROUND(O50*P50,2) -> $4.51 | R50: =J50-Q50 -> $47.23 | S50: =R50/F50 -> $0.43 | T50: =N50/F50 -> $0.43
B51: Frozen, Heat and Serve, 150-250 calories with no more than 2 g sat
B52: fat and 350 mg sodium per svg. CN Labeled for three (3) sticks to
B53: provide min. 1 M/MA and 1.5 OEG
B54: Possible Allergens: Milk, Soy, Wheat
G56: 0 | I56: Page Total | L56: =SUMIF(L8:L50,">0") -> 0

Sheet Frozen Potato
B1: ='Recap Sheet'!A2 -> School Food Authority: | E1: ='Recap Sheet'!A3 -> Offeror Name: | O1: Commodity
B2: ='Recap Sheet'!B2 -> Colleton County School District Office of Student Nutrition | C2: Return to Recap Sheet | E2: ='Recap Sheet'!B3 -> 0
A3: Item | B3: Description | C3: Approved Brand Name / Manuf ID # | F3: Firm Fixed Fee | K3: ='Recap Sheet'!B4 -> $0.00 | N3: Processing | O3: Commodity | P3: Pounds of | R3: NOI | S3: Net NOI | T3: Total Cost
A4: # | D4: Distributor | E4: Vendor | F4: Svgs | G4: Est. | H4: Bid | I4: Bid | J4: Unit | K4: Unit Price | L4: Total | M4: Cost per | N4: Fee For | O4: Value Per | P4: DF Needed | Q4: Commodity | R4: Net | S4: Cost Per | T4: Processing Fee
D5: Code | E5: Pack | F5: per unit | G5: Bid Qty | H5: Qty | I5: Unit | J5: Price | K5: plus Fee | L5: Price | M5: Unit | N5: Service | O5: Pound | P5: Per Case | Q5: Value | R5: Price | S5: Serving | T5: Per Serving
B6: Potato Products, Frz | O6: Commodity 100506
A8: 1 | B8: French Fries, 3/8"-1/2", Crinkle Cut, Ovenable, Low Sodium | C8: McCain OIF00055A | E8: 6/5 Lb | F8: 160 | G8: 0 | H8: =ROUND(G8*F8/F8,2) -> 0 | I8: Cs | N8: 0 | O8: $0.1394 | P8: 54.55 | Q8: =ROUND(O8*P8,2) -> $7.60 | T8: =N8/F8 -> 0
B9: Frozen. Made from white, USDA Grade A potatoes. Extra Long or Long Fancy. | C9: Lamb Weston R45 | E9: 6/5 Lb | F9: 160 | H9: =ROUND(G8*F8/F9,2) -> 0 | I9: Cs | N9: 0 | O9: $0.1394 | P9: 54.55 | Q9: =ROUND(O9*P9,2) -> $7.60 | T9: 0
B10: No tropical oils, 0 trans fat, 100-150 calories, no more than 1g sat fat and no more than | C10: Simplot 71179221227 | E10: 6/5 Lb | F10: 160 | H10: =ROUND(G8*F8/F10,2) -> 0 | I10: Cs | J10: $19.40 | K10: =IF(OR(ISBLANK(J10),G8=0,ISBLANK(G8)),,ROUND(J10+$K$3,2)) -> 0 | L10: =ROUND(H10*K10,2) -> 0 | M10: =ROUND(K10/F10,2) -> 0 | N10: $11.80 | O10: $0.1394 | P10: 54.55 | Q10: =ROUND(O10*P10,2) -> $7.60 | R10: =J10-Q10 -> $11.80 | S10: =R10/F10 -> $0.07 | T10: =N10/F10 -> $0.07
B11: 50 mg sodium per 1/2c svg
B12: Possible Allergens: None Listed
A13: 2 | B13: French Fries, 3/8" Straight Cut, Ovenable, Low Sodium | C13: Simplot 71179026709 | E13: 6/5 Lb | F13: 160 | G13: 0 | H13: =ROUND($G$13*$F$13/F13,2) -> 0 | I13: Cs | J13: $24.20 | K13: =IF(OR(ISBLANK(J13),G13=0,ISBLANK(G13)),,ROUND(J13+$K$3,2)) -> 0 | L13: =ROUND(H13*K13,2) -> 0 | M13: =ROUND(K13/F13,2) -> 0 | N13: $16.60 | O13: $0.1394 | P13: 54.55 | Q13: =ROUND(O13*P13,2) -> $7.60 | R13: =J13-Q13 -> $16.60 | S13: =R13/F13 -> $0.10 | T13: =N13/F13 -> $0.10
B14: Frozen, Made from white, USDA Grade A potatoes. Extra Long or Long Fancy.
B15: No tropical oils, 0 trans fat, 100-150 calories, no more than 1g sat fat and no more than
B16: 30 mg sodium per 1/2c svg
B17: Possible Allergens: None Listed
A18: 3 | B18: French Fries, Shoestring 1/4-5/16", Coated | C18: Lamb Weston S34 | E18: 6/4.5 Lb | F18: 144 | G18: 0 | H18: =ROUND($G$18*$F$18/F18,2) -> 0 | I18: Cs | N18: 0 | O18: $0.1394 | P18: 49.09 | Q18: =ROUND(O18*P18,2) -> $6.84
B19: Frozen, USDA LF or XLF, Grade A, Low moisture, 100-150 than 1 g saturated fat and | C19: Simplot 71179036357 | E19: 6/5 Lb | F19: 200 | H19: =ROUND($G$18*$F$18/F19,2) -> 0 | I19: Cs | N19: 0 | O19: $0.1394 | P19: 54.55 | Q19: =ROUND(O19*P19,2) -> $7.60 | R19: =K19-Q19 -> -$7.60 | S19: =R19/F19 -> $(0.04) | T19: =N19/F19 -> 0
B20: 300 mg sodium per 1/2 cup veg serving | C20: Cavendish 56210-05311-2 | E20: 6/4.5 lb | F20: 191 | H20: =ROUND($G$18*$F$18/F20,2) -> 0 | I20: Cs | J20: $20.79 | K20: =IF(OR(ISBLANK(J20),G18=0,ISBLANK(G18)),,ROUND(J20+$K$3,2)) -> 0 | L20: =ROUND(H20*K20,2) -> 0 | M20: =ROUND(K20/F20,2) -> 0 | N20: 0 | O20: $0.1394 | P20: 49.09 | Q20: $6.84 | R20: =J20-Q20 -> $13.95 | S20: =R20/F20 -> $0.07 | T20: =N20/F20 -> 0
B21: Possible Allergens: None Listed
A22: 4 | B22: French Fries, 3/8", Regular cut (Fried or Baked) Coated | C22: Lamb Weston S57 | E22: 6/5 Lb | F22: 160 | G22: 0 | H22: =ROUND(G22*F22/F22,2) -> 0 | I22: Cs | N22: 0 | O22: $0.1394 | P22: 54.55 | Q22: =ROUND(O22*P22,2) -> $7.60 | T22: =N22/F22 -> 0
B23: Frozen. Made from white, USDA Grade A potatoes, Extra Long or Long Fancy. | C23: McCain MCF03788 | E23: 6/5 Lb | F23: 160 | H23: =ROUND(G22*F22/F23,2) -> 0 | I23: Cs | J23: $23.95 | K23: =IF(OR(ISBLANK(J23),G22=0,ISBLANK(G22)),,ROUND(J23+$K$3,2)) -> 0 | L23: =ROUND(H23*K23,2) -> 0 | M23: =ROUND(K23/F23,2) -> 0 | N23: 0 | O23: $0.1394 | P23: 54.55 | Q23: =ROUND(O23*P23,2) -> $7.60 | R23: =J23-Q23 -> $16.35 | S23: =R23/F23 -> $0.10 | T23: 0
B24: No tropical oils, 0 trans fat, 50-150 calories, no more than 1g sat fat and no more than
B25: 400 mg sodium per 1/2c svg
B26: Possible Allergens: None Listed
A27: 5 | B27: French Fries, 3/8" Straight Cut, (ovenable), Reduced Sodium, Seasoned | C27: McCain MCX04717 | E27: 6/5 Lb | F27: 160 | G27: 350 | H27: =ROUND(G27*F27/F27,2) -> 350 | I27: Cs | J27: $29.95 | K27: =IF(OR(ISBLANK(J27),G27=0,ISBLANK(G27)),,ROUND(J27+$K$3,2)) -> $29.95 | L27: =ROUND(H27*K27,2) -> $10,482.50 | M27: =ROUND(K27/F27,2) -> $0.19 | N27: 0 | O27: $0.1394 | P27: 54.55 | Q27: =ROUND(O27*P27,2) -> $7.60 | R27: =J27-Q27 -> $22.35 | S27: =R27/F27 -> $0.14 | T27: =N27/F27 -> 0
B28: Frozen. Made from white, USDA Grade A potatoes, Extra Long or Long Fancy with a blend
B29: of spices. 100-150 Calories with 1g Sat fat and 150 mg Sodium per 1/2 c serving
B30: No tropical oils. 0 Trans Fat.
B31: Possible Allergens: None Listed
A32: 6 | B32: Potato Baby Bakers | C32: Simplot 71179000488 | E32: 6/2.5 lbs | F32: 73 | G32: 200 | H32: =ROUND(G32*F32/F32,2) -> 200 | I32: Cs | J32: $24.30 | K32: =IF(OR(ISBLANK(J32),G32=0,ISBLANK(G32)),,ROUND(J32+$K$3,2)) -> $24.30 | L32: =ROUND(H32*K32,2) -> $4,860.00 | M32: =ROUND(K32/F32,2) -> $0.33 | N32: $21.69 | O32: $0.1394 | P32: 18.75 | Q32: =ROUND(O32*P32,2) -> $2.61 | R32: =J32-Q32 -> $21.69 | S32: =R32/F32 -> $0.30 | T32: =N32/F32 -> $0.30
B33: Frozen, whole miniature potatoes seasoned with garlic and black pepper, bake and serve,
B34: 80-150 cals with no more than 1 g sat fat and 200 mg sodium per 1/2 cup vegetable serving
B35: Possible Allergens: None Listed
A36: 7 | B36: Potato Roasters | C36: McCain MCF03927 | E36: 6/5 Lb | F36: 160 | G36: 0 | H36: =ROUND(G36*F36/F36,2) -> 0 | I36: Cs | J36: $30.55 | K36: =IF(OR(ISBLANK(J36),G36=0,ISBLANK(G36)),,ROUND(J36+$K$3,2)) -> 0 | L36: =ROUND(H36*K36,2) -> 0 | M36: =ROUND(K36/F36,2) -> 0 | N36: 0 | O36: $0.1394 | P36: 54.55 | Q36: =ROUND(O36*P36,2) -> $7.60 | R36: =J36-Q36 -> $22.95 | S36: =R36/F36 -> $0.14 | T36: =N36/F36 -> 0
B37: Frozen, diced, roasted potatoes seasoned with garlic, rosemary and herbs, bake and serve,
B38: 100-200 cals with no more than 1 g sat fat and 200 mg of sodium per 1/2 c vegetable svg
B39: Possible Allergens: None Listed
A40: 8 | B40: Potato Rounds/Tots | C40: Lamb Weston H30 | E40: 6/5 Lb | F40: 160 | G40: 0 | H40: =ROUND(G40*F40/F40,2) -> 0 | I40: Cs | O40: $0.1394 | P40: 54.55 | Q40: =ROUND(O40*P40,2) -> $7.60
B41: Frozen, Grade A, Crisp golden brown exterior, 100-200 calories with no more than 2 g | C41: McCain/Ore-Ida OIF00215A | E41: 6/5 Lb | F41: 160 | H41: =ROUND(G40*F40/F41,2) -> 0 | I41: Cs | J41: $22.30 | K41: =IF(OR(ISBLANK(J41),G40=0,ISBLANK(G40)),,ROUND(J41+$K$3,2)) -> 0 | L41: =ROUND(H41*K41,2) -> 0 | M41: =ROUND(K41/F41,2) -> 0 | O41: $0.1394 | P41: 54.55 | Q41: =ROUND(O41*P41,2) -> $7.60 | R41: =J41-Q41 -> $14.70 | S41: =R41/F41 -> $0.09 | T41: =N41/F41 -> 0
B42: sat fat and 350 mg per 1/2 c vegetable serving | C42: Simplot 71179004189 | E42: 6/5 Lb | F42: 160 | H42: =ROUND(G40*F40/F42,2) -> 0 | I42: Cs | N42: 0 | O42: $0.1394 | P42: 54.55 | Q42: =ROUND(O42*P42,2) -> $7.60 | R42: =K42-Q42 -> -$7.60 | T42: =N42/F42 -> 0
B43: Possible Allergens: Soy
A44: 9 | B44: Potato Rounds/Tots, Low Sodium | C44: (18-19) McCain/Ore-Ida 1000002789 | E44: 6/5 Lb | F44: 156 | G44: 0 | H44: =ROUND(G44*F44/F44,2) -> 0 | I44: Cs | J44: $29.50 | K44: =IF(OR(ISBLANK(J44),G44=0,ISBLANK(G44)),,ROUND(J44+$K$3,2)) -> 0 | L44: =ROUND(H44*K44,2) -> 0 | M44: =ROUND(K44/F44,2) -> 0 | N44: 0 | O44: $0.1394 | P44: 54.55 | Q44: =ROUND(O44*P44,2) -> $7.60 | R44: =J44-Q44 -> $21.90 | S44: =R44/F44 -> $0.14 | T44: =N44/F44 -> 0
B45: Frozen, Grade A, Crisp golden brown exterior, 90-200 calories with no more than 2 g sat fat
B46: and 170 mg sodium per 1/2 c vegetable serving
B47: Possible Allergens: None Listed
A48: 10 | B48: Potato, Shaped | C48: McCain/Ore-Ida OIF03456 | E48: 6/4 lb | F48: 128 | G48: 0 | H48: =ROUND(G48*F48/F48,2) -> 0 | I48: Cs | N48: 0 | O48: $0.1394 | P48: 43.64 | Q48: =ROUND(O48*P48,2) -> $6.08
B49: Frozen, mashed and formed, 100-200 calories with no more than 1 g sat fat and 200 mg | C49: Lamb Weston S0026 | E49: 6/5 lb | F49: 160 | H49: =ROUND(G48*F48/F49,2) -> 0 | I49: Cs | J49: $31.19 | K49: =IF(OR(ISBLANK(J49),G48=0,ISBLANK(G48)),,ROUND(J49+$K$3,2)) -> 0 | L49: =ROUND(H49*K49,2) -> 0 | M49: =ROUND(K49/F49,2) -> 0 | N49: 0 | O49: $0.1394 | P49: 54.55 | Q49: =ROUND(O49*P49,2) -> $7.60 | R49: =J49-Q49 -> $23.59 | S49: =R49/F49 -> $0.15 | T49: =N49/F49 -> 0
B50: sodium per 1/2 c vegetable serving
B51: Possible Allergens: None Listed
A52: 11 | B52: Potato, Emoticon Mashed Potato Shapes | C52: McCain 1000006639 | E52: 6/4 lbs | F52: 128 | G52: 250 | H52: =ROUND(G52*F52/F52,2) -> 250 | I52: Cs | J52: $26.16 | K52: =IF(OR(ISBLANK(J52),G52=0,ISBLANK(G52)),,ROUND(J52+$K$3,2)) -> $26.16 | L52: =ROUND(H52*K52,2) -> $6,540.00 | M52: =ROUND(K52/F52,2) -> $0.20 | N52: 0 | O52: $0.1394 | P52: 36.22 | Q52: =ROUND(O52*P52,2) -> $5.05 | R52: =J52-Q52 -> $21.11 | S52: =R52/F52 -> $0.16 | T52: =N52/F52 -> 0
B53: Frozen, mashed and formed, 100-200 calories with no more than 1 g sat fat and 200 mg
B54: sodium per 1/2 c vegetable serving. Four pieces is equal to 1/2 cup serving
B55: Possible Allergens: None Listed
A56: 12 | B56: French Fries, Spirals, Battered Red Sodium | C56: (18-19) McCain/Ore-Ida 1000004108 | E56: 6/4 lbs | F56: 183 | G56: 0 | H56: =ROUND(G56*F56/F56,2) -> 0 | I56: Cs | J56: $24.48 | K56: =IF(OR(ISBLANK(J56),G56=0,ISBLANK(G56)),,ROUND(J56+$K$3,2)) -> 0 | L56: =ROUND(H56*K56,2) -> 0 | M56: =ROUND(K56/F56,2) -> 0 | N56: 0 | O56: $0.1394 | P56: 43.64 | Q56: =ROUND(O56*P56,2) -> $6.08 | R56: =J56-Q56 -> $18.40 | S56: =R56/F56 -> $0.10 | T56: =N56/F56 -> 0
B57: Frozen, USDA Grade A, 100-200 calories with no more thatn 1 g saturated fat and 200 mg
B58: sodium per 1/2 c vegetable serving
B59: Possible Allergens: None Listed
A60: 13 | B60: Potato Sticks, Seasoned Reduced Sodium | C60: McCain MCX04717 | E60: 6/5 Lb | F60: 160 | G60: 50 | H60: =ROUND(G60*F60/F60,2) -> 50 | I60: Cs | J60: $29.95 | K60: =IF(OR(ISBLANK(J60),G60=0,ISBLANK(G60)),,ROUND(J60+$K$3,2)) -> $29.95 | L60: =ROUND(H60*K60,2) -> $1,497.50 | M60: =ROUND(K60/F60,2) -> $0.19 | N60: 0 | O60: $0.1394 | P60: 54.55 | Q60: =ROUND(O60*P60,2) -> $7.60 | R60: =J60-Q60 -> $22.35 | S60: =R60/F60 -> $0.14 | T60: =N60/F60 -> 0
B61: Frozen, USDA Grade A 100-200 calories with no more than 1 g sat fat and 150 mg sodium
B62: per 1/2 c veg svg.
B63: Possible Allergens: None Listed
A64: 14 | B64: Potato Waffle Cut | C64: McCain/Ore-Ida MCL03623 | E64: 6/5 Lb | F64: 144 | G64: 0 | H64: =ROUND(G64*F64/F64,2) -> 0 | I64: Cs | J64: $25.10 | K64: =IF(OR(ISBLANK(J64),G64=0,ISBLANK(G64)),,ROUND(J64+$K$3,2)) -> 0 | L64: =ROUND(H64*K64,2) -> 0 | M64: =ROUND(K64/F64,2) -> 0 | N64: 0 | O64: $0.1394 | P64: 49.09 | Q64: =ROUND(O64*P64,2) -> $6.84 | R64: =J64-Q64 -> $18.26 | S64: =R64/F64 -> $0.13 | T64: =N64/F64 -> 0
B65: Frozen, USDA Grade A, 100-200 calories with no more than 2 g saturated fat and 600 mg
B66: sodium per 1/2 c vegetable serving
B67: Possible Allergens: None Listed
A68: 15 | B68: Potato Wedge, 8-10 Cut, (Bake or Fry) | C68: McCain/Ore-Ida OIF0024A | E68: 6/5 Lb | F68: 160 | G68: 0 | H68: =ROUND(G68*F68/F68,2) -> 0 | I68: Cs | N68: 0 | O68: $0.1394 | P68: 54.55 | Q68: =ROUND(O68*P68,2) -> $7.60
B69: Frozen, USDA Grade A, 50-150 calories with no more than 1 g saturated fat and 50 mg | C69: Simplot 71179238010 | E69: 6/5 Lb | F69: 160 | H69: =ROUND(G68*F68/F69,2) -> 0 | I69: Cs | J69: $21.20 | K69: =IF(OR(ISBLANK(J69),G68=0,ISBLANK(G68)),,ROUND(J69+$K$3,2)) -> 0 | L69: =ROUND(H69*K69,2) -> 0 | M69: =ROUND(K69/F69,2) -> 0 | N69: $13.60 | O69: $0.1394 | P69: 54.55 | Q69: =ROUND(O69*P69,2) -> $7.60 | R69: =J69-Q69 -> $13.60 | S69: =R69/F69 -> $0.09 | T69: =N69/F69 -> $0.09
B70: sodium per 1/2 c vegetable serving
B71: Possible Allergens: None Listed
A72: 16 | B72: Hash Brown Rounds | C72: (18-19_ McCain 1000006188 | E72: 6/5 Lb | F72: 160 | G72: 100 | H72: =ROUND(G72*F72/F72,2) -> 100 | I72: Cs | J72: $31.00 | K72: =IF(OR(ISBLANK(J72),G72=0,ISBLANK(G72)),,ROUND(J72+$K$3,2)) -> $31.00 | L72: =ROUND(H72*K72,2) -> $3,100.00 | M72: =ROUND(K72/F72,2) -> $0.19 | N72: 0 | O72: $0.1394 | P72: 54.55 | Q72: =ROUND(O72*P72,2) -> $7.60 | R72: =K72-Q72 -> $23.40 | S72: =R72/F72 -> $0.15 | T72: =N72/F72 -> 0
B73: Frozen, USDA Grade A, 50-150 calories with no more than 1 g saturated fat and 250 mg
B74: sodium per 1/2c vegetable serving
B75: Possible Allergens: None Listed
B76: Category: Sweet Potatoes | O76: Commodity | P76: 100980
A77: 17 | B77: Potato, Sweet Potato Fries, 3/8" Crinkle Cut | C77: Lamb Weston L0084 | E77: 5/3 Lb | F77: 80 | G77: 0 | H77: =ROUND(G77*F77/F77,2) -> 0 | I77: Cs | N77: 0 | O77: $0.1575 | P77: 29.41 | Q77: =ROUND(O77*P77,2) -> $4.63
B78: Frozen, Grade A, 80-200 calories with no more than 1 g sat fat and 250 mg sodium per | C78: Simplot 71179020356 | E78: 6/2.5 Lb | F78: 80 | H78: =ROUND(G77*F77/F78,2) -> 0 | I78: Cs | J78: $21.20 | K78: =IF(OR(ISBLANK(J78),G77=0,ISBLANK(G77)),,ROUND(J78+$K$3,2)) -> 0 | L78: =ROUND(H78*K78,2) -> 0 | M78: =ROUND(K78/F78,2) -> 0 | N78: $16.95 | O78: $0.1575 | P78: 29.41 | Q78: =ROUND(O78*P78,2) -> $4.63 | R78: =J78-Q78 -> $16.57 | S78: =R78/F78 -> $0.21 | T78: =N78/F78 -> $0.21
B79: 1/2 c Red/Orange Veg serving
B80: Possible Allergens: None Listed
A81: 18 | B81: Potato, Sweet Potato Fries 3/8" Straight Cut | C81: Lamb Weston L8000 | E81: 5/3 Lb | F81: 80 | G81: 0 | H81: =ROUND(G81*F81/F81,2) -> 0 | I81: Cs | J81: $21.36 | K81: =IF(OR(ISBLANK(J81),G81=0,ISBLANK(G81)),,ROUND(J81+$K$3,2)) -> 0 | L81: =ROUND(H81*K81,2) -> 0 | M81: =ROUND(K81/F81,2) -> 0 | N81: $0.2231 | O81: $0.2231 | P81: 29.41 | Q81: =ROUND(O81*P81,2) -> $6.56 | S81: =K81-Q81 -> $(6.56) | T81: =S81/F81 -> $(0.08)
B82: Frozen, Grade A, 80-200 calories with no more than 1 g sat fat and 250 mg sodium per
B83: 1/2 c Red/Orange Veg serving
B84: Possible Allergens: None Listed
A85: 19 | B85: Potato, Sweet Potato, Waffle Cut | C85: Lamb Weston L0090 | E85: 5/3 Lb | F85: 80 | G85: 0 | H85: =ROUND(G85*F85/F85,2) -> 0 | I85: Cs | N85: 0 | O85: $0.1575 | P85: 29.41 | Q85: =ROUND(O85*P85,2) -> $4.63 | R85: =K85-Q85 -> -$4.63 | T85: =N85/F85 -> 0
B86: Frozen, Grade A. 50-200 calories with no more than 2 g sat fat and 250 mg sodium per | C86: McCain MCF05074 | E86: 6/2.5 lbs | F86: 80 | H86: =ROUND(G85*F85/F86,2) -> 0 | I86: Cs | J86: $21.95 | K86: =IF(OR(ISBLANK(J86),G85=0,ISBLANK(G85)),,ROUND(J86+$K$3,2)) -> 0 | L86: =ROUND(H86*K86,2) -> 0 | M86: =ROUND(K86/F86,2) -> 0 | N86: 0 | O86: $0.1575 | P86: 29.41 | Q86: =ROUND(O86*P86,2) -> $4.63 | R86: =J86-Q86 -> $17.32 | S86: =R86/F86 -> $0.22 | T86: 0
B87: 1/2 c Red/Orange Veg serving
B88: Possible Allergens: None Listed
A89: 20 | B89: Sweet Potato Mini Puffs | C89: Lamb Weston L0094 | E89: 6/2.5 lbs | F89: 80 | G89: 0 | H89: =ROUND(G89*F89/F89,2) -> 0 | I89: Cs | J89: $25.09 | K89: =IF(OR(ISBLANK(J89),G89=0,ISBLANK(G89)),,ROUND(J89+$K$3,2)) -> 0 | L89: =ROUND(H89*K89,2) -> 0 | M89: =ROUND(K89/F89,2) -> 0 | N89: 0 | O89: $0.1575 | P89: 29.41 | Q89: =ROUND(O89*P89,2) -> $4.63 | R89: =J89-Q89 -> $20.46 | S89: =R89/F89 -> $0.26 | T89: =N89/F89 -> 0
B90: Frozen. Grade A , 100-200 calories with no more than 1 g sat fat and 250 mg
B91: and 250 mg sodium per 1/2 c Red/Orange Veg.
B92: Possible Allergens: None Listed
A93: 21 | B93: Sweet Potato Wedge, 10 cut | C93: McCain MCF04712 | E93: 6/2.5 lbs | F93: 80 | G93: 100 | H93: =ROUND(G93*F93/F93,2) -> 100 | I93: Cs | J93: $21.35 | K93: =IF(OR(ISBLANK(J93),G93=0,ISBLANK(G93)),,ROUND(J93+$K$3,2)) -> $21.35 | L93: =ROUND(H93*K93,2) -> $2,135.00 | M93: =ROUND(K93/F93,2) -> $0.27 | N93: 0 | O93: $0.1575 | P93: 29.41 | Q93: =ROUND(O93*P93,2) -> $4.63 | R93: =J93-Q93 -> $16.72 | S93: =R93/F93 -> $0.21 | T93: =N93/F93 -> 0
B94: Frozen, Grade A 100-200 calories with no more than 1 g sat fat and 250 mg sodium per
B95: 1/2 c Red/Orange Veg serving
B96: Possible Allergens: None Listed
I98: Page Total | L98: =SUMIF(L6:L96,">0") -> $28,615.00

Sheet Shelf-stable Fruit& Juice
B1: ='Recap Sheet'!A2 -> School Food Authority: | E1: ='Recap Sheet'!A3 -> Offeror Name: | O1: Commodity
B2: ='Recap Sheet'!B2 -> Colleton County School District Office of Student Nutrition | C2: Return to Recap Sheet | E2: ='Recap Sheet'!B3 -> 0
A3: Item | B3: Description | C3: Approved Brand Name / Manuf ID # | F3: Firm Fixed Fee | K3: ='Recap Sheet'!B4 -> $0.00 | N3: Processing | O3: Commodity | P3: Pounds of | R3: Net | S3: Net NOI | T3: Total Cost
A4: # | B4: Federal Regulations require that all foods purchased for Child Nutrition Programs be of "domestic origin" to the | D4: Distributor | E4: Vendor | F4: Svgs | G4: Est. | H4: Bid | I4: Bid | J4: Unit | K4: Unit Price | L4: Total | M4: Cost per | N4: Fee for | O4: Value Per | P4: DF Needed | Q4: Commodity | R4: NOI | S4: Cost Per | T4: Processing Fee
B5: maximum extent possible with two exceptions. In addition, mandarin oranges & pineapple are exempt from requirement. | D5: Code | E5: Pack | F5: per unit | G5: Bid Qty | H5: Qty | I5: Unit | J5: Price | K5: plus Fee | L5: Price | M5: Unit | N5: Service | O5: Pound | P5: Per Case | Q5: Value | R5: Price | S5: Serving | T5: Per Serving
B6: Shelf-stable Fruit | O6: Apples 110149 Apples for Further Processing
A7: 1 | B7: Applesauce, Cups, Sweetened | C7: National Food Group A1500-282A | E7: 96/4.5z | F7: 96 | G7: 0 | H7: =ROUND($G$7*$F$7/F7,2) -> 0 | I7: Cs | J7: $19.98 | K7: =IF(OR(ISBLANK(J7),G7=0,ISBLANK(G7)),,ROUND(J7+$K$3,2)) -> 0 | L7: =ROUND(H7*K7,2) -> 0 | M7: =ROUND(K7/F7,2) -> 0 | N7: 0 | O7: $0.3956 | P7: 10 | Q7: =ROUND(O7*P7,2) -> $3.96 | R7: =J7-Q7 -> $16.02 | S7: =R7/F7 -> $0.17 | T7: =N7/F7 -> 0
B8: Shelf Stable, Individual portion cup, color foil or mylar top | C8: White House/Ntl Fruit 718-1884 | E8: 96/4.5z | F8: 96 | H8: =ROUND($G$7*$F$7/F8,2) -> 0 | I8: Cs | T8: =N8/F8 -> 0
B9: One portion provides 1/2 c FV for CN programs No Imports
A10: 2 | B10: Applesauce, Cups, Unsweetened | C10: National Food Group A3500-282A | E10: 96/4.5z | F10: 96 | G10: 0 | H10: =ROUND($G$10*$F$10/F10,2) -> 0 | I10: Cs | N10: 0 | O10: $0.3956 | P10: 10 | Q10: =ROUND(O10*P10,2) -> $3.96 | R10: $16.02 | S10: $0.17 | T10: =N10/F10 -> 0
B11: Shelf Stable, Individual portion cup, color foil or mylar top | C11: Motts 100065615 | E11: 72/4.5z | F11: 72 | H11: =ROUND($G$10*$F$10/F11,2) -> 0 | I11: Cs | J11: $13.68 | K11: =IF(OR(ISBLANK(J11),G10=0,ISBLANK(G10)),,ROUND(J11+$K$3,2)) -> 0 | L11: =ROUND(H11*K11,2) -> 0 | M11: =ROUND(K11/F11,2) -> 0 | T11: =N11/F11 -> 0
B12: One portion provides 1/2 c FV for CN programs No Imports | C12: Knouse (Musselman) FASU1350 | E12: 96/4.5z | F12: 96 | H12: 0 | I12: Cs | T12: 0
C13: White House/Ntl Fruit 717-1884 | E13: 96/4.5z | F13: 96 | H13: 0 | I13: Cs | T13: 0
A14: 3 | B14: Applesauce, Strawberry Flavor, Shelf Stable Cup | C14: National Food Group A1590-235A | E14: 96/4.,5z | F14: 96 | G14: 0 | H14: =ROUND($G$14*$F$14/F14,2) -> 0 | I14: Cs | N14: 0 | O14: $0.3956 | P14: 10 | Q14: =ROUND(O14*P14,2) -> $3.96 | R14: $16.02 | S14: $0.17 | T14: 0
B15: Shelf Stable, Individual portion cup, color foil or mylar top | C15: Motts 10065614 | E15: 72/4.5z | F15: 72 | H15: =ROUND($G$14*$F$14/F15,2) -> 0 | I15: Cs | J15: $13.68 | K15: =IF(OR(ISBLANK(J15),G14=0,ISBLANK(G14)),,ROUND(J15+$K$3,2)) -> 0 | L15: =ROUND(H15*K15,2) -> 0 | M15: =ROUND(K15/F15,2) -> 0 | T15: 0
B16: One portion provides 1/2 c FV for CN programs No Imports | C16: Knouse (Musselman) FASU1403 | E16: 96/4.5z | F16: 96 | H16: =ROUND($G$14*$F$14/F16,2) -> 0 | I16: Cs | T16: 0
A17: 4 | B17: Applesauce, Strawberry Banana Flavor, Shelf Stable Cup | C17: National Food Group A3790-235A | E17: 96/4.,5z | F17: 96 | G17: 0 | H17: =ROUND($G$17*$F$17/F17,2) -> 0 | I17: Cs | J17: $23.25 | K17: =IF(OR(ISBLANK(J17),G17=0,ISBLANK(G17)),,ROUND(J17+$K$3,2)) -> 0 | L17: =ROUND(H17*K17,2) -> 0 | M17: =ROUND(K17/F17,2) -> 0 | N17: 0 | O17: $0.3956 | P17: 10 | Q17: =ROUND(O17*P17,2) -> $3.96 | R17: =J17-Q17 -> $19.29 | S17: =R17/F17 -> $0.20 | T17: =N17/F17 -> 0
B18: Shelf Stable, Individual portion cup, color foil or mylar top
B19: One portion provides 1/2 c FV for CN programs No Imports
A20: 5 | B20: Applesauce, Cinnamon, Shelf Stable Cup | C20: National Food Group A1510-282A | E20: 96/4.5z | F20: 96 | G20: 0 | H20: =ROUND($G$20*$F$20/F20,2) -> 0 | I20: Cs | J20: $23.25 | K20: =IF(OR(ISBLANK(J20),G20=0,ISBLANK(G20)),,ROUND(J20+$K$3,2)) -> 0 | L20: =ROUND(H20*K20,2) -> 0 | M20: =ROUND(K20/F20,2) -> 0 | N20: 0 | O20: $0.3956 | P20: 10 | Q20: =ROUND(O20*P20,2) -> $3.96 | R20: =J20-Q20 -> $19.29 | S20: =R20/F20 -> $0.20 | T20: =N20/F20 -> 0
B21: Shelf Stable, Individual portion cup, color foil or mylar top
B22: One portion provides 1/2 c FV for CN programs No Imports
A23: 6 | B23: Applesauce, Blue Raspberry, Shelf Stable Cups | C23: National Food Group A3530-282A | E23: 96/4.5z | F23: 96 | G23: 0 | H23: =ROUND($G$23*$F$23/F23,2) -> 0 | I23: Cs | J23: $23.25 | K23: =IF(OR(ISBLANK(J23),G23=0,ISBLANK(G23)),,ROUND(J23+$K$3,2)) -> 0 | L23: =ROUND(H23*K23,2) -> 0 | M23: =ROUND(K23/F23,2) -> 0 | N23: 0 | O23: $0.3956 | P23: 10 | Q23: =ROUND(O23*P23,2) -> $3.96 | R23: =J23-Q23 -> $19.29 | S23: =R23/F23 -> $0.20 | T23: 0
B24: Shelf Stable, Individual portion cup, color foil or mylar top
B25: One portion provides 1/2 c FV for CN programs No Imports
A26: 7 | B26: Apples, Sliced | C26: Distributor Choice | E26: 6/#10 | F26: 6 | G26: 0 | H26: =ROUND(G26*F26/F26,2) -> 0 | I26: Cs
B27: Grade A, Minimum score 90 or above, Fancy. Solid pack, sliced, peeled, | C27: Fillable txt box or unprotected | H27: =ROUND(G26*F26/F27,2) ->  | I27: Cs | K27: =IF(OR(ISBLANK(J27),G26=0,ISBLANK(G26)),,ROUND(J27+$K$3,2)) -> 0 | L27: =ROUND(H27*K27,2) ->  | M27: =ROUND(K27/F27,2) -> 
B28: water pack. Domestic origin. No imports. Minimum drained weight 7#
A29: 8 | B29: Applesauce (No imports) | C29: Distributor Choice | E29: 6/#10 | F29: 6 | G29: 0 | H29: =ROUND(G29*F29/F29,2) -> 0 | I29: Cs
B30: Regular, sweetened, Grade A, Minimum Score 90 or above, natural flavored. | C30: Fillable txt box or unprotected | H30: =ROUND(G29*F29/F30,2) ->  | I30: Cs | K30: =IF(OR(ISBLANK(J30),G29=0,ISBLANK(G29)),,ROUND(J30+$K$3,2)) -> 0 | L30: =ROUND(H30*K30,2) ->  | M30: =ROUND(K30/F30,2) -> 
A31: 9 | B31: Applesauce (No imports) | C31: Distributor Choice | E31: 6/#10 | F31: 6 | G31: 0 | H31: =ROUND(G31*F31/F31,2) -> 0 | I31: Cs
B32: Unsweetened, Grade A, Minimum Score 90 or above. (No Imports) | C32: Fillable txt box or unprotected | H32: =ROUND(G31*F31/F32,2) ->  | I32: Cs | K32: =IF(OR(ISBLANK(J32),G31=0,ISBLANK(G31)),,ROUND(J32+$K$3,2)) -> 0 | L32: =ROUND(H32*K32,2) ->  | M32: =ROUND(K32/F32,2) -> 
A33: 10 | B33: Cherries, Maraschino Halves | C33: Distributor Choice | E33: 1/2 gal | F33: 1 | G33: 0 | H33: =ROUND(G33*F33/F33,2) -> 0 | I33: Each
B34: Without stems, Pitted, Grade A, Minimum Score 90 or above (No Imports) | C34: Fillable txt box or unprotected | H34: =ROUND(G33*F33/F34,2) ->  | I34: Cs | K34: =IF(OR(ISBLANK(J34),G33=0,ISBLANK(G33)),,ROUND(J34+$K$3,2)) -> 0 | L34: =ROUND(H34*K34,2) ->  | M34: =ROUND(K34/F34,2) -> 
A35: 11 | B35: Cranberry Sauce (No Imports) | C35: Distributor Choice | E35: 6/101 oz | F35: 6 | G35: 5 | H35: =ROUND(G35*F35/F35,2) -> 5 | I35: Cs
B36: Jellied and strained. US Grade A, Fancy. Minimum score 90 or above | C36: Fillable txt box or unprotected | H36: =ROUND(G35*F35/F36,2) ->  | I36: Cs | K36: =IF(OR(ISBLANK(J36),G35=0,ISBLANK(G35)),,ROUND(J36+$K$3,2)) -> 0 | L36: =ROUND(H36*K36,2) ->  | M36: =ROUND(K36/F36,2) -> 
A37: 12 | B37: Fruit Cocktail, US Grade Choice, Minimum Score 90 or above, | C37: Distributor Choice | E37: 6/#10 | F37: 6 | G37: 0 | H37: =ROUND(G37*F37/F37,2) -> 0 | I37: Cs
B38: Light syrup mixture to contain in order of proportion: peaches, pears, | C38: Fillable txt box or unprotected | H38: =ROUND(G37*F37/F38,2) ->  | I38: Cs | K38: =IF(OR(ISBLANK(J38),G37=0,ISBLANK(G37)),,ROUND(J38+$K$3,2)) -> 0 | L38: =ROUND(H38*K38,2) ->  | M38: =ROUND(K38/F38,2) -> 
B39: pineapples, grapes,cherries. (If non domestic, insert country of origin)
A40: 13 | B40: Fruit , Mixed (If non domestic, state country of origin) | C40: Distributor Choice | E40: 6/#10 | F40: 6 | G40: 0 | H40: =ROUND(G40*F40/F40,2) -> 0 | I40: Cs
B41: US Grade Choice, Minimum Score 90 or above, Light syrup | C41: Fillable txt box or unprotected | H41: =ROUND(G40*F40/F41,2) ->  | I41: Cs | K41: =IF(OR(ISBLANK(J41),G40=0,ISBLANK(G40)),,ROUND(J41+$K$3,2)) -> 0 | L41: =ROUND(H41*K41,2) ->  | M41: =ROUND(K41/F41,2) -> 
B42: mixture to contain 30-50% peaches, 25-30% pears, 6-20% grapes.
A43: 14 | B43: Fruit Salad, Tropical | C43: Distributor Choice | E43: 6/#10 | F43: 6 | G43: 100 | H43: =ROUND(G43*F43/F43,2) -> 100 | I43: Cs
B44: Diced, in 100% fruit Juice, No sugar added. Pre-cut and ready to use. | C44: Fillable txt box or unprotected | H44: =ROUND(G43*F43/F44,2) ->  | I44: Cs | K44: =IF(OR(ISBLANK(J44),G43=0,ISBLANK(G43)),,ROUND(J44+$K$3,2)) -> 0 | L44: =ROUND(H44*K44,2) ->  | M44: =ROUND(K44/F44,2) -> 
B45: (If non domestic, insert country of origin in text box)
A46: 15 | B46: Mandarin Orange, Whole Segments | C46: Distributor Choice | E46: 6/#10 | F46: 6 | G46: 100 | H46: =ROUND(G46*F46/F46,2) -> 100 | I46: Cs
B47: Whole Segments in light syrup. US Grade A Minimum score 90 or above. . | C47: Fillable txt box or unprotected | H47: =ROUND(G46*F46/F47,2) ->  | I47: Cs | K47: =IF(OR(ISBLANK(J47),G46=0,ISBLANK(G46)),,ROUND(J47+$K$3,2)) -> 0 | L47: =ROUND(H47*K47,2) ->  | M47: =ROUND(K47/F47,2) -> 
B48: No broken segments. (If non dom., insert country of origin in text box)
B49: Peaches | O49: Peaches 100220 Cling Diced Extra Light Can
A50: 16 | B50: Peaches, Diced, Shelf Stable Cups | C50: National Food Group A1740-235A | E50: 72/4.5z | F50: 72 | G50: 0 | H50: =ROUND($G$50*$F$50/F50,2) -> 0 | I50: Cs | J50: $38.86 | K50: =IF(OR(ISBLANK(J50),G50=0,ISBLANK(G50)),,ROUND(J50+$K$3,2)) -> 0 | L50: =ROUND(H50*K50,2) -> 0 | M50: =ROUND(K50/F50,2) -> 0 | N50: 0 | O50: $0.6668 | P50: 20.25 | Q50: =ROUND(O50*P50,2) -> $13.50 | R50: =J50-Q50 -> $25.36 | S50: =R50/F50 -> $0.35 | T50: =N50/F50 -> 0
B51: Shelf Stable, Individual portion cup, color foil or mylar top
B52: One portion provides 1/2 c FV for CN programs No Imports
B53: Pears | O53: Pears, 100225 Diced Extra Light Can
A54: 17 | B54: Pears, Diced, Shelf Stable Cups | C54: National Food Group A1780-235A | E54: 72/4.5z | F54: 72 | G54: 0 | H54: =ROUND($G$54*$F$54/F54,2) -> 0 | I54: Cs | J54: $38.86 | K54: =IF(OR(ISBLANK(J54),G54=0,ISBLANK(G54)),,ROUND(J54+$K$3,2)) -> 0 | L54: =ROUND(H54*K54,2) -> 0 | M54: =ROUND(K54/F54,2) -> 0 | N54: 0 | O54: $0.6327 | P54: 20.25 | Q54: =ROUND(O54*P54,2) -> $12.81 | R54: =J54-Q54 -> $26.05 | S54: =R54/F54 -> $0.36 | T54: =N54/F54 -> 0
B55: Shelf Stable, Individual portion cup, color foil or mylar top
B56: One portion provides 1/2 c FV for CN programs No Imports
A57: 18 | B57: Peach Slices, Minimum score 90 or above. (No Imports). | C57: Distributor Choice | E57: 6/#10 | F57: 6 | G57: 0 | H57: =ROUND(G57*F57/F57,2) -> 0 | I57: Cs
B58: Clingstone variety, packed in light syrup. Net Wt 108 oz. | C58: Fillable txt box or unprotected | H58: =ROUND(G57*F57/F58,2) ->  | I58: Cs | K58: =IF(OR(ISBLANK(J58),G57=0,ISBLANK(G57)),,ROUND(J58+$K$3,2)) -> 0 | L58: =ROUND(H58*K58,2) ->  | M58: =ROUND(K58/F58,2) -> 
B59: Minimum drained weight 66.5 oz.
A60: 19 | B60: Pear Halves, (No Imports) | C60: Distributor Choice | E60: 6/#10 | F60: 6 | G60: 0 | H60: =ROUND(G60*F60/F60,2) -> 0 | I60: Cs
B61: Bartlett. Choice, Minimum score 90 or above. . Light syrup, 30-35 count. | C61: Fillable txt box or unprotected | H61: =ROUND(G60*F60/F61,2) ->  | I61: Cs | K61: =IF(OR(ISBLANK(J61),G60=0,ISBLANK(G60)),,ROUND(J61+$K$3,2)) -> 0 | L61: =ROUND(H61*K61,2) ->  | M61: =ROUND(K61/F61,2) -> 
B62: Minimum drained weight 65 oz. (No Imports)
A63: 20 | B63: Pear Slices, Barlett Choice (No Imports) | C63: Distributor Choice | E63: 6/#10 | F63: 6 | G63: 0 | H63: =ROUND(G63*F63/F63,2) -> 0 | I63: Cs
B64: Bartlett, Choice, Minimum score 90 or above. , light syrup. (No Imports) | C64: Fillable txt box or unprotected | H64: =ROUND(G63*F63/F64,2) ->  | I64: Cs | K64: =IF(OR(ISBLANK(J64),G63=0,ISBLANK(G63)),,ROUND(J64+$K$3,2)) -> 0 | L64: =ROUND(H64*K64,2) ->  | M64: =ROUND(K64/F64,2) -> 
B65: Minimum drained weight 65.5 oz.
A66: 21 | B66: Pineapple Slices, US Grade A, Minimum score 90 or above. | C66: Distributor Choice | E66: 6/#10 | F66: 6 | G66: 0 | H66: =ROUND(G66*F66/F66,2) -> 0 | I66: Cs
B67: Packed in juice.(If non domestic, insert country of origin in text box) | C67: Fillable txt box or unprotected | H67: =ROUND(G66*F66/F67,2) ->  | I67: Cs | K67: =IF(OR(ISBLANK(J67),G66=0,ISBLANK(G66)),,ROUND(J67+$K$3,2)) -> 0 | L67: =ROUND(H67*K67,2) ->  | M67: =ROUND(K67/F67,2) -> 
A68: 22 | B68: Pineapple Tidbits (If non domestic, insert country of origin in | C68: Distributor Choice | E68: 6/#10 | F68: 6 | G68: 150 | H68: =ROUND(G68*F68/F68,2) -> 150 | I68: Cs
B69: text box) US Grade A Minimum score 90 or above, Packed in Juice, | C69: Fillable txt box or unprotected | H69: =ROUND(G67*F67/F69,2) ->  | I69: Cs | K69: =IF(OR(ISBLANK(J69),G67=0,ISBLANK(G67)),,ROUND(J69+$K$3,2)) -> 0 | L69: =ROUND(H69*K69,2) ->  | M69: =ROUND(K69/F69,2) -> 
B70: Min. Drained Wt 69 oz.
A71: 23 | B71: Fruit Snack, Dried Cranberries, I/W Meets 1/2 c Fruit | C71: Oceanspray Craisins | E71: 200/1.16z | F71: 200 | G71: 0 | H71: =ROUND(G71*F71/F71,2) -> 0 | I71: Cs | K71: =IF(OR(ISBLANK(J71),G71=0,ISBLANK(G71)),,ROUND(J71+$K$3,2)) -> 0 | L71: =ROUND(H71*K71,2) -> 0 | M71: =ROUND(K71/F71,2) -> 0
B72: Shelf Stable | C72: 23446 Blueberry
C73: 23444 Cherry
C74: 23445 Strawberry
A75: 24 | B75: Fruit Snack, Fruit Purees | C75: Welch's | E75: 144/1.55z | F75: 144 | G75: 100 | H75: =ROUND(G75*F75/F75,2) -> 100 | I75: Cs | K75: =IF(OR(ISBLANK(J75),G75=0,ISBLANK(G75)),,ROUND(J75+$K$3,2)) -> 0 | L75: =ROUND(H75*K75,2) -> 0 | M75: =ROUND(K75/F75,2) -> 0
B76: Pouch pack, 1.55oz, 12% daily value of Fiber. | C76: 14498 Mixed Fruit
B77: Meets USDA requirement for 10% of Daily Value of one of the following nutrients: | C77: 14492 Berries n Cherries
B78: Calcium, Potassium, Vitamin D, or Dietary fiber.
A79: 25 | B79: Raisins | C79: Champion 070044-00415 | E79: 144/1.5z | F79: 144 | G79: 0 | H79: =ROUND(G79*F79/F79,2) -> 0 | I79: Cs | K79: =IF(OR(ISBLANK(J79),G79=0,ISBLANK(G79)),,ROUND(J79+$K$3,2)) -> 0 | L79: =ROUND(H79*K79,2) -> 0 | M79: =ROUND(K79/F79,2) -> 0
B80: Seedless, dark California, Individual 1.5 oz per package | C80: Sun-maid 040-2010 | E80: 144/1.5z | F80: 144 | H80: =ROUND($G$79*$F$79/F80,2) -> 0 | I80: Cs | K80: =IF(OR(ISBLANK(J80),G79=0,ISBLANK(G79)),,ROUND(J80+$K$3,2)) -> 0 | L80: =ROUND(K80*H80,2) -> 0 | M80: =ROUND(K80/F80,2) -> 0
A81: 26 | B81: Raisins, flavored. Made from Golden Raisins | C81: Champion Raisels (Various Flavors) | E81: 200-1.5z | F81: 200 | G81: 150 | H81: =ROUND(G81*F81/F81,2) -> 150 | I81: Cs | K81: =IF(OR(ISBLANK(J81),G81=0,ISBLANK(G81)),,ROUND(J81+$K$3,2)) -> 0 | L81: =ROUND(H81*K81,2) -> 0 | M81: =ROUND(K81/F81,2) -> 0
B82: Individual, 1.5oz
B83: Sugar and Natural flavors added.
A86: 27 | B86: Juice, Apple, Aseptic Pack, Shelf Stable, 4.23 oz | C86: Juicy Juice/Harvest Hill 00055 | E86: 40/4.23z | F86: 40 | G86: 500 | H86: =ROUND($G$86*$F$86/F86,2) -> 500 | I86: Cs
B87: Shelf Stable, 100% juice, must have wrap straw, 1 serving = 1/2 cup fruit | C87: Motts 10002383 | E87: 44/4.23z | F87: 44 | H87: =ROUND($G$86*$F$86/F87,2) -> 454.55 | I87: Cs | J87: $5.46 | K87: =IF(OR(ISBLANK(J87),G86=0,ISBLANK(G86)),,ROUND(J87+$K$3,2)) -> $5.46 | L87: =ROUND(H87*K87,2) -> $2,481.84 | M87: =ROUND(J87/F87,2) -> $0.12
C88: Apple & Eve 86000 | E88: 40/4.23z | F88: 40 | H88: =ROUND($G$86*$F$86/F88,2) -> 500 | I88: Cs
B89: Country of Origin: | C89: Suncup 400305 | E89: 40/4.23z | F89: 40 | H89: 500 | I89: Cs
C90: Ardmore Farms 62001 | E90: 44/4.23z | F90: 44 | H90: =ROUND($G$86*$F$86/F90,2) -> 454.55 | I90: Cs
C91: Capri Sun 8768400921 | E91: 48/4.05z | F91: 48 | H91: =ROUND($G$86*$F$86/F91,2) -> 416.67 | I91: Cs
C92: Tropicana 20209 | E92: 44/4.23z | F92: 44 | H92: =ROUND($G$86*$F$86/F92,2) -> 454.55 | I92: Cs
A93: 28 | B93: Juice, Fruit Blend, Aseptic Pack, Shelf Stable, 4.23 oz | C93: Juicy Juice/Harvest Hill 00059 | E93: 40/4.23z | F93: 40 | G93: 500 | H93: =ROUND(G93*F93/F93,2) -> 500 | I93: Cs
B94: Shelf Stable, 100% juice, must have wrap straw, 1 serving = 1/2 cup fruit | C94: Motts 10002384 | E94: 44/4.23z | F94: 44 | H94: =ROUND($G$93*$F$93/F94,2) -> 454.55 | I94: Cs | J94: $5.46 | K94: =IF(OR(ISBLANK(J94),G93=0,ISBLANK(G93)),,ROUND(J94+$K$3,2)) -> $5.46 | L94: =ROUND(H94*K94,2) -> $2,481.84 | M94: =ROUND(J94/F94,2) -> $0.12
C95: Apple and Eve 86001 | E95: 40/4.23z | F95: 40 | H95: =ROUND($G$93*$F$93/F95,2) -> 500 | I95: Cs
B96: Country of Origin: | C96: Suncup 400805 | E96: 40/4.23z | F96: 40 | H96: 500 | I96: Cs
C97: Capri Sun 8768400923 | E97: 48/4.05z | F97: 48 | H97: =ROUND($G$93*$F$93/F97,2) -> 416.67 | I97: Cs
C98: Ardmore Farms 62008 | E98: 44/4.23z | F98: 44 | H98: =ROUND($G$93*$F$93/F98,2) -> 454.55 | I98: Cs
A99: 29 | B99: Juice, Grape, Aseptic Pack, Shelf Stable, 4.23 oz | C99: Juicy Juice/Harvest Hill 00057 | E99: 40/4.23z | F99: 40 | G99: 500 | H99: =ROUND(G99*F99/F99,2) -> 500 | I99: Cs
B100: Shelf Stable, 100% juice, must have wrap straw, 1 serving = 1/2 cup fruit | C100: Apple and Eve 86004 | E100: 40/4.23z | F100: 40 | H100: =ROUND($G$99*$F$99/F100,2) -> 500 | I100: Cs
C101: Suncup 400505 | E101: 40/4.23z | F101: 40 | H101: =ROUND($G$99*$F$99/F101,2) -> 500 | I101: Cs | J101: $5.33 | K101: =IF(OR(ISBLANK(J101),G99=0,ISBLANK(G99)),,ROUND(J101+$K$3,2)) -> $5.33 | L101: =ROUND(H101*K101,2) -> $2,665.00 | M101: =ROUND(J101/F101,2) -> $0.13
B102: Country of Origin: | C102: Ardmore Farms 62002 | E102: 44/4.23z | F102: 44 | H102: =ROUND($G$99*$F$99/F102,2) -> 454.55 | I102: Cs
A103: 30 | B103: Juice, Fruitables Aceptic Juice Box | C103: Apple and Eve 76301-24025 | E103: 40/4.23z | F103: 40 | G103: 500 | H103: =ROUND(G103*F103/F103,2) -> 500 | I103: Cs | J103: 0 | K103: =IF(OR(ISBLANK(J103),G101=0,ISBLANK(G101)),,ROUND(J103+$K$3,2)) -> 0 | L103: =ROUND(H103*K103,2) -> 0 | M103: =ROUND(K103/F103,2) -> 0
B104: 100% Vegetable Juice, Meets 1/2 cup of red/orange vegetable, Shelf Stable
B105: Meets USDA Smart Snack Guidelines
B106: Country of Origin:
I107: Page Total | L107: =SUMIF(L7:L106,">0") -> $7,628.68

Sheet Frozen Fruit & Juice
B1: ='Recap Sheet'!B2 -> Colleton County School District Office of Student Nutrition | C1: Return to Recap Sheet | E1: ='Recap Sheet'!B3 -> 0
A2: Item | B2: Description | C2: Approved Brand Name / Manuf ID # | F2: Firm Fixed Fee | K2: ='Recap Sheet'!B4 -> $0.00
A3: # | D3: Distributor | E3: Vendor | F3: Svgs | G3: Est. | H3: Bid | I3: Bid | J3: Unit | K3: Unit Price | L3: Total | M3: Cost per
D4: Code | E4: Pack | F4: per unit | G4: Bid Qty | H4: Qty | I4: Unit | J4: Price | K4: plus Fee | L4: Price | M4: Unit
B5: Frozen Fruit and Juice
A6: 1 | B6: Juice, Apple, Cartons, 4 oz | C6: Ardmore Farms 42298 | E6: 70/4.0z | F6: 70 | G6: 1500 | H6: =ROUND($G$6*$F$6/F6,2) -> 1500 | I6: Cs | J6: 0 | K6: =IF(OR(ISBLANK(J6),G6=0,ISBLANK(G6)),,ROUND(J6+$K$2,2)) -> 0 | L6: =ROUND(H6*K6,2) -> 0 | M6: =ROUND(K6/F6,2) -> 0
B7: 100% Apple Juice, Unsweetened. Deliver frozen only | C7: Sun Cup 030301 | E7: 70/4.0z | F7: 70 | H7: =ROUND($G$6*$F$6/F7,2) -> 1500 | I7: Cs | J7: 0 | K7: =IF(OR(ISBLANK(J7),G6=0,ISBLANK(G6)),,ROUND(J7+$K$2,2)) -> 0 | L7: =ROUND(H7*K7,2) -> 0 | M7: =ROUND(K7/F7,2) -> 0
B8: 1 serving = 1/2 cup fruit | C8: Mr. J. 2840 | E8: 70/4.0z | F8: 70 | H8: =ROUND($G$6*$F$6/F8,2) -> 1500 | I8: Cs | J8: 0 | K8: =IF(OR(ISBLANK(J8),G6=0,ISBLANK(G6)),,ROUND(J8+$K$2,2)) -> 0 | L8: =ROUND(H8*K8,2) -> 0 | M8: =ROUND(K8/F8,2) -> 0
A9: 2 | B9: Juice, Apple, Cartons, 6 oz | C9: Ardmore Farms 42212 | E9: 70/6.0z | F9: 70 | G9: 150 | H9: =ROUND(G9*F9/F9,2) -> 150 | I9: Cs | J9: 0 | K9: =IF(OR(ISBLANK(J9),G9=0,ISBLANK(G9)),,ROUND(J9+$K$2,2)) -> 0 | L9: =ROUND(H9*K9,2) -> 0 | M9: =ROUND(K9/F9,2) -> 0
B10: 100% Apple Juice, unsweetened, deliver frozen only | C10: Sun Cup 50301 | E10: 70/6.0z | F10: 70 | H10: =ROUND($G$9*$F$9/F10,2) -> 150 | I10: Cs | J10: 0 | K10: =IF(OR(ISBLANK(J10),G9=0,ISBLANK(G9)),,ROUND(J10+$K$2,2)) -> 0 | L10: 0 | M10: 0
C11: Mr. J 2850 | E11: 70/6.0z | F11: 70 | H11: =ROUND($G$9*$F$9/F11,2) -> 150 | I11: Cs | J11: 0 | K11: =IF(OR(ISBLANK(J11),G9=0,ISBLANK(G9)),,ROUND(J11+$K$2,2)) -> 0 | L11: 0 | M11: 0
A12: 3 | B12: Juice, Apple-Cherry, Carton, 4oz | C12: Suncup 03200 | E12: 70/4.0z | F12: 70 | G12: 500 | H12: =ROUND(G12*F12/F12,2) -> 500 | I12: Cs | J12: 0 | K12: =IF(OR(ISBLANK(J12),G12=0,ISBLANK(G12)),,ROUND(J12+$K$2,2)) -> 0 | L12: 0 | M12: 0
B13: 100% Apple Cherry Juice, Frozen, Meets 1/2 c Fruit | C13: Ardmore Farms 42292 | E13: 70/4.0z | F13: 70 | H13: =ROUND(G12*F12/F13,2) -> 500 | I13: Cs | J13: 0 | K13: =IF(OR(ISBLANK(J12),G12=0,ISBLANK(G12)),,ROUND(J13+$K$2,2)) -> 0 | L13: =ROUND(H13*K13,2) -> 0 | M13: =ROUND(K13/F13,2) -> 0
C14: Mr. J 3042 | E14: 70/4.0z | F14: 70 | H14: =ROUND(G12*F12/F14,2) -> 500 | I14: Cs | J14: 0 | K14: =IF(OR(ISBLANK(J14),G12=0,ISBLANK(G12)),,ROUND(J14+$K$2,2)) -> 0 | L14: 0 | M14: 0
A15: 4 | B15: Juice, Fruit Blend, Carton, 4 oz | C15: Ardmore Farms 42304 | E15: 70/4.0z | F15: 70 | G15: 1500 | H15: =ROUND(G15*F15/F15,2) -> 1500 | I15: Cs | J15: 0 | K15: =IF(OR(ISBLANK(J15),G12=0,ISBLANK(G12)),,ROUND(J15+$K$2,2)) -> 0 | L15: 0 | M15: 0
B16: 100% Blend Fruit Juice, Frozen, unsweetened | C16: Sun Cup 030800 | E16: 70/4.0z | F16: 70 | H16: =ROUND($G$15*$F$15/F16,2) -> 1500 | I16: Cs | J16: 0 | K16: =IF(OR(ISBLANK(J16),G15=0,ISBLANK(G15)),,ROUND(J16+$K$2,2)) -> 0 | L16: 0 | M16: 0
C17: Mr. J. 2340 | E17: 70/4.0z | F17: 70 | H17: =ROUND($G$15*$F$15/F17,2) -> 1500 | I17: Cs | J17: 0 | K17: 0 | L17: 0 | M17: 0
A18: 5 | B18: Juice, Fruit Blend, Cartons, 6 oz | C18: Ardmore Farms 42215 | E18: 70/6.0z | F18: 70 | G18: 100 | H18: =ROUND(G18*F18/F18,2) -> 100 | I18: Cs | J18: 0 | K18: =IF(OR(ISBLANK(J18),G18=0,ISBLANK(G18)),,ROUND(J18+$K$2,2)) -> 0 | L18: 0 | M18: 0
B19: 100% Blend Fruit Juice, Frozen, unsweetened | C19: Sun Cup 50800 | E19: 70/6.0z | F19: 70 | H19: =ROUND($G$18*$F$18/F19,2) -> 100 | I19: Cs | J19: 0 | K19: =IF(OR(ISBLANK(J19),G18=0,ISBLANK(G18)),,ROUND(J19+$K$2,2)) -> 0 | L19: 0 | M19: 0
C20: Mr. J 2350 | E20: 70/6.0z | F20: 70 | H20: =ROUND($G$18*$F$18/F20,2) -> 100 | I20: Cs | J20: 0 | K20: 0 | L20: 0 | M20: 0
A21: 6 | B21: Juice, Grape, Cartons, 4 oz | C21: Ardmore Farms 42301 | E21: 70/4.0z | F21: 70 | G21: 750 | H21: =ROUND($G$21*$F$21/F21,2) -> 750 | I21: Cs | J21: 0 | K21: =IF(OR(ISBLANK(J21),G21=0,ISBLANK(G21)),,ROUND(J21+$K$2,2)) -> 0 | L21: 0 | M21: 0
B22: 100% Grape Juice, frozen | C22: Sun Cup 030501 | E22: 70/4.0z | F22: 70 | H22: =ROUND($G$21*$F$21/F22,2) -> 750 | I22: Cs | J22: 0 | K22: =IF(OR(ISBLANK(J22),G21=0,ISBLANK(G21)),,ROUND(J22+$K$2,2)) -> 0 | L22: 0 | M22: 0
C23: Mr. J. 2640 | E23: 70/4.0z | F23: 70 | H23: =ROUND($G$21*$F$21/F23,2) -> 750 | I23: Cs | J23: 0 | K23: 0 | L23: 0 | M23: 0
A24: 7 | B24: Juice, Grape, Cartons, 6 oz | C24: Ardmore Farms 42213 | E24: 70/6.0z | F24: 70 | G24: 100 | H24: =ROUND(G24*F24/F24,2) -> 100 | I24: Cs | J24: 0 | K24: =IF(OR(ISBLANK(J24),G24=0,ISBLANK(G24)),,ROUND(J24+$K$2,2)) -> 0 | L24: 0 | M24: 0
B25: 100% Grape Juice, frozen | C25: Sun Cup 50501 | E25: 70/6.0z | F25: 70 | H25: =ROUND($G$24*$F$24/F25,2) -> 100 | I25: Cs | J25: 0 | K25: =IF(OR(ISBLANK(J25),G24=0,ISBLANK(G24)),,ROUND(J25+$K$2,2)) -> 0 | L25: 0 | M25: 0
C26: Mr. J 2650 | E26: 70/6.0z | F26: 70 | H26: =ROUND($G$24*$F$24/F26,2) -> 100 | I26: Cs | J26: 0 | K26: 0 | L26: 0 | M26: 0
A27: 8 | B27: Juice, Orange, Cartons, 4 oz | C27: Ardmore Farms 42297 | E27: 70/4.0z | F27: 70 | G27: 1500 | H27: =ROUND($G$27*$F$27/F27,2) -> 1500 | I27: Cs | J27: 0 | K27: =IF(OR(ISBLANK(J27),G27=0,ISBLANK(G27)),,ROUND(J27+$K$2,2)) -> 0 | L27: =ROUND(H27*K27,2) -> 0 | M27: 0
B28: US Grade A, 100% Orange Juice, unsweetened, frozen | C28: Sun Cup 030100 | E28: 70/4.0z | F28: 70 | H28: =ROUND($G$27*$F$27/F28,2) -> 1500 | I28: Cs | J28: 0 | K28: =IF(OR(ISBLANK(J28),G27=0,ISBLANK(G27)),,ROUND(J28+$K$2,2)) -> 0 | L28: 0 | M28: 0
C29: Mr. J. 2070 | E29: 70/4.0z | F29: 70 | H29: =ROUND($G$27*$F$27/F29,2) -> 1500 | I29: Cs | J29: 0 | K29: 0 | L29: 0 | M29: 0
A30: 9 | B30: Juice, Orange, Cartons, 6 oz | C30: Ardmore Farms 42210 | E30: 70/6.0z | F30: 70 | G30: 100 | H30: =ROUND(G30*F30/F30,2) -> 100 | I30: Cs | J30: 0 | K30: =IF(OR(ISBLANK(J30),G30=0,ISBLANK(G30)),,ROUND(J30+$K$2,2)) -> 0 | L30: 0 | M30: 0
B31: US Grade A Orange Juice, unsweetened frozen | C31: Sun Cup 50100 | E31: 70/6.0z | F31: 70 | H31: =ROUND($G$30*$F$30/F31,2) -> 100 | I31: Cs | J31: 0 | K31: =IF(OR(ISBLANK(J31),G30=0,ISBLANK(G30)),,ROUND(J31+$K$2,2)) -> 0 | L31: 0 | M31: 0
C32: Mr. J. 2080 | E32: 70/6.0z | F32: 70 | H32: =ROUND($G$30*$F$30/F32,2) -> 100 | I32: Cs | J32: 0 | K32: 0 | L32: 0 | M32: 0
A33: 10 | B33: Juice, Orange-Pineapple, Cartons, 4 oz | C33: Ardmore Farms 42300 | E33: 70/4.0z | F33: 70 | G33: 1800 | H33: =ROUND($G$33*$F$33/F33,2) -> 1800 | I33: Cs | J33: 0 | K33: =IF(OR(ISBLANK(J33),G33=0,ISBLANK(G33)),,ROUND(J33+$K$2,2)) -> 0 | L33: 0 | M33: 0
B34: Blend of Orange and Pineapple, unsweetened, Frozen | C34: Sun Cup 031200 | E34: 70/4.0z | F34: 70 | H34: =ROUND($G$33*$F$33/F34,2) -> 1800 | I34: Cs | J34: 0 | K34: =IF(OR(ISBLANK(J34),G33=0,ISBLANK(G33)),,ROUND(J34+$K$2,2)) -> 0 | L34: 0 | M34: 0
C35: Mr. J. 2440 | E35: 70/4.0z | F35: 70 | H35: =ROUND($G$33*$F$33/F35,2) -> 1800 | I35: Cs | J35: 0 | K35: 0 | L35: 0 | M35: 0
A36: 11 | B36: Juice, Apple, Cartons, 4 oz, Calcium Fortified | C36: Ardmore Farms 42289 | E36: 70/4.0z | F36: 70 | G36: 0 | H36: =ROUND($G$36*$F$36/F36,2) -> 0 | I36: Cs | J36: 0 | K36: =IF(OR(ISBLANK(J36),G36=0,ISBLANK(G36)),,ROUND(J36+$K$2,2)) -> 0 | L36: 0 | M36: 0
B37: 100% Apple Juice with Calcium, Unsweetened. | C37: Sun Cup 030305 | E37: 70/4.0z | F37: 70 | H37: =ROUND($G$36*$F$36/F37,2) -> 0 | I37: Cs | J37: 0 | K37: =IF(OR(ISBLANK(J37),G36=0,ISBLANK(G36)),,ROUND(J37+$K$2,2)) -> 0 | L37: 0 | M37: 0
B38: Deliver frozen only | C38: Mr. J 2842 | E38: 70/4.0z | F38: 70 | H38: 0 | I38: Cs | J38: 0 | K38: 0 | L38: 0 | M38: 0
A39: 12 | B39: Juice, Fruit Blend, Cartons, 4 oz, Ca Fortified | C39: Ardmore Farms 42291 | E39: 70/4.0z | F39: 70 | G39: 0 | H39: =ROUND($G$39*$F$39/F39,2) -> 0 | I39: Cs | J39: 0 | K39: =IF(OR(ISBLANK(J39),G39=0,ISBLANK(G39)),,ROUND(J39+$K$2,2)) -> 0 | L39: 0 | M39: 0
B40: 100% Fruit Punch with Calcium, Deliver frozen only | C40: Sun Cup 030805 | E40: 70/4.0z | F40: 70 | H40: =ROUND($G$39*$F$39/F40,2) -> 0 | I40: Cs | J40: 0 | K40: =IF(OR(ISBLANK(J40),G39=0,ISBLANK(G39)),,ROUND(J40+$K$2,2)) -> 0 | L40: 0 | M40: 0
C41: Mr. J 2342 | E41: 70/4.0z | F41: 70 | H41: =ROUND($G$39*$F$39/F41,2) -> 0 | I41: Cs | J41: 0 | K41: 0 | L41: 0 | M41: 0
A42: 13 | B42: Juice, Grape, Cartons, 4 oz, Calcium Fortified | C42: Ardmore Farms 42290 | E42: 70/4.0z | F42: 70 | G42: 0 | H42: =ROUND($G$42*$F$42/F42,2) -> 0 | I42: Cs | J42: 0 | K42: =IF(OR(ISBLANK(J42),G42=0,ISBLANK(G42)),,ROUND(J42+$K$2,2)) -> 0 | L42: =ROUND(H42*K42,2) -> 0 | M42: =ROUND(K42/F42,2) -> 0
B43: 100% Grape Juice with Calcium, Deliver frozen only | C43: Sun Cup 030505 | E43: 70/4.0z | F43: 70 | H43: =ROUND($G$42*$F$42/F43,2) -> 0 | I43: Cs | J43: 0 | K43: =IF(OR(ISBLANK(J43),G42=0,ISBLANK(G42)),,ROUND(J43+$K$2,2)) -> 0 | L43: 0 | M43: 0
C44: Mr. J 2642 | E44: 70/4.0z | F44: 70 | H44: =ROUND($G$42*$F$42/F44,2) -> 0 | I44: Cs | J44: 0 | K44: 0 | L44: 0 | M44: 0
A45: 14 | B45: Juice, Orange, Cartons, Ca Fortified, 4 oz | C45: Ardmore Farms 42294 | E45: 70/4.0z | F45: 70 | G45: 0 | H45: =ROUND($G$45*$F$45/F45,2) -> 0 | I45: Cs | J45: 0 | K45: =IF(OR(ISBLANK(J45),G45=0,ISBLANK(G45)),,ROUND(J45+$K$2,2)) -> 0 | L45: 0 | M45: 0
B46: US Grade A, 100% Orange Juice, Calcium Fortified, Frozen | C46: Mr. J 2162 | E46: 70/4.0z | F46: 70 | H46: =ROUND($G$45*$F$45/F46,2) -> 0 | I46: Cs | J46: 0 | K46: =IF(OR(ISBLANK(J46),G45=0,ISBLANK(G45)),,ROUND(J46+$K$2,2)) -> 0 | L46: 0 | M46: 0
C47: Sun Cup 030105 | E47: 70/4.0z | F47: 70 | H47: 0 | I47: Cs | J47: 0 | K47: 0 | L47: 0 | M47: 0
A48: 15 | B48: Juice, Apple, Cup Pack, 4 oz | C48: Ardmore Farms 41381 | E48: 96/4.0z | F48: 96 | G48: 0 | H48: =ROUND($G$48*$F$48/F48,2) -> 0 | I48: Cs | J48: 0 | K48: =IF(OR(ISBLANK(J48),G48=0,ISBLANK(G48)),,ROUND(J48+$K$2,2)) -> 0 | L48: 0 | M48: 0
B49: 100% Apple Juice, unsweetened, deliver frozen only | C49: Sun Cup 090301 | E49: 72/4.0z | F49: 72 | H49: =ROUND($G$48*$F$48/F49,2) -> 0 | I49: Cs | J49: 0 | K49: =IF(OR(ISBLANK(J49),G48=0,ISBLANK(G48)),,ROUND(J49+$K$2,2)) -> 0 | L49: =ROUND(H49*K49,2) -> 0 | M49: =ROUND(K49/F49,2) -> 0
C50: Mr. J 7897 | E50: 96/4.0z | F50: 96 | H50: 0 | I50: Cs | J50: 0 | K50: 0 | L50: 0 | M50: 0
A51: 16 | B51: Juice, Apple, Cup Pack, 6 oz | C51: Ardmore Farms 41403 | E51: 48/6.0z | F51: 48 | G51: 0 | H51: =ROUND($G$51*$F$51/F51,2) -> 0 | I51: Cs | J51: 0 | K51: =IF(OR(ISBLANK(J51),G51=0,ISBLANK(G51)),,ROUND(J51+$K$2,2)) -> 0 | L51: 0 | M51: 0
B52: 100% Apple Juice, Frozen, unsweetened | C52: Sun Cup 40301 | E52: 48/6.0z | F52: 48 | H52: =ROUND($G$51*$F$51/F52,2) -> 0 | I52: Cs | J52: 0 | K52: =IF(OR(ISBLANK(J52),G51=0,ISBLANK(G51)),,ROUND(J52+$K$2,2)) -> 0 | L52: 0 | M52: 0
C53: Mr. J 2855 | E53: 48/6.0z | F53: 48 | H53: 0 | I53: Cs | J53: 0 | K53: 0 | L53: 0 | M53: 0
A54: 17 | B54: Juice, Fruit Blend, Cup Pack, 4 oz | C54: Ardmore Farms 41391 | E54: 96/4.0z | F54: 96 | G54: 0 | H54: =ROUND($G$54*$F$54/F54,2) -> 0 | I54: Cs | J54: 0 | K54: =IF(OR(ISBLANK(J54),G54=0,ISBLANK(G54)),,ROUND(J54+$K$2,2)) -> 0 | L54: 0 | M54: 0
B55: 100% Blend Fruit Juice, Frozen, unsweetened | C55: Sun Cup 090800 | E55: 72/4.0z | F55: 72 | H55: =ROUND($G$54*$F$54/F55,2) -> 0 | I55: Cs | J55: 0 | K55: =IF(OR(ISBLANK(J55),G54=0,ISBLANK(G54)),,ROUND(J55+$K$2,2)) -> 0 | L55: 0 | M55: 0
C56: Mr. J. 7398 | E56: 96/4.0z | F56: 96 | H56: 0 | I56: Cs | J56: 0 | K56: 0 | L56: 0 | M56: 0
A57: 18 | B57: Juice, Fruit Blend, Cup Pack, 6 oz | C57: Ardmore Farms 41413 | E57: 48/6.0z | F57: 48 | G57: 0 | H57: =ROUND($G$57*$F$57/F57,2) -> 0 | I57: Cs | J57: 0 | K57: =IF(OR(ISBLANK(J57),G57=0,ISBLANK(G57)),,ROUND(J57+$K$2,2)) -> 0 | L57: 0 | M57: 0
B58: 100% Blend fruit juices, Frozen, unsweetened | C58: Sun Cup 040800 | E58: 48/6.0z | F58: 48 | G58: 0 | H58: =ROUND($G$57*$F$57/F58,2) -> 0 | I58: Cs | J58: 0 | K58: =IF(OR(ISBLANK(J58),G57=0,ISBLANK(G57)),,ROUND(J58+$K$2,2)) -> 0 | L58: 0 | M58: 0
C59: Mr. J 2355 | E59: 48/6.0z | F59: 48 | H59: 0 | I59: Cs | J59: 0 | K59: 0 | L59: 0 | M59: 0
A60: 19 | B60: Juice, Grape, Cup Pack, 4 oz | C60: Ardmore Farms 41382 | E60: 96/4.0z | F60: 96 | G60: 0 | H60: =ROUND($G$60*$F$60/F60,2) -> 0 | I60: Cs | J60: 0 | K60: =IF(OR(ISBLANK(J60),G60=0,ISBLANK(G60)),,ROUND(J60+$K$2,2)) -> 0 | L60: 0 | M60: 0
B61: 100% Grape Juice, frozen | C61: Sun Cup 090501 | E61: 72/4.0z | F61: 72 | H61: =ROUND($G$60*$F$60/F61,2) -> 0 | I61: Cs | J61: 0 | K61: =IF(OR(ISBLANK(J61),G60=0,ISBLANK(G60)),,ROUND(J61+$K$2,2)) -> 0 | L61: 0 | M61: 0
C62: Mr. J. 7698 | E62: 96/4.0z | F62: 96 | H62: 0 | I62: Cs | J62: 0 | K62: 0 | L62: 0 | M62: 0
A63: 20 | B63: Juice, Grape, Cup Pack, 6 oz | C63: Ardmore Farms 41406 | E63: 48/6.0z | F63: 48 | G63: 0 | H63: =ROUND($G$63*$F$63/F63,2) -> 0 | I63: Cs | J63: 0 | K63: =IF(OR(ISBLANK(J63),G63=0,ISBLANK(G63)),,ROUND(J63+$K$2,2)) -> 0 | L63: 0 | M63: 0
B64: 100% Grape Juice, frozen, unsweetened | C64: Sun Cup 40501 | E64: 48/6.0z | F64: 48 | H64: =ROUND($G$63*$F$63/F64,2) -> 0 | I64: Cs | J64: 0 | K64: =IF(OR(ISBLANK(J64),G63=0,ISBLANK(G63)),,ROUND(J64+$K$2,2)) -> 0 | L64: =ROUND(H64*K64,2) -> 0 | M64: =ROUND(K64/F64,2) -> 0
C65: Mr. J 2655 | E65: 48/6.0z | F65: 48 | H65: 0 | I65: Cs | J65: 0 | K65: 0 | L65: 0 | M65: 0
A66: 21 | B66: Juice, Orange, Cup Pack, 4 oz | C66: Ardmore Farms 41380 | E66: 96/4.0z | F66: 96 | G66: 0 | H66: =ROUND($G$66*$F$66/F66,2) -> 0 | I66: Cs | J66: 0 | K66: =IF(OR(ISBLANK(J66),G66=0,ISBLANK(G66)),,ROUND(J66+$K$2,2)) -> 0 | L66: 0 | M66: 0
B67: US Grade A 100% Orange Juice, unsweetened, Frozen | C67: Sun Cup 090100 | E67: 72/4.0z | F67: 72 | H67: =ROUND($G$66*$F$66/F67,2) -> 0 | I67: Cs | J67: 0 | K67: =IF(OR(ISBLANK(J67),G66=0,ISBLANK(G66)),,ROUND(J67+$K$2,2)) -> 0 | L67: 0 | M67: 0
C68: Mr. J. 7098 | E68: 96/4.0z | F68: 96 | H68: 0 | I68: Cs | J68: 0 | K68: 0 | L68: 0 | M68: 0
A69: 22 | B69: Juice, Orange, Cup Pack, 6 oz | C69: Ardmore Farms 41400 | E69: 48/6.0z | F69: 48 | G69: 0 | H69: =ROUND($G$69*$F$69/F69,2) -> 0 | I69: Cs | J69: 0 | K69: =IF(OR(ISBLANK(J69),G69=0,ISBLANK(G69)),,ROUND(J69+$K$2,2)) -> 0 | L69: 0 | M69: 0
B70: US Grade A 100% Orange Juice, unsweetened, Frozen | C70: Sun Cup 040100 | E70: 48/6.0z | F70: 48 | H70: =ROUND($G$69*$F$69/F70,2) -> 0 | I70: Cs | J70: 0 | K70: =IF(OR(ISBLANK(J70),G69=0,ISBLANK(G69)),,ROUND(J70+$K$2,2)) -> 0 | L70: 0 | M70: 0
C71: Mr. J. | E71: 48/6.0z | F71: 48 | H71: =ROUND($G$69*$F$69/F71,2) -> 0 | I71: Cs | J71: 0 | K71: 0 | L71: 0 | M71: 0
A72: 23 | B72: Juice, Orange-Pineapple, Cup, 4 oz | C72: Ardmore Farms 41389 | E72: 96/4.0z | F72: 96 | G72: 0 | H72: =ROUND($G$72*$F$72/F72,2) -> 0 | I72: Cs | J72: 0 | K72: =IF(OR(ISBLANK(J72),G72=0,ISBLANK(G72)),,ROUND(J72+$K$2,2)) -> 0 | L72: =ROUND(H72*K72,2) -> 0 | M72: =ROUND(K72/F72,2) -> 0
B73: 100% Orange Juice and Pineapple Blend, unsweetened, | C73: Sun Cup 091200 | E73: 72/4.0z | F73: 72 | H73: =ROUND($G$72*$F$72/F73,2) -> 0 | I73: Cs | J73: 0 | K73: =IF(OR(ISBLANK(J73),G72=0,ISBLANK(G72)),,ROUND(J73+$K$2,2)) -> 0 | L73: 0 | M73: 0
B74: Frozen | C74: Mr. J. 7498 | E74: 96/4.0z | F74: 96 | H74: 0 | I74: Cs | J74: 0 | K74: =IF(OR(ISBLANK(J74),G72=0,ISBLANK(G72)),,ROUND(J74+$K$2,2)) -> 0 | L74: 0 | M74: 0
A75: 24 | B75: Sidekicks Smooth Frozen Juice, 100 % Fruit Juice | C75: Ridgefield Sidekicks | E75: 84/4.4z | F75: 84 | G75: 0 | H75: =ROUND($G$75*$F$75/F75,2) -> 0 | I75: Cs | J75: $26.61 | K75: =IF(OR(ISBLANK(J75),G75=0,ISBLANK(G75)),,ROUND(J75+$K$2,2)) -> 0 | L75: =ROUND(H75*K75,2) -> 0 | M75: =ROUND(K75/F75,2) -> 0
B76: One serving provides 1/2 cup 100% Fruit Juice with no added Sugar. | C76: 2009 Blu-Raspberry Lemon | E76: 84/4.4z | F76: 84
C77: 2014 Kiwi-Strawberry | E77: 84/4.4z | F77: 84
C78: 2015 Strawberry Mango | E78: 84/4.4.z | F78: 84
C79: 2016 Cherry Lemon | E79: 84/4.4.z | F79: 84
A80: 25 | B80: Sidekicks Smooth Frozen Juice, 100 % Fruit Juice | C80: Cherry Smooth 2021 | E80: 84/4.4z | F80: 84 | G80: 100 | H80: =ROUND(G80*F80/F80,2) -> 100 | I80: Cs | J80: $28.61 | K80: =IF(OR(ISBLANK(J80),G80=0,ISBLANK(G80)),,ROUND(J80+$K$2,2)) -> $28.61 | L80: =ROUND(H80*K80,2) -> $2,861.00 | M80: =ROUND(K80/F80,2) -> $0.34
B81: One serving provides 1/2 cup additional vegetable and 1/2 cup red/orange
A82: 26 | B82: Sidekicks Smooth Frozen Juice, 100 % Fruit Juice | C82: Sunbelievable 2020 | E82: 84/4.4z | F82: 84 | G82: 100 | H82: =ROUND(G82*F82/F82,2) -> 100 | I82: Cs | J82: $29.61 | K82: =IF(OR(ISBLANK(J82),G82=0,ISBLANK(G82)),,ROUND(J82+$K$2,2)) -> $29.61 | L82: =ROUND(H82*K82,2) -> $2,961.00 | M82: =ROUND(K82/F82,2) -> $0.35
B83: One serving provides 1/2 cup add veg. and 1/2 cup red/orange vegetable
A84: 27 | B84: Peaches, Frozen | C84: Distributor Choice | E84: 96/4.0z | F84: 96 | G84: 0 | H84: =ROUND(G84*F84/F84,2) -> 0 | I84: Cs
B85: US Grade A Choice, fzn diced peaches cups Each portion cup=1/2 cup svg | C85: Fillable txt box | H85: =ROUND(G84*F84/F85,2) ->  | I85: Cs | K85: =IF(OR(ISBLANK(G84),G84=0,ISBLANK(F85)),,ROUND(J85+$K$2,2)) -> 0 | L85: =ROUND(H85*K85,2) ->  | M85: =ROUND(K85/F85,2) -> 
A86: 28 | B86: Strawberries, Sliced | C86: Distributor Choice | E86: 39Lb | F86: 39 | G86: 25 | H86: =ROUND(G86*F86/F86,2) -> 25 | I86: Cs
B87: Frozen. Grade A, Sweetened | C87: Fillable txt box | H87: =ROUND(G86*F86/F87,2) ->  | I87: Cs | K87: =IF(OR(ISBLANK(G86),G86=0,ISBLANK(F87)),,ROUND(J87+$K$2,2)) -> 0 | L87: =ROUND(H87*K87,2) ->  | M87: =ROUND(K87/F87,2) -> 
A88: 29 | B88: Fruit Pearls | C88: Citripak | E88: 48/1/2 cup | F88: 48 | G88: 0 | H88: =ROUND(G88*F88/F88,2) -> 0 | I88: Cs | J88: $13.40 | K88: =IF(OR(ISBLANK(J88),G88=0,ISBLANK(G88)),,ROUND(J88+$K$2,2)) -> 0 | L88: =ROUND(H88*K88,2) -> 0 | M88: =ROUND(K88/F88,2) -> 0
B89: Frozen, One portion to provide 1/2 cup fruit for CN program | C89: 882193005112 Strawberry
C90: 882193005129 Tropical
C91: 882193005136 Wildberry
C92: 882193005549 Lemon
A93: 30 | B93: Fruit Freeze Cup without Spoons, All Flavors | C93: J&J Snape-Ups and Luigis | E93: 96/4.4z | F93: 96 | G93: 100 | H93: =ROUND(G93*F93/F93,2) -> 100 | I93: Cs | J93: $25.80 | K93: =IF(OR(ISBLANK(J93),G93=0,ISBLANK(G93)),,ROUND(J93+$K$2,2)) -> $25.80 | L93: =ROUND(H93*K93,2) -> $2,580.00 | M93: =ROUND(K93/F93,2) -> $0.27
B94: Frozen, 100% fruit juice Provides min. 20% vitamin C No added sugar,
B95: Provides 1/2 cup fruit juice for CN program
A99: 31 | B99: Fruit Freeze Cup without Spoon, All Flavors | C99: Cool Tropics | E99: 60/4.0z | F99: 60 | G99: 50 | H99: =ROUND(G99*F99/F99,2) -> 50 | I99: Cs | J99: $18.00 | K99: =IF(OR(ISBLANK(J99),G99=0,ISBLANK(G99)),,ROUND(J99+$K$2,2)) -> $18.00 | L99: =ROUND(H99*K99,2) -> $900.00 | M99: =ROUND(K99/F99,2) -> $0.30
B100: Frozen, 100% fruit juice. Provides min 20% Vitamin C. No added sugar | C100: Kiwi Strawberry 12002-R4
B101: Provides 1/2 cup fruit juice for CN Program | C101: Paradise Punch 12004-R4
C102: Blue Raspberry 13001
C103: Sour Apple 13006
C104: Cherry Limeade 13007
I106: Page Total | L106: =SUMIF(L6:L101,">0") -> $9,302.00

Sheet Frozen Vegetables
B1: ='Recap Sheet'!A2 -> School Food Authority: | E1: ='Recap Sheet'!A3 -> Offeror Name:
B2: ='Recap Sheet'!B2 -> Colleton County School District Office of Student Nutrition | C2: Return to Recap Sheet | E2: ='Recap Sheet'!B3 -> 0
A3: Item | B3: Description | C3: Approved Brand Name / Manuf ID # | F3: Firm Fixed Fee | K3: ='Recap Sheet'!B4 -> $0.00
A4: # | D4: Distributor | E4: Vendor | F4: Svgs | G4: Est. | H4: Bid | I4: Bid | J4: Unit | K4: Unit Price | L4: Total | M4: Cost per
D5: Code | E5: Pack | F5: per unit | G5: Bid Qty | H5: Qty | I5: Unit | J5: Price | K5: plus Fee | L5: Price | M5: Unit
B6: Frozen Vegetables
A7: 1 | B7: Beans, Green, IQF (No Imports) | C7: Distributor Choice | E7: 20Lb | F7: 20 | G7: 50 | H7: =ROUND($G$7*$F$7/F7,2) -> 50 | I7: Cs
B8: Grade A, Min. score 90 or above pieces to be 1" in length and 4 sieve in dia | C8: Fillable txt box or unprotected | H8: =ROUND(G7*F7/F8,2) ->  | I8: Cs | J8: 0 | K8: =IF(OR(ISBLANK(J8),G7=0,ISBLANK(G7)),,ROUND(J8+$K$3,2)) -> 0 | L8: =ROUND(H8*K8,2) ->  | M8: =ROUND(K8/F8,2) -> 
A9: 2 | B9: Beans. Lima (No Imports) | C9: Distributor Choice | E9: 20Lb | F9: 20 | G9: 50 | H9: =ROUND(G9*F9/F9,2) -> 50 | I9: Cs
B10: Small Baby lima. Grade A fancy. Must be certified | C10: Fillable txt box or unprotected | H10: =ROUND(G9*F9/F10,2) ->  | I10: Cs | K10: =IF(OR(ISBLANK(J10),G9=0,ISBLANK(G9)),,ROUND(J10+$K$3,2)) -> 0 | L10: =ROUND(H10*K10,2) ->  | M10: =ROUND(K10/F10,2) -> 
B11: Frozen. 20Lb IQF unit. Miinimum score 90 or above
A12: 3 | B12: Broccoli Florets (No Imports) | C12: Distributor Choice | E12: 12/2Lb | F12: 24 | G12: 100 | H12: =ROUND(G12*F12/F12,2) -> 100 | I12: Cs
B13: Grade A fancy. Frozen. Minimum score 90 or above. | C13: Fillable txt box or unprotected | H13: =ROUND(G12*F12/F13,2) ->  | I13: Cs | K13: =IF(OR(ISBLANK(J13),G12=0,ISBLANK(G12)),,ROUND(J13+$K$3,2)) -> 0 | L13: =ROUND(H13*K13,2) ->  | M13: =ROUND(K13/F13,2) -> 
A14: 4 | B14: Broccoli Medley, Broccoli, Cauliflower and Carrots (No Imports) | C14: Distributor Choice | E14: 24Lb | F14: 24 | G14: 200 | H14: =ROUND(G14*F14/F14,2) -> 200 | I14: Cs
B15: Grade A Fancy. Minimum score 90 or above. | C15: Fillable txt box or unprotected | H15: =ROUND(G14*F14/F15,2) ->  | I15: Cs | K15: =IF(OR(ISBLANK(J15),G14=0,ISBLANK(G14)),,ROUND(J15+$K$3,2)) -> 0 | L15: =ROUND(H15*K15,2) ->  | M15: =ROUND(K15/F15,2) -> 
A16: 5 | B16: Broccoli Spears (No Imports) | C16: Distributor Choice | E16: 12/2Lb | F16: 24 | G16: 0 | H16: =ROUND(G16*F16/F16,2) -> 0 | I16: Cs
B17: US Grade A Fancy. Minimum score 90 or above. | C17: Fillable txt box or unprotected | H17: =ROUND(G16*F16/F17,2) ->  | I17: Cs | K17: =IF(OR(ISBLANK(J17),G16=0,ISBLANK(G16)),,ROUND(J17+$K$3,2)) -> 0 | L17: =ROUND(H17*K17,2) ->  | M17: =ROUND(K17/F17,2) -> 
B18: Spears 5" average length. 18-26 Spears per 2# bag.
A19: 6 | B19: Carrots, Sliced (No Imports) | C19: Distributor Choice | E19: 20Lb | F19: 20 | G19: 0 | H19: =ROUND(G19*F19/F19,2) -> 0 | I19: Cs
B20: US Grade A Fancy. Frozen. Minimum score 90 or above. | C20: Fillable txt box or unprotected | H20: =ROUND(G19*F19/F20,2) ->  | I20: Cs | K20: =IF(OR(ISBLANK(J20),G19=0,ISBLANK(G19)),,ROUND(J20+$K$3,2)) -> 0 | L20: =ROUND(H20*K20,2) ->  | M20: =ROUND(K20/F20,2) -> 
A21: 7 | B21: Corn, Cut (No Imports) | C21: Distributor Choice | E21: 20Lb | F21: 20 | G21: 50 | H21: =ROUND(G21*F21/F21,2) -> 50 | I21: Cs
B22: US Grade A Fancy. Yellow Corn. Minimum score 90 or above. (No Imports) | C22: Fillable txt box or unprotected | H22: =ROUND(G21*F21/F22,2) ->  | I22: Cs | K22: =IF(OR(ISBLANK(J22),G21=0,ISBLANK(G21)),,ROUND(J22+$K$3,2)) -> 0 | L22: =ROUND(H22*K22,2) ->  | M22: =ROUND(K22/F22,2) -> 
A23: 8 | B23: Corn on the Cob (No Imports) | C23: Distributor Choice | E23: 96 Ct | F23: 96 | G23: 0 | H23: =ROUND(G23*F23/F23,2) -> 0 | I23: Cs
B24: Cobbett, Grade A, Fancy. Minimum score 90 or above. . Yellow whole | C24: Fillable txt box or unprotected | G24: 0 | H24: =ROUND(G23*F23/F24,2) ->  | I24: Cs | K24: =IF(OR(ISBLANK(J24),G23=0,ISBLANK(G23)),,ROUND(J24+$K$3,2)) -> 0 | L24: =ROUND(H24*K24,2) ->  | M24: =ROUND(K24/F24,2) -> 
B25: kernel. Approximately 3 inches long, no ends.
A27: 9 | B27: Okra, Breaded Pre-cooked Oven Ready, (No Imports) WGR | C27: Tasty Brand 33500 | E27: 6/5Lb | F27: 150 | G27: 0 | H27: =ROUND(G27*F27/F27,2) -> 0 | I27: Cs | K27: =IF(OR(ISBLANK(J27),G27=0,ISBLANK(G27)),,ROUND(J27+$K$3,2)) -> 0 | L27: =ROUND(H27*K27,2) -> 0 | M27: =ROUND(K27/F27,2) -> 0
B28: US Grade A, Minimum score 90 or above. One serving (17) meets 1 oz OEG
B29: and 1/4 c other vegetable for Child Nutrition Meal Pattern Requirements.
A30: 10 | B30: Okra, Cut (No Imports) | C30: Distributor Choice | E30: 20Lb | F30: 20 | G30: 0 | H30: =ROUND(G30*F30/F30,2) -> 0 | I30: Cs
B31: Minimum score 90 or above. IQF, Cut in 1/2" slices | C31: Fillable txt box or unprotected | H31: =ROUND(G30*F30/F31,2) ->  | I31: Cs | K31: =IF(OR(ISBLANK(J31),G30=0,ISBLANK(G30)),,ROUND(J31+$K$3,2)) -> 0 | L31: =ROUND(H31*K31,2) ->  | M31: =ROUND(K31/F31,2) -> 
A32: 11 | B32: Onions, Diced (No Imports) | C32: Distributor Choice | E32: 6/2Lb | F32: 12 | G32: 40 | H32: =ROUND(G32*F32/F32,2) -> 40 | I32: Cs
B33: 3/8"x3/8" dice | C33: Fillable txt box or unprotected | H33: =ROUND(G32*F32/F33,2) ->  | I33: Cs | K33: =IF(OR(ISBLANK(J33),G32=0,ISBLANK(G32)),,ROUND(J33+$K$3,2)) -> 0 | L33: =ROUND(H33*K33,2) ->  | M33: =ROUND(K33/F33,2) -> 
A34: 12 | B34: Peas, Black-eyed (No Imports) | C34: Distributor Choice | E34: 20Lb | F34: 20 | G34: 50 | H34: =ROUND($G$34*F34/F34,2) -> 50 | I34: Cs
B35: Minimum score 90 or above. , Frozen, IQF | C35: Fillable txt box or unprotected | H35: =ROUND(G34*F34/F35,2) ->  | I35: Cs | K35: =IF(OR(ISBLANK(J35),G34=0,ISBLANK(G34)),,ROUND(J35+$K$3,2)) -> 0 | L35: =ROUND(H35*K35,2) ->  | M35: =ROUND(K35/F35,2) -> 
A36: 13 | B36: Peas, Field (No Imports) | C36: Distributor Choice | E36: 36Lb | F36: 36 | G36: 0 | H36: =ROUND(G36*F36/F36,2) -> 0 | I36: Cs
B37: Minimum score 90 or above. , Frozen, IQF | C37: Fillable txt box or unprotected | G37: 0 | H37: =ROUND(G36*F36/F37,2) ->  | I37: Cs | K37: =IF(OR(ISBLANK(J37),G36=0,ISBLANK(G36)),,ROUND(J37+$K$3,2)) -> 0 | L37: =ROUND(H37*K37,2) ->  | M37: =ROUND(K37/F37,2) -> 
A38: 14 | B38: Peas, Green (No Imports) | C38: Distributor Choice | E38: 20Lb | F38: 20 | G38: 25 | H38: =ROUND(G38*F38/F38,2) -> 25 | I38: Cs
B39: Minimum score 90 or above. , Frozen, IQF | C39: Fillable txt box or unprotected | H39: =ROUND(G38*F38/F39,2) ->  | I39: Cs | K39: =IF(OR(ISBLANK(J39),G38=0,ISBLANK(G38)),,ROUND(J39+$K$3,2)) -> 0 | L39: =ROUND(H39*K39,2) ->  | M39: =ROUND(K39/F39,2) -> 
A40: 15 | B40: Peas and Carrots, Grade A, Min. score 90 or above. (No Imports) | C40: Distributor Choice | E40: 20Lb | F40: 20 | G40: 25 | H40: =ROUND(G40*F40/F40,2) -> 25 | I40: Cs
B41: 60% Peas and 40% carrots, Peas 2-4 sieve, carrots 3/8" dice | C41: Fillable txt box or unprotected | H41: =ROUND(G40*F40/F41,2) ->  | I41: Cs | K41: =IF(OR(ISBLANK(J41),G40=0,ISBLANK(G40)),,ROUND(J41+$K$3,2)) -> 0 | L41: =ROUND(H41*K41,2) ->  | M41: =ROUND(K41/F41,2) -> 
A42: 16 | B42: Pepper, Bell Diced (No Imports) | C42: Distributor Choice | E42: 12/2Lb | F42: 24 | G42: 25 | H42: =ROUND(G42*F42/F42,2) -> 25 | I42: Cs
B43: Minimum score 90 or above. Frozen. | C43: Fillable txt box or unprotected | G43: 0 | H43: =ROUND(G42*F42/F43,2) ->  | I43: Cs | K43: =IF(OR(ISBLANK(J43),G42=0,ISBLANK(G42)),,ROUND(J43+$K$3,2)) -> 0 | L43: =ROUND(H43*K43,2) ->  | M43: =ROUND(K43/F43,2) -> 
A44: 17 | B44: Squash, Yellow, Sliced (No Imports) | C44: Distributor Choice | E44: 20Lb | F44: 20 | G44: 0 | H44: =ROUND($G$44*$F$44/F44,2) -> 0 | I44: Cs
B45: Minimum score 90 or above. , Frozen, IQF | C45: Fillable txt box or unprotected | H45: =ROUND(G44*F44/F45,2) ->  | I45: Cs | K45: =IF(OR(ISBLANK(J45),G44=0,ISBLANK(G44)),,ROUND(J45+$K$3,2)) -> 0 | L45: =ROUND(H45*K45,2) ->  | M45: =ROUND(K45/F45,2) -> 
A46: 18 | B46: Sweet Potato Pattie (No Imports) | C46: Distributor Choice | E46: 224/1.5 | F46: 224 | G46: 40 | H46: =ROUND(G46*F46/F46,2) -> 40 | I46: Cs
B47: Domestic sweet potatoes. No peels or stems. IQF. Fully cooked. | C47: Fillable txt box or unprotected | G47: 0 | H47: =ROUND(G46*F46/F47,2) ->  | I47: Cs | K47: =IF(OR(ISBLANK(J47),G46=0,ISBLANK(G46)),,ROUND(J47+$K$3,2)) -> 0 | L47: =ROUND(H47*K47,2) ->  | M47: =ROUND(K47/F47,2) -> 
A48: 19 | B48: Turnip Greens, Chopped (No Imports) | C48: Distributor Choice | E48: 36Lb | F48: 36 | G48: 0 | H48: =ROUND($G$48*$F$48/F48,2) -> 0 | I48: Cs
B49: Minimum score 90 or above. , Grade A , Frozen | C49: Fillable txt box or unprotected | H49: =ROUND(G48*F48/F49,2) ->  | I49: Cs | K49: =IF(OR(ISBLANK(J49),G48=0,ISBLANK(G48)),,ROUND(J49+$K$3,2)) -> 0 | L49: =ROUND(H49*K49,2) ->  | M49: =ROUND(K49/F49,2) -> 
A50: 20 | B50: Collard Greens, Chopped (No Imports) | C50: Distributor Choice | E50: 36Lb | F50: 36 | G50: 0 | H50: =ROUND(G50*F50/F50,2) -> 0 | I50: Cs
B51: US Grade A , Frozen Minimum score 90 or above | C51: Fillable txt box or unprotected | H51: =ROUND(G50*F50/F51,2) ->  | I51: Cs | K51: =IF(OR(ISBLANK(J51),G50=0,ISBLANK(G50)),,ROUND(J51+$K$3,2)) -> 0 | L51: =ROUND(H51*K51,2) ->  | M51: =ROUND(K51/F51,2) -> 
A52: 21 | B52: Kale Greens, Chopped (No Imports) | C52: Distributor Choice | E52: 20Lb | F52: 20 | G52: 0 | H52: =ROUND($G$52*$F$52/F52,2) -> 0 | I52: Cs
B53: US Grade A , Frozen Minimum score 90 or above | C53: Fillable txt box or unprotected | H53: =ROUND(G52*F52/F53,2) ->  | I53: Cs | K53: =IF(OR(ISBLANK(J53),G52=0,ISBLANK(G52)),,ROUND(J53+$K$3,2)) -> 0 | L53: =ROUND(H53*K53,2) ->  | M53: =ROUND(K53/F53,2) -> 
A54: 22 | B54: Spinach, Chopped (No Imports) | C54: Distributor Choice | E54: 20Lb | F54: 20 | G54: 0 | H54: =ROUND($G$54*$F$54/F54,2) -> 0 | I54: Cs
B55: US Grade A , Frozen Minimum score 90 or above | C55: Fillable txt box or unprotected | H55: =ROUND(G54*F54/F55,2) ->  | I55: Cs | K55: =IF(OR(ISBLANK(J55),G54=0,ISBLANK(G54)),,ROUND(J55+$K$3,2)) -> 0 | L55: =ROUND(H55*K55,2) ->  | M55: =ROUND(K55/F55,2) -> 
A56: 23 | B56: Vegetables, Mixed (No Imports) | C56: Distributor Choice | E56: 20Lb | F56: 20 | G56: 25 | H56: =ROUND(G56*F56/F56,2) -> 25 | I56: Cs
B57: US Grade A. Fancy. IQF 4 or 5 Vegetable Mix of: | C57: Fillable txt box or unprotected | H57: =ROUND(G56*F56/F57,2) ->  | I57: Cs | K57: =IF(OR(ISBLANK(J57),G56=0,ISBLANK(G56)),,ROUND(J57+$K$3,2)) -> 0 | L57: =ROUND(H57*K57,2) ->  | M57: =ROUND(K57/F57,2) -> 
B58: 1. Beans, Wax or Green, cut; 2. Beans, Limas; 3. Carrots, Diced
B59: 4. Corn, Golden whole kernel; 5. Peas, Early or Sweet
B60: All vegetables should have good color for the variety and type used.
A61: 24 | B61: Vegetables, Oriental (No Imports) | C61: Distributor Choice | E61: 12/2Lb | F61: 24 | G61: 25 | H61: =ROUND(G61*F61/F61,2) -> 25 | I61: Cs
B62: 40% French cut beans; 18-20% onions; 5% mushrooms. Grade A Fancy. IQF | C62: Fillable txt box or unprotected | H62: =ROUND(G61*F61/F62,2) ->  | I62: Cs | K62: =IF(OR(ISBLANK(J62),G61=0,ISBLANK(G61)),,ROUND(J62+$K$3,2)) -> 0 | L62: =ROUND(H62*K62,2) ->  | M62: =ROUND(K62/F62,2) -> 
A63: 25 | B63: Vegetable Soup Mix (No Imports) | C63: Distributor Choice | E63: 20Lb | F63: 20 | G63: 25 | H63: =ROUND(G63*F63/F63,2) -> 25 | I63: Cs
B64: Grade A Fancy. IQF Nine Vegetable mix of okra, lima beans, whole kernel | C64: Fillable txt box or unprotected | H64: =ROUND(G63*F63/F64,2) ->  | I64: Cs | K64: =IF(OR(ISBLANK(J64),G63=0,ISBLANK(G63)),,ROUND(J64+$K$3,2)) -> 0 | L64: =ROUND(H64*K64,2) ->  | M64: =ROUND(K64/F64,2) -> 
B65: corn, celery, onions, diced carrots, diced potatoes, green beans and
B66: green peas.
I67: Page Total | L67: =SUMIF(L6:L65,">0") -> 0

Sheet Breakfast Products
B1: ='Recap Sheet'!A2 -> School Food Authority: | E1: ='Recap Sheet'!A3 -> Offeror Name: | O1: Commodity
B2: ='Recap Sheet'!B2 -> Colleton County School District Office of Student Nutrition | C2: Return to Recap Sheet | E2: ='Recap Sheet'!B3 -> 0
A3: Item | B3: Description | C3: Approved Brand Name / Manuf ID # | F3: Firm Fixed Fee | K3: ='Recap Sheet'!B4 -> $0.00 | N3: Processing | O3: Commodity | P3: Pounds of | S3: NOI | T3: Net
A4: # | D4: Distributor | E4: Vendor | F4: Svgs | G4: Est. | H4: Bid | I4: Bid | J4: Unit | K4: Unit Price | L4: Total | M4: Cost per | N4: Fee for | O4: Value Per | P4: DF Needed | Q4: Commodity | R4: NOI | S4: Price/ | T4: Cost Per
D5: Code | E5: Pack | F5: per unit | G5: Bid Qty | H5: Qty | I5: Unit | J5: Price | K5: plus Fee | L5: Price | M5: Unit | N5: Service | O5: Pound | P5: Per Case | Q5: Value | R5: Price | S5: Serving | T5: Serving
B6: Breakfast Products
A7: 1 | B7: Bar, Mini Breakfast Bar | C7: J& J Snacks | E7: 96/1.25z | F7: 96 | G7: 0 | H7: =ROUND(G7*F7/F7,2) -> 0 | I7: Cs | J7: $21.15 | K7: =IF(OR(ISBLANK(J7),G7=0,ISBLANK(G7)),,ROUND(J7+$K$3,2)) -> 0 | L7: =ROUND(H7*K7,2) -> 0 | M7: =ROUND(K7/F7,2) -> 0
B8: WGR, Thaw and serve, One serving provides 1 oz. OEG | C8: Maple Brown Sugar 40452
C9: Oatmeal Chocolate Chip 40454
C10: Brownie 40455
B11: Possible Allergens: Wheat, Soy, Milk and Eggs | C11: Banana Chocolate Chunk 40456
A12: 2 | B12: Bar, Whole Grain Oat Bar, Fruit Filled | C12: NutriGrain Bar | E12: 96/1.55z | F12: 96 | G12: 25 | H12: =ROUND(G12*F12/F12,2) -> 25 | I12: Cs | J12: $24.29 | K12: =IF(OR(ISBLANK(J12),G12=0,ISBLANK(G12)),,ROUND(J12+$K$3,2)) -> $24.29 | L12: =ROUND(H12*K12,2) -> $607.25 | M12: =ROUND(K12/F12,2) -> $0.25
B13: WGR, IW, Single Serve, Made w/ real fruit puree. One bar provides 1 OEG | C13: 38000-59772 Strawberry
B14: SMART SNACKS COMPLIANT | C14: 38000-90819 Blueberry
B15: Possible Allergens: Milk, Soy,Wheat, and Eggs, | C15: 38000-59779 Apple Cinnamon
A16: 3 | B16: Biscuit, Chicken, IW. WGR | C16: Grand Strand Sandwich Co. 4009 | E16: 90/3.6z | F16: 90 | G16: 0 | H16: =ROUND($G$16*$F$16/F16,2) -> 0 | I16: Cs
B17: Breaded chicken patty with alternate protein and or egg additives. | C17: Snak Time STF9645NL/72 | E17: 100/2.85z | F17: 100 | H17: =ROUND($G$16*$F$16/F17,2) -> 0 | I17: Cs | J17: $39.00 | K17: =IF(OR(ISBLANK(J17),G16=0,ISBLANK(G16)),,ROUND(J17+$K$3,2)) -> 0 | L17: =ROUND(H17*K17,2) -> 0 | M17: =ROUND(K17/F17,2) -> 0
B18: Contains 0 Trans Fat
A19: 4 | B19: Biscuit, Yeast Raised Potato Sausage (twin pack) WGR | C19: (18-19) Snak Time STF9420NL/60 | E19: 100/2.60z | F19: 100 | G19: 0 | H19: =ROUND($G$19*$F$19/F19,2) -> 0 | I19: Cs | J19: $41.85 | K19: =IF(OR(ISBLANK(J19),G19=0,ISBLANK(G19)),,ROUND(J19+$K$3,2)) -> 0 | L19: =ROUND(H19*K19,2) -> 0 | M19: =ROUND(K19/F19,2) -> 0
B20: Fully cooked, each portion provides 1 M/MA and 1.75 OEG
B21: Contains 0 Trans Fat
A22: 5 | B22: Biscuit, Peach Cobbler | C22: Tasty Brands 22020IW | E22: 100/2.8z | F22: 100 | G22: 25 | H22: =ROUND($G$22*$F$22/F22,2) -> 25 | I22: Cs | J22: $51.00 | K22: =IF(OR(ISBLANK(J22),G22=0,ISBLANK(G22)),,ROUND(J22+$K$3,2)) -> $51.00 | L22: =ROUND(H22*K22,2) -> $1,275.00 | M22: =ROUND(K22/F22,2) -> $0.51
B23: 0 Trans fat. One serving provides 2 equivalent grains
A25: 6 | B25: Biscuits, Pre-formed Dough, | C25: Richs 09315 | E25: 216/2.1z | F25: 216 | G25: 0 | H25: =ROUND($G$25*$F$25/F25,2) -> 0 | I25: Cs | J25: $24.52 | K25: =IF(OR(ISBLANK(J25),G25=0,ISBLANK(G25)),,ROUND(J25+$K$3,2)) -> 0 | L25: 0 | M25: 0
B26: Frozen, WGR, 0 Trans fat. Provides not more than 2oz equivalent grains | C26: Mary B's 87000 | E26: 220/2.2z | F26: 220 | H26: =ROUND($G$25*$F$25/F26,2) -> 0 | I26: Cs
B27: based on 16 g =1 oz, at a minimum. | C27: Pillsbury 132267 | E27: 216/2.51z | F27: 216 | H27: =ROUND($G$25*$F$25/F27,2) -> 0 | I27: Cs
A28: 7 | B28: Biscuits, Dough, w/Easy Split Enriched Flour | C28: Rich's 06063 | E28: 240/2.2z | F28: 240 | G28: 150 | H28: =ROUND($G$28*$F$28/F28,2) -> 150 | I28: Cs | J28: $24.00 | K28: =IF(OR(ISBLANK(J28),G28=0,ISBLANK(G28)),,ROUND(J28+$K$3,2)) -> $24.00 | L28: =ROUND(H28*K28,2) -> $3,600.00 | M28: =ROUND(K28/F28,2) -> $0.10
B29: Frozen, Made with buttermillk, 150-250 calories with not more than 6 g | C29: Pillsbury 31524 | E29: 216/2.0z | F29: 216 | H29: =ROUND($G$28*$F$28/F29,2) -> 166.67 | I29: Cs
B30: sat fat and 660 mg of sodium per serving. One portion to provide 1.75
B31: OEG for CN Programs
B32: Possible Allergens: Wheat and Milk
A33: 8 | B33: Biscuit, WGR, Easy Split | C33: Pillsbury 132268 | E33: 216/2.51z | F33: 216 | G33: 0 | H33: =ROUND($G$33*$F$33/F33,2) -> 0 | I33: Cs | J33: $26.84 | K33: =IF(OR(ISBLANK(J33),G33=0,ISBLANK(G33)),,ROUND(J33+$K$3,2)) -> 0 | L33: 0 | M33: 0
B34: Frozen, Ready to bake, 200-300 calories with not more than 5 g sat fat & | C34: CACFP Eligible
B35: 350 mg sodium per serving, One serving must provide 2 OEG
A36: 9 | B36: Biscuits,Mini Pre-formed Dough, Frozen | C36: Pillsbury 132269 | E36: 210/1.25z | F36: 210 | G36: 0 | H36: =ROUND($G$36*$F$36/F36,2) -> 0 | I36: Cs | J36: $20.20 | K36: =IF(OR(ISBLANK(J36),G36=0,ISBLANK(G36)),,ROUND(J36+$K$3,2)) -> 0 | L36: =ROUND(H36*K36,2) -> 0 | M36: =ROUND(K36/F36,2) -> 0
B37: One serving provides 1.0 z equivalent grain. 0 Trans fat
A39: 10 | B39: Bread, Slice Whole Wheat | C39: Super Bakery | E39: 70/3.4z | F39: 70 | G39: 200 | H39: =ROUND(G39*F39/F39,2) -> 200 | I39: Cs | J39: $31.58 | K39: =IF(OR(ISBLANK(J39),G39=0,ISBLANK(G39)),,ROUND(J39+$K$3,2)) -> $31.58 | L39: =ROUND(H39*K39,2) -> $6,316.00 | M39: =ROUND(K39/F39,2) -> $0.45
B40: Frozen, IW, Thaw and serve. Product meets a minimum of 1.5 OEG | C40: 6073 Ultra Wild Forest Berry Slice | E40: 70/3.4z | F40: 70
B41: 220-280 calories with 2g of Sat fat or less, 0 trans fat, 220 mg of Sodium | C41: 6071 Ultra Banana Slice | E41: 70/3.4z | F41: 70
B42: or less, WGR | C42: 6075 Ultra Pumpkin | E42: 70/3.4z | F42: 70
A44: 11 | B44: Breakfast Bites,WG Pancake and Pork | C44: Jimmy Dean 19011 | E44: 180/.85z | F44: 63 | G44: 0 | H44: =ROUND(G44*F44/F44,2) -> 0 | I44: Cs | J44: $22.00 | K44: =IF(OR(ISBLANK(J44),G44=0,ISBLANK(G44)),,ROUND(J44+$K$3,2)) -> 0 | L44: =ROUND(H44*K44,2) -> 0 | M44: =ROUND(K44/F44,2) -> 0
B45: WGR, Frozen, Heat and Serve. Whole Grain batter around a pre-cooked
B46: ground pork sausage link w/TV. 3 g sat fat or less, 0 trans fat, 500 mg
B47: sodiium of less. Three (3) bites = one serving
A49: 12 | B49: Breakfast Item, Whole Grain Grahams | C49: Kelloggs Crunchmania | E49: 100/1.76z | F49: 100 | G49: 50 | H49: =ROUND(G49*F49/F49,2) -> 50 | I49: Cs | J49: $28.00 | K49: =IF(OR(ISBLANK(J49),G49=0,ISBLANK(G49)),,ROUND(J49+$K$3,2)) -> $28.00 | L49: =ROUND(H49*K49,2) -> $1,400.00 | M49: =ROUND(K49/F49,2) -> $0.28
B50: Bite size whole grain grahams. Meets 2.0 OEG | C50: 38000- 24518 Cinnamon Bun
C51: 38000- 24520 French Toast
A52: 13 | B52: Breakfast Kits, Kelloggs & ES Breaks WGR 2.0 OEG | C52: Kelloggs (Morning Jump Starts) | E52: 44Ct | F52: 44 | G52: NO #
B53: Each kit provides: 2oz equivalent grain, 1/2 cup fruit serving, | C53: 38000-51091 Blue Frosted Flaked R/ S
B54: plus a spoon/napkin kit, each master case includes trash bag. | C54: 38000-78792 Froot Loops R/S
B55: Contains 3 Ct Keebler Graham Cracker, 1.0 oz Cereal Bowl | C55: 38000-78791 Green Apple Jacks R/S
B56: and 100% Fruit juice
C57: ES Breaks | E57: 60Ct | F57: 60 | G57: 1200 | H57: =ROUND(G57*F57/F57,2) -> 1200 | I57: Cs | J57: $41.04 | K57: =IF(OR(ISBLANK(J57),G57=0,ISBLANK(G57)),,ROUND(J57+$K$3,2)) -> $41.04 | L57: =ROUND(H57*K57,2) -> $49,248.00 | M57: =ROUND(K57/F57,2) -> $0.68
C58: 61106 Frosted Flakes RS
C59: 61119 Cinnamon Toast Crunch RS | E59: 72 Ct | F59: 72 | J59: $49.25 | K59: =IF(OR(ISBLANK(J59),G57=0,ISBLANK(G57)),,ROUND(J59+$K$3,2)) -> $49.25 | M59: =ROUND(K59/F59,2) -> $0.68
C60: 61105 Honey Nut Cherrios | E60: 72 Ct | F60: 72 | J60: $49.25 | K60: =IF(OR(ISBLANK(J60),G57=0,ISBLANK(G57)),,ROUND(J60+$K$3,2)) -> $49.25 | M60: =ROUND(K60/F60,2) -> $0.68
C61: 61123 Fruit Loops RS | E61: 72 Ct | F61: 72 | J61: $49.25 | K61: =IF(OR(ISBLANK(J61),G57=0,ISBLANK(G57)),,ROUND(J61+$K$3,2)) -> $49.25 | M61: $0.68
C62: 61118 Apple Cinnamon Cherrios
C63: 61114 Trix RS
C64: 61103 Cocoa Puffs RS
C65: 61123 Fruit Loops RS
C66: 61103 Lucky Charms
A67: 14 | B67: Cereal, General Mills, Assorted Flavors, WGR | C67: General Mills | E67: 96 Ct | F67: 96 | G67: 0 | H67: =ROUND(G67*F67/F67,2) -> 0 | I67: Cs | J67: $18.46 | K67: =IF(OR(ISBLANK(J67),G67=0,ISBLANK(G67)),,ROUND(J67+$K$3,2)) -> 0 | L67: =ROUND(H67*K67,2) -> 0 | M67: =ROUND(K67/F67,2) -> 0
B68: Made from whole grain. Prepackaged, Bowl pack. | C68: 31879 Apple Cinnamon Cheerios WG
B69: 1 oz Cereal = 1oz Equivalent Grain | C69: 32262 Cheerios Whole Grain
C70: 11815 Cinnamon Toast Crunch Whole Grain
C71: 11943 Golden Grahams Whole Grain
C72: 11918 Honey Nut Cheerios Whole Grain
C73: 11866 Honey Nut Chex Whole Grain
C74: 31917 Lucky Charms Whole Grain
C75: 32263 Multigrain Cheerios
C76: 31919 Reese's Puffs Whole Grain
C77: 12392 Total Raisin Bran Whole Grain
C78: 31916 Fruity Cheerios Whole Grain
C79: 11768 Frosted Corn Flakes Whole Grain
A83: 15 | B83: Cereal, General Mills, Reduced Sugar, Assorted Flavors WGR | C83: General Mills | E83: 96 Ct | F83: 96 | G83: 0 | H83: =ROUND(G83*F83/F83,2) -> 0 | I83: Cs | J83: $18.46 | K83: =IF(OR(ISBLANK(J83),G83=0,ISBLANK(G83)),,ROUND(J83+$K$3,2)) -> 0 | L83: =ROUND(H83*K83,2) -> 0 | M83: =ROUND(K83/F83,2) -> 0
B84: Made from whole grain. Prepackaged, Bowl Pack. | C84: 29444 Redu Sugar Cinnamon Toast Crunch
B85: 1oz Cereal provides 1 oz Grain Equivalent | C85: 31922 Reduced Sugar Trix
C86: 31888 Reduced Sugar Cocoa Puffs
A87: 16 | B87: Cereal, Kelloggs, Assorted Flavors, WGR | C87: Kelloggs | E87: 96 Ct | F87: 96 | G87: 0 | H87: =ROUND(G87*F87/F87,2) -> 0 | I87: Cs | J87: $22.00 | K87: =IF(OR(ISBLANK(J87),G87=0,ISBLANK(G87)),,ROUND(J87+$K$3,2)) -> 0 | L87: =ROUND(H87*K87,2) -> 0 | M87: =ROUND(K87/F87,2) -> 0
B88: Prepackaged, bowl pack 1oz Cereal provides 1oz Equivalent Grain | C88: 38000-00896 Raisin Bran
C89: 38000-04996 Frosted Mini Wheats. Bite Size | E89: CACFP APPROVED
C90: 38000-45861 Choc Frsted Mini Whts Bite-size | E90: CACFP APPROVED
C91: 38000-78789 Rice Krispies, WG-Gluten Free | E91: CACFP APPROVED
A93: 17 | B93: Cereal, Kelloggs, Reduced Sugar, WGR | C93: Kelloggs | E93: 96 Ct | F93: 96 | G93: 0 | H93: =ROUND(G93*F93/F93,2) -> 0 | I93: Cs | J93: $19.50 | K93: =IF(OR(ISBLANK(J93),G93=0,ISBLANK(G93)),,ROUND(J93+$K$3,2)) -> 0 | L93: =ROUND(H93*K93,2) -> 0 | M93: =ROUND(K93/F93,2) -> 0
B94: Prepackaged, bowl pack 1oz Cereal provides 1oz Equivalent Grain | C94: 38000-78788 Reduced Sugar, Froot Loops
C95: 38000-78787 Reduced Sugar, Apple Jacks
C96: 38000-54998 Red Sugar,Frosted Flakes, MG
C97: 38000-78786 Cinnamon Flakes MultiGrain | E97: CACFP APPROVED
C98: 38000-10992 Chocolate Zucaritas Frosted Flakes
A100: 18 | B100: Cereal, Post Consumer Brands, Assorted Flavors, WGR | C100: Post Consumer Brands | E100: 96 Ct | F100: 96 | G100: 0 | H100: =ROUND(G100*F100/F100,2) -> 0 | I100: Cs | J100: $15.50 | K100: =IF(OR(ISBLANK(J100),G100=0,ISBLANK(G100)),,ROUND(J100+$K$3,2)) -> 0 | L100: =ROUND(H100*K100,2) -> 0 | M100: =ROUND(K100/F100,2) -> 0
B101: Prepackaged, Bowl Pack. | C101: 03915 Cinnamon Toasters | E101: 96/1z | F101: 96
B102: 1 oz Cereal = 1oz Equivalent Grain | C102: 27597 Honey Scooter | E102: 96/1z | F102: 96
C103: 27596 Marshmallow Mateys (RS) | E103: 96/1z | F103: 96
C104: 04515 Honey Graham Squares | E104: 96/1z | F104: 96
C105: O715 Raisin Bran | E105: 96/1.25z | F105: 96
C106: 27164 Scooter (RS) | E106: 96/1z | F106: 96 | G106: CACFP APPROVED
A109: 19 | B109: Cereal, Single Serve Pouch | C109: Kellogg's | E109: 96/1.0z | F109: 96 | G109: 0 | H109: =ROUND(G109*F109/F109,2) -> 0 | I109: Cs | J109: $19.64 | K109: =IF(OR(ISBLANK(J109),G109=0,ISBLANK(G109)),,ROUND(J109+$K$3,2)) -> 0 | L109: =ROUND(H109*K109,2) -> 0 | M109: =ROUND(K109/F109,2) -> 0
B110: No high fructose corn syrup | C110: 38000-11465 Frosted Flakes Multi-Grain RS
B111: One serving equals 1 OEG | C111: 38000-11467 Fruit Loops RS
B112: Possible Allergens: Wheat, Soy, and Milk | C112: 38000-11469 Apple Jacks RS
A114: 20 | B114: Cereal, Single Serve Pouch | C114: General Mills | E114: 96/1.0z | F114: 96 | G114: 0 | H114: =ROUND(G114*F114/F114,2) -> 0 | I114: Cs | J114: $24.95 | K114: =IF(OR(ISBLANK(J114),G114=0,ISBLANK(G114)),,ROUND(J114+$K$3,2)) -> 0 | L114: =ROUND(H114*K114,2) -> 0 | M114: =ROUND(K114/F114,2) -> 0
B115: No high fructose corn syrup | C115: 17733 Cinnamon Crunch
B116: One serving equals 1 OEG | C116: 41574 Golden Grahams
B117: Possible Allergens: Wheat, Soy, and Milk
A119: 21 | B119: Cereal Bar, WGR | C119: General Mills | E119: 96/1.42z | F119: 96 | G119: 0 | H119: =ROUND($G$119*$F$119/F119,2) -> 0 | I119: Cs | J119: $22.94 | K119: =IF(OR(ISBLANK(J119),G119=0,ISBLANK(G119)),,ROUND(J119+$K$3,2)) -> 0 | L119: =ROUND(H119*K119,2) -> 0 | M119: =ROUND(K119/F119,2) -> 0
B120: Contains 0-150 calories and not more than 1 gm saturated fat and | C120: 45576 Cinnamon Toast Crunch
B121: 0-150 mg sodium per serving | C121: 45577 Cocoa Puffs
C122: 31912 Fruity Cheerios
C123: 31914 Team Cherrios
B124: Smart Snacks Compliant | C124: 31915 Trix
A125: 22 | B125: Cereal Bar, WGR | C125: Kellogg | E125: 96/1.34z | F125: 96 | G125: 0 | H125: =ROUND($G$125*$F$125/F125,2) -> 0 | I125: Cs | J125: $22.85 | K125: =IF(OR(ISBLANK(J125),G125=0,ISBLANK(G125)),,ROUND(J125+$K$3,2)) -> 0 | L125: =ROUND(H125*K125,2) -> 0 | M125: =ROUND(K125/F125,2) -> 0
B126: made from Whole Grain Oats | C126: 38000-91612 Chocolate
B127: Calories 150 or less, 0 Trans fat; Saturated Fat 1g or less; | C127: 38000-48396 Apple Cinnamon
B128: 90- 140mg Sodium per serving. | C128: 38000-54937 Berry
B130: SMART SNACK COMPLIANT
A132: 23 | B132: Cinnamon Rolls, IW | C132: Pillsbury Mini Cinnis 133686000 | E132: 72/2.29z | F132: 72 | G132: 150 | H132: =ROUND(G132*F132/F132,2) -> 150 | I132: Cs
B133: Thaw /Heat/ Serve, One serving provides 2 oz Equivalent Grains | C133: Hadley Farms 1377IW | E133: 144/2.7z | F133: 144 | H133: =ROUND(G132*F132/F133,2) -> 75 | I133: Cs | J133: $41.76 | K133: =IF(OR(ISBLANK(J133),G132=0,ISBLANK(G132)),,ROUND(J133+$K$3,2)) -> $41.76 | L133: =ROUND(H133*K133,2) -> $3,132.00 | M133: =ROUND(K133/F133,2) -> $0.29
A135: 24 | B135: Cinnamon Rolls, Whole Wheat WGR | C135: Bridgford 6718 | E135: 160/2.25z | F135: 160 | G135: 0 | H135: =ROUND(G135*F135/F135,2) -> 0 | I135: Cs | J135: $28.40 | K135: =IF(OR(ISBLANK(J135),G135=0,ISBLANK(G135)),,ROUND(J135+$K$3,2)) -> 0 | L135: =ROUND(H135*K135,2) -> 0 | M135: =ROUND(K135/F135,2) -> 0
B136: Pre-sliced cinnamon roll dough, IQF. 0 trans fat, 1 g sat fat
B137: One serving provides not more than 2oz Equivalent grains
A138: 25 | B138: Dough, Whole Wheat , "Ranch Style Roll" , Proof and Bake | C138: Distributor Choice | E138: 240/1.5z | F138: 240 | G138: 0 | H138: =ROUND(G138*F138/F138,2) -> 0 | I138: Cs | K138: =IF(OR(ISBLANK(J138),G138=0,ISBLANK(G138)),,ROUND(J138+$K$3,2)) -> 0 | L138: =ROUND(H138*K138,2) -> 0 | M138: =ROUND(K138/F138,2) -> 0
B139: Contains a minimum 51% Whole wheat flour, enriched | C139: Fillable txt box
B140: One serving equals 1.5 grain/bread servings
A142: 26 | B142: Doughnut Holes, IW WGR | C142: Super Bakery | E142: 160/1.3z | F142: 160 | G142: 0 | H142: =ROUND(G142*F142/F142,2) -> 0 | I142: Cs | J142: $27.44 | K142: =IF(OR(ISBLANK(J142),G142=0,ISBLANK(G142)),,ROUND(J142+$K$3,2)) -> 0 | L142: =ROUND(H142*K142,2) -> 0 | M142: =ROUND(K142/F142,2) -> 0
B143: One serving provides 1oz OEG | C143: 9202 Powdered
B144: Frozen. Thaw and serve.
B145: SMART SNACK COMPLIANT
A146: 27 | B146: Doughnut Holes, Bulk | C146: (18-19) Rich's 2725 | E146: 384/.41z | F146: 128 | G146: 100 | H146: =ROUND(G146*F146/F146,2) -> 100 | I146: Cs | J146: $25.58 | K146: =IF(OR(ISBLANK(J146),G146=0,ISBLANK(G146)),,ROUND(J146+$K$3,2)) -> $25.58 | L146: =ROUND(H146*K146,2) -> $2,558.00 | M146: =ROUND(K146/F146,2) -> $0.20
B147: Frozen, thaw, heat and serve 100-200 calories with no more than 4 g
B148: sat fat and 200 mg of sodium per serving. One portion to provide min
B149: 1 OEG
B150: Possible Allergens: Wheat, Soy, Milk
A151: 28 | B151: Doughnut, Yeast Raised Donut, WG | C151: (18-19) Rich's 14839 | E151: 84/2.45z | F151: 84 | G151: 0 | H151: =ROUND(G151*F151/F151,2) -> 0 | I151: Cs | J151: $28.31 | K151: =IF(OR(ISBLANK(J151),G151=0,ISBLANK(G151)),,ROUND(J151+$K$3,2)) -> 0 | L151: =ROUND(H151*K151,2) -> 0 | M151: =ROUND(K151/F151,2) -> 0
B152: Frozen, thaw, heat and serve 200-300 calories with no more than 7 g sat
B153: fat and 350 mg of sodium per svg. One portion provides min. 2 OEG
B154: Possible Allergens: Wheat, Soy, Milk, and Eggs
A155: 29 | B155: Dunkin Stick, WGR | C155: Super Bakery 7010 | E155: 100/1.9z | F155: 100 | G155: 100 | H155: =ROUND(G155*F155/F155,2) -> 100 | I155: Cs | J155: $30.00 | K155: =IF(OR(ISBLANK(J155),G155=0,ISBLANK(G155)),,ROUND(J155+$K$3,2)) -> $30.00 | L155: =ROUND(H155*K155,2) -> $3,000.00 | M155: =ROUND(K155/F155,2) -> $0.30
B156: One 1.9 oz. serving equals one EOG
A159: 30 | B159: French Toast Sticks | C159: Farm Rich 37722 (4) | E159: 480/cs | F159: 119 | G159: 100 | H159: =ROUND(G159*F159/F159,2) -> 100 | I159: Cs | J159: $32.50 | K159: =IF(OR(ISBLANK(J159),G159=0,ISBLANK(G159)),,ROUND(J159+$K$3,2)) -> $32.50 | L159: =ROUND(H159*K159,2) -> $3,250.00 | M159: =ROUND(K159/F159,2) -> $0.27
B160: Frozen, heat and serve, 150-250 calories with no more than 2 g sat fat | C160: Krusteaz 068615160346 | E160: 176/.78z | F160: 44 | H160: =ROUND(G159*F159/F160,2) -> 270.45 | I160: Cs
B161: and 350 mg sodium, CN labeled for 4 (four) sticks to provide min. 2 OEG | C161: Right Start RS8627 | E161: 85/3.0 | F161: 85 | H161: =ROUND(G159*F159/F161,2) -> 140 | I161: Cs
B162: Possible Allergens: Egg, Soy, Milk and Wheat
A163: 31 | B163: French Toast, Mini, WGR IW | C163: Eggo Mini French Toast Bites | E163: 72/3.03z | F163: 72 | G163: 0 | H163: =ROUND($G$163*$F$163/F163,2) -> 0 | I163: Cs | J163: $24.50 | K163: =IF(OR(ISBLANK(J163),G163=0,ISBLANK(G163)),,ROUND(J163+$K$3,2)) -> 0 | L163: =ROUND(H163*K163,2) -> 0 | M163: =ROUND(K163/F163,2) -> 0
B164: Frozen, heat and serve, No HFCS, Contains not more than 200 mg sodium | C164: 38000-80801 Chocolate Chip
B165: and O trans fat. One package equals 2 OEG | C165: 38000-80693 Original Maple
A167: 32 | B167: French Toast, Mini, WGR IW | C167: Pillsbury | E167: 72/2.64z | F167: 72 | G167: 100 | H167: =ROUND($G$167*$F$167/F167,2) -> 100 | I167: Cs | J167: $24.53 | K167: =IF(OR(ISBLANK(J167),G167=0,ISBLANK(G167)),,ROUND(J167+$K$3,2)) -> $24.53 | L167: =ROUND(H167*K167,2) -> $2,453.00 | M167: =ROUND(K167/F167,2) -> $0.34
B168: Frozen, heat and serve, No HFCS, Contains not more than 200 mg sodium | C168: Cinnamon Rush 137309
B169: and O trans fat. One package equals 2 OEG
A171: 33 | B171: Strudel Stick, Fruit Filled | C171: Pillsbury | E171: 72/2.29z | F171: 72 | G171: 0 | H171: =ROUND(G171*F171/F171,2) -> 0 | I171: Cs | J171: $29.10 | K171: =IF(OR(ISBLANK(J171),G171=0,ISBLANK(G171)),,ROUND(J171+$K$3,2)) -> 0 | L171: =ROUND(H171*K171,2) -> 0 | M171: =ROUND(K171/F171,2) -> 0
B172: Frozen. Heat and serve. Whole grain rich. No more than 6 g | C172: Frudel Apple Strudel
B173: fat and 280 mg sodium per serving. 0 trans fat. One serving
B174: provides 2 oz Equivalent Grains
A176: 34 | B176: Grits, Whole Grain Enriched | C176: Distributor Choice | E176: 8/5# | F176: 40 | G176: 0 | H176: =ROUND($G$176*$F$176/F176,2) -> 0 | I176: Cs | K176: =IF(OR(ISBLANK(J176),G176=0,ISBLANK(G176)),,ROUND(J176+$K$3,2)) -> 0 | L176: =ROUND(H176*K176,2) -> 0 | M176: =ROUND(K176/F176,2) -> 0
B177: Shelf Stable | C177: Fillable txt box
A178: 35 | B178: Grits, Regular | C178: Distributor Choice | E178: 8/5# | F178: 40 | G178: 25 | H178: =ROUND($G$178*$F$178/F178,2) -> 25 | I178: Cs | K178: =IF(OR(ISBLANK(J178),G178=0,ISBLANK(G178)),,ROUND(J178+$K$3,2)) -> 0 | L178: =ROUND(H178*K178,2) -> 0 | M178: =ROUND(K178/F178,2) -> 0
B179: Shelf Stable. Quick cooking | C179: Fillable txt box
A180: 36 | B180: Oats, Rolled | C180: Distributor Choice | E180: 12/42 oz | F180: 504 | G180: 0 | H180: =ROUND($G$180*$F$180/F180,2) -> 0 | I180: Cs | K180: =IF(OR(ISBLANK(J180),G180=0,ISBLANK(G180)),,ROUND(J180+$K$3,2)) -> 0 | L180: =ROUND(H180*K180,2) -> 0 | M180: =ROUND(K180/F180,2) -> 0
B181: 100% Natural | C181: Fillable txt box
A182: 37 | B182: Honey Bun, IW | C182: Super Bakery | E182: 80/2.75z | F182: 80 | G182: 100 | H182: =ROUND(G182*F182/F182,2) -> 100 | I182: Cs | J182: $24.52 | K182: =IF(OR(ISBLANK(J182),G182=0,ISBLANK(G182)),,ROUND(J182+$K$3,2)) -> $24.52 | L182: =ROUND(H182*K182,2) -> $2,452.00 | M182: =ROUND(K182/F182,2) -> $0.31
B183: Frozen, thaw and serve, WGR, One serving provides 2 OEG | C183: 6060 Goody Bun
A185: 38 | B185: Loaf, Mini, IW, | C185: Super Bakery | E185: 120/2.0z | F185: 120 | G185: 0 | H185: =ROUND(G185*F185/F185,2) -> 0 | I185: Cs | J185: $31.24 | K185: =IF(OR(ISBLANK(J185),G185=0,ISBLANK(G185)),,ROUND(J185+$K$3,2)) -> 0 | L185: =ROUND(H185*K185,2) -> 0 | M185: =ROUND(K185/F185,2) -> 0
B186: Frozen, thaw and serve, WGR, One serving provides 1 OEG | C186: 7055 Blueberry
B187: 1 serving provides 1 oz equivalent grain | C187: 7056 Banana
C188: 7057 Apple Cinnamon
A189: 39 | B189: Muffins, IW | C189: COOL MUFFINS | E189: 96/1.8z | F189: 96
B190: Frozen, thaw and serve, One serving provides 1 OEG | C190: 30921 Cinnamon
C191: 30727 Blueberry
C192: 30720 Apple
C193: 30723 Banana
C194: Super Bakery | E194: 72/2.0z | F194: 72 | H194: =ROUND($G$189*$F$189/F194,2) -> 0 | I194: Cs | J194: $16.20 | K194: =IF(OR(ISBLANK(J194),G189=0,ISBLANK(G189)),,ROUND(J194+$K$3,2)) -> 0 | L194: =ROUND(H194*K194,2) -> 0 | M194: =ROUND(K194/F194,2) -> 0
C195: 9050 Blueberry
C196: 9052 Banana
A198: 40 | B198: Muffins, Reduced Fat | C198: Otis Spunkmeyer | E198: 72/2.0z | F198: 72 | G198: 200 | H198: =ROUND(G198*F198/F198,2) -> 200 | I198: Cs | J198: $16.92 | K198: =IF(OR(ISBLANK(J198),G198=0,ISBLANK(G198)),,ROUND(J198+$K$3,2)) -> $16.92 | L198: =ROUND(H198*K198,2) -> $3,384.00 | M198: =ROUND(K198/F198,2) -> $0.24
B199: 30% or less of calories from fat, 30% or less by weight of added sugar. | C199: 10143 Wild Blueberry
B200: Individually Wrapped | C200: 10144 Banana
B201: One muffin provides 1.0 oz Equivalent grain | C201: 10145 Chocolate Chocolate Chip
C202: 10146 Apple Cinnamon
C203: Smart Choice | E203: 96/2.0z | F203: 96 | H203: =ROUND(G198*F198/F203,2) -> 150 | I203: Cs
C204: 2661 Blueberry
C205: 2666 Apple Cinnamon
C206: 2670 Chocolate Chip
C207: 2675 Banana
A208: 41 | B208: Muffins, Reduced Fat | C208: Chef Pierre WG | E208: 48/2oz | F208: 48 | G208: 0 | H208: =ROUND(G208*F208/F208,2) -> 0 | I208: Cs | J208: 0 | K208: =IF(OR(ISBLANK(J208),G208=0,ISBLANK(G208)),,ROUND(J208+$K$3,2)) -> 0 | L208: =ROUND(H208*K208,2) -> 0 | M208: =ROUND(K208/F208,2) -> 0
B209: 30% or less of calories from fat, 30% or less by weight of added sugar. | C209: 8860 Blueberry
B210: Individually Wrapped, Muffin provides 1.0 OEG | C210: 8861 Banana
A211: 42 | B211: Muffin, Egg and Cheese on a WG English | C211: Advanced Pierre 68243 | E211: 96/3.30z | F211: 96 | G211: 25 | H211: =ROUND(G211*F211/F211,2) -> 25 | I211: Cs | J211: $47.47 | K211: =IF(OR(ISBLANK(J211),G211=0,ISBLANK(G211)),,ROUND(J211+$K$3,2)) -> $47.47 | L211: =ROUND(H211*K211,2) -> $1,186.75 | M211: =ROUND(K211/F211,2) -> $0.49
B212: Frozen, WGR, 200-300 calories and not more than 4 g saturated fat
B213: and 400 mg sodium per svg. One portion to provide 1 oz. M/MA and 2 OEG
B214: Possible Allergens: Egg, Wheat, Milk and Soy
A215: 43 | B215: Pancake Bowl with Fruit, IW | C215: Buena Vista | E215: 72/3.8z | F215: 72 | G215: 25 | H215: =ROUND(G215*F215/F215,2) -> 25 | I215: Cs | J215: $51.25 | K215: =IF(OR(ISBLANK(J215),G215=0,ISBLANK(G215)),,ROUND(J215+$K$3,2)) -> $51.25 | L215: =ROUND(H215*K215,2) -> $1,281.25 | M215: =ROUND(K215/F215,2) -> $0.71
B216: Frozen, 200-300 caories and not mot more than 3 gm saturated fat and 400 mg of | C216: Apple 94010
B217: sodium per serving. One portion to provide 2 OEG and 1/2 cup fruit, WGR | C217: Blueberry 94020
C218: Peach 94030
C219: Strawberry 94040
B220: Possible Allergens: Egg, Milk, Wheat, and Soy
A221: 44 | B221: Pancake and Sausage on a Stick | C221: Jimmy Dean 19010 WG | E221: 60/2.51z | F221: 60 | G221: 0 | H221: =ROUND(G221*F221/F221,2) -> 0 | I221: Cs | J221: $17.80 | K221: =IF(OR(ISBLANK(J221),G221=0,ISBLANK(G221)),,ROUND(J221+$K$3,2)) -> 0 | L221: =ROUND(H221*K221,2) -> 0 | M221: =ROUND(K221/F221,2) -> 0
B222: Frozen, fully, cooked, shall provide 1 M/MA and 1 OEG
B224: Possible Allergens: Milk, Eggs, Wheat and Soy
A225: 45 | B225: Pancake Wrap, Maple Flavored (IW) WG | C225: Foster Farms 95127 | E225: 68/2.85z | F225: 68 | G225: 300 | H225: =ROUND(G225*F225/F225,2) -> 300 | I225: Cs | J225: $26.16 | K225: =IF(OR(ISBLANK(J225),G225=0,ISBLANK(G225)),,ROUND(J225+$K$3,2)) -> $26.16 | L225: =ROUND(H225*K225,2) -> $7,848.00 | M225: =ROUND(K225/F225,2) -> $0.38
... 73 more rows

Sheet Shelf-stable Vegetables
B1: ='Recap Sheet'!A2 -> School Food Authority: | E1: ='Recap Sheet'!A3 -> Offeror Name: | O1: Commodity
B2: ='Recap Sheet'!B2 -> Colleton County School District Office of Student Nutrition | C2: Return to Recap Sheet | E2: ='Recap Sheet'!B3 -> 0
A3: Item | B3: Description | C3: Approved Brand Name / Manuf ID # | F3: Firm Fixed Fee | K3: ='Recap Sheet'!B4 -> $0.00 | N3: Processing | O3: Commodity | P3: Pounds of | S3: NOI | T3: Net
A4: # | D4: Distributor | E4: Vendor | F4: Svgs | G4: Est. | H4: Bid | I4: Bid | J4: Unit | K4: Unit Price | L4: Total | M4: Cost per | N4: Fee for | O4: Value Per | P4: DF Needed | Q4: Commodity | R4: NOI | S4: Price/ | T4: Cost Per
D5: Code | E5: Pack | F5: per unit | G5: Bid Qty | H5: Qty | I5: Unit | J5: Price | K5: plus Fee | L5: Price | M5: Unit | N5: Service | O5: Pound | P5: Per Case | Q5: Value | R5: Price | S5: Serving | T5: Serving
B6: Shelf-stable / Canned Vegetables | O6: Potatoes, Dehydrated 100506/110227
A7: 1 | B7: Beans, Green (No Imports) | C7: Distributor Choice | E7: 6/#10 | F7: 6 | G7: 0 | H7: =ROUND(G7*F7/F7,2) -> 0 | I7: Cs
B8: Sieve 3 or 4; variety Blue Lake; Style cut, no strings; | C8: Fillable txt box or unprotected | H8: =ROUND(G7*F7/F8,2) ->  | I8: Cs | K8: =IF(OR(ISBLANK(J8),G7=0,ISBLANK(G7)),,ROUND(J8+$K$3,2)) -> 0 | L8: =ROUND(H8*K8,2) ->  | M8: =ROUND(K8/F8,2) -> 
B9: Drained weight 63 oz. Grade A Fancy
A10: 2 | B10: Beans, Lima, Green (No Imports) | C10: Distributor Choice | E10: 6/#10 | F10: 6 | G10: 0 | H10: =ROUND(G10*F10/F10,2) -> 0 | I10: Cs
B11: Grade A, minimum drained weight 71 oz | C11: Fillable txt box or unprotected | H11: =ROUND(G10*F10/F11,2) ->  | I11: Cs | K11: =IF(OR(ISBLANK(J11),G10=0,ISBLANK(G10)),,ROUND(J11+$K$3,2)) -> 0 | L11: =ROUND(H11*K11,2) ->  | M11: =ROUND(K11/F11,2) -> 
A12: 3 | B12: Beans, Pintos (No Imports) | C12: Distributor Choice | E12: 6/#10 | F12: 6 | G12: 0 | H12: =ROUND($G$14*$F$14/F12,2) -> 0 | I12: Cs
B13: USDA Grade A | C13: Fillable txt box or unprotected | H13: =ROUND(G12*F12/F13,2) ->  | I13: Cs | K13: =IF(OR(ISBLANK(J13),G12=0,ISBLANK(G12)),,ROUND(J13+$K$3,2)) -> 0 | L13: =ROUND(H13*K13,2) ->  | M13: =ROUND(K13/F13,2) -> 
A14: 4 | B14: Beans, Pinto (Southwest) | C14: Bush's 39400-01071 | E14: 6/#10 | F14: 138 | G14: 0 | H14: =ROUND($G$46*$F$46/F14,2) -> 365.22 | I14: Cs | J14: 0 | K14: =IF(OR(ISBLANK(J14),G14=0,ISBLANK(G14)),,ROUND(J14+$K$3,2)) -> 0 | L14: =ROUND(H14*K14,2) -> 0 | M14: =ROUND(K14/F14,2) -> 0
B15: USDA Grade A 1/2 cup serving meets 2 oz. M/MA and 1/2 cup vegetable
A16: 5 | B16: Beans, Black, Fancy (No Imports) | C16: Distributor Choice | E16: 6/#10 | F16: 6 | G16: 0 | H16: =ROUND($G$16*$F$16/F16,2) -> 0 | I16: Cs
B17: USDA Grade A | C17: Fillable txt box or unprotected | H17: =ROUND(G16*F16/F17,2) ->  | I17: Cs | K17: =IF(OR(ISBLANK(J17),G16=0,ISBLANK(G16)),,ROUND(J17+$K$3,2)) -> 0 | L17: =ROUND(H17*K17,2) ->  | M17: =ROUND(K17/F17,2) -> 
A18: 6 | B18: Beans with Pork (No Imports) | C18: Distributor Choice | E18: 6/#10 | F18: 6 | G18: 0 | H18: =ROUND(G18*F18/F18,2) -> 0 | I18: Cs
B19: First Quality Grade A, Small White beans, in tomato sauce pack, with pork. | C19: Fillable txt box or unprotected | H19: =ROUND(G18*F18/F19,2) ->  | I19: Cs | K19: =IF(OR(ISBLANK(J19),G18=0,ISBLANK(G18)),,ROUND(J19+$K$3,2)) -> 0 | L19: =ROUND(H19*K19,2) ->  | M19: =ROUND(K19/F19,2) -> 
B20: Drained weight 85 oz. Minimum score 90 or above; (No Imports)
A21: 7 | B21: Beans, Baked (No Imports) | C21: Distributor Choice | E21: 6/#10 | F21: 6 | G21: 150 | H21: =ROUND(G21*F21/F21,2) -> 150 | I21: Cs
B22: Dry mature beans, baked in brown sugar, molasses | C22: Fillable txt box or unprotected | H22: =ROUND(G21*F21/F22,2) ->  | I22: Cs | K22: =IF(OR(ISBLANK(J22),G21=0,ISBLANK(G21)),,ROUND(J22+$K$3,2)) -> 0 | L22: =ROUND(H22*K22,2) ->  | M22: =ROUND(K22/F22,2) -> 
B23: or New England sauce. (No soy beans.) Min.score 90 or above; Grade A
A24: 8 | B24: Vegetarian Beans, Small White beans, in tomato sauce pack. | C24: Distributor Choice | E24: 6/#10 | F24: 6 | G24: 0 | H24: =ROUND($G$24*$F$24/F24,2) -> 0 | I24: Cs
B25: (No Imports) Drained weight 85 oz. Minimum score 90 or above; Grade A | C25: Fillable txt box or unprotected | H25: =ROUND(G24*F24/F25,2) ->  | I25: Cs | K25: =IF(OR(ISBLANK(J25),G24=0,ISBLANK(G24)),,ROUND(J25+$K$3,2)) -> 0 | L25: =ROUND(H25*K25,2) ->  | M25: =ROUND(K25/F25,2) -> 
A26: 9 | B26: Bean, Kidney, Light (No Imports) | C26: Distributor Choice | E26: 6/#10 | F26: 6 | G26: 0 | H26: =ROUND($G$26*$F$26/F26,2) -> 0 | I26: Cs
C27: Fillable txt box or unprotected | H27: =ROUND(G26*F26/F27,2) ->  | I27: Cs | K27: =IF(OR(ISBLANK(J27),G26=0,ISBLANK(G26)),,ROUND(J27+$K$3,2)) -> 0 | L27: =ROUND(H27*K27,2) ->  | M27: =ROUND(K27/F27,2) -> 
A28: 10 | B28: Carrots, Sliced (No Imports) | C28: Distributor Choice | E28: 6/#10 | F28: 6 | G28: 0 | H28: =ROUND($G$28*$F$28/F28,2) -> 0 | I28: Cs
B29: Medium Fancy, 3/15-5/16 inch cut | C29: Fillable txt box or unprotected | H29: =ROUND(G28*F28/F29,2) ->  | I29: Cs | K29: =IF(OR(ISBLANK(J29),G28=0,ISBLANK(G28)),,ROUND(J29+$K$3,2)) -> 0 | L29: =ROUND(H29*K29,2) ->  | M29: =ROUND(K29/F29,2) -> 
A30: 11 | B30: Corn, Whole Kernel (No Imports) | C30: Distributor Choice | E30: 6/#10 | F30: 6 | G30: 0 | H30: =ROUND(G30*F30/F30,2) -> 0 | I30: Cs
B31: Golden; drained net weight per #10 can 72 oz. Grade A, Fancy | C31: Fillable txt box or unprotected | H31: =ROUND(G30*F30/F31,2) ->  | I31: Cs | K31: =IF(OR(ISBLANK(J31),G30=0,ISBLANK(G30)),,ROUND(J31+$K$3,2)) -> 0 | L31: =ROUND(H31*K31,2) ->  | M31: =ROUND(K31/F31,2) -> 
B32: Minimum score 90; must be packed in enamel lined tins
A33: 12 | B33: Mixed Vegetables (No Imports) | C33: Distributor Choice | E33: 6/#10 | F33: 6 | G33: 0 | H33: =ROUND(G33*F33/F33,2) -> 0 | I33: Cs
B34: US Grade A Fancy, Mix to inc. carrots, pots, celery, peas,corn,& lima beans | C34: Fillable txt box or unprotected | H34: =ROUND(G33*F33/F34,2) ->  | I34: Cs | K34: =IF(OR(ISBLANK(J34),G33=0,ISBLANK(G33)),,ROUND(J34+$K$3,2)) -> 0 | L34: =ROUND(H34*K34,2) ->  | M34: =ROUND(K34/F34,2) -> 
A35: 13 | B35: Onions, Chopped, Dehydrated (No Imports) | C35: Distributor Choice | E35: 6/2Lb | F35: 12 | G35: 0 | H35: =ROUND(G35*F35/F35,2) -> 0 | I35: Cs
B36: White. Yield 1# dehydrated equals 5# fresh. US Grade A | C36: Fillable txt box or unprotected | H36: =ROUND(G35*F35/F36,2) ->  | I36: Cs | K36: =IF(OR(ISBLANK(J36),G35=0,ISBLANK(G35)),,ROUND(J36+$K$3,2)) -> 0 | L36: =ROUND(H36*K36,2) ->  | M36: =ROUND(K36/F36,2) -> 
A37: 14 | B37: Peas and Carrots (No Imports) | C37: Distributor Choice | E37: 6/#10 | F37: 6 | G37: 0 | H37: =ROUND(G37*F37/F37,2) -> 0 | I37: Cs
B38: June peas and diced carrots. Carrots equal to Grade A, Fancy, Peas Grade 5 | C38: Fillable txt box or unprotected | H38: =ROUND(G37*F37/F38,2) ->  | I38: Cs | K38: =IF(OR(ISBLANK(J38),G37=0,ISBLANK(G37)),,ROUND(J38+$K$3,2)) -> 0 | L38: =ROUND(H38*K38,2) ->  | M38: =ROUND(K38/F38,2) -> 
A39: 15 | B39: Peas, Black-eyed (No Imports) | C39: Distributor Choice | E39: 6/#10 | F39: 6 | G39: 0 | H39: =ROUND(G39*F39/F39,2) -> 0 | I39: Cs
B40: Grade A, Fancy. Green, fresh peas, 3 sieve. Minimum drained weight 72 oz | C40: Fillable txt box or unprotected | G40: 0 | H40: =ROUND(G39*F39/F40,2) ->  | I40: Cs | K40: =IF(OR(ISBLANK(J40),G39=0,ISBLANK(G39)),,ROUND(J40+$K$3,2)) -> 0 | L40: =ROUND(H40*K40,2) ->  | M40: =ROUND(K40/F40,2) -> 
A41: 16 | B41: Peas, Field (No Imports) | C41: Distributor Choice | E41: 6/#10 | F41: 6 | G41: 0 | H41: =ROUND(G41*F41/F41,2) -> 0 | I41: Cs
B42: Grade A, Fancy. May include snaps. Minimum drained weight 73 oz. | C42: Fillable txt box or unprotected | H42: =ROUND(G41*F41/F42,2) ->  | I42: Cs | K42: =IF(OR(ISBLANK(J42),G41=0,ISBLANK(G41)),,ROUND(J42+$K$3,2)) -> 0 | L42: =ROUND(H42*K42,2) ->  | M42: =ROUND(K42/F42,2) -> 
A43: 17 | B43: Peas, Green (No Imports) | C43: Distributor Choice | E43: 6/#10 | F43: 6 | G43: 0 | H43: =ROUND(G43*F43/F43,2) -> 0 | I43: Cs
B44: Grade A, Fancy. Sieve No. 3 or smaller either sweet or | C44: Fillable txt box or unprotected | H44: =ROUND(G43*F43/F44,2) ->  | I44: Cs | K44: =IF(OR(ISBLANK(J44),G43=0,ISBLANK(G43)),,ROUND(J44+$K$3,2)) -> 0 | L44: =ROUND(H44*K44,2) ->  | M44: =ROUND(K44/F44,2) -> 
B45: early variety. Score 90 or higher. Minimum drained weight 72 oz
A46: 18 | B46: Potatoes, Mashed, Complete | C46: Basic American 76468 | E46: 12/28z | F46: 504 | G46: 100 | H46: =ROUND($G$46*$F$46/F46,2) -> 100 | I46: Cs | J46: $43.87 | K46: =IF(OR(ISBLANK(J46),G46=0,ISBLANK(G46)),,ROUND(J46+$K$3,2)) -> $43.87 | L46: =ROUND(H46*K46,2) -> $4,387.00 | M46: =ROUND(K46/F46,2) -> $0.09 | O46: $0.0915 | P46: 105 | Q46: =ROUND(O46*P46,2) -> $9.61 | R46: =K46-Q46 -> $34.26 | S46: =R46/F46 -> $0.07 | T46: =N46/F46 -> 0
B47: Shelf stable, add water only, mix, rest, and serve preparation, Fully | C47: Excel Potato Pearls
B48: seasoned, No soy, No imports, Serving size 1/2 c prepared
B49: Possible Allergens: Milk, Sulfites
A50: 19 | B50: Potatoes, Mashed, Complete | C50: Idahoan 2970000313 | E50: 12/26z | F50: 480 | G50: 0 | H50: =ROUND(G50*F50/F50,2) -> 0 | I50: Cs | J50: $39.78 | K50: =IF(OR(ISBLANK(J50),G50=0,ISBLANK(G50)),,ROUND(J50+$K$3,2)) -> 0 | L50: =ROUND(H50*K50,2) -> 0 | M50: =ROUND(K50/F50,2) -> 0 | O50: $0.0915 | P50: 97.5 | Q50: =ROUND(O50*P50,2) -> $8.92 | R50: =J50-Q50 -> $30.86 | S50: =R50/F50 -> $0.06 | T50: 0
B51: Shelf Stable, Add water only, mix, rest, and serve preparation Fully
B52: seasoned, No imports, Serving size 1/2 c ÷ 1 teaspoon prepared
B53: Possible Allergens: Milk, Sulfites
A54: 20 | B54: Potatoes, White Diced (No Imports) | C54: Distributor Choice | E54: 6/#10 | F54: 6 | G54: 0 | H54: =ROUND(G54*F54/F54,2) -> 0 | I54: Cs
B55: Grade A, Fancy, First Quality. White Irish Pack: 6/#10 | C55: Fillable txt box or unprotected | H55: =ROUND(G54*F54/F55,2) ->  | I55: Cs | K55: =IF(OR(ISBLANK(J55),G54=0,ISBLANK(G54)),,ROUND(J55+$K$3,2)) -> 0 | L55: =ROUND(H55*K55,2) ->  | M55: =ROUND(K55/F55,2) -> 
A56: 21 | B56: Potatoes, White, Whole (No Imports) | C56: Distributor Choice | E56: 6/#10 | F56: 6 | G56: 0 | H56: =ROUND(G56*F56/F56,2) -> 0 | I56: Cs
B57: Small whole size 2. 100 count per #10 can. First Quality (No Imports) | C57: Fillable txt box or unprotected | H57: =ROUND(G56*F56/F57,2) ->  | I57: Cs | K57: =IF(OR(ISBLANK(J57),G56=0,ISBLANK(G56)),,ROUND(J57+$K$3,2)) -> 0 | L57: =ROUND(H57*K57,2) ->  | M57: =ROUND(K57/F57,2) -> 
O58: Tomato Paste for Bulk Processing 100332
A59: 22 | B59: Salsa, Mild, Thick and Chunky, Nutritionally Enhanced | C59: Red Gold 72940-11005 | E59: 6/#10 | F59: 210 | G59: 0 | H59: =ROUND(G59*F59/F59,2) -> 0 | I59: Cs | J59: $25.90 | K59: =IF(OR(ISBLANK(J59),G59=0,ISBLANK(G59)),,ROUND(J59+$K$3,2)) -> 0 | L59: =ROUND(H59*K59,2) -> 0 | M59: =ROUND(K59/F59,2) -> 0 | N59: $23.47 | O59: $0.4125 | P59: 5.9 | Q59: =ROUND(O59*P59,2) -> $2.43 | R59: =J59-Q59 -> $23.47 | S59: =R59/F59 -> $0.11 | T59: $0.11
B60: Canned, Grade A 3 oz. = 1/2 c Red/Orange Vegetable | C60: Commodity #: REDSC99
A61: 23 | B61: Salsa, Mild, Dipping Cup | C61: Red Gold 72940-11139-5 Comm#: REDSC2ZC84 | E61: 84/3.0z | F61: 84 | G61: 125 | H61: =ROUND(G61*F61/F61,2) -> 125 | I61: Cs | J61: $27.21 | K61: =IF(OR(ISBLANK(J61),G61=0,ISBLANK(G61)),,ROUND(J61+$K$3,2)) -> $27.21 | L61: =ROUND(H61*K61,2) -> $3,401.25 | M61: =ROUND(K61/F61,2) -> $0.32 | N61: $26.24 | O61: $0.4125 | P61: 2.36 | Q61: =ROUND(O61*P61,2) -> $0.97 | R61: =J61-Q61 -> $26.24 | S61: =R61/F61 -> $0.31 | T61: =N61/F61 -> $0.31
B62: Canned Grade A 3 oz. serving = 1/2 c Red/Orange Vegetable | C62: Red Gold 72940-11139-7 Comm#: REDSC2Z168 | E62: 168/3.0z | F62: 168 | H62: =ROUND(G61*F61/F62,2) -> 62.5 | I62: Cs | J62: $52.70 | K62: =IF(OR(ISBLANK(J62),G62=0,ISBLANK(G62)),,ROUND(J62+$K$3,2)) -> $52.70 | L62: =ROUND(H62*K62,2) -> $3,293.75 | M62: =ROUND(K62/F62,2) -> $0.31 | N62: $50.75 | O62: $0.4125 | P62: 4.72 | Q62: =ROUND(O62*P62,2) -> $1.95 | R62: =J62-Q62 -> $50.75 | S62: =R62/F62 -> $0.30 | T62: =N62/F62 -> $0.30
A63: 24 | B63: Squash, Sliced (No Imports) | C63: Distributor Choice | E63: 6/#10 | F63: 6 | G63: 0 | H63: =ROUND(G63*F63/F63,2) -> 0 | I63: Cs
B64: Grade A, Minimum drained weight 61 oz | C64: Fillable txt box or unprotected | H64: =ROUND(G63*F63/F64,2) ->  | I64: Cs | K64: =IF(OR(ISBLANK(J64),G63=0,ISBLANK(G63)),,ROUND(J64+$K$3,2)) -> 0 | L64: =ROUND(H64*K64,2) ->  | M64: =ROUND(K64/F64,2) -> 
A65: 25 | B65: Sweet Potatoes, Cut (No Imports) | C65: Distributor Choice | E65: 6/#10 | F65: 6 | G65: 0 | H65: =ROUND(G65*F65/F65,2) -> 0 | I65: Cs
B66: Grade A, Fancy. Packed in syrup. Minimum drained weight 73 oz. First Quality | C66: Fillable txt box or unprotected | H66: =ROUND(G65*F65/F66,2) ->  | I66: Cs | K66: =IF(OR(ISBLANK(J66),G65=0,ISBLANK(G65)),,ROUND(J66+$K$3,2)) -> 0 | L66: =ROUND(H66*K66,2) ->  | M66: =ROUND(K66/F66,2) -> 
A67: 26 | B67: Tomatoes, Crushed | C67: Red Gold 72940-81400 Comm#:RPKDX99 | E67: 6/#10 | F67: 286 | G67: 0 | H67: =ROUND(G67*F67/F67,2) -> 0 | I67: Cs | J67: $19.73 | K67: =IF(OR(ISBLANK(J67),G67=0,ISBLANK(G67)),,ROUND(J67+$K$3,2)) -> 0 | L67: =ROUND(K67*H67,2) -> 0 | M67: =ROUND(K67/F67,2) -> 0 | N67: $12.67 | O67: $0.4125 | P67: 17.41 | Q67: =ROUND(O67*P67,2) -> $7.18 | R67: =J67-Q67 -> $12.55 | S67: =R67/F67 -> $0.04 | T67: =N67/F67 -> $0.04
B68: Grade B, Extra Standard, Packed in tomato juice. Drained weight 64 oz.
B69: 2 oz. = 1/2 cup Red/Orange Vegetable
A70: 27 | B70: Tomato Paste | C70: Red Gold 72940-82300 Comm#: RPKUA99 | E70: 6/#10 | F70: 666 | G70: 0 | H70: =ROUND(G70*F70/F70,2) -> 0 | I70: Cs | J70: $28.37 | K70: =IF(OR(ISBLANK(J70),G70=0,ISBLANK(G70)),,ROUND(J70+$K$3,2)) -> 0 | L70: =ROUND(K70*H70,2) -> 0 | M70: =ROUND(K70/F70,2) -> 0 | N70: $15.60 | O70: $0.4125 | P70: 30.97 | Q70: =ROUND(O70*P70,2) -> $12.78 | R70: =J70-Q70 -> $15.59 | S70: =R70/F70 -> $0.02 | T70: =N70/F70 -> $0.02
B71: Minimum 24% solids, Grade A. 1 oz. = 1/2 c Red/Orange Vegetable | C71: Hunt's 27000-38835 | E71: 6/111z | F71: 564 | H71: =ROUND($G$70*$F$70/F71,2) -> 0 | I71: Cs | T71: 0
C72: Heinz 130005731000 | E72: 6/#10 | F72: 555 | H72: =ROUND($G$70*$F$70/F72,2) -> 0 | I72: Cs | O72: $0.4105 | P72: 32.11 | Q72: =ROUND(O72*P72,2) -> $13.18 | R72: =K72-Q72 ->  | S72: =R72/F72 ->  | T72: 0
A73: 28 | B73: Tomato Sauce | C73: Red Gold 72940-81800 Comm#: RPKHA99 | E73: 6/#10 | F73: 265 | G73: 0 | H73: =ROUND(G73*F73/F73,2) -> 0 | I73: Cs | O73: $0.4125 | P73: 9.72 | Q73: =ROUND(O73*P73,2) -> $4.01
B74: US Grade A. Canned, 3 oz. = 1/2 c Red/Orange Vegetable | C74: Heinz 130005724000 | E74: 6/#10 | F74: 295 | H74: =ROUND(G73*F73/F74,2) -> 0 | I74: Cs | J74: $19.88 | K74: =IF(OR(ISBLANK(J74),G73=0,ISBLANK(G73)),,ROUND(J74+$K$3,2)) -> 0 | L74: =ROUND(K74*H74,2) -> 0 | M74: =ROUND(K74/F74,2) -> 0 | O74: $0.4105 | P74: 9.57 | Q74: $3.93 | R74: =J74-Q74 -> $15.95 | S74: =R74/F74 -> $0.05 | T74: =N74/F74 -> 0
A76: 29 | B76: Catsup, Tomato, Portion Control | C76: Red Gold 72940-11581 Comm#: REDY59G | E76: 1000/9gm | F76: 1000 | G76: 200 | H76: =ROUND(G76*F76/F76,2) -> 200 | I76: Cs | O76: $0.4125 | P76: 4.21 | Q76: =ROUND(O76*P76,2) -> $1.74 | T76: =N76/F76 -> 0
B77: 33% solids, Grade A 9 gm foil packets | C77: Hunts 27000-38287 | E77: 1000/9gm | F77: 1000 | H77: =ROUND(G76*F76/F77,2) -> 200 | I77: Cs | S77: =M77/E77 -> 
C78: Heinz 130009848000 | E78: 1000/9gm | F78: 1000 | H78: =ROUND(G76*F76/F78,2) -> 200 | I78: Cs | J78: $11.33 | K78: =IF(OR(ISBLANK(J78),G76=0,ISBLANK(G76)),,ROUND(J78+$K$3,2)) -> $11.33 | L78: =ROUND(K78*H78,2) -> $2,266.00 | M78: =ROUND(K78/F78,2) -> $0.01 | O78: $0.4125 | P78: 4.32 | Q78: =ROUND(O78*P78,2) -> $1.78 | R78: =J78-Q78 -> $9.55 | S78: =R78/F78 -> $0.01 | T78: 0
A80: 30 | B80: Catsup, 100% Natural made w/sugar, low sodium, PC | C80: Red Gold 72940-11584 Comm#: REDYL9G | E80: 1000/9gm | F80: 1000 | G80: 0 | H80: =ROUND(G80*F80/F80,2) -> 0 | I80: Cs | J80: $14.36 | K80: =IF(OR(ISBLANK(J80),G80=0,ISBLANK(G80)),,ROUND(J80+$K$3,2)) -> 0 | L80: =ROUND(K80*H80,2) -> 0 | M80: =ROUND(K80/F80,2) -> 0 | N80: $12.38 | O80: $0.4125 | P80: 4.81 | Q80: =ROUND(O80*P80,2) -> $1.98 | R80: =J80-Q80 -> $12.38 | S80: =R80/F80 -> $0.01 | T80: =N80/F80 -> $0.01
B81: US Grade A, 9 gm foil packets
A83: 31 | B83: Catsup, Tomato | C83: Red Gold 72940-11002 Comm#: REDY599 | E83: 6/#10 | F83: 1151 | G83: 0 | H83: =ROUND(G83*F83/F83,2) -> 0 | I83: Cs
B84: Canned, Grade A, Fancy, 33% solid | C84: Hunt's 27000-38251 | E84: 6/114z | F84: 1140 | H84: =ROUND(G83*F83/F84,2) -> 0 | I84: Cs
C85: Kraft/Heinz 130005129000 | E85: 6#10 | F85: 1140 | H85: =ROUND(G83*F83/F85,2) -> 0 | I85: Cs | J85: $18.03 | K85: =IF(OR(ISBLANK(J85),G83=0,ISBLANK(G83)),,ROUND(J85+$K$3,2)) -> 0 | L85: =ROUND(K85*H85,2) -> 0 | M85: =ROUND(K85/F85,2) -> 0 | O85: $0.4125 | P85: 9.3 | Q85: =ROUND(O85*P85,2) -> $3.84 | R85: =J85-Q85 -> $14.19 | S85: =R85/F85 -> $0.01 | T85: =N85/F85 -> 0
A87: 32 | B87: Catsup, Tomato | C87: Kraft/Heinz 13000030800 | E87: 500/27g | F87: 500 | G87: 0 | H87: =ROUND(G87*F87/F87,2) -> 0 | I87: Cs | J87: $32.50 | K87: =IF(OR(ISBLANK(J87),G87=0,ISBLANK(G87)),,ROUND(J87+$K$3,2)) -> 0 | L87: =ROUND(K87*H87,2) -> 0 | M87: =ROUND(K87/F87,2) -> 0 | O87: $0.4125 | P87: 6.47 | Q87: =ROUND(O87*P87,2) -> $2.67 | R87: =J87-Q87 -> $29.83 | S87: =R87/F87 -> $0.06 | T87: =N87/F87 -> 0
B88: Grade A Fancy, Single serving cups
A91: 33 | B91: Sauce, Marinara | C91: Red Gold 72940-82200 Comm#: RPKNA99 | E91: 6/#10 | F91: 225 | G91: 100 | H91: =ROUND(G91*F91/F91,2) -> 100 | I91: Cs | J91: $26.15 | K91: =IF(OR(ISBLANK(J91),G91=0,ISBLANK(G91)),,ROUND(J91+$K$3,2)) -> $26.15 | L91: =ROUND(K91*H91,2) -> $2,615.00 | M91: =ROUND(K91/F91,2) -> $0.12 | N91: $23.05 | O91: $0.4125 | P91: 7.52 | Q91: =ROUND(O91*P91,2) -> $3.10 | R91: =J91-Q91 -> $23.05 | S91: =R91/F91 -> $0.10 | T91: =N91/F91 -> $0.10
B92: Canned, Grade ! Fancy, 2.8 oz = 1/2 c Red/Orange Vegetable
A94: 34 | B94: Sauce, Marinara, Portion Control | C94: Red Gold 72940-82207-9 Comm#: REDNA2ZC84 | E94: 84/2.5z | F94: 84 | G94: 50 | H94: =ROUND(G94*F94/F94,2) -> 50 | I94: Cs | J94: $21.46 | K94: =IF(OR(ISBLANK(J94),G94=0,ISBLANK(G94)),,ROUND(J94+$K$3,2)) -> $21.46 | L94: =ROUND(K94*H94,2) -> $1,073.00 | M94: =ROUND(K94/F94,2) -> $0.26 | N94: $19.95 | O94: $0.4125 | P94: 3.67 | Q94: =ROUND(O94*P94,2) -> $1.51 | R94: =J94-Q94 -> $19.95 | S94: =R94/F94 -> $0.24 | T94: =N94/F94 -> $0.24
B95: Shelf Stable, US Grade A, Ready to serve | C95: Red Gold 72940-82207-3 Comm#: REDNA2ZC168 | E95: 168/2,5z | F95: 168 | H95: =ROUND(G94*F94/F94,2) -> 50 | I95: Cs | J95: $41.35 | K95: =IF(OR(ISBLANK(J95),G93=0,ISBLANK(G93)),,ROUND(J95+$K$3,2)) -> 0 | L95: =ROUND(K95*H95,2) -> 0 | M95: =ROUND(K95/F95,2) -> 0 | N95: $38.33 | O95: $0.4125 | P95: 7.33 | Q95: =ROUND(O95*P95,2) -> $3.02 | R95: =J95-Q95 -> $38.33 | S95: =R95/F95 -> $0.23 | T95: =N95/F95 -> $0.23
B96: 2 oz. = 1/2 cup Red/Orange Vegetable
A97: 35 | B97: Sauce, Spaghetti Smooth | C97: Red Gold 72940-82100 Comm#: RPKMA9C | E97: 6/#10 | F97: 265 | G97: 0 | H97: =ROUND(G97*F97/F97,2) -> 0 | I97: Cs | J97: $23.05 | K97: =IF(OR(ISBLANK(J97),G97=0,ISBLANK(G97)),,ROUND(J97+$K$3,2)) -> 0 | L97: =ROUND(H97*K97,2) -> 0 | M97: =ROUND(K97/F97,2) -> 0 | N97: $18.65 | O97: $0.4125 | P97: 10.67 | Q97: =ROUND(O97*P97,2) -> $4.40 | R97: =J97-Q97 -> $18.65 | S97: =R97/F97 -> $0.07 | T97: =N97/F97 -> $0.07
B98: Canned, US Grade A, Crediting statement with amount to provide 1/2c | C98: Heinz 130005880000 | E98: 6/#10 | F98: 141 | H98: =ROUND(G97*F97/F98,2) -> 0 | I98: Cs | O98: $0.4105 | P98: 11.9 | Q98: $4.88 | T98: =N98/F98 -> 0
B99: Red/Orange Vegetable
A100: 36 | B100: Sauce, Spaghetti, Nutritionally Balanced | C100: Red Gold 72940-82107 Comm#: RPKMA9E | E100: 6/#10 | F100: 265 | G100: 0 | H100: =ROUND(G100*F100/F100,2) -> 0 | I100: Cs | J100: $24.53 | K100: =IF(OR(ISBLANK(J100),G100=0,ISBLANK(G100)),,ROUND(J100+$K$3,2)) -> 0 | L100: =ROUND(H100*K100,2) -> 0 | M100: =ROUND(K100/F100,2) -> 0 | N100: $20.09 | O100: $0.4125 | P100: 10.32 | Q100: =ROUND(O100*P100,2) -> $4.26 | R100: =J100-Q100 -> $20.27 | S100: =R100/F100 -> $0.08 | T100: $0.08
B101: Canned, US Grade A, 3 oz. = 1/2 c Red/Orange Vegetable | C101: Heinz 130005880000 | E101: 6/#10 | F101: 141 | H101: =ROUND(G100*F100/F101,2) -> 0 | I101: Cs | O101: $0.4105 | P101: 11.9 | Q101: $4.88
A103: 37 | B103: Ketchup, Sriracha, Hot Chili | C103: Red Gold 72940-11204 Comm#: HUYYW8G | E103: 1000/8gm | F103: 1000 | G103: 0 | H103: =ROUND($G$103*$F$103/F103,2) -> 0 | I103: Cs | J103: $21.27 | K103: =IF(OR(ISBLANK(J103),G103=0,ISBLANK(G103)),,ROUND(J103+$K$3,2)) -> 0 | L103: =ROUND(H103*K103,2) -> 0 | M103: =ROUND(K103/F103,2) -> 0 | N103: $19.67 | O103: $0.4125 | P103: 3.89 | Q103: =ROUND(O103*P103,2) -> $1.60 | R103: =J103-Q103 -> $19.67 | S103: =R103/F103 -> $0.02 | T103: =N103/F103 -> $0.02
B104: 8 gram foil packages
A106: 38 | B106: Sauce, Barbecue, 12 gram | C106: Heinz/Kraft 130005338000 | E106: 200/12 gm | F106: 200 | G106: 50 | H106: =ROUND($G$106*$F$106/F106,2) -> 50 | I106: Cs | O106: $0.4105 | P106: 1.01 | Q106: =ROUND(O106*P106,2) -> $0.41 | R106: $5.50 | S106: =R106/F106 -> $0.03 | T106: =N106/F106 -> 0
B107: Shelf Stable, 12 grams per packet | C107: PPI 7160372781000 | E107: 200/12 gm | F107: 200 | H107: =ROUND($G$106*$F$106/F107,2) -> 50 | I107: Cs | J107: $4.45 | K107: =IF(OR(ISBLANK(J106),G106=0,ISBLANK(G106)),,ROUND(J107+$K$3,2)) -> $4.45 | L107: =ROUND(H107*K107,2) -> $222.50 | M107: =ROUND(K107/F107,2) -> $0.02 | S107: =M107/E107 -> 
C108: CF Sauer 06858 | E108: 200/12 gm | F108: 200 | H108: =ROUND($G$106*$F$106/F108,2) -> 50 | I108: Cs
B109: Allergens: Wheat, Soy | C109: Diamond/Flavor Fresh 76009 | E109: 200/12 gm | F109: 200 | H109: =ROUND($G$106*$F$106/F109,2) -> 50 | I109: Cs
A110: 39 | B110: Sauce, Taco | C110: Heinz/Kraft 130005324000 | E110: 200/9 gm | F110: 200 | G110: 100 | H110: =ROUND($G$110*$F$110/F110,2) -> 100 | I110: Cs | O110: $0.4105 | P110: 0.75 | Q110: =ROUND(O110*P110,2) -> $0.31 | R110: =K110-Q110 ->  | S110: =R110/F110 ->  | T110: =N110/F110 -> 0
B111: Shelf Stable, 9 grams per packet | C111: Sauer's | E111: 200/9 gm | F111: 200 | H111: =ROUND($G$110*$F$110/F111,2) -> 100 | I111: Cs | J111: $3.75 | K111: =IF(OR(ISBLANK(J111),G110=0,ISBLANK(G110)),,ROUND(J111+$K$3,2)) -> $3.75 | L111: =ROUND(H111*K111,2) -> $375.00 | M111: =ROUND(K111/F111,2) -> $0.02 | S111: =M111/E111 -> 
C112: Rosarita | E112: 200/9 gm | F112: 200 | H112: 100 | I112: Cs
A114: 40 | B114: Sauce, Barbecue 1 oz Dipping Cup, Low Sodium | C114: (18-19) Red Gold 72940-115805 | E114: 250/1.0z | F114: 250 | G114: 25 | H114: =ROUND($G$114*$F$114/F114,2) -> 25
B115: 1 oz. cup pack contains 75 mg or less sodium per 1 oz. serving | C115: (18-19) Kraft/Heinz 130007146000 | E115: 100/1 oz | F115: 100 | H115: =ROUND($G$114*$F$114/F115,2) -> 62.5 | I115: Cs | J115: $8.24 | K115: =IF(OR(ISBLANK(J115),G114=0,ISBLANK(G114)),,ROUND(J115+$K$3,2)) -> $8.24 | L115: =ROUND(H115*K115,2) -> $515.00 | M115: =ROUND(K115/F115,2) -> $0.08 | O115: $0.4125 | P115: 1.19 | Q115: =ROUND(O115*P115,2) -> $0.49 | R115: =J115-Q115 -> $7.75 | S115: =R115/F115 -> $0.08 | T115: =N115/F115 -> 0
B116: Allergens: None Listed
A117: 41 | B117: Turnip Greens, chopped | C117: Distributor Choice | E117: 6/#10 | F117: 6 | G117: 0 | H117: =ROUND(G117*F117/F117,2) -> 0 | I117: Cs
B118: Fancy, Minimum drained weight 58 oz (No Imports) | C118: Fillable txt box or unprotected | H118: =ROUND(G117*F117/F118,2) ->  | I118: Cs | K118: =IF(OR(ISBLANK(J118),G117=0,ISBLANK(G117)),,ROUND(J118+$K$3,2)) -> 0 | L118: =ROUND(H118*K118,2) ->  | M118: =ROUND(K118/F118,2) -> 
I120: Page Total | L120: =SUMIF(L6:L119,">0") -> $18,148.50

Sheet Groceries
B1: School Food Authority | E1: ='Recap Sheet'!A3 -> Offeror Name:
B2: ='Recap Sheet'!B2 -> Colleton County School District Office of Student Nutrition | C2: Return to Recap Sheet | E2: ='Recap Sheet'!B3 -> 0
A3: Item | B3: Description | C3: Approved Brand Name / Manuf ID # | F3: Firm Fixed Fee | K3: ='Recap Sheet'!B4 -> $0.00
A4: # | D4: Distributor | E4: Vendor | F4: Svgs | G4: Est. | H4: Bid | I4: Bid | J4: Unit | K4: Unit Price | L4: Total | M4: Cost per
D5: Code | E5: Pack | F5: per unit | G5: Bid Qty | H5: Qty | I5: Unit | J5: Price | K5: plus Fee | L5: Price | M5: Unit
B6: Groceries
A7: 1 | B7: Bacon Bits | C7: Distributor Choice | E7: 25Lb | F7: 25 | G7: 20 | H7: =ROUND(G7*F7/F7,2) -> 20 | I7: Cs
B8: Imitation. For use on salad bar. | C8: Fillable txt box or unprotected | H8: =ROUND(G7*F7/F8,2) ->  | I8: Cs | K8: =IF(OR(ISBLANK(J8),G7=0,ISBLANK(G7)),,ROUND(J8+$K$3,2)) -> 0 | L8: =ROUND(H8*K8,2) ->  | M8: =ROUND(K8/F8,2) -> 
A9: 2 | B9: Baking Powder | C9: Distributor Choice | E9: 40Lb | F9: 40 | G9: 0 | H9: =ROUND(G9*F9/F9,2) -> 0 | I9: Cs
B10: Must meet Fed/ Spec #EE-B-86B. Double Acting. | C10: Fillable txt box or unprotected | H10: =ROUND(G9*F9/F10,2) ->  | I10: Cs | K10: =IF(OR(ISBLANK(J10),G9=0,ISBLANK(G9)),,ROUND(J10+$K$3,2)) -> 0 | L10: =ROUND(H10*K10,2) ->  | M10: =ROUND(K10/F10,2) -> 
A11: 3 | B11: Baking Soda | C11: Distributor Choice | E11: 24/1 lb | F11: 24 | G11: 0
B12: Shelf Stable | C12: Fillable txt box or unprotected | H12: =ROUND(G11*F11/F12,2) ->  | I12: Cs | K12: =IF(OR(ISBLANK(J12),G11=0,ISBLANK(G11)),,ROUND(J12+$K$3,2)) -> 0 | L12: =ROUND(H12*K12,2) ->  | M12: =ROUND(K12/F12,2) -> 
A13: 4 | B13: Bases, Soup, Beef Flavor | C13: Distributor Choice | E13: 12/1Lb | F13: 12 | G13: 5 | H13: =ROUND(G13*F13/F13,2) -> 5 | I13: Cs
B14: First ingredient, meat, 1 lb reconstituted yields 5 gallons broth. No MSG | C14: Fillable txt box or unprotected | H14: =ROUND(G13*F13/F14,2) ->  | I14: Cs | K14: =IF(OR(ISBLANK(J14),G13=0,ISBLANK(G13)),,ROUND(J14+$K$3,2)) -> 0 | L14: =ROUND(H14*K14,2) ->  | M14: =ROUND(K14/F14,2) -> 
A16: 5 | B16: Bases, Soup, Chicken Flavor | C16: Distributor Choice | E16: 12/1Lb | F16: 12 | G16: 10 | H16: =ROUND(G16*F16/F16,2) -> 10 | I16: Cs
B17: First ingredient, meat, 1 lb reconstituted yields 5 gallons broth. No MSG | C17: Fillable txt box or unprotected | H17: =ROUND(G16*F16/F17,2) ->  | I17: Cs | K17: =IF(OR(ISBLANK(J17),G16=0,ISBLANK(G16)),,ROUND(J17+$K$3,2)) -> 0 | L17: =ROUND(H17*K17,2) ->  | M17: =ROUND(K17/F17,2) -> 
A18: 6 | B18: Bases, Soup, Ham Flavor | C18: Distributor Choice | E18: 12/1Lb | F18: 12 | G18: 5 | H18: =ROUND(G18*F18/F18,2) -> 5 | I18: Cs
B19: First ingredient, meat,1 lb reconstituted yields 5 gallons broth. No MSG | C19: Fillable txt box or unprotected | H19: =ROUND(G18*F18/F19,2) ->  | I19: Cs | K19: =IF(OR(ISBLANK(J19),G18=0,ISBLANK(G18)),,ROUND(J19+$K$3,2)) -> 0 | L19: =ROUND(H19*K19,2) ->  | M19: =ROUND(K19/F19,2) -> 
A20: 7 | B20: Bases, Soup, Vegetarian Classic Cream | C20: Campbells 22878 | E20: 4/4ib | F20: 512 | G20: 0 | H20: =ROUND(G20*F20/F20,2) -> 0 | I20: CS | K20: =IF(OR(ISBLANK(J20),G20=0,ISBLANK(G20)),,ROUND(J20+$K$3,2)) -> 0 | L20: =ROUND(H20*K20,2) -> 0 | M20: =ROUND(K20/F20,2) -> 0
B21: No HFCS, MFG, or partially hydrogenerated oil
A22: 8 | B22: Bread Sticks, Frozen Dough. WGR | C22: Rich's 12194 | E22: 250/1.0z | F22: 250 | G22: 150 | H22: =ROUND(G22*F22/F22,2) -> 150 | I22: Cs | K22: =IF(OR(ISBLANK(J22),G22=0,ISBLANK(G22)),,ROUND(J22+$K$3,2)) -> 0 | L22: =ROUND(H22*K22,2) -> 0 | M22: =ROUND(K22/F22,2) -> 0
B23: Pre-cut frozen bread dough. Bake and Serve 1breadstick = 1.0 OEG
A24: 9 | B24: Breadsticks, Frozen, Fully Baked, WGR | C24: Adv-Pierre 133908 | E24: 144/1g.5z | F24: 144 | G24: 0 | H24: =ROUND(G24*F24/F24,2) -> 0 | I24: CS | K24: =IF(OR(ISBLANK(J24),G24=0,ISBLANK(G24)),,ROUND(J24+$K$3,2)) -> 0 | L24: =ROUND(H24*K24,2) -> 0 | M24: =ROUND(K24/F24,2) -> 0
B25: 1 breadstick provides 1.5 oz Equivalent Grain, Thaw and Serve
A26: 10 | B26: Breadsticks, Frozen, Fully Baked Garlic Cheese | C26: Cole's 832 | E26: 54/2.0z | F26: 54 | G26: 150 | H26: =ROUND(G26*F26/F26,2) -> 150 | I26: CS | K26: =IF(OR(ISBLANK(J26),G26=0,ISBLANK(G26)),,ROUND(J26+$K$3,2)) -> 0 | L26: =ROUND(H26*K26,2) -> 0 | M26: =ROUND(K26/F26,2) -> 0
B27: Frozen, 100-200 calories and not more than 2 g sat fat and 200 mg
B28: of sodium per svg. One breadstick provides 2 OEG Smart Snack Compl
B29: Possible Allergens: Wheat, Soy and Milk
A30: 11 | B30: Chips, Nachos , Bulk | C30: 62399 Tostitos Crispy Rounds | E30: 8/1Lb | F30: 8 | G30: 0 | H30: =ROUND($G$30*$F$30/F30,2) -> 0 | K30: =IF(OR(ISBLANK(J30),G30=0,ISBLANK(G30)),,ROUND(J30+$K$3,2)) -> 0 | L30: =ROUND(H30*K30,2) -> 0 | M30: =ROUND(K30/F30,2) -> 0
B31: Must meet Whole Grain Rich
A32: 12 | B32: Cookie Dough, Frozen, Red. Fat WGR | C32: Otis Spunkmeyer | E32: 240/1.5z | F32: 240 | G32: 225 | H32: =ROUND(G32*F32/F32,2) -> 225 | I32: Cs | K32: =IF(OR(ISBLANK(J32),G32=0,ISBLANK(G32)),,ROUND(J32+$K$3,2)) -> 0 | L32: =ROUND(H32*K32,2) -> 0 | M32: =ROUND(K32/F32,2) -> 0
C33: 55680 Chocolate Chip .5 OEG
B34: 1 cookie provides no more than 30% calories from total fat, | C34: 55683 Oatmeal Raisin .5 OEG
B35: 10% calories from saturated, 35% sugar by weight | C35: 55684 Butter Sugar 1.0 OEG
C36: 55688 Carnival .5 OEG
C37: 55689 Chocolate Brownie .75 OEG
A38: 13 | B38: Cookies, Mini, Whole Grain, Indv. WGR | C38: Chortles | E38: 100/1z | F38: 100 | G38: 50 | H38: =ROUND($G$38*$F$38/F38,2) -> 50 | I38: Cs | K38: =IF(OR(ISBLANK(J38),G38=0,ISBLANK(G38)),,ROUND(J38+$K$3,2)) -> 0 | L38: =ROUND(H38*K38,2) -> 0 | M38: =ROUND(K38/F38,2) -> 0
B39: 0 transfat, low in sugar and calories, No HFCS | C39: 09535-00005 Graham
B40: 1 package = 1 oz eq grain. | C40: 09535- 00004 Chocolate
C41: Kelloggs Gripz, Cookie, Mini | E41: 150/.95z | F41: 150 | H41: =ROUND($G$38*$F$38/F41,2) -> 33.33 | I41: Cs | K41: =IF(OR(ISBLANK(J41),G38=0,ISBLANK(G38)),,ROUND(J41+$K$3,2)) -> 0 | L41: =ROUND(H41*K41,2) -> 0 | M41: =ROUND(K41/F41,2) -> 0
B42: Chortles and Kelloggs products are SMART SNACK COMPLAINT | C42: 30100-45682 Cinnamon Graham Bites
C43: 30100-80741 Chocolate Chip Graham
A44: 14 | B44: Cornmeal, Yellow, Enriched. | C44: Distributor Choice | E44: 25Lb | F44: 25 | G44: 0 | H44: =ROUND(G44*F44/F44,2) -> 0 | I44: Cs
B45: First Quality | C45: Fillable txt box | H45: =ROUND(G44*F44/F45,2) ->  | I45: Cs | K45: =IF(OR(ISBLANK(J45),G44=0,ISBLANK(G44)),,ROUND(J45+$K$3,2)) -> 0 | L45: =ROUND(H45*K45,2) ->  | M45: =ROUND(K45/F45,2) -> 
B46: This is not a Whole Grain Rich product.
A47: 15 | B47: Cornstarch | C47: Distributor Choice | E47: 24/1gLb | F47: 24 | G47: 0 | H47: =ROUND(G47*F47/F47,2) -> 0 | I47: Cs
B48: Must meet Federal spec #N-C-541E | C48: Fillable txt box | H48: =ROUND(G47*F47/F48,2) ->  | I48: Cs | K48: =IF(OR(ISBLANK(J48),G47=0,ISBLANK(G47)),,ROUND(J48+$K$3,2)) -> 0 | L48: =ROUND(H48*K48,2) ->  | M48: =ROUND(K48/F48,2) -> 
A49: 16 | B49: Crackers, Animal, Baked WGR | C49: Pepperidge Farms -Giant Goldfish | E49: 300/.9z | F49: 300 | G49: 25 | H49: =ROUND(G49*F49/F49,2) -> 25 | I49: Cs | K49: =IF(OR(ISBLANK(J49),G49=0,ISBLANK(G49)),,ROUND(J49+$K$3,2)) -> 0 | L49: =ROUND(H49*K49,2) -> 0 | M49: =ROUND(K49/F49,2) -> 0
B50: <30% calories from fat, <10% from Saturated Fat, 0 Trans Fat, | C50: 15094 Cinnamon Grahams
B51: Made from whole-grain flour, 1 package = 1 grain/bread serving | C51: 15263 Chocolate Grahams
C52: 18432 Honey Oats Graham
B53: SMART SNACK COMPLIANT | C53: 19246 Vanilla Grahams
A54: 17 | B54: Crackers, Cheddar Cheese, Goldfish Shape, Whole Grain | C54: Pepperidge Farms 18105 | E54: 300/.75z | F54: 300 | G54: 25 | H54: =ROUND(G54*F54/F54,2) -> 25 | I54: Cs | K54: =IF(OR(ISBLANK(J54),G54=0,ISBLANK(G54)),,ROUND(J54+$K$3,2)) -> 0 | L54: =ROUND(H54*K54,2) -> 0 | M54: =ROUND(K54/F54,2) -> 0
B55: One package meets one grain/bread serving
B56: SMART SNACK COMPLIANT
A57: 18 | B57: Crackers, Saltines, Whole Grain,IW WGR | C57: Keebler- Zesta Minis 30100 10088 | E57: 300/.39z | F57: 300 | G57: 100 | H57: =IF(F57>0,ROUND(G57*F57/F57,2),) -> 100 | I57: Cs | K57: =IF(OR(ISBLANK(J57),G57=0,ISBLANK(G57)),,ROUND(J57+$K$3,2)) -> 0 | L57: =ROUND(H57*K57,2) -> 0 | M57: =ROUND(K57/F57,2) -> 0
B58: Mini saltine crackers made with whole grain, provides .5 OEG
B59: per serving
A60: 19 | B60: Crackers, Saltines, Whole Grain IW | C60: Distributor Choice | E60: 500/2 Ct | F60: 500 | G60: 0 | H60: =ROUND($G$60*$F$60/F60,2) -> 0 | I60: Cs
B61: Individually wrapped | C61: Fillable txt box | H61: =ROUND(G60*F60/F61,2) ->  | I61: Cs | K61: =IF(OR(ISBLANK(J61),G60=0,ISBLANK(G60)),,ROUND(J61+$K$3,2)) -> 0 | L61: =ROUND(H61*K61,2) ->  | M61: =ROUND(K61/F61,2) -> 
B62: 2 Packages (4 crackers) provides .5 oz Equivalent Grain
A64: 20 | B64: Croissants, Whole Grain, O Trans Fat, Pre-sliced , Thaw & Serve | C64: Hadley Farms 139TF WG | E64: 144/2.2z | F64: 144 | G64: 20 | H64: =ROUND(G64*F64/F64,2) -> 20 | I64: Cs | K64: =IF(OR(ISBLANK(J64),G64=0,ISBLANK(G64)),,ROUND(J64+$K$3,2)) -> 0 | L64: =ROUND(H64*K64,2) -> 0 | M64: =ROUND(K64/F64,2) -> 0
B65: 1 serving = 2 grain/bread servings
A66: 21 | B66: Dressings, Regular, Honey Mustard | C66: Naturally Fresh 85016875061 | E66: 4/1g | F66: 4 | G66: 0 | H66: =ROUND(G66*F66/F66,2) -> 0 | I66: Cs | K66: =IF(OR(ISBLANK(J66),G66=0,ISBLANK(G66)),,ROUND(J66+$K$3,2)) -> 0 | L66: =ROUND(H66*K66,2) -> 0 | M66: =ROUND(K66/F66,2) -> 0
B67: Does not require refrigeration until after opened. | C67: Hellmans 83023501 | E67: 4/1g | F67: 4 | H67: =ROUND($G$66*$F$66/F67,2) -> 0 | I67: Cs | J67: 0 | K67: =IF(OR(ISBLANK(J67),G66=0,ISBLANK(G66)),,ROUND(J67+$K$3,2)) -> 0 | L67: =ROUND(K67*H67,2) -> 0 | M67: 0
C68: CF Sauer Dukes 06148 | E68: 4/1g | F68: 4 | H68: =ROUND($G$66*$F$66/F68,2) -> 0 | I68: Cs | J68: 0 | K68: =IF(OR(ISBLANK(J68),G66=0,ISBLANK(G66)),,ROUND(J68+$K$3,2)) -> 0 | L68: =ROUND(K68*H68,2) -> 0 | M68: 0
C69: Southern Classic 17107410 | E69: 4/1g | F69: 4 | H69: =ROUND($G$66*$F$66/F69,2) -> 0 | I69: Cs | J69: 0 | K69: =IF(OR(ISBLANK(J69),G66=0,ISBLANK(G66)),,ROUND(J69+$K$3,2)) -> 0 | L69: =ROUND(K69*H69,2) -> 0 | M69: =ROUND(K69/F69,2) -> 0
C70: Kraft 210007052400 | E70: 4/1g | F70: 4 | H70: =ROUND($G$66*$F$66/F70,2) -> 0 | I70: Cs | J70: 0 | K70: =IF(OR(ISBLANK(J70),G66=0,ISBLANK(G66)),,ROUND(J70+$K$3,2)) -> 0 | L70: =ROUND(K70*H70,2) -> 0 | M70: 0
A71: 22 | B71: Dressings, Reduced Calorie, Italian | C71: Southern Classics 13007310 | E71: 4/1g | F71: 4 | G71: 4 | H71: =ROUND($G$71*$F$71/F71,2) -> 4 | I71: Cs | J71: 0 | K71: =IF(OR(ISBLANK(J71),G71=0,ISBLANK(G71)),,ROUND(J71+$K$3,2)) -> 0 | L71: =ROUND(H71*K71,2) -> 0 | M71: 0
B72: Does not require refrigeration until after opened. | C72: CFSauer Dukes 06156 | E72: 4/1g | F72: 4 | H72: =ROUND($G$71*$F$71/F72,2) -> 4 | I72: Cs | J72: 0 | K72: =IF(OR(ISBLANK(J72),G71=0,ISBLANK(G71)),,ROUND(J72+$K$3,2)) -> 0 | L72: =ROUND(H72*K72,2) -> 0 | M72: 0
C73: Kraft 210006438900 | E73: 4/1g | F73: 4 | H73: =ROUND($G$71*$F$71/F73,2) -> 4 | I73: Cs | J73: 0 | K73: =IF(OR(ISBLANK(J73),G71=0,ISBLANK(G71)),,ROUND(J73+$K$3,2)) -> 0 | L73: =ROUND(H73*K73,2) -> 0 | M73: =ROUND(K73/F73,2) -> 0
A74: 23 | B74: Dressings, Regular, Ranch | C74: Marzetti 837966 | E74: 4/1g | F74: 4 | G74: 4 | H74: =ROUND(G74*F74/F74,2) -> 4 | I74: Cs | K74: =IF(OR(ISBLANK(J74),G74=0,ISBLANK(G74)),,ROUND(J74+$K$3,2)) -> 0 | L74: =ROUND(H74*K74,2) -> 0 | M74: =ROUND(K74/F74,2) -> 0
B75: Does not require refrigeration until after opened. | C75: Hellmann's 25711 | E75: 4/1g | F75: 4 | H75: =ROUND($G$74*$F$74/F75,2) -> 4 | I75: Cs | K75: =IF(OR(ISBLANK(J75),G74=0,ISBLANK(G74)),,ROUND(J75+$K$3,2)) -> 0 | L75: =ROUND(K75*H75,2) -> 0 | M75: 0
C76: Kens KE0789 | E76: 4/1g | F76: 4 | H76: 4 | I76: Cs | K76: =IF(OR(ISBLANK(J76),G74=0,ISBLANK(G74)),,ROUND(J76+$K$3,2)) -> 0 | L76: 0 | M76: 0
C77: Hidden Valley 85620 | E77: 4/1g | F77: 4 | H77: 4 | I77: Cs | K77: =IF(OR(ISBLANK(J77),G74=0,ISBLANK(G74)),,ROUND(J77+$K$3,2)) -> 0 | L77: 0 | M77: 0
C78: Naturally Fresh 85016645061 | E78: 4/1g | F78: 4 | H78: 4 | I78: Cs | J78: 0 | K78: =IF(OR(ISBLANK(J78),G74=0,ISBLANK(G74)),,ROUND(J78+$K$3,2)) -> 0 | L78: 0 | M78: 0
C79: Southern Classics 21107410 | E79: 4/1g | F79: 4 | H79: 4 | I79: Cs | J79: 0 | K79: =IF(OR(ISBLANK(J79),G74=0,ISBLANK(G74)),,ROUND(J79+$K$3,2)) -> 0 | L79: 0 | M79: 0
C80: CF Sauer Dukes 06198 | E80: 4/1g | F80: 4 | H80: 4 | I80: Cs | J80: 0 | K80: =IF(OR(ISBLANK(J80),G74=0,ISBLANK(G74)),,ROUND(J80+$K$3,2)) -> 0 | L80: 0 | M80: 0
C81: Kraft 210006439900 | E81: 4/1g | F81: 4 | H81: =ROUND($G$74*$F$74/F81,2) -> 4 | I81: Cs | J81: 0 | K81: =IF(OR(ISBLANK(J81),G74=0,ISBLANK(G74)),,ROUND(J81+$K$3,2)) -> 0 | L81: =ROUND(K81*H81,2) -> 0 | M81: =ROUND(K81/F81,2) -> 0
A82: 24 | B82: Dressings, Regular, Thousand Island | C82: Marzetti 83000 | E82: 4/1g | F82: 4 | G82: 0 | H82: =ROUND(G82*F82/F82,2) -> 0 | I82: Cs | K82: =IF(OR(ISBLANK(J82),G82=0,ISBLANK(G82)),,ROUND(J82+$K$3,2)) -> 0 | L82: =ROUND(H82*K82,2) -> 0 | M82: =ROUND(K82/F82,2) -> 0
B83: Does not require refrigeration until after opened. | C83: Hellmann's 25714 | E83: 4/1g | F83: 4 | H83: =ROUND($G$82*$F$82/F83,2) -> 0 | I83: Cs | K83: =IF(OR(ISBLANK(J83),G82=0,ISBLANK(G82)),,ROUND(J83+$K$3,2)) -> 0 | L83: =ROUND(K83*H83,2) -> 0 | M83: 0
C84: Kens 0816 | E84: 4/1g | F84: 4 | H84: 0 | I84: Cs | K84: =IF(OR(ISBLANK(J84),G82=0,ISBLANK(G82)),,ROUND(J84+$K$3,2)) -> 0 | L84: 0 | M84: 0
C85: Hidden Valley 85648 | E85: 4/1g | F85: 4 | H85: 0 | I85: Cs | K85: =IF(OR(ISBLANK(J85),G82=0,ISBLANK(G82)),,ROUND(J85+$K$3,2)) -> 0 | L85: 0 | M85: 0
C86: Southern Classic 34107410 | E86: 4/1g | F86: 4 | H86: 0 | I86: Cs | K86: =IF(OR(ISBLANK(J86),G82=0,ISBLANK(G82)),,ROUND(J86+$K$3,2)) -> 0 | L86: 0 | M86: 0
C87: CF Sauer Dukes 06188 | E87: 4/1g | F87: 4 | H87: 0 | I87: Cs | J87: 0 | K87: =IF(OR(ISBLANK(J87),G82=0,ISBLANK(G82)),,ROUND(J87+$K$3,2)) -> 0 | L87: 0 | M87: =ROUND(K87/F87,2) -> 0
C88: Kraft 210006430200 | E88: 4/1g | F88: 4 | H88: 0 | I88: Cs | K88: =IF(OR(ISBLANK(J88),G82=0,ISBLANK(G82)),,ROUND(J88+$K$3,2)) -> 0 | L88: 0 | M88: 0
A89: 25 | B89: Flour, Plain, All Purpose | C89: Distributor Choice | E89: 25Lb | F89: 25 | G89: 0 | H89: =ROUND(G89*F89/F89,2) -> 0 | I89: Cs
B90: Enriched | C90: Fillable txt box | H90: =ROUND(G89*F89/F90,2) ->  | I90: Cs | K90: =IF(OR(ISBLANK(J90),G89=0,ISBLANK(G89)),,ROUND(J90+$K$3,2)) -> 0 | L90: =ROUND(H90*K90,2) ->  | M90: =ROUND(K90/F90,2) -> 
A92: 26 | B92: Flour, Whole Wheat | C92: Distributor Choice | E92: 50Lb | F92: 50 | G92: 0 | H92: =ROUND(G92*F92/F92,2) -> 0 | I92: Cs
C93: Fillable txt box | H93: =ROUND(G92*F92/F93,2) ->  | I93: Cs | K93: =IF(OR(ISBLANK(J93),G92=0,ISBLANK(G92)),,ROUND(J93+$K$3,2)) -> 0 | L93: =ROUND(H93*K93,2) ->  | M93: =ROUND(K93/F93,2) -> 
A94: 27 | B94: Food Release | C94: Pam (ConAgra) 63111 | E94: 6/17 z | F94: 102 | G94: 20 | H94: =ROUND(G94*F94/F94,2) -> 20 | I94: Cs | K94: =IF(OR(ISBLANK(J94),G94=0,ISBLANK(G94)),,ROUND(J94+$K$3,2)) -> 0 | L94: =ROUND(H94*K94,2) -> 0 | M94: =ROUND(K94/F94,2) -> 0
B95: Processed soybean oil, no water added. Statement | C95: Wescoat 62067 | E95: 6/17z | F95: 102 | H95: =ROUND($G$94*$F$94/F95,2) -> 20 | I95: Cs | K95: =IF(OR(ISBLANK(J95),G94=0,ISBLANK(G94)),,ROUND(J95+$K$3,2)) -> 0 | L95: =ROUND(K95*H95,2) -> 0 | M95: =ROUND(K95/F95,2) -> 0
B96: required if Distributor Choice is bid | C96: Benton Lane 63081 | E96: 6/16.5z | F96: 99 | H96: =ROUND($G$94*$F$94/F96,2) -> 21 | I96: Cs | K96: =IF(OR(ISBLANK(J96),G94=0,ISBLANK(G94)),,ROUND(J96+$K$3,2)) -> 0 | L96: =ROUND(K96*H96,2) -> 0 | M96: =ROUND(K96/F96,2) -> 0
C97: Pan Coating Cargill 100087293 | E97: 6/14z | F97: 84 | H97: =ROUND($G$94*$F$94/F97,2) -> 24 | I97: Cs | K97: =IF(OR(ISBLANK(J97),G94=0,ISBLANK(G94)),,ROUND(J97+$K$3,2)) -> 0 | L97: =ROUND(K97*H97,2) -> 0 | M97: =ROUND(K97/F97,2) -> 0
A99: 28 | B99: Food Release, Butter Flavor | C99: Buttery Delite, 17120 | E99: 6/17z | F99: 84 | G99: 20 | H99: =ROUND(G99*F99/F99,2) -> 20 | I99: Cs | K99: =IF(OR(ISBLANK(J99),G99=0,ISBLANK(G99)),,ROUND(J99+$K$3,2)) -> 0 | L99: =ROUND(H99*K99,2) -> 0 | M99: =ROUND(K99/F99,2) -> 0
B100: Blend of canola oil with sunflower lecithin, salt and natural flavoring.
B101: Statement required if Distributor Choice is bid
A102: 29 | B102: Gelatin Dessert Mix, Orange | C102: Distributor Choice | E102: 12/24z | F102: 420 | G102: 10 | H102: =ROUND(G102*F102/F102,2) -> 10 | I102: Cs
B103: Sugar added | C103: Fillable txt box | H103: =ROUND(G102*F102/F103,2) ->  | I103: Cs | K103: =IF(OR(ISBLANK(J103),G102=0,ISBLANK(G102)),,ROUND(J103+$K$3,2)) -> 0 | L103: =ROUND(H103*K103,2) ->  | M103: =ROUND(K103/F103,2) -> 
A104: 30 | B104: Gelatin Dessert Mix, Strawberry | C104: Distributor Choice | E104: 12/24 z | F104: 288 | G104: 10 | H104: =ROUND(G104*F104/F104,2) -> 10 | I104: Cs
B105: Sugar added | C105: Fillable txt box | H105: =ROUND(G104*F104/F105,2) ->  | I105: Cs | K105: =IF(OR(ISBLANK(J105),G104=0,ISBLANK(G104)),,ROUND(J105+$K$3,2)) -> 0 | L105: =ROUND(H105*K105,2) ->  | M105: =ROUND(K105/F105,2) -> 
A106: 31 | B106: Gravy Mix, Beef or Brown | C106: Legout 75001 | E106: 8/16 z | F106: 128 | G106: 50 | H106: =ROUND(G106*F106/F106,2) -> 50 | I106: Cs | K106: =IF(OR(ISBLANK(J106),G106=0,ISBLANK(G106)),,ROUND(J106+$K$3,2)) -> 0 | L106: =ROUND(H106*K106,2) -> 0 | M106: =ROUND(K106/F106,2) -> 0
C107: Foothill Farms G405-F6700 | E107: 8/14.10z | F107: 552 | H107: =ROUND($G$106*$F$106/F107,2) -> 11.59 | I107: Cs | K107: =IF(OR(ISBLANK(J107),G106=0,ISBLANK(G106)),,ROUND(J107+$K$3,2)) -> 0 | L107: =ROUND(K107*H107,2) -> 0 | M107: 0
C108: Chef's Companion 57232 | E108: 8/14z | F108: 112 | H108: =ROUND($G$106*$F$106/F108,2) -> 57 | I108: Cs | K108: =IF(OR(ISBLANK(J108),G106=0,ISBLANK(G106)),,ROUND(J108+$K$3,2)) -> 0 | L108: =ROUND(K108*H108,2) -> 0 | M108: 0
C109: Trio 38273 | E109: 8/13.37z | F109: 107 | H109: =ROUND($G$106*$F$106/F109,2) -> 60 | I109: Cs | K109: =IF(OR(ISBLANK(J109),G106=0,ISBLANK(G106)),,ROUND(J109+$K$3,2)) -> 0 | L109: =ROUND(K109*H109,2) -> 0 | M109: 0
C110: Custom Culinary 17649 | E110: 8/12.0z | F110: 96 | H110: =ROUND($G$106*$F$106/F110,2) -> 67 | I110: Cs | K110: =IF(OR(ISBLANK(J110),G106=0,ISBLANK(G106)),,ROUND(J110+$K$3,2)) -> 0 | L110: =ROUND(K110*H110,2) -> 0 | M110: 0
A111: 32 | B111: Gravy Mix, Chicken | C111: Trio 38282 | E111: 8/22.6 z | F111: 181 | G111: 25 | H111: =ROUND(G111*F111/F111,2) -> 25 | I111: Cs | K111: =IF(OR(ISBLANK(J111),G111=0,ISBLANK(G111)),,ROUND(J111+$K$3,2)) -> 0 | L111: =ROUND(H111*K111,2) -> 0 | M111: 0
C112: Legout 75004 | E112: 8/16 z | F112: 128 | H112: =ROUND($G$111*$F$111/F112,2) -> 35.35 | I112: Cs | K112: =IF(OR(ISBLANK(J112),G111=0,ISBLANK(G111)),,ROUND(J112+$K$3,2)) -> 0 | L112: =ROUND(K112*H112,2) -> 0 | M112: 0
C113: Custom Culinary17839 | E113: 8/12z | F113: 96 | H113: =ROUND($G$111*$F$111/F113,2) -> 47.14 | I113: Cs | K113: =IF(OR(ISBLANK(J113),G111=0,ISBLANK(G111)),,ROUND(J113+$K$3,2)) -> 0 | L113: =ROUND(K113*H113,2) -> 0 | M113: 0
A114: 33 | B114: Macaroni, Elbow WGR | C114: Distributor Choice | E114: 20Lb | F114: 20 | G114: 50 | H114: =ROUND(G114*F114/F114,2) -> 50 | I114: Cs
B115: First Quality. | C115: Fillable txt box | H115: =ROUND(G114*F114/F115,2) ->  | I115: Cs | K115: =IF(OR(ISBLANK(J115),G114=0,ISBLANK(G114)),,ROUND(J115+$K$3,2)) -> 0 | L115: =ROUND(H115*K115,2) ->  | M115: =ROUND(K115/F115,2) -> 
A116: 37 | B116: Macaroni , Elbow, Whole Grain | C116: Distributor Choice | E116: 2/10Lb | F116: 20 | G116: 0 | H116: =ROUND(G116*F116/F116,2) -> 0 | I116: Cs
B117: Made from 51% Durum whole wheat flour, contains 28g whole grain | C117: Fillable txt box | H117: =ROUND(G116*F116/F117,2) ->  | I117: Cs | K117: =IF(OR(ISBLANK(J117),G116=0,ISBLANK(G116)),,ROUND(J117+$K$3,2)) -> 0 | L117: =ROUND(H117*K117,2) ->  | M117: =ROUND(K117/F117,2) -> 
B118: per 2oz serving (1/2 c). First Quality
A119: 38 | B119: Mayonnaise, Reduced Calorie | C119: Kens KE0892 | E119: 4/1g | F119: 4 | G119: 25 | H119: =ROUND(G119*F119/F119,2) -> 25 | I119: Cs | K119: =IF(OR(ISBLANK(J119),G119=0,ISBLANK(G119)),,ROUND(J119+$K$3,2)) -> 0 | L119: =ROUND(H119*K119,2) -> 0 | M119: =ROUND(K119/F119,2) -> 0
B120: Does not require refrigeration until opened. | C120: Hellmann's 26730 | E120: 4/1g | F120: 4 | H120: =ROUND($G$119*$F$119/F120,2) -> 25 | I120: Cs | K120: =IF(OR(ISBLANK(J120),G119=0,ISBLANK(G119)),,ROUND(J120+$K$3,2)) -> 0 | L120: =ROUND(K120*H120,2) -> 0 | M120: 0
C121: Dukes 06073 | E121: 4/1g | F121: 4 | H121: =ROUND($G$119*$F$119/F121,2) -> 25 | I121: Cs | K121: =IF(OR(ISBLANK(J121),G119=0,ISBLANK(G119)),,ROUND(J121+$K$3,2)) -> 0 | L121: =ROUND(K121*H121,2) -> 0 | M121: 0
C122: Southern Classic 89007410 | E122: 4/1g | F122: 4 | H122: =ROUND($G$119*$F$119/F122,2) -> 25 | I122: Cs | J122: 0 | K122: =IF(OR(ISBLANK(J122),G119=0,ISBLANK(G119)),,ROUND(J122+$K$3,2)) -> 0 | L122: =ROUND(K122*H122,2) -> 0 | M122: =ROUND(K122/F122,2) -> 0
C123: Kraft 210006430100 | E123: 4/1g | F123: 4 | H123: =ROUND($G$119*$F$119/F123,2) -> 25 | I123: Cs | K123: =IF(OR(ISBLANK(J123),G119=0,ISBLANK(G119)),,ROUND(J123+$K$3,2)) -> 0 | L123: =ROUND(K123*H123,2) -> 0 | M123: 0
A124: 39 | B124: Mayonnaise, Regular | C124: Kens KE0911 | E124: 4/1g | F124: 4 | G124: 0 | H124: =ROUND(G124*F124/F124,2) -> 0 | I124: Cs | K124: =IF(OR(ISBLANK(J124),G124=0,ISBLANK(G124)),,ROUND(J124+$K$3,2)) -> 0 | L124: =ROUND(H124*K124,2) -> 0 | M124: 0
B125: First Quality. Does not require refrigeration until after opening | C125: Hellmann's 26530 | E125: 4/1g | F125: 4 | H125: =ROUND($G$124*$F$124/F125,2) -> 0 | I125: Cs | K125: =IF(OR(ISBLANK(J125),G124=0,ISBLANK(G124)),,ROUND(J125+$K$3,2)) -> 0 | L125: =ROUND(K125*H125,2) -> 0 | M125: 0
C126: Southern Classic 91107410 | E126: 4/1g | F126: 4 | H126: =ROUND($G$124*$F$124/F126,2) -> 0 | I126: Cs | K126: =IF(OR(ISBLANK(J126),G124=0,ISBLANK(G124)),,ROUND(J126+$K$3,2)) -> 0 | L126: =ROUND(K126*H126,2) -> 0 | M126: 0
C127: CF Sauer Dukes 06003 | E127: 4/1g | F127: 4 | H127: =ROUND($G$124*$F$124/F127,2) -> 0 | I127: Cs | J127: 0 | K127: =IF(OR(ISBLANK(J127),G124=0,ISBLANK(G124)),,ROUND(J127+$K$3,2)) -> 0 | L127: =ROUND(K127*H127,2) -> 0 | M127: 0
C128: Kraft 210006421900 | E128: 4/1g | F128: 4 | H128: =ROUND($G$124*$F$124/F128,2) -> 0 | I128: Cs | J128: 0 | K128: =IF(OR(ISBLANK(J128),G124=0,ISBLANK(G124)),,ROUND(J128+$K$3,2)) -> 0 | L128: =ROUND(K128*H128,2) -> 0 | M128: =ROUND(K128/F128,2) -> 0
A129: 40 | B129: Milk, Non Fat Dry Powder | C129: Distributor Choice | E129: 6/5 Lb | F129: 6 | G129: 0 | H129: =ROUND(G129*F129/F129,2) -> 0 | I129: Cs
B130: 4lbs/2 oz dry milk to 4 3/4 gal water= 5 gallons fluid milk | C130: Fillable txt box | H130: =ROUND(G129*F129/F130,2) ->  | I130: Cs | K130: =IF(OR(ISBLANK(J130),G129=0,ISBLANK(G129)),,ROUND(J130+$K$3,2)) -> 0 | L130: =ROUND(H130*K130,2) ->  | M130: =ROUND(K130/F130,2) -> 
